{"text_format":"1","workbook":"xlsx","n_sheets":5,"sheets":["Sales","Report","Deposit","Statment","Coding"],"not_rendered":{"charts":0,"images":0,"macros":1,"external_links":1,"defined_names":33,"comments":0,"pivot_tables":0},"unopened":[],"bounds":{"document_bytes":16777216,"sheet_cells":100000,"rows_first":2000,"rows_last":500,"rows_between":2000,"halvings":0,"cell_chars":16384,"cell_head_chars":4096},"cells_cut":0,"cells_raw":0,"read":"whole","date_system":"1900"}

{"sheet":"Sales","index":0,"n_rows":350,"n_cols":16383,"rows_kept":15,"cut":true,"hidden":false,"merged":[[3,13,3,15],[3,16,3,18],[3,19,3,21],[3,22,3,24],[3,10,3,12],[3,40,3,42],[3,43,3,45],[3,46,3,48],[3,49,3,51],[3,67,3,69],[3,52,3,54],[3,55,3,57],[3,58,3,60],[3,61,3,63],[3,64,3,66],[3,25,3,27],[3,28,3,30],[3,31,3,33],[3,34,3,36],[3,37,3,39]],"bounds":{"rows_first":7,"rows_last":1,"rows_between":7,"halvings":8}}
[null,null,{"$f":"W4","v":0},{"$f":"AI4","v":0},{"$f":"AU4","v":0},{"$f":"BG4","v":0}]
[null,{"$f":"N4","v":0},{"$f":"Z4","v":0},{"$f":"AL4","v":0},{"$f":"AX4","v":0},{"$f":"BJ4","v":0}]
[null,{"$f":"Q4","v":0},{"$f":"AC4","v":0},{"$f":"AO4","v":0},{"$f":"BA4","v":0},{"$f":"BM4","v":0},null,null,null,null,null,null,null,null,null,null,null,null,null,null,null,null,null,null,null,null,null,null,null,null,null,null,null,null,null,null,null,null,null,null,null,null,null,null,null,null,null,null,null,null,null,null,null,null,null,null,null,null,null,null,null,null,null,null,null,null,null,null,null,null,null,{"$f":"BS3+1","v":1},2,3,null,null,null,null,null,null,null,null,null,null,null,null,null,null,null,null,null,null,null,null,null,null,null,null,null,null,null,null,null,null,null,null,null,null,null,null,null,null,null,null,null,null,null,null,null,null,null,null,null,null,null,null,null,null,null,null,null,null,null,null,null,null,null,null,null,null,null,null,null,null,null,null,null,null,null,null,null,null,null,null,null,null,null,"جدول السياسات التسعرية للأصناف"]
[{"$f":"MAX(A6:A350)+1","v":1},{"$f":"T4","v":0},{"$f":"AF4","v":0},{"$f":"AR4","v":0},{"$f":"BD4","v":0},{"$f":"BP4","v":0},null,null,null,null,null,null,null,{"$f":"Coding!B103","v":0},null,null,{"$f":"Coding!B104","v":0},null,null,{"$f":"Coding!B105","v":0},null,null,{"$f":"Coding!B106","v":0},null,null,{"$f":"Coding!B107","v":0},null,null,{"$f":"Coding!B108","v":0},null,null,{"$f":"Coding!B109","v":0},null,null,{"$f":"Coding!B110","v":0},null,null,{"$f":"Coding!B111","v":0},null,null,{"$f":"Coding!B112","v":0},null,null,{"$f":"Coding!B113","v":0},null,null,{"$f":"Coding!B114","v":0},null,null,{"$f":"Coding!B115","v":0},null,null,{"$f":"Coding!B116","v":0},null,null,{"$f":"Coding!B117","v":0},null,null,{"$f":"Coding!B118","v":0},null,null,{"$f":"Coding!B119","v":0},null,null,{"$f":"Coding!B120","v":0},null,null,{"$f":"Coding!B121","v":0},null,null,null,null,null,null,null,null,null,null,null,null,null,null,null,null,null,null,null,null,null,null,null,null,null,null,null,null,null,null,null,null,null,null,null,null,null,null,null,null,null,null,null,null,null,null,null,null,null,null,null,null,null,null,null,null,null,null,null,null,null,null,null,null,null,null,null,null,null,null,null,null,null,null,null,null,null,null,null,null,null,null,null,null,null,null,null,null,null,1,2,3,4]
["م","التاريخ","ف","مندوب","عميل","سعر البيع","سداد نقدي","جملة الفاتورة","قيمة الخصم","صافي المبيعات",null,null,"القيمة",{"$f":"Coding!C103","v":0},{"$f":"Coding!D103","v":0},"القيمة",{"$f":"Coding!C104","v":0},{"$f":"Coding!D104","v":0},"القيمة",{"$f":"Coding!C105","v":0},{"$f":"Coding!D105","v":0},"القيمة",{"$f":"Coding!C106","v":0},{"$f":"Coding!D106","v":0},"القيمة",{"$f":"Coding!C107","v":0},{"$f":"Coding!D107","v":0},"القيمة",{"$f":"Coding!C108","v":0},{"$f":"Coding!D108","v":0},"القيمة",{"$f":"Coding!C109","v":0},{"$f":"Coding!D109","v":0},"القيمة",{"$f":"Coding!C110","v":0},{"$f":"Coding!D110","v":0},"القيمة",{"$f":"Coding!C111","v":0},{"$f":"Coding!D111","v":0},"القيمة",{"$f":"Coding!C112","v":0},{"$f":"Coding!D112","v":0},"القيمة",{"$f":"Coding!C113","v":0},{"$f":"Coding!D113","v":0},"القيمة",{"$f":"Coding!C114","v":0},{"$f":"Coding!D114","v":0},"القيمة",{"$f":"Coding!C115","v":0},{"$f":"Coding!D115","v":0},"القيمة",{"$f":"Coding!C116","v":0},{"$f":"Coding!D116","v":0},"القيمة",{"$f":"Coding!C117","v":0},{"$f":"Coding!D117","v":0},"القيمة",{"$f":"Coding!C118","v":0},{"$f":"Coding!D118","v":0},"القيمة",{"$f":"Coding!C119","v":0},{"$f":"Coding!D119","v":0},"القيمة",{"$f":"Coding!C120","v":0},{"$f":"Coding!D120","v":0},"القيمة",{"$f":"Coding!C121","v":0},{"$f":"Coding!D121","v":0},"القيمة",null,null,"قيمة الخصم","الآجل",null,null,null,null,null,null,null,null,null,null,null,null,null,null,null,null,null,null,null,null,null,null,null,null,null,null,null,null,null,null,null,null,null,null,null,null,null,null,null,null,null,null,null,null,null,null,null,null,null,null,null,null,null,null,null,null,null,null,null,null,null,null,null,null,null,null,null,null,null,null,"م","الصنف","جملة البيع",null,null,null,null,null,null,null,"م","الصنف","شد الكرتونة",{"$f":"Coding!D377","v":"تجزئة"},{"$f":"Coding!E377","v":"جملة"},{"$f":"Coding!F377","v":"موزعين"},{"$f":"Coding!G377","v":"سياسة4"},null,null,null,null,null,null,null,null,null,null,null,null,null,null,null,null,null,null,null,null,null,null,null,null,null,null,null,null,null,null,null,null,null,null,null,null,null,null,null,null,null,null,null,null,null,null,null,null,null,null,null,null,null,null,null,null,null,null,null,null,null,null,null,null,null,null,null,null,null,null,null,null,null,null,null,null,null,null,null,null,null,null,null,null,null,null,null,null,null,null,null,null,null,null,null,null,null,null,null,null,null,null,null,null,null,null,null,null,null,null,null,null,null,null,null,null,null,null,null,null,null,null,null,null,null,null,null,null,null,null,null,null,null,null,null,null,null,null,null,null,null,null,null,null,null,null,null,null,null,null,null,null,null,null,null,null,null,null,null,null,null,null,null,null,null,null,null,null,null,null,null,null,null,null,null,null,null,null,null,null,null,null,null,null,null,null,null,null,null,null,null,null,null,null,null,null,null,null,null,null,null,null,null,null,null,null,null,null,null,null,null,null,null,null,null,null,null,null,null,null,null,null,null,null,null,null,null,null,null,null,null,null,null,null,null,null,null,null,null,null,null,null,null,null,null,null,null,null,null,null,null,null,null,null,null,null,null,null,null,null,null,null,null,null,null,null,null,null,null,null,null,null,null,null,null,null,null,null,null,null,null,null,null,null,null,null,null,null,null,null,null,null,null,null,null,null,null,null,null,null,null,null,null,null,null,null,null,null,null,null,null,null,null,null,null,null,null,null,null,null,null,null,null,null,null,null,null,null,null,null,null,null,null,null,null,null,null,null,null,null,null,null,null,null,null,null,null,null,null,null,null,null,null,null,null,null,null,null,null,null,null,null,null,null,null,null,null,null,null,null,null,null,null,null,null,null,null,null,null,null,null,null,null,null,null,null,null,null,null,null,null,null,null,null,null,null,null,null,null,null,null,null,null,null,null,null,null,null,null,null,null,null,null,null,null,null,null,null,null,null,null,null,null,null,null,null,null,null,null,null,null,null,null,null,null,null,null,null,null,null,null,null,null,null,null,null,null,null,null,null,null,null,null,null,null,null,null,null,null,null,null,null,null,null,null,null,null,null,null,null,null,null,null,null,null,null,null,null,null,null,null,null,null,null,null,null,null,null,null,null,null,null,null,null,null,null,null,null,null,null,null,null,null,null,null,null,null,null,null,null,null,null,null,null,null,null,null,null,null,null,null,null,null,null,null,null,null,null,null,null,null,null,null,null,null,null,null,null,null,null,null,null,null,null,null,null,null,null,null,null,null,null,null,null,null,null,null,null,null,null,null,null,null,null,null,null,null,null,null,null,null,null,null,null,null,null,null,null,null,null,null,null,null,null,null,null,null,null,null,null,null,null,null,null,null,null,null,null,null,null,null,null,null,null,null,null,null,null,null,null,null,null,null,null,null,null,null,null,null,null,null,null,null,null,null,null,null,null,null,null,null,null,null,null,null,null,null,null,null,null,null,null,null,null,null,null,null,null,null,null,null,null,null,null,null,null,null,null,null,null,null,null,null,null,null,null,null,null,null,null,null,null,null,null,null,null,null,null,null,null,null,null,null,null,null,null,null,null,null,null,null,null,null,null,null,null,null,null,null,null,null,null,null,null,null,null,null,null,null,null,null,null,null,null,null,null,null,null,null,null,null,null,null,null,null,null,null,null,null,null,null,null,null,null,null,null,null,null,null,null,null,null,null,null,null,null,null,null,null,null,null,null,null,null,null,null,null,null,null,null,null,null,null,null,null,null,null,null,null,null,null,null,null,null,null,null,null,null,null,null,null,null,null,null,null,null,null,null,null,null,null,null,null,null,null,null,null,null,null,null,null,null,null,null,null,null,null,null,null,null,null,null,null,null,null,null,null,null,null,null,null,null,null,null,null,null,null,null,null,null,null,null,null,null,null,null,null,null,null,null,null,null,null,null,null,null,null,null,null,null,null,null,null,null,null,null,null,null,null,null,null,null,null,null,null,null,null,null,null,null,null,null,null,null,null,null,null,null,null,null,null,null,null,null,null,null,null,null,null,null,null,null,null,null,null,null,null,null,null,null,null,null,null,null,null,null,null,null,null,null,null,null,null,null,null,null,null,null,null,null,null,null,null,null,null,null,null,null,null,null,null,null,null,null,null,null,null,null,null,null,null,null,null,null,null,null,null,null,null,null,null,null,null,null,null,null,null,null,null,null,null,null,null,null,null,null,null,null,null,null,null,null,null,null,null,null,null,null,null,null,null,null,null,null,null,null,null,null,null,null,null,null,null,null,null,null,null,null,null,null,null,null,null,null,null,null,null,null,null,null,null,null,null,null,null,null,null,null,null,null,null,null,null,null,null,null,null,null,null,null,null,null,null,null,null,null,null,null,null,null,null,null,null,null,null,null,null,null,null,null,null,null,null,null,null,null,null,null,null,null,null,null,null,null,null,null,null,null,null,null,null,null,null,null,null,null,null,null,null,null,null,null,null,null,null,null,null,null,null,null,null,null,null,null,null,null,null,null,null,null,null,null,null,null,null,null,null,null,null,null,null,null,null,null,null,null,null,null,null,null,null,null,null,null,null,null,null,null,null,null,null,null,null,null,null,null,null,null,null,null,null,null,null,null,null,null,null,null,null,null,null,null,null,null,null,null,null,null,null,null,null,null,null,null,null,null,null,null,null,null,null,null,null,null,null,null,null,null,null,null,null,null,null,null,null,null,null,null,null,null,null,null,null,null,null,null,null,null,null,null,null,null,null,null,null,null,null,null,null,null,null,null,null,null,null,null,null,null,null,null,null,null,null,null,null,null,null,null,null,null,null,null,null,null,null,null,null,null,null,null,null,null,null,null,null,null,null,null,null,null,null,null,null,null,null,null,null,null,null,null,null,null,null,null,null,null,null,null,null,null,null,null,null,null,null,null,null,null,null,null,null,null,null,null,null,null,null,null,null,null,null,null,null,null,null,null,null,null,null,null,null,null,null,null,null,null,null,null,null,null,null,null,null,null,null,null,null,null,null,null,null,null,null,null,null,null,null,null,null,null,null,null,null,null,null,null,null,null,null,null,null,null,null,null,null,null,null,null,null,null,null,null,null,null,null,null,null,null,null,null,null,null,null,null,null,null,null,null,null,null,null,null,null,null,null,null,null,null,null,null,null,null,null,null,null,null,null,null,null,null,null,null,null,null,null,null,null,null,null,null,null,null,null,null,null,null,null,null,null,null,null,null,null,null,null,null,null,null,null,null,null,null,null,null,null,null,null,null,null,null,null,null,null,null,null,null,null,null,null,null,null,null,null,null,null,null,null,null,null,null,null,null,null,null,null,null,null,null,null,null,null,null,null,null,null,null,null,null,null,null,null,null,null,null,null,null,null,null,null,null,null,null,null,null,null,null,null,null,null,null,null,null,null,null,null,null,null,null,null,null,null,null,null,null,null,null,null,null,null,null,null,null,null,null,null,null,null,null,null,null,null,null,null,null,null,null,null,null,null,null,null,null,null,null,null,null,null,null,null,null,null,null,null,null,null,null,null,null,null,null,null,null,null,null,null,null,null,null,null,null,null,null,null,null,null,null,null,null,null,null,null,null,null,null,null,null,null,null,null,null,null,null,null,null,null,null,null,null,null,null,null,null,null,null,null,null,null,null,null,null,null,null,null,null,null,null,null,null,null,null,null,null,null,null,null,null,null,null,null,null,null,null,null,null,null,null,null,null,null,null,null,null,null,null,null,null,null,null,null,null,null,null,null,null,null,null,null,null,null,null,null,null,null,null,null,null,null,null,null,null,null,null,null,null,null,null,null,null,null,null,null,null,null,null,null,null,null,null,null,null,null,null,null,null,null,null,null,null,null,null,null,null,null,null,null,null,null,null,null,null,null,null,null,null,null,null,null,null,null,null,null,null,null,null,null,null,null,null,null,null,null,null,null,null,null,null,null,null,null,null,null,null,null,null,null,null,null,null,null,null,null,null,null,null,null,null,null,null,null,null,null,null,null,null,null,null,null,null,null,null,null,null,null,null,null,null,null,null,null,null,null,null,null,null,null,null,null,null,null,null,null,null,null,null,null,null,null,null,null,null,null,null,null,null,null,null,null,null,null,null,null,null,null,null,null,null,null,null,null,null,null,null,null,null,null,null,null,null,null,null,null,null,null,null,null,null,null,null,null,null,null,null,null,null,null,null,null,null,null,null,null,null,null,null,null,null,null,null,null,null,null,null,null,null,null,null,null,null,null,null,null,null,null,null,null,null,null,null,null,null,null,null,null,null,null,null,null,null,null,null,null,null,null,null,null,null,null,null,null,null,null,null,null,null,null,null,null,null,null,null,null,null,null,null,null,null,null,null,null,null,null,null,null,null,null,null,null,null,null,null,null,null,null,null,null,null,null,null,null,null,null,null,null,null,null,null,null,null,null,null,null,null,null,null,null,null,null,null,null,null,null,null,null,null,null,null,null,null,null,null,null,null,null,null,null,null,null,null,null,null,null,null,null,null,null,null,null,null,null,null,null,null,null,null,null,null,null,null,null,null,null,null,null,null,null,null,null,null,null,null,null,null,null,null,null,null,null,null,null,null,null,null,null,null,null,null,null,null,null,null,null,null,null,null,null,null,null,null,null,null,null,null,null,null,null,null,null,null,null,null,null,null,null,null,null,null,null,null,null,null,null,null,null,null,null,null,null,null,null,null,null,null,null,null,null,null,null,null,null,null,null,null,null,null,null,null,null,null,null,null,null,null,null,null,null,null,null,null,null,null,null,null,null,null,null,null,null,null,null,null,null,null,null,null,null,null,null,null,null,null,null,null,null,null,null,null,null,null,null,null,null,null,null,null,null,null,null,null,null,null,null,null,null,null,null,null,null,null,null,null,null,null,null,null,null,null,null,null,null,null,null,null,null,null,null,null,null,null,null,null,null,null,null,null,null,null,null,null,null,null,null,null,null,null,null,null,null,null,null,null,null,null,null,null,null,null,null,null,null,null,null,null,null,null,null,null,null,null,null,null,null,null,null,null,null,null,null,null,null,null,null,null,null,null,null,null,null,null,null,null,null,null,null,null,null,null,null,null,null,null,null,null,null,null,null,null,null,null,null,null,null,null,null,null,null,null,null,null,null,null,null,null,null,null,null,null,null,null,null,null,null,null,null,null,null,null,null,null,null,null,null,null,null,null,null,null,null,null,null,null,null,null,null,null,null,null,null,null,null,null,null,null,null,null,null,null,null,null,null,null,null,null,null,null,null,null,null,null,null,null,null,null,null,null,null,null,null,null,null,null,null,null,null,null,null,null,null,null,null,null,null,null,null,null,null,null,null,null,null,null,null,null,null,null,null,null,null,null,null,null,null,null,null,null,null,null,null,null,null,null,null,null,null,null,null,null,null,null,null,null,null,null,null,null,null,null,null,null,null,null,null,null,null,null,null,null,null,null,null,null,null,null,null,null,null,null,null,null,null,null,null,null,null,null,null,null,null,null,null,null,null,null,null,null,null,null,null,null,null,null,null,null,null,null,null,null,null,null,null,null,null,null,null,null,null,null,null,null,null,null,null,null,null,null,null,null,null,null,null,null,null,null,null,null,null,null,null,null,null,null,null,null,null,null,null,null,null,null,null,null,null,null,null,null,null,null,null,null,null,null,null,null,null,null,null,null,null,null,null,null,null,null,null,null,null,null,null,null,null,null,null,null,null,null,null,null,null,null,null,null,null,null,null,null,null,null,null,null,null,null,null,null,null,null,null,null,null,null,null,null,null,null,null,null,null,null,null,null,null,null,null,null,null,null,null,null,null,null,null,null,null,null,null,null,null,null,null,null,null,null,null,null,null,null,null,null,null,null,null,null,null,null,null,null,null,null,null,null,null,null,null,null,null,null,null,null,null,null,null,null,null,null,null,null,null,null,null,null,null,null,null,null,null,null,null,null,null,null,null,null,null,null,null,null,null,null,null,null,null,null,null,null,null,null,null,null,null,null,null,null,null,null,null,null,null,null,null,null,null,null,null,null,null,null,null,null,null,null,null,null,null,null,null,null,null,null,null,null,null,null,null,null,null,null,null,null,null,null,null,null,null,null,null,null,null,null,null,null,null,null,null,null,null,null,null,null,null,null,null,null,null,null,null,null,null,null,null,null,null,null,null,null,null,null,null,null,null,null,null,null,null,null,null,null,null,null,null,null,null,null,null,null,null,null,null,null,null,null,null,null,null,null,null,null,null,null,null,null,null,null,null,null,null,null,null,null,null,null,null,null,null,null,null,null,null,null,null,null,null,null,null,null,null,null,null,null,null,null,null,null,null,null,null,null,null,null,null,null,null,null,null,null,null,null,null,null,null,null,null,null,null,null,null,null,null,null,null,null,null,null,null,null,null,null,null,null,null,null,null,null,null,null,null,null,null,null,null,null,null,null,null,null,null,null,null,null,null,null,null,null,null,null,null,null,null,null,null,null,null,null,null,null,null,null,null,null,null,null,null,null,null,null,null,null,null,null,null,null,null,null,null,null,null,null,null,null,null,null,null,null,null,null,null,null,null,null,null,null,null,null,null,null,null,null,null,null,null,null,null,null,null,null,null,null,null,null,null,null,null,null,null,null,null,null,null,null,null,null,null,null,null,null,null,null,null,null,null,null,null,null,null,null,null,null,null,null,null,null,null,null,null,null,null,null,null,null,null,null,null,null,null,null,null,null,null,null,null,null,null,null,null,null,null,null,null,null,null,null,null,null,null,null,null,null,null,null,null,null,null,null,null,null,null,null,null,null,null,null,null,null,null,null,null,null,null,null,null,null,null,null,null,null,null,null,null,null,null,null,null,null,null,null,null,null,null,null,null,null,null,null,null,null,null,null,null,null,null,null,null,null,null,null,null,null,null,null,null,null,null,null,null,null,null,null,null,null,null,null,null,null,null,null,null,null,null,null,null,null,null,null,null,null,null,null,null,null,null,null,null,null,null,null,null,null,null,null,null,null,null,null,null,null,null,null,null,null,null,null,null,null,null,null,null,null,null,null,null,null,null,null,null,null,null,null,null,null,null,null,null,null,null,null,null,null,null,null,null,null,null,null,null,null,null,null,null,null,null,null,null,null,null,null,null,null,null,null,null,null,null,null,null,null,null,null,null,null,null,null,null,null,null,null,null,null,null,null,null,null,null,null,null,null,null,null,null,null,null,null,null,null,null,null,null,null,null,null,null,null,null,null,null,null,null,null,null,null,null,null,null,null,null,null,null,null,null,null,null,null,null,null,null,null,null,null,null,null,null,null,null,null,null,null,null,null,null,null,null,null,null,null,null,null,null,null,null,null,null,null,null,null,null,null,null,null,null,null,null,null,null,null,null,null,null,null,null,null,null,null,null,null,null,null,null,null,null,null,null,null,null,null,null,null,null,null,null,null,null,null,null,null,null,null,null,null,null,null,null,null,null,null,null,null,null,null,null,null,null,null,null,null,null,null,null,null,null,null,null,null,null,null,null,null,null,null,null,null,null,null,null,null,null,null,null,null,null,null,null,null,null,null,null,null,null,null,null,null,null,null,null,null,null,null,null,null,null,null,null,null,null,null,null,null,null,null,null,null,null,null,null,null,null,null,null,null,null,null,null,null,null,null,null,null,null,null,null,null,null,null,null,null,null,null,null,null,null,null,null,null,null,null,null,null,null,null,null,null,null,null,null,null,null,null,null,null,null,null,null,null,null,null,null,null,null,null,null,null,null,null,null,null,null,null,null,null,null,null,null,null,null,null,null,null,null,null,null,null,null,null,null,null,null,null,null,null,null,null,null,null,null,null,null,null,null,null,null,null,null,null,null,null,null,null,null,null,null,null,null,null,null,null,null,null,null,null,null,null,null,null,null,null,null,null,null,null,null,null,null,null,null,null,null,null,null,null,null,null,null,null,null,null,null,null,null,null,null,null,null,null,null,null,null,null,null,null,null,null,null,null,null,null,null,null,null,null,null,null,null,null,null,null,null,null,null,null,null,null,null,null,null,null,null,null,null,null,null,null,null,null,null,null,null,null,null,null,null,null,null,null,null,null,null,null,null,null,null,null,null,null,null,null,null,null,null,null,null,null,null,null,null,null,null,null,null,null,null,null,null,null,null,null,null,null,null,null,null,null,null,null,null,null,null,null,null,null,null,null,null,null,null,null,null,null,null,null,null,null,null,null,null,null,null,null,null,null,null,null,null,null,null,null,null,null,null,null,null,null,null,null,null,null,null,null,null,null,null,null,null,null,null,null,null,null,null,null,null,null,null,null,null,null,null,null,null,null,null,null,null,null,null,null,null,null,null,null,null,null,null,null,null,null,null,null,null,null,null,null,null,null,null,null,null,null,null,null,null,null,null,null,null,null,null,null,null,null,null,null,null,null,null,null,null,null,null,null,null,null,null,null,null,null,null,null,null,null,null,null,null,null,null,null,null,null,null,null,null,null,null,null,null,null,null,null,null,null,null,null,null,null,null,null,null,null,null,null,null,null,null,null,null,null,null,null,null,null,null,null,null,null,null,null,null,null,null,null,null,null,null,null,null,null,null,null,null,null,null,null,null,null,null,null,null,null,null,null,null,null,null,null,null,null,null,null,null,null,null,null,null,null,null,null,null,null,null,null,null,null,null,null,null,null,null,null,null,null,null,null,null,null,null,null,null,null,null,null,null,null,null,null,null,null,null,null,null,null,null,null,null,null,null,null,null,null,null,null,null,null,null,null,null,null,null,null,null,null,null,null,null,null,null,null,null,null,null,null,null,null,null,null,null,null,null,null,null,null,null,null,null,null,null,null,null,null,null,null,null,null,null,null,null,null,null,null,null,null,null,null,null,null,null,null,null,null,null,null,null,null,null,null,null,null,null,null,null,null,null,null,null,null,null,null,null,null,null,null,null,null,null,null,null,null,null,null,null,null,null,null,null,null,null,null,null,null,null,null,null,null,null,null,null,null,null,null,null,null,null,null,null,null,null,null,null,null,null,null,null,null,null,null,null,null,null,null,null,null,null,null,null,null,null,null,null,null,null,null,null,null,null,null,null,null,null,null,null,null,null,null,null,null,null,null,null,null,null,null,null,null,null,null,null,null,null,null,null,null,null,null,null,null,null,null,null,null,null,null,null,null,null,null,null,null,null,null,null,null,null,null,null,null,null,null,null,null,null,null,null,null,null,null,null,null,null,null,null,null,null,null,null,null,null,null,null,null,null,null,null,null,null,null,null,null,null,null,null,null,null,null,null,null,null,null,null,null,null,null,null,null,null,null,null,null,null,null,null,null,null,null,null,null,null,null,null,null,null,null,null,null,null,null,null,null,null,null,null,null,null,null,null,null,null,null,null,null,null,null,null,null,null,null,null,null,null,null,null,null,null,null,null,null,null,null,null,null,null,null,null,null,null,null,null,null,null,null,null,null,null,null,null,null,null,null,null,null,null,null,null,null,null,null,null,null,null,null,null,null,null,null,null,null,null,null,null,null,null,null,null,null,null,null,null,null,null,null,null,null,null,null,null,null,null,null,null,null,null,null,null,null,null,null,null,null,null,null,null,null,null,null,null,null,null,null,null,null,null,null,null,null,null,null,null,null,null,null,null,null,null,null,null,null,null,null,null,null,null,null,null,null,null,null,null,null,null,null,null,null,null,null,null,null,null,null,null,null,null,null,null,null,null,null,null,null,null,null,null,null,null,null,null,null,null,null,null,null,null,null,null,null,null,null,null,null,null,null,null,null,null,null,null,null,null,null,null,null,null,null,null,null,null,null,null,null,null,null,null,null,null,null,null,null,null,null,null,null,null,null,null,null,null,null,null,null,null,null,null,null,null,null,null,null,null,null,null,null,null,null,null,null,null,null,null,null,null,null,null,null,null,null,null,null,null,null,null,null,null,null,null,null,null,null,null,null,null,null,null,null,null,null,null,null,null,null,null,null,null,null,null,null,null,null,null,null,null,null,null,null,null,null,null,null,null,null,null,null,null,null,null,null,null,null,null,null,null,null,null,null,null,null,null,null,null,null,null,null,null,null,null,null,null,null,null,null,null,null,null,null,null,null,null,null,null,null,null,null,null,null,null,null,null,null,null,null,null,null,null,null,null,null,null,null,null,null,null,null,null,null,null,null,null,null,null,null,null,null,null,null,null,null,null,null,null,null,null,null,null,null,null,null,null,null,null,null,null,null,null,null,null,null,null,null,null,null,null,null,null,null,null,null,null,null,null,null,null,null,null,null,null,null,null,null,null,null,null,null,null,null,null,null,null,null,null,null,null,null,null,null,null,null,null,null,null,null,null,null,null,null,null,null,null,null,null,null,null,null,null,null,null,null,null,null,null,null,null,null,null,null,null,null,null,null,null,null,null,null,null,null,null,null,null,null,null,null,null,null,null,null,null,null,null,null,null,null,null,null,null,null,null,null,null,null,null,null,null,null,null,null,null,null,null,null,null,null,null,null,null,null,null,null,null,null,null,null,null,null,null,null,null,null,null,null,null,null,null,null,null,null,null,null,null,null,null,null,null,null,null,null,null,null,null,null,null,null,null,null,null,null,null,null,null,null,null,null,null,null,null,null,null,null,null,null,null,null,null,null,null,null,null,null,null,null,null,null,null,null,null,null,null,null,null,null,null,null,null,null,null,null,null,null,null,null,null,null,null,null,null,null,null,null,null,null,null,null,null,null,null,null,null,null,null,null,null,null,null,null,null,null,null,null,null,null,null,null,null,null,null,null,null,null,null,null,null,null,null,null,null,null,null,null,null,null,null,null,null,null,null,null,null,null,null,null,null,null,null,null,null,null,null,null,null,null,null,null,null,null,null,null,null,null,null,null,null,null,null,null,null,null,null,null,null,null,null,null,null,null,null,null,null,null,null,null,null,null,null,null,null,null,null,null,null,null,null,null,null,null,null,null,null,null,null,null,null,null,null,null,null,null,null,null,null,null,null,null,null,null,null,null,null,null,null,null,null,null,null,null,null,null,null,null,null,null,null,null,null,null,null,null,null,null,null,null,null,null,null,null,null,null,null,null,null,null,null,null,null,null,null,null,null,null,null,null,null,null,null,null,null,null,null,null,null,null,null,null,null,null,null,null,null,null,null,null,null,null,null,null,null,null,null,null,null,null,null,null,null,null,null,null,null,null,null,null,null,null,null,null,null,null,null,null,null,null,null,null,null,null,null,null,null,null,null,null,null,null,null,null,null,null,null,null,null,null,null,null,null,null,null,null,null,null,null,null,null,null,null,null,null,null,null,null,null,null,null,null,null,null,null,null,null,null,null,null,null,null,null,null,null,null,null,null,null,null,null,null,null,null,null,null,null,null,null,null,null,null,null,null,null,null,null,null,null,null,null,null,null,null,null,null,null,null,null,null,null,null,null,null,null,null,null,null,null,null,null,null,null,null,null,null,null,null,null,null,null,null,null,null,null,null,null,null,null,null,null,null,null,null,null,null,null,null,null,null,null,null,null,null,null,null,null,null,null,null,null,null,null,null,null,null,null,null,null,null,null,null,null,null,null,null,null,null,null,null,null,null,null,null,null,null,null,null,null,null,null,null,null,null,null,null,null,null,null,null,null,null,null,null,null,null,null,null,null,null,null,null,null,null,null,null,null,null,null,null,null,null,null,null,null,null,null,null,null,null,null,null,null,null,null,null,null,null,null,null,null,null,null,null,null,null,null,null,null,null,null,null,null,null,null,null,null,null,null,null,null,null,null,null,null,null,null,null,null,null,null,null,null,null,null,null,null,null,null,null,null,null,null,null,null,null,null,null,null,null,null,null,null,null,null,null,null,null,null,null,null,null,null,null,null,null,null,null,null,null,null,null,null,null,null,null,null,null,null,null,null,null,null,null,null,null,null,null,null,null,null,null,null,null,null,null,null,null,null,null,null,null,null,null,null,null,null,null,null,null,null,null,null,null,null,null,null,null,null,null,null,null,null,null,null,null,null,null,null,null,null,null,null,null,null,null,null,null,null,null,null,null,null,null,null,null,null,null,null,null,null,null,null,null,null,null,null,null,null,null,null,null,null,null,null,null,null,null,null,null,null,null,null,null,null,null,null,null,null,null,null,null,null,null,null,null,null,null,null,null,null,null,null,null,null,null,null,null,null,null,null,null,null,null,null,null,null,null,null,null,null,null,null,null,null,null,null,null,null,null,null,null,null,null,null,null,null,null,null,null,null,null,null,null,null,null,null,null,null,null,null,null,null,null,null,null,null,null,null,null,null,null,null,null,null,null,null,null,null,null,null,null,null,null,null,null,null,null,null,null,null,null,null,null,null,null,null,null,null,null,null,null,null,null,null,null,null,null,null,null,null,null,null,null,null,null,null,null,null,null,null,null,null,null,null,null,null,null,null,null,null,null,null,null,null,null,null,null,null,null,null,null,null,null,null,null,null,null,null,null,null,null,null,null,null,null,null,null,null,null,null,null,null,null,null,null,null,null,null,null,null,null,null,null,null,null,null,null,null,null,null,null,null,null,null,null,null,null,null,null,null,null,null,null,null,null,null,null,null,null,null,null,null,null,null,null,null,null,null,null,null,null,null,null,null,null,null,null,null,null,null,null,null,null,null,null,null,null,null,null,null,null,null,null,null,null,null,null,null,null,null,null,null,null,null,null,null,null,null,null,null,null,null,null,null,null,null,null,null,null,null,null,null,null,null,null,null,null,null,null,null,null,null,null,null,null,null,null,null,null,null,null,null,null,null,null,null,null,null,null,null,null,null,null,null,null,null,null,null,null,null,null,null,null,null,null,null,null,null,null,null,null,null,null,null,null,null,null,null,null,null,null,null,null,null,null,null,null,null,null,null,null,null,null,null,null,null,null,null,null,null,null,null,null,null,null,null,null,null,null,null,null,null,null,null,null,null,null,null,null,null,null,null,null,null,null,null,null,null,null,null,null,null,null,null,null,null,null,null,null,null,null,null,null,null,null,null,null,null,null,null,null,null,null,null,null,null,null,null,null,null,null,null,null,null,null,null,null,null,null,null,null,null,null,null,null,null,null,null,null,null,null,null,null,null,null,null,null,null,null,null,null,null,null,null,null,null,null,null,null,null,null,null,null,null,null,null,null,null,null,null,null,null,null,null,null,null,null,null,null,null,null,null,null,null,null,null,null,null,null,null,null,null,null,null,null,null,null,null,null,null,null,null,null,null,null,null,null,null,null,null,null,null,null,null,null,null,null,null,null,null,null,null,null,null,null,null,null,null,null,null,null,null,null,null,null,null,null,null,null,null,null,null,null,null,null,null,null,null,null,null,null,null,null,null,null,null,null,null,null,null,null,null,null,null,null,null,null,null,null,null,null,null,null,null,null,null,null,null,null,null,null,null,null,null,null,null,null,null,null,null,null,null,null,null,null,null,null,null,null,null,null,null,null,null,null,null,null,null,null,null,null,null,null,null,null,null,null,null,null,null,null,null,null,null,null,null,null,null,null,null,null,null,null,null,null,null,null,null,null,null,null,null,null,null,null,null,null,null,null,null,null,null,null,null,null,null,null,null,null,null,null,null,null,null,null,null,null,null,null,null,null,null,null,null,null,null,null,null,null,null,null,null,null,null,null,null,null,null,null,null,null,null,null,null,null,null,null,null,null,null,null,null,null,null,null,null,null,null,null,null,null,null,null,null,null,null,null,null,null,null,null,null,null,null,null,null,null,null,null,null,null,null,null,null,null,null,null,null,null,null,null,null,null,null,null,null,null,null,null,null,null,null,null,null,null,null,null,null,null,null,null,null,null,null,null,null,null,null,null,null,null,null,null,null,null,null,null,null,null,null,null,null,null,null,null,null,null,null,null,null,null,null,null,null,null,null,null,null,null,null,null,null,null,null,null,null,null,null,null,null,null,null,null,null,null,null,null,null,null,null,null,null,null,null,null,null,null,null,null,null,null,null,null,null,null,null,null,null,null,null,null,null,null,null,null,null,null,null,null,null,null,null,null,null,null,null,null,null,null,null,null,null,null,null,null,null,null,null,null,null,null,null,null,null,null,null,null,null,null,null,null,null,null,null,null,null,null,null,null,null,null,null,null,null,null,null,null,null,null,null,null,null,null,null,null,null,null,null,null,null,null,null,null,null,null,null,null,null,null,null,null,null,null,null,null,null,null,null,null,null,null,null,null,null,null,null,null,null,null,null,null,null,null,null,null,null,null,null,null,null,null,null,null,null,null,null,null,null,null,null,null,null,null,null,null,null,null,null,null,null,null,null,null,null,null,null,null,null,null,null,null,null,null,null,null,null,null,null,null,null,null,null,null,null,null,null,null,null,null,null,null,null,null,null,null,null,null,null,null,null,null,null,null,null,null,null,null,null,null,null,null,null,null,null,null,null,null,null,null,null,null,null,null,null,null,null,null,null,null,null,null,null,null,null,null,null,null,null,null,null,null,null,null,null,null,null,null,null,null,null,null,null,null,null,null,null,null,null,null,null,null,null,null,null,null,null,null,null,null,null,null,null,null,null,null,null,null,null,null,null,null,null,null,null,null,null,null,null,null,null,null,null,null,null,null,null,null,null,null,null,null,null,null,null,null,null,null,null,null,null,null,null,null,null,null,null,null,null,null,null,null,null,null,null,null,null,null,null,null,null,null,null,null,null,null,null,null,null,null,null,null,null,null,null,null,null,null,null,null,null,null,null,null,null,null,null,null,null,null,null,null,null,null,null,null,null,null,null,null,null,null,null,null,null,null,null,null,null,null,null,null,null,null,null,null,null,null,null,null,null,null,null,null,null,null,null,null,null,null,null,null,null,null,null,null,null,null,null,null,null,null,null,null,null,null,null,null,null,null,null,null,null,null,null,null,null,null,null,null,null,null,null,null,null,null,null,null,null,null,null,null,null,null,null,null,null,null,null,null,null,null,null,null,null,null,null,null,null,null,null,null,null,null,null,null,null,null,null,null,null,null,null,null,null,null,null,null,null,null,null,null,null,null,null,null,null,null,null,null,null,null,null,null,null,null,null,null,null,null,null,null,null,null,null,null,null,null,null,null,null,null,null,null,null,null,null,null,null,null,null,null,null,null,null,null,null,null,null,null,null,null,null,null,null,null,null,null,null,null,null,null,null,null,null,null,null,null,null,null,null,null,null,null,null,null,null,null,null,null,null,null,null,null,null,null,null,null,null,null,null,null,null,null,null,null,null,null,null,null,null,null,null,null,null,null,null,null,null,null,null,null,null,null,null,null,null,null,null,null,null,null,null,null,null,null,null,null,null,null,null,null,null,null,null,null,null,null,null,null,null,null,null,null,null,null,null,null,null,null,null,null,null,null,null,null,null,null,null,null,null,null,null,null,null,null,null,null,null,null,null,null,null,null,null,null,null,null,null,null,null,null,null,null,null,null,null,null,null,null,null,null,null,null,null,null,null,null,null,null,null,null,null,null,null,null,null,null,null,null,null,null,null,null,null,null,null,null,null,null,null,null,null,null,null,null,null,null,null,null,null,null,null,null,null,null,null,null,null,null,null,null,null,null,null,null,null,null,null,null,null,null,null,null,null,null,null,null,null,null,null,null,null,null,null,null,null,null,null,null,null,null,null,null,null,null,null,null,null,null,null,null,null,null,null,null,null,null,null,null,null,null,null,null,null,null,null,null,null,null,null,null,null,null,null,null,null,null,null,null,null,null,null,null,null,null,null,null,null,null,null,null,null,null,null,null,null,null,null,null,null,null,null,null,null,null,null,null,null,null,null,null,null,null,null,null,null,null,null,null,null,null,null,null,null,null,null,null,null,null,null,null,null,null,null,null,null,null,null,null,null,null,null,null,null,null,null,null,null,null,null,null,null,null,null,null,null,null,null,null,null,null,null,null,null,null,null,null,null,null,null,null,null,null,null,null,null,null,null,null,null,null,null,null,null,null,null,null,null,null,null,null,null,null,null,null,null,null,null,null,null,null,null,null,null,null,null,null,null,null,null,null,null,null,null,null,null,null,null,null,null,null,null,null,null,null,null,null,null,null,null,null,null,null,null,null,null,null,null,null,null,null,null,null,null,null,null,null,null,null,null,null,null,null,null,null,null,null,null,null,null,null,null,null,null,null,null,null,null,null,null,null,null,null,null,null,null,null,null,null,null,null,null,null,null,null,null,null,null,null,null,null,null,null,null,null,null,null,null,null,null,null,null,null,null,null,null,null,null,null,null,null,null,null,null,null,null,null,null,null,null,null,null,null,null,null,null,null,null,null,null,null,null,null,null,null,null,null,null,null,null,null,null,null,null,null,null,null,null,null,null,null,null,null,null,null,null,null,null,null,null,null,null,null,null,null,null,null,null,null,null,null,null,null,null,null,null,null,null,null,null,null,null,null,null,null,null,null,null,null,null,null,null,null,null,null,null,null,null,null,null,null,null,null,null,null,null,null,null,null,null,null,null,null,null,null,null,null,null,null,null,null,null,null,null,null,null,null,null,null,null,null,null,null,null,null,null,null,null,null,null,null,null,null,null,null,null,null,null,null,null,null,null,null,null,null,null,null,null,null,null,null,null,null,null,null,null,null,null,null,null,null,null,null,null,null,null,null,null,null,null,null,null,null,null,null,null,null,null,null,null,null,null,null,null,null,null,null,null,null,null,null,null,null,null,null,null,null,null,null,null,null,null,null,null,null,null,null,null,null,null,null,null,null,null,null,null,null,null,null,null,null,null,null,null,null,null,null,null,null,null,null,null,null,null,null,null,null,null,null,null,null,null,null,null,null,null,null,null,null,null,null,null,null,null,null,null,null,null,null,null,null,null,null,null,null,null,null,null,null,null,null,null,null,null,null,null,null,null,null,null,null,null,null,null,null,null,null,null,null,null,null,null,null,null,null,null,null,null,null,null,null,null,null,null,null,null,null,null,null,null,null,null,null,null,null,null,null,null,null,null,null,null,null,null,null,null,null,null,null,null,null,null,null,null,null,null,null,null,null,null,null,null,null,null,null,null,null,null,null,null,null,null,null,null,null,null,null,null,null,null,null,null,null,null,null,null,null,null,null,null,null,null,null,null,null,null,null,null,null,null,null,null,null,null,null,null,null,null,null,null,null,null,null,null,null,null,null,null,null,null,null,null,null,null,null,null,null,null,null,null,null,null,null,null,null,null,null,null,null,null,null,null,null,null,null,null,null,null,null,null,null,null,null,null,null,null,null,null,null,null,null,null,null,null,null,null,null,null,null,null,null,null,null,null,null,null,null,null,null,null,null,null,null,null,null,null,null,null,null,null,null,null,null,null,null,null,null,null,null,null,null,null,null,null,null,null,null,null,null,null,null,null,null,null,null,null,null,null,null,null,null,null,null,null,null,null,null,null,null,null,null,null,null,null,null,null,null,null,null,null,null,null,null,null,null,null,null,null,null,null,null,null,null,null,null,null,null,null,null,null,null,null,null,null,null,null,null,null,null,null,null,null,null,null,null,null,null,null,null,null,null,null,null,null,null,null,null,null,null,null,null,null,null,null,null,null,null,null,null,null,null,null,null,null,null,null,null,null,null,null,null,null,null,null,null,null,null,null,null,null,null,null,null,null,null,null,null,null,null,null,null,null,null,null,null,null,null,null,null,null,null,null,null,null,null,null,null,null,null,null,null,null,null,null,null,null,null,null,null,null,null,null,null,null,null,null,null,null,null,null,null,null,null,null,null,null,null,null,null,null,null,null,null,null,null,null,null,null,null,null,null,null,null,null,null,null,null,null,null,null,null,null,null,null,null,null,null,null,null,null,null,null,null,null,null,null,null,null,null,null,null,null,null,null,null,null,null,null,null,null,null,null,null,null,null,null,null,null,null,null,null,null,null,null,null,null,null,null,null,null,null,null,null,null,null,null,null,null,null,null,null,null,null,null,null,null,null,null,null,null,null,null,null,null,null,null,null,null,null,null,null,null,null,null,null,null,null,null,null,null,null,null,null,null,null,null,null,null,null,null,null,null,null,null,null,null,null,null,null,null,null,null,null,null,null,null,null,null,null,null,null,null,null,null,null,null,null,null,null,null,null,null,null,null,null,null,null,null,null,null,null,null,null,null,null,null,null,null,null,null,null,null,null,null,null,null,null,null,null,null,null,null,null,null,null,null,null,null,null,null,null,null,null,null,null,null,null,null,null,null,null,null,null,null,null,null,null,null,null,null,null,null,null,null,null,null,null,null,null,null,null,null,null,null,null,null,null,null,null,null,null,null,null,null,null,null,null,null,null,null,null,null,null,null,null,null,null,null,null,null,null,null,null,null,null,null,null,null,null,null,null,null,null,null,null,null,null,null,null,null,null,null,null,null,null,null,null,null,null,null,null,null,null,null,null,null,null,null,null,null,null,null,null,null,null,null,null,null,null,null,null,null,null,null,null,null,null,null,null,null,null,null,null,null,null,null,null,null,null,null,null,null,null,null,null,null,null,null,null,null,null,null,null,null,null,null,null,null,null,null,null,null,null,null,null,null,null,null,null,null,null,null,null,null,null,null,null,null,null,null,null,null,null,null,null,null,null,null,null,null,null,null,null,null,null,null,null,null,null,null,null,null,null,null,null,null,null,null,null,null,null,null,null,null,null,null,null,null,null,null,null,null,null,null,null,null,null,null,null,null,null,null,null,null,null,null,null,null,null,null,null,null,null,null,null,null,null,null,null,null,null,null,null,null,null,null,null,null,null,null,null,null,null,null,null,null,null,null,null,null,null,null,null,null,null,null,null,null,null,null,null,null,null,null,null,null,null,null,null,null,null,null,null,null,null,null,null,null,null,null,null,null,null,null,null,null,null,null,null,null,null,null,null,null,null,null,null,null,null,null,null,null,null,null,null,null,null,null,null,null,null,null,null,null,null,null,null,null,null,null,null,null,null,null,null,null,null,null,null,null,null,null,null,null,null,null,null,null,null,null,null,null,null,null,null,null,null,null,null,null,null,null,null,null,null,null,null,null,null,null,null,null,null,null,null,null,null,null,null,null,null,null,null,null,null,null,null,null,null,null,null,null,null,null,null,null,null,null,null,null,null,null,null,null,null,null,null,null,null,null,null,null,null,null,null,null,null,null,null,null,null,null,null,null,null,null,null,null,null,null,null,null,null,null,null,null,null,null,null,null,null,null,null,null,null,null,null,null,null,null,null,null,null,null,null,null,null,null,null,null,null,null,null,null,null,null,null,null,null,null,null,null,null,null,null,null,null,null,null,null,null,null,null,null,null,null,null,null,null,null,null,null,null,null,null,null,null,null,null,null,null,null,null,null,null,null,null,null,null,null,null,null,null,null,null,null,null,null,null,null,null,null,null,null,null,null,null,null,null,null,null,null,null,null,null,null,null,null,null,null,null,null,null,null,null,null,null,null,null,null,null,null,null,null,null,null,null,null,null,null,null,null,null,null,null,null,null,null,null,null,null,null,null,null,null,null,null,null,null,null,null,null,null,null,null,null,null,null,null,null,null,null,null,null,null,null,null,null,null,null,null,null,null,null,null,null,null,null,null,null,null,null,null,null,null,null,null,null,null,null,null,null,null,null,null,null,null,null,null,null,null,null,null,null,null,null,null,null,null,null,null,null,null,null,null,null,null,null,null,null,null,null,null,null,null,null,null,null,null,null,null,null,null,null,null,null,null,null,null,null,null,null,null,null,null,null,null,null,null,null,null,null,null,null,null,null,null,null,null,null,null,null,null,null,null,null,null,null,null,null,null,null,null,null,null,null,null,null,null,null,null,null,null,null,null,null,null,null,null,null,null,null,null,null,null,null,null,null,null,null,null,null,null,null,null,null,null,null,null,null,null,null,null,null,null,null,null,null,null,null,null,null,null,null,null,null,null,null,null,null,null,null,null,null,null,null,null,null,null,null,null,null,null,null,null,null,null,null,null,null,null,null,null,null,null,null,null,null,null,null,null,null,null,null,null,null,null,null,null,null,null,null,null,null,null,null,null,null,null,null,null,null,null,null,null,null,null,null,null,null,null,null,null,null,null,null,null,null,null,null,null,null,null,null,null,null,null,null,null,null,null,null,null,null,null,null,null,null,null,null,null,null,null,null,null,null,null,null,null,null,null,null,null,null,null,null,null,null,null,null,null,null,null,null,null,null,null,null,null,null,null,null,null,null,null,null,null,null,null,null,null,null,null,null,null,null,null,null,null,null,null,null,null,null,null,null,null,null,null,null,null,null,null,null,null,null,null,null,null,null,null,null,null,null,null,null,null,null,null,null,null,null,null,null,null,null,null,null,null,null,null,null,null,null,null,null,null,null,null,null,null,null,null,null,null,null,null,null,null,null,null,null,null,null,null,null,null,null,null,null,null,null,null,null,null,null,null,null,null,null,null,null,null,null,null,null,null,null,null,null,null,null,null,null,null,null,null,null,null,null,null,null,null,null,null,null,null,null,null,null,null,null,null,null,null,null,null,null,null,null,null,null,null,null,null,null,null,null,null,null,null,null,null,null,null,null,null,null,null,null,null,null,null,null,null,null,null,null,null,null,null,null,null,null,null,null,null,null,null,null,null,null,null,null,null,null,null,null,null,null,null,null,null,null,null,null,null,null,null,null,null,null,null,null,null,null,null,null,null,null,null,null,null,null,null,null,null,null,null,null,null,null,null,null,null,null,null,null,null,null,null,null,null,null,null,null,null,null,null,null,null,null,null,null,null,null,null,null,null,null,null,null,null,null,null,null,null,null,null,null,null,null,null,null,null,null,null,null,null,null,null,null,null,null,null,null,null,null,null,null,null,null,null,null,null,null,null,null,null,null,null,null,null,null,null,null,null,null,null,null,null,null,null,null,null,null,null,null,null,null,null,null,null,null,null,null,null,null,null,null,null,null,null,null,null,null,null,null,null,null,null,null,null,null,null,null,null,null,null,null,null,null,null,null,null,null,null,null,null,null,null,null,null,null,null,null,null,null,null,null,null,null,null,null,null,null,null,null,null,null,null,null,null,null,null,null,null,null,null,null,null,null,null,null,null,null,null,null,null,null,null,null,null,null,null,null,null,null,null,null,null,null,null,null,null,null,null,null,null,null,null,null,null,null,null,null,null,null,null,null,null,null,null,null,null,null,null,null,null,null,null,null,null,null,null,null,null,null,null,null,null,null,null,null,null,null,null,null,null,null,null,null,null,null,null,null,null,null,null,null,null,null,null,null,null,null,null,null,null,null,null,null,null,null,null,null,null,null,null,null,null,null,null,null,null,null,null,null,null,null,null,null,null,null,null,null,null,null,null,null,null,null,null,null,null,null,null,null,null,null,null,null,null,null,null,null,null,null,null,null,null,null,null,null,null,null,null,null,null,null,null,null,null,null,null,null,null,null,null,null,null,null,null,null,null,null,null,null,null,null,null,null,null,null,null,null,null,null,null,null,null,null,null,null,null,null,null,null,null,null,null,null,null,null,null,null,null,null,null,null,null,null,null,null,null,null,null,null,null,null,null,null,null,null,null,null,null,null,null,null,null,null,null,null,null,null,null,null,null,null,null,null,null,null,null,null,null,null,null,null,null,null,null,null,null,null,null,null,null,null,null,null,null,null,null,null,null,null,null,null,null,null,null,null,null,null,null,null,null,null,null,null,null,null,null,null,null,null,null,null,null,null,null,null,null,null,null,null,null,null,null,null,null,null,null,null,null,null,null,null,null,null,null,null,null,null,null,null,null,null,null,null,null,null,null,null,null,null,null,null,null,null,null,null,null,null,null,null,null,null,null,null,null,null,null,null,null,null,null,null,null,null,null,null,null,null,null,null,null,null,null,null,null,null,null,null,null,null,null,null,null,null,null,null,null,null,null,null,null,null,null,null,null,null,null,null,null,null,null,null,null,null,null,null,null,null,null,null,null,null,null,null,null,null,null,null,null,null,null,null,null,null,null,null,null,null,null,null,null,null,null,null,null,null,null,null,null,null,null,null,null,null,null,null,null,null,null,null,null,null,null,null,null,null,null,null,null,null,null,null,null,null,null,null,null,null,null,null,null,null,null,null,null,null,null,null,null,null,null,null,null,null,null,null,null,null,null,null,null,null,null,null,null,null,null,null,null,null,null,null,null,null,null,null,null,null,null,null,null,null,null,null,null,null,null,null,null,null,null,null,null,null,null,null,null,null,null,null,null,null,null,null,null,null,null,null,null,null,null,null,null,null,null,null,null,null,null,null,null,null,null,null,null,null,null,null,null,null,null,null,null,null,null,null,null,null,null,null,null,null,null,null,null,null,null,null,null,null,null,null,null,null,null,null,null,null,null,null,null,null,null,null,null,null,null,null,null,null,null,null,null,null,null,null,null,null,null,null,null,null,null,null,null,null,null,null,null,null,null,null,null,null,null,null,null,null,null,null,null,null,null,null,null,null,null,null,null,null,null,null,null,null,null,null,null,null,null,null,null,null,null,null,null,null,null,null,null,null,null,null,null,null,null,null,null,null,null,null,null,null,null,null,null,null,null,null,null,null,null,null,null,null,null,null,null,null,null,null,null,null,null,null,null,null,null,null,null,null,null,null,null,null,null,null,null,null,null,null,null,null,null,null,null,null,null,null,null,null,null,null,null,null,null,null,null,null,null,null,null,null,null,null,null,null,null,null,null,null,null,null,null,null,null,null,null,null,null,null,null,null,null,null,null,null,null,null,null,null,null,null,null,null,null,null,null,null,null,null,null,null,null,null,null,null,null,null,null,null,null,null,null,null,null,null,null,null,null,null,null,null,null,null,null,null,null,null,null,null,null,null,null,null,null,null,null,null,null,null,null,null,null,null,null,null,null,null,null,null,null,null,null,null,null,null,null,null,null,null,null,null,null,null,null,null,null,null,null,null,null,null,null,null,null,null,null,null,null,null,null,null,null,null,null,null,null,null,null,null,null,null,null,null,null,null,null,null,null,null,null,null,null,null,null,null,null,null,null,null,null,null,null,null,null,null,null,null,null,null,null,null,null,null,null,null,null,null,null,null,null,null,null,null,null,null,null,null,null,null,null,null,null,null,null,null,null,null,null,null,null,null,null,null,null,null,null,null,null,null,null,null,null,null,null,null,null,null,null,null,null,null,null,null,null,null,null,null,null,null,null,null,null,null,null,null,null,null,null,null,null,null,null,null,null,null,null,null,null,null,null,null,null,null,null,null,null,null,null,null,null,null,null,null,null,null,null,null,null,null,null,null,null,null,null,null,null,null,null,null,null,null,null,null,null,null,null,null,null,null,null,null,null,null,null,null,null,null,null,null,null,null,null,null,null,null,null,null,null,null,null,null,null,null,null,null,null,null,null,null,null,null,null,null,null,null,null,null,null,null,null,null,null,null,null,null,null,null,null,null,null,null,null,null,null,null,null,null,null,null,null,null,null,null,null,null,null,null,null,null,null,null,null,null,null,null,null,null,null,null,null,null,null,null,null,null,null,null,null,null,null,null,null,null,null,null,null,null,null,null,null,null,null,null,null,null,null,null,null,null,null,null,null,null,null,null,null,null,null,null,null,null,null,null,null,null,null,null,null,null,null,null,null,null,null,null,null,null,null,null,null,null,null,null,null,null,null,null,null,null,null,null,null,null,null,null,null,null,null,null,null,null,null,null,null,null,null,null,null,null,null,null,null,null,null,null,null,null,null,null,null,null,null,null,null,null,null,null,null,null,null,null,null,null,null,null,null,null,null,null,null,null,null,null,null,null,null,null,null,null,null,null,null,null,null,null,null,null,null,null,null,null,null,null,null,null,null,null,null,null,null,null,null,null,null,null,null,null,null,null,null,null,null,null,null,null,null,null,null,null,null,null,null,null,null,null,null,null,null,null,null,null,null,null,null,null,null,null,null,null,null,null,null,null,null,null,null,null,null,null,null,null,null,null,null,null,null,null,null,null,null,null,null,null,null,null,null,null,null,null,null,null,null,null,null,null,null,null,null,null,null,null,null,null,null,null,null,null,null,null,null,null,null,null,null,null,null,null,null,null,null,null,null,null,null,null,null,null,null,null,null,null,null,null,null,null,null,null,null,null,null,null,null,null,null,null,null,null,null,null,null,null,null,null,null,null,null,null,null,null,null,null,null,null,null,null,null,null,null,null,null,null,null,null,null,null,null,null,null,null,null,null,null,null,null,null,null,null,null,null,null,null,null,null,null,null,null,null,null,null,null,null,null,null,null,null,null,null,null,null,null,null,null,null,null,null,null,null,null,null,null,null,null,null,null,null,null,null,null,null,null,null,null,null,null,null,null,null,null,null,null,null,null,null,null,null,null,null,null,null,null,null,null,null,null,null,null,null,null,null,null,null,null,null,null,null,null,null,null,null,null,null,null,null,null,null,null,null,null,null,null,null,null,null,null,null,null,null,null,null,null,null,null,null,null,null,null,null,null,null,null,null,null,null,null,null,null,null,null,null,null,null,null,null,null,null,null,null,null,null,null,null,null,null,null,null,null,null,null,null,null,null,null,null,null,null,null,null,null,null,null,null,null,null,null,null,null,null,null,null,null,null,null,null,null,null,null,null,null,null,null,null,null,null,null,null,null,null,null,null,null,null,null,null,null,null,null,null,null,null,null,null,null,null,null,null,null,null,null,null,null,null,null,null,null,null,null,null,null,null,null,null,null,null,null,null,null,null,null,null,null,null,null,null,null,null,null,null,null,null,null,null,null,null,null,null,null,null,null,null,null,null,null,null,null,null,null,null,null,null,null,null,null,null,null,null,null,null,null,null,null,null,null,null,null,null,null,null,null,null,null,null,null,null,null,null,null,null,null,null,null,null,null,null,null,null,null,null,null,null,null,null,null,null,null,null,null,null,null,null,null,null,null,null,null,null,null,null,null,null,null,null,null,null,null,null,null,null,null,null,null,null,null,null,null,null,null,null,null,null,null,null,null,null,null,null,null,null,null,null,null,null,null,null,null,null,null,null,null,null,null,null,null,null,null,null,null,null,null,null,null,null,null,null,null,null,null,null,null,null,null,null,null,null,null,null,null,null,null,null,null,null,null,null,null,null,null,null,null,null,null,null,null,null,null,null,null,null,null,null,null,null,null,null,null,null,null,null,null,null,null,null,null,null,null,null,null,null,null,null,null,null,null,null,null,null,null,null,null,null,null,null,null,null,null,null,null,null,null,null,null,null,null,null,null,null,null,null,null,null,null,null,null,null,null,null,null,null,null,null,null,null,null,null,null,null,null,null,null,null,null,null,null,null,null,null,null,null,null,null,null,null,null,null,null,null,null,null,null,null,null,null,null,null,null,null,null,null,null,null,null,null,null,null,null,null,null,null,null,null,null,null,null,null,null,null,null,null,null,null,null,null,null,null,null,null,null,null,null,null,null,null,null,null,null,null,null,null,null,null,null,null,null,null,null,null,null,null,null,null,null,null,null,null,null,null,null,null,null,null,null,null,null,null,null,null,null,null,null,null,null,null,null,null,null,null,null,null,null,null,null,null,null,null,null,null,null,null,null,null,null,null,null,null,null,null,null,null,null,null,null,null,null,null,null,null,null,null,null,null,null,null,null,null,null,null,null,null,null,null,null,null,null,null,null,null,null,null,null,null,null,null,null,null,null,null,null,null,null,null,null,null,null,null,null,null,null,null,null,null,null,null,null,null,null,null,null,null,null,null,null,null,null,null,null,null,null,null,null,null,null,null,null,null,null,null,null,null,null,null,null,null,null,null,null,null,null,null,null,null,null,null,null,null,null,null,null,null,null,null,null,null,null,null,null,null,null,null,null,null,null,null,null,null,null,null,null,null,null,null,null,null,null,null,null,null,null,null,null,null,null,null,null,null,null,null,null,null,null,null,null,null,null,null,null,null,null,null,null,null,null,null,null,null,null,null,null,null,null,null,null,null,null,null,null,null,null,null,null,null,null,null,null,null,null,null,null,null,null,null,null,null,null,null,null,null,null,null,null,null,null,null,null,null,null,null,null,null,null,null,null,null,null,null,null,null,null,null,null,null,null,null,null,null,null,null,null,null,null,null,null,null,null,null,null,null,null,null,null,null,null,null,null,null,null,null,null,null,null,null,null,null,null,null,null,null,null,null,null,null,null,null,null,null,null,null,null,null,null,null,null,null,null,null,null,null,null,null,null,null,null,null,null,null,null,null,null,null,null,null,null,null,null,null,null,null,null,null,null,null,null,null,null,null,null,null,null,null,null,null,null,null,null,null,null,null,null,null,null,null,null,null,null,null,null,null,null,null,null,null,null,null,null,null,null,null,null,null,null,null,null,null,null,null,null,null,null,null,null,null,null,null,null,null,null,null,null,null,null,null,null,null,null,null,null,null,null,null,null,null,null,null,null,null,null,null,null,null,null,null,null,null,null,null,null,null,null,null,null,null,null,null,null,null,null,null,null,null,null,null,null,null,null,null,null,null,null,null,null,null,null,null,null,null,null,null,null,null,null,null,null,null,null,null,null,null,null,null,null,null,null,null,null,null,null,null,null,null,null,null,null,null,null,null,null,null,null,null,null,null,null,null,null,null,null,null,null,null,null,null,null,null,null,null,null,null,null,null,null,null,null,null,null,null,null,null,null,null,null,null,null,null,null,null,null,null,null,null,null,null,null,null,null,null,null,null,null,null,null,null,null,null,null,null,null,null,null,null,null,null,null,null,null,null,null,null,null,null,null,null,null,null,null,null,null,null,null,null,null,null,null,null,null,null,null,null,null,null,null,null,null,null,null,null,null,null,null,null,null,null,null,null,null,null,null,null,null,null,null,null,null,null,null,null,null,null,null,null,null,null,null,null,null,null,null,null,null,null,null,null,null,null,null,null,null,null,null,null,null,null,null,null,null,null,null,null,null,null,null,null,null,null,null,null,null,null,null,null,null,null,null,null,null,null,null,null,null,null,null,null,null,null,null,null,null,null,null,null,null,null,null,null,null,null,null,null,null,null,null,null,null,null,null,null,null,null,null,null,null,null,null,null,null,null,null,null,null,null,null,null,null,null,null,null,null,null,null,null,null,null,null,null,null,null,null,null,null,null,null,null,null,null,null,null,null,null,null,null,null,null,null,null,null,null,null,null,null,null,null,null,null,null,null,null,null,null,null,null,null,null,null,null,null,null,null,null,null,null,null,null,null,null,null,null,null,null,null,null,null,null,null,null,null,null,null,null,null,null,null,null,null,null,null,null,null,null,null,null,null,null,null,null,null,null,null,null,null,null,null,null,null,null,null,null,null,null,null,null,null,null,null,null,null,null,null,null,null,null,null,null,null,null,null,null,null,null,null,null,null,null,null,null,null,null,null,null,null,null,null,null,null,null,null,null,null,null,null,null,null,null,null,null,null,null,null,null,null,null,null,null,null,null,null,null,null,null,null,null,null,null,null,null,null,null,null,null,null,null,null,null,null,null,null,null,null,null,null,null,null,null,null,null,null,null,null,null,null,null,null,null,null,null,null,null,null,null,null,null,null,null,null,null,null,null,null,null,null,null,null,null,null,null,null,null,null,null,null,null,null,null,null,null,null,null,null,null,null,null,null,null,null,null,null,null,null,null,null,null,null,null,null,null,null,null,null,null,null,null,null,null,null,null,null,null,null,null,null,null,null,null,null,null,null,null,null,null,null,null,null,null,null,null,null,null,null,null,null,null,null,null,null,null,null,null,null,null,null,null,null,null,null,null,null,null,null,null,null,null,null,null,null,null,null,null,null,null,null,null,null,null,null,null,null,null,null,null,null,null,null,null,null,null,null,null,null,null,null,null,null,null,null,null,null,null,null,null,null,null,null,null,null,null,null,null,null,null,null,null,null,null,null,null,null,null,null,null,null,null,null,null,null,null,null,null,null,null,null,null,null,null,null,null,null,null,null,null,null,null,null,null,null,null,null,null,null,null,null,null,null,null,null,null,null,null,null,null,null,null,null,null,null,null,null,null,null,null,null,null,null,null,null,null,null,null,null,null,null,null,null,null,null,null,null,null,null,null,null,null,null,null,null,null,null,null,null,null,null,null,null,null,null,null,null,null,null,null,null,null,null,null,null,null,null,null,null,null,null,null,null,null,null,null,null,null,null,null,null,null,null,null,null,null,null,null,null,null,null,null,null,null,null,null,null,null,null,null,null,null,null,null,null,null,null,null,null,null,null,null,null,null,null,null,null,null,null,null,null,null,null,null,null,null,null,null,null,null,null,null,null,null,null,null,null,null,null,null,null,null,null,null,null,null,null,null,null,null,null,null,null,null,null,null,null,null,null,null,null,null,null,null,null,null,null,null,null,null,null,null,null,null,null,null,null,null,null,null,null,null,null,null,null,null,null,null,null,null,null,null,null,null,null,null,null,null,null,null,null,null,null,null,null,null,null,null,null,null,null,null,null,null,null,null,null,null,null,null,null,null,null,null,null,null,null,null,null,null,null,null,null,null,null,null,null,null,null,null,null,null,null,null,null,null,null,null,null,null,null,null,null,null,null,null,null,null,null,null,null,null,null,null,null,null,null,null,null,null,null,null,null,null,null,null,null,null,null,null,null,null,null,null,null,null,null,null,null,null,null,null,null,null,null,null,null,null,null,null,null,null,null,null,null,null,null,null,null,null,null,null,null,null,null,null,null,null,null,null,null,null,null,null,null,null,null,null,null,null,null,null,null,null,null,null,null,null,null,null,null,null,null,null,null,null,null,null,null,null,null,null,null,null,null,null,null,null,null,null,null,null,null,null,null,null,null,null,null,null,null,null,null,null,null,null,null,null,null,null,null,null,null,null,null,null,null,null,null,null,null,null,null,null,null,null,null,null,null,null,null,null,null,null,null,null,null,null,null,null,null,null,null,null,null,null,null,null,null,null,null,null,null,null,null,null,null,null,null,null,null,null,null,null,null,null,null,null,null,null,null,null,null,null,null,null,null,null,null,null,null,null,null,null,null,null,null,null,null,null,null,null,null,null,null,null,null,null,null,null,null,null,null,null,null,null,null,null,null,null,null,null,null,null,null,null,null,null,null,null,null,null,null,null,null,null,null,null,null,null,null,null,null,null,null,null,null,null,null,null,null,null,null,null,null,null,null,null,null,null,null,null,null,null,null,null,null,null,null,null,null,null,null,null,null,null,null,null,null,null,null,null,null,null,null,null,null,null,null,null,null,null,null,null,null,null,null,null,null,null,null,null,null,null,null,null,null,null,null,null,null,null,null,null,null,null,null,null,null,null,null,null,null,null,null,null,null,null,null,null,null,null,null,null,null,null,null,null,null,null,null,null,null,null,null,null,null,null,null,null,null,null,null,null,null,null,null,null,null,null,null,null,null,null,null,null,null,null,null,null,null,null,null,null,null,null,null,null,null,null,null,null,null,null,null,null,null,null,null,null,null,null,null,null,null,null,null,null,null,null,null,null,null,null,null,null,null,null,null,null,null,null,null,null,null,null,null,null,null,null,null,null,null,null,null,null,null,null,null,null,null,null,null,null,null,null,null,null,null,null,null,null,null,null,null,null,null,null,null,null,null,null,null,null,null,null,null,null,null,null,null,null,null,null,null,null,null,null,null,null,null,null,null,null,null,null,null,null,null,null,null,null,null,null,null,null,null,null,null,null,null,null,null,null,null,null,null,null,null,null,null,null,null,null,null,null,null,null,null,null,null,null,null,null,null,null,null,null,null,null,null,null,null,null,null,null,null,null,null,null,null,null,null,null,null,null,null,null,null,null,null,null,null,null,null,null,null,null,null,null,null,null,null,null,null,null,null,null,null,null,null,null,null,null,null,null,null,null,null,null,null,null,null,null,null,null,null,null,null,null,null,null,null,null,null,null,null,null,null,null,null,null,null,null,null,null,null,null,null,null,null,null,null,null,null,null,null,null,null,null,null,null,null,null,null,null,null,null,null,null,null,null,null,null,null,null,null,null,null,null,null,null,null,null,null,null,null,null,null,null,null,null,null,null,null,null,null,null,null,null,null,null,null,null,null,null,null,null,null,null,null,null,null,null,null,null,null,null,null,null,null,null,null,null,null,null,null,null,null,null,null,null,null,null,null,null,null,null,null,null,null,null,null,null,null,null,null,null,null,null,null,null,null,null,null,null,null,null,null,null,null,null,null,null,null,null,null,null,null,null,null,null,null,null,null,null,null,null,null,null,null,null,null,null,null,null,null,null,null,null,null,null,null,null,null,null,null,null,null,null,null,null,null,null,null,null,null,null,null,null,null,null,null,null,null,null,null,null,null,null,null,null,null,null,null,null,null,null,null,null,null,null,null,null,null,null,null,null,null,null,null,null,null,null,null,null,null,null,null,null,null,null,null,null,null,null,null,null,null,null,null,null,null,null,null,null,null,null,null,null,null,null,null,null,null,null,null,null,null,null,null,null,null,null,null,null,null,null,null,null,null,null,null,null,null,null,null,null,null,null,null,null,null,null,null,null,null,null,null,null,null,null,null,null,null,null,null,null,null,null,null,null,null,null,null,null,null,null,null,null,null,null,null,null,null,null,null,null,null,null,null,null,null,null,null,null,null,null,null,null,null,null,null,null,null,null,null,null,null,null,null,null,null,null,null,null,null,null,null,null,null,null,null,null,null,null,null,null,null,null,null,null,null,null,null,null,null,null,null,null,null,null,null,null,null,null,null,null,null,null,null,null,null,null,null,null,null,null,null,null,null,null,null,null,null,null,null,null,null,null,null,null,null,null,null,null,null,null,null,null,null,null,null,null,null,null,null,null,null,null,null,null,null,null,null,null,null,null,null,null,null,null,null,null,null,null,null,null,null,null,null,null,null,null,null,null,null,null,null,null,null,null,null,null,null,null,null,null,null,null,null,null,null,null,null,null,null,null,null,null,null,null,null,null,null,null,null,null,null,null,null,null,null,null,null,null,null,null,null,null,null,null,null,null,null,null,null,null,null,null,null,null,null,null,null,null,null,null,null,null,null,null,null,null,null,null,null,null,null,null,null,null,null,null,null,null,null,null,null,null,null,null,null,null,null,null,null,null,null,null,null,null,null,null,null,null,null,null,null,null,null,null,null,null,null,null,null,null,null,null,null,null,null,null,null,null,null,null,null,null,null,null,null,null,null,null,null,null,null,null,null,null,null,null,null,null,null,null,null,null,null,null,null,null,null,null,null,null,null,null,null,null,null,null,null,null,null,null,null,null,null,null,null,null,null,null,null,null,null,null,null,null,null,null,null,null,null,null,null,null,null,null,null,null,null,null,null,null,null,null,null,null,null,null,null,null,null,null,null,null,null,null,null,null,null,null,null,null,null,null,null,null,null,null,null,null,null,null,null,null,null,null,null,null,null,null,null,null,null,null,null,null,null,null,null,null,null,null,null,null,null,null,null,null,null,null,null,null,null,null,null,null,null,null,null,null,null,null,null,null,null,null,null,null,null,null,null,null,null,null,null,null,null,null,null,null,null,null,null,null,null,null,null,null,null,null,null,null,null,null,null,null,null,null,null,null,null,null,null,null,null,null,null,null,null,null,null,null,null,null,null,null,null,null,null,null,null,null,null,null,null,null,null,null,null,null,null,null,null,null,null,null,null,null,null,null,null,null,null,null,null,null,null,null,null,null,null,null,null,null,null,null,null,null,null,null,null,null,null,null,null,null,null,null,null,null,null,null,null,null,null,null,null,null,null,null,null,null,null,null,null,null,null,null,null,null,null,null,null,null,null,null,null,null,null,null,null,null,null,null,null,null,null,null,null,null,null,null,null,null,null,null,null,null,null,null,null,null,null,null,null,null,null,null,null,null,null,null,null,null,null,null,null,null,null,null,null,null,null,null,null,null,null,null,null,null,null,null,null,null,null,null,null,null,null,null,null,null,null,null,null,null,null,null,null,null,null,null,null,null,null,null,null,null,null,null,null,null,null,null,null,null,null,null,null,null,null,null,null,null,null,null,null,null,null,null,null,null,null,null,null,null,null,null,null,null,null,null,null,null,null,null,null,null,null,null,null,null,null,null,null,null,null,null,null,null,null,null,null,null,null,null,null,null,null,null,null,null,null,null,null,null,null,null,null,null,null,null,null,null,null,null,null,null,null,null,null,null,null,null,null,null,null,null,null,null,null,null,null,null,null,null,null,null,null,null,null,null,null,null,null,null,null,null,null,null,null,null,null,null,null,null,null,null,null,null,null,null,null,null,null,null,null,null,null,null,null,null,null,null,null,null,null,null,null,null,null,null,null,null,null,null,null,null,null,null,null,null,null,null,null,null,null,null,null,null,null,null,null,null,null,null,null,null,null,null,null,null,null,null,null,null,null,null,null,null,null,null,null,null,null,null,null,null,null,null,null,null,null,null,null,null,null,null,null,null,null,null,null,null,null,null,null,null,null,null,null,null,null,null,null,null,null,null,null,null,null,null,null,null,null,null,null,null,null,null,null,null,null,null,null,null,null,null,null,null,null,null,null,null,null,null,null,null,null,null,null,null,null,null,null,null,null,null,null,null,null,null,null,null,null,null,null,null,null,null,null,null,null,null,null,null,null,null,null,null,null,null,null,null,null,null,null,null,null,null,null,null,null,null,null,null,null,null,null,null,null,null,null,null,null,null,null,null,null,null,null,null,null,null,null,null,null,null,null,null,null,null,null,null,null,null,null,null,null,null,null,null,null,null,null,null,null,null,null,null,null,null,null,null,null,null,null,null,null,null,null,null,null,null,null,null,null,null,null,null,null,null,null,null,null,null,null,null,null,null,null,null,null,null,null,null,null,null,null,null,null,null,null,null,null,null,null,null,null,null,null,null,null,null,null,null,null,null,null,null,null,null,null,null,null,null,null,null,null,null,null,null,null,null,null,null,null,null,null,null,null,null,null,null,null,null,null,null,null,null,null,null,null,null,null,null,null,null,null,null,null,null,null,null,null,null,null,null,null,null,null,null,null,null,null,null,null,null,null,null,null,null,null,null,null,null,null,null,null,null,null,null,null,null,null,null,null,null,null,null,null,null,null,null,null,null,null,null,null,null,null,null,null,null,null,null,null,null,null,null,null,null,null,null,null,null,null,null,null,null,null,null,null,null,null,null,null,null,null,null,null,null,null,null,null,null,null,null,null,null,null,null,null,null,null,null,null,null,null,null,null,null,null,null,null,null,null,null,null,null,null,null,null,null,null,null,null,null,null,null,null,null,null,null,null,null,null,null,null,null,null,null,null,null,null,null,null,null,null,null,null,null,null,null,null,null,null,null,null,null,null,null,null,null,null,null,null,null,null,null,null,null,null,null,null,null,null,null,null,null,null,null,null,null,null,null,null,null,null,null,null,null,null,null,null,null,null,null,null,null,null,null,null,null,null,null,null,null,null,null,null,null,null,null,null,null,null,null,null,null,null,null,null,null,null,null,null,null,null,null,null,null,null,null,null,null,null,null,null,null,null,null,null,null,null,null,null,null,null,null,null,null,null,null,null,null,null,null,null,null,null,null,null,null,null,null,null,null,null,null,null,null,null,null,null,null,null,null,null,null,null,null,null,null,null,null,null,null,null,null,null,null,null,null,null,null,null,null,null,null,null,null,null,null,null,null,null,null,null,null,null,null,null,null,null,null,null,null,null,null,null,null,null,null,null,null,null,null,null,null,null,null,null,null,null,null,null,null,null,null,null,null,null,null,null,null,null,null,null,null,null,null,null,null,null,null,null,null,null,null,null,null,null,null,null,null,null,null,null,null,null,null,null,null,null,null,null,null,null,null,null,null,null,null,null,null,null,null,null,null,null,null,null,null,null,null,null,null,null,null,null,null,null,null,null,null,null,null,null,null,null,null,null,null,null,null,null,null,null,null,null,null,null,null,null,null,null,null,null,null,null,null,null,null,null,null,null,null,null,null,null,null,null,null,null,null,null,null,null,null,null,null,null,null,null,null,null,null,null,null,null,null,null,null,null,null,null,null,null,null,null,null,null,null,null,null,null,null,null,null,null,null,null,null,null,null,null,null,null,null,null,null,null,null,null,null,null,null,null,null,null,null,null,null,null,null,null,null,null,null,null,null,null,null,null,null,null,null,null,null,null,null,null,null,null,null,null,null,null,null,null,null,null,null,null,null,null,null,null,null,null,null,null,null,null,null,null,null,null,null,null,null,null,null,null,null,null,null,null,null,null,null,null,null,null,null,null,null,null,null,null,null,null,null,null,null,null,null,null,null,null,null,null,null,null,null,null,null,null,null,null,null,null,null,null,null,null,null,null,null,null,null,null,null,null,null,null,null,null,null,null,null,null,null,null,null,null,null,null,null,null,null,null,null,null,null,null,null,null,null,null,null,null,null,null,null,null,null,null,null,null,null,null,null,null,null,null,null,null,null,null,null,null,null,null,null,null,null,null,null,null,null,null,null,null,null,null,null,null,null,null,null,null,null,null,null,null,null,null,null,null,null,null,null,null,null,null,null,null,null,null,null,null,null,null,null,null,null,null,null,null,null,null,null,null,null,null,null,null,null,null,null,null,null,null,null,null,null,null,null,null,null,null,null,null,null,null,null,null,null,null,null,null,null,null,null,null,null,null,null,null,null,null,null,null,null,null,null,null,null,null,null,null,null,null,null,null,null,null,null,null,null,null,null,null,null,null,null,null,null,null,null,null,null,null,null,null,null,null,null,null,null,null,null,null,null,null,null,null,null,null,null,null,null,null,null,null,null,null,null,null,null,null,null,null,null,null,null,null,null,null,null,null,null,null,null,null,null,null,null,null,null,null,null,null,null,null,null,null,null,null,null,null,null,null,null,null,null,null,null,null,null,null,null,null,null,null,null,null,null,null,null,null,null,null,null,null,null,null,null,null,null,null,null,null,null,null,null,null,null,null,null,null,null,null,null,null,null,null,null,null,null,null,null,null,null,null,null,null,null,null,null,null,null,null,null,null,null,null,null,null,null,null,null,null,null,null,null,null,null,null,null,null,null,null,null,null,null,null,null,null,null,null,null,null,null,null,null,null,null,null,null,null,null,null,null,null,null,null,null,null,null,null,null,null,null,null,null,null,null,null,null,null,null,null,null,null,null,null,null,null,null,null,null,null,null,null,null,null,null,null,null,null,null,null,null,null,null,null,null,null,null,null,null,null,null,null,null,null,null,null,null,null,null,null,null,null,null,null,null,null,null,null,null,null,null,null,null,null,null,null,null,null,null,null,null,null,null,null,null,null,null,null,null,null,null,null,null,null,null,null,null,null,null,null,null,null,null,null,null,null,null,null,null,null,null,null,null,null,null,null,null,null,null,null,null,null,null,null,null,null,null,null,null,null,null,null,null,null,null,null,null,null,null,null,null,null,null,null,null,null,null,null,null,null,null,null,null,null,null,null,null,null,null,null,null,null,null,null,null,null,null,null,null,null,null,null,null,null,null,null,null,null,null,null,null,null,null,null,null,null,null,null,null,null,null,null,null,null,null,null,null,null,null,null,null,null,null,null,null,null,null,null,null,null,null,null,null,null,null,null,null,null,null,null,null,null,null,null,null,null,null,null,null,null,null,null,null,null,null,null,null,null,null,null,null,null,null,null,null,null,null,null,null,null,null,null,null,null,null,null,null,null,null,null,null,null,null,null,null,null,null,null,null,null,null,null,null,null,null,null,null,null,null,null,null,null,null,null,null,null,null,null,null,null,null,null,null,null,null,null,null,null,null,null,null,null,null,null,null,null,null,null,null,null,null,null,null,null,null,null,null,null,null,null,null,null,null,null,null,null,null,null,null,null,null,null,null,null,null,null,null,null,null,null,null,null,null,null,null,null,null,null,null,null,null,null,null,null,null,null,null,null,null,null,null,null,null,null,null,null,null,null,null,null,null,null,null,null,null,null,null,null,null,null,null,null,null,null,null,null,null,null,null,null,null,null,null,null,null,null,null,null,null,null,null,null,null,null,null,null,null,null,null,null,null,null,null,null,null,null,null,null,null,null,null,null,null,null,null,null,null,null,null,null,null,null,null,null,null,null,null,null,null,null,null,null,null,null,null,null,null,null,null,null,null,null,null,null,null,null,null,null,null,null,null,null,null,null,null,null,null,null,null,null,null,null,null,null,null,null,null,null,null,null,null,null,null,null,null,null,null,null,null,null,null,null,null,null,null,null,null,null,null,null,null,null,null,null,null,null,null,null,null,null,null,null,null,null,null,null,null,null,null,null,null,null,null,null,null,null,null,null,null,null,null,null,null,null,null,null,null,null,null,null,null,null,null,null,null,null,null,null,null,null,null,null,null,null,null,null,null,null,null,null,null,null,null,null,null,null,null,null,null,null,null,null,null,null,null,null,null,null,null,null,null,null,null,null,null,null,null,null,null,null,null,null,null,null,null,null,null,null,null,null,null,null,null,null,null,null,null,null,null,null,null,null,null,null,null,null,null,null,null,null,null,null,null,null,null,null,null,null,null,null,null,null,null,null,null,null,null,null,null,null,null,null,null,null,null,null,null,null,null,null,null,null,null,null,null,null,null,null,null,null,null,null,null,null,null,null,null,null,null,null,null,null,null,null,null,null,null,null,null,null,null,null,null,null,null,null,null,null,null,null,null,null,null,null,null,null,null,null,null,null,null,null,null,null,null,null,null,null,null,null,null,null,null,null,null,null,null,null,null,null,null,null,null,null,null,null,null,null,null,null,null,null,null,null,null,null,null,null,null,null,null,null,null,null,null,null,null,null,null,null,null,null,null,null,null,null,null,null,null,null,null,null,null,null,null,null,null,null,null,null,null,null,null,null,null,null,null,null,null,null,null,null,null,null,null,null,null,null,null,null,null,null,null,null,null,null,null,null,null,null,null,null,null,null,null,null,null,null,null,null,null,null,null,null,null,null,null,null,null,null,null,null,null,"م","المــناديـب",null,"م","الـعـمـلاء"]
[null,null,null,null,null,null,null,null,null,null,null,null,{"$f":"IF(K6+L6<>0,IF(F6=$FB$5,(K6*$FA$6*$FB$6)+L6*$FB$6,IF(F6=$FC$5,(K6*$FA$6*$FC$6)+L6*$FC$6,IF(F6=$FD$5,(K6*$FA$6*$FD$6)+L6*$FD$6,IF(F6=$FE$5,(K6*$FA$6*$FE$6)+L6*$FE$6,\"\")))),\"\")","v":""},null,null,{"$f":"IF(N6+O6<>0,IF(F6=$FB$5,(N6*$FA$7*$FB$7)+O6*$FB$7,IF(F6=$FC$5,(N6*$FA$7*$FC$7)+O6*$FC$7,IF(F6=$FD$5,(N6*$FA$7*$FD$7)+O6*$FD$7,IF(F6=$FE$5,(N6*$FA$7*$FE$7)+O6*$FE$7,\"\")))),\"\")","v":""},null,null,{"$f":"IF(Q6+R6<>0,IF(F6=$FB$5,(Q6*$FA$8*$FB$8)+R6*$FB$8,IF(F6=$FC$5,(Q6*$FA$8*$FC$8)+R6*$FC$8,IF(F6=$FD$5,(Q6*$FA$8*$FD$8)+R6*$FD$8,IF(F6=$FE$5,(Q6*$FA$8*$FE$8)+R6*$FE$8,\"\")))),\"\")","v":""},null,null,{"$f":"IF(T6+U6<>0,IF(F6=$FB$5,(T6*$FA$9*$FB$9)+U6*$FB$9,IF(F6=$FC$5,(T6*$FA$9*$FC$9)+U6*$FC$9,IF(F6=$FD$5,(T6*$FA$9*$FD$9)+U6*$FD$9,IF(F6=$FE$5,(T6*$FA$9*$FE$9)+U6*$FE$9,\"\")))),\"\")","v":""},null,null,{"$f":"IF(W6+X6<>0,IF(F6=$FB$5,(W6*$FA$10*$FB$10)+X6*$FB$10,IF(F6=$FC$5,(W6*$FA$10*$FC$10)+X6*$FC$10,IF(F6=$FD$5,(W6*$FA$10*$FD$10)+X6*$FD$10,IF(F6=$FE$5,(W6*$FA$10*$FE$10)+X6*$FE$10,\"\")))),\"\")","v":""},null,null,{"$f":"IF(Z6+AA6<>0,IF(F6=$FB$5,(Z6*$FA$11*$FB$11)+AA6*$FB$11,IF(F6=$FC$5,(Z6*$FA$11*$FC$11)+AA6*$FC$11,IF(F6=$FD$5,(Z6*$FA$11*$FD$11)+AA6*$FD$11,IF(F6=$FE$5,(Z6*$FA$11*$FE$11)+AA6*$FE$11,\"\")))),\"\")","v":""},null,null,{"$f":"IF(AC6+AD6<>0,IF(F6=$FB$5,(AC6*$FA$12*$FB$12)+AD6*$FB$12,IF(F6=$FC$5,(AC6*$FA$12*$FC$12)+AD6*$FC$12,IF(F6=$FD$5,(AC6*$FA$12*$FD$12)+AD6*$FD$12,IF(F6=$FE$5,(AC6*$FA$12*$FE$12)+AD6*$FE$12,\"\")))),\"\")","v":""},null,null,{"$f":"IF(AF6+AG6<>0,IF(F6=$FB$5,(AF6*$FA$13*$FB$13)+AG6*$FB$13,IF(F6=$FC$5,(AF6*$FA$13*$FC$13)+AG6*$FC$13,IF(F6=$FD$5,(AF6*$FA$13*$FD$13)+AG6*$FD$13,IF(F6=$FE$5,(AF6*$FA$13*$FE$13)+AG6*$FE$13,\"\")))),\"\")","v":""},null,null,{"$f":"IF(AI6+AJ6<>0,IF(F6=$FB$5,(AI6*$FA$14*$FB$14)+AJ6*$FB$14,IF(F6=$FC$5,(AI6*$FA$14*$FC$14)+AJ6*$FC$14,IF(F6=$FD$5,(AI6*$FA$14*$FD$14)+AJ6*$FD$14,IF(F6=$FE$5,(AI6*$FA$14*$FE$14)+AJ6*$FE$14,\"\")))),\"\")","v":""},null,null,{"$f":"IF(AL6+AM6<>0,IF(F6=$FB$5,(AL6*$FA$15*$FB$15)+AM6*$FB$15,IF(F6=$FC$5,(AL6*$FA$15*$FC$15)+AM6*$FC$15,IF(F6=$FD$5,(AL6*$FA$15*$FD$15)+AM6*$FD$15,IF(F6=$FE$5,(AL6*$FA$15*$FE$15)+AM6*$FE$15,\"\")))),\"\")","v":""},null,null,{"$f":"IF(AO6+AP6<>0,IF(F6=$FB$5,(AO6*$FA$16*$FB$16)+AP6*$FB$16,IF(F6=$FC$5,(AO6*$FA$16*$FC$16)+AP6*$FC$16,IF(F6=$FD$5,(AO6*$FA$16*$FD$16)+AP6*$FD$16,IF(F6=$FE$5,(AO6*$FA$16*$FE$16)+AP6*$FE$16,\"\")))),\"\")","v":""},null,null,{"$f":"IF(AR6+AS6<>0,IF(F6=$FB$5,(AR6*$FA$17*$FB$17)+AS6*$FB$17,IF(F6=$FC$5,(AR6*$FA$17*$FC$17)+AS6*$FC$17,IF(F6=$FD$5,(AR6*$FA$17*$FD$17)+AS6*$FD$17,IF(F6=$FE$5,(AR6*$FA$17*$FE$17)+AS6*$FE$17,\"\")))),\"\")","v":""},null,null,{"$f":"IF(AU6+AV6<>0,IF(F6=$FB$5,(AU6*$FA$18*$FB$18)+AV6*$FB$18,IF(F6=$FC$5,(AU6*$FA$18*$FC$18)+AV6*$FC$18,IF(F6=$FD$5,(AU6*$FA$18*$FD$18)+AV6*$FD$18,IF(F6=$FE$5,(AU6*$FA$18*$FE$18)+AV6*$FE$18,\"\")))),\"\")","v":""},null,null,{"$f":"IF(AX6+AY6<>0,IF(F6=$FB$5,(AX6*$FA$19*$FB$19)+AY6*$FB$19,IF(F6=$FC$5,(AX6*$FA$19*$FC$19)+AY6*$FC$19,IF(F6=$FD$5,(AX6*$FA$19*$FD$19)+AY6*$FD$19,IF(F6=$FE$5,(AX6*$FA$19*$FE$19)+AY6*$FE$19,\"\")))),\"\")","v":""},null,null,{"$f":"IF(BA6+BB6<>0,IF(F6=$FB$5,(BA6*$FA$20*$FB$20)+BB6*$FB$20,IF(F6=$FC$5,(BA6*$FA$20*$FC$20)+BB6*$FC$20,IF(F6=$FD$5,(BA6*$FA$20*$FD$20)+BB6*$FD$20,IF(F6=$FE$5,(BA6*$FA$20*$FE$20)+BB6*$FE$20,\"\")))),\"\")","v":""},null,null,{"$f":"IF(BD6+BE6<>0,IF(F6=$FB$5,(BD6*$FA$21*$FB$21)+BE6*$FB$21,IF(F6=$FC$5,(BD6*$FA$21*$FC$21)+BE6*$FC$21,IF(F6=$FD$5,(BD6*$FA$21*$FD$21)+BE6*$FD$21,IF(F6=$FE$5,(BD6*$FA$21*$FE$21)+BE6*$FE$21,\"\")))),\"\")","v":""},null,null,{"$f":"IF(BG6+BH6<>0,IF(F6=$FB$5,(BG6*$FA$22*$FB$22)+BH6*$FB$22,IF(F6=$FC$5,(BG6*$FA$22*$FC$22)+BH6*$FC$22,IF(F6=$FD$5,(BG6*$FA$22*$FD$22)+BH6*$FD$22,IF(F6=$FE$5,(BG6*$FA$22*$FE$22)+BH6*$FE$22,\"\")))),\"\")","v":""},null,null,{"$f":"IF(BJ6+BK6<>0,IF(F6=$FB$5,(BJ6*$FA$23*$FB$23)+BK6*$FB$23,IF(F6=$FC$5,(BJ6*$FA$23*$FC$23)+BK6*$FC$23,IF(F6=$FD$5,(BJ6*$FA$23*$FD$23)+BK6*$FD$23,IF(F6=$FE$5,(BJ6*$FA$23*$FE$23)+BK6*$FE$23,\"\")))),\"\")","v":""},null,null,{"$f":"IF(BM6+BN6<>0,IF(F6=$FB$5,(BM6*$FA$24*$FB$24)+BN6*$FB$24,IF(F6=$FC$5,(BM6*$FA$24*$FC$24)+BN6*$FC$24,IF(F6=$FD$5,(BM6*$FA$24*$FD$24)+BN6*$FD$24,IF(F6=$FE$5,(BM6*$FA$24*$FE$24)+BN6*$FE$24,\"\")))),\"\")","v":""},null,null,{"$f":"IF(BP6+BQ6<>0,IF(F6=$FB$5,(BP6*$FA$25*$FB$25)+BQ6*$FB$25,IF(F6=$FC$5,(BP6*$FA$25*$FC$25)+BQ6*$FC$25,IF(F6=$FD$5,(BP6*$FA$25*$FD$25)+BQ6*$FD$25,IF(F6=$FE$5,(BP6*$FA$25*$FE$25)+BQ6*$FE$25,\"\")))),\"\")","v":""},null,null,{"$f":"IFERROR(I6/H6,\"Error\")","v":"Error"},{"$f":"IFERROR(J6-G6,\"Error\")","v":0},{"$f":"Coding!D4","v":"00:00:00"},{"$f":"Coding!C378","v":0},null,null,null,null,null,null,null,null,null,null,null,null,null,null,null,null,null,null,null,null,null,null,null,null,null,null,null,null,null,null,null,null,null,null,null,null,null,null,null,null,null,null,null,null,null,null,null,null,null,null,null,null,null,null,null,null,null,null,null,null,null,null,null,null,null,null,null,null,1,{"$f":"EZ6","v":0},{"$f":"SUM(M6:M350)","v":0},null,null,null,null,null,null,null,1,{"$f":"Coding!B102","v":0},{"$f":"Coding!E102","v":0},{"$f":"Coding!D378","v":50},{"$f":"Coding!E378","v":49},{"$f":"Coding!F378","v":49.5},{"$f":"Coding!G378","v":0},null,null,null,null,null,null,null,null,null,null,null,null,null,null,null,null,null,null,null,null,null,null,null,null,null,null,null,null,null,null,null,null,null,null,null,null,null,null,null,null,null,null,null,null,null,null,null,null,null,null,null,null,null,null,null,null,null,null,null,null,null,null,null,null,null,null,null,null,null,null,null,null,null,null,null,null,null,null,null,null,null,null,null,null,null,null,null,null,null,null,null,null,null,null,null,null,null,null,null,null,null,null,null,null,null,null,null,null,null,null,null,null,null,null,null,null,null,null,null,null,null,null,null,null,null,null,null,null,null,null,null,null,null,null,null,null,null,null,null,null,null,null,null,null,null,null,null,null,null,null,null,null,null,null,null,null,null,null,null,null,null,null,null,null,null,null,null,null,null,null,null,null,null,null,null,null,null,null,null,null,null,null,null,null,null,null,null,null,null,null,null,null,null,null,null,null,null,null,null,null,null,null,null,null,null,null,null,null,null,null,null,null,null,null,null,null,null,null,null,null,null,null,null,null,null,null,null,null,null,null,null,null,null,null,null,null,null,null,null,null,null,null,null,null,null,null,null,null,null,null,null,null,null,null,null,null,null,null,null,null,null,null,null,null,null,null,null,null,null,null,null,null,null,null,null,null,null,null,null,null,null,null,null,null,null,null,null,null,null,null,null,null,null,null,null,null,null,null,null,null,null,null,null,null,null,null,null,null,null,null,null,null,null,null,null,null,null,null,null,null,null,null,null,null,null,null,null,null,null,null,null,null,null,null,null,null,null,null,null,null,null,null,null,null,null,null,null,null,null,null,null,null,null,null,null,null,null,null,null,null,null,null,null,null,null,null,null,null,null,null,null,null,null,null,null,null,null,null,null,null,null,null,null,null,null,null,null,null,null,null,null,null,null,null,null,null,null,null,null,null,null,null,null,null,null,null,null,null,null,null,null,null,null,null,null,null,null,null,null,null,null,null,null,null,null,null,null,null,null,null,null,null,null,null,null,null,null,null,null,null,null,null,null,null,null,null,null,null,null,null,null,null,null,null,null,null,null,null,null,null,null,null,null,null,null,null,null,null,null,null,null,null,null,null,null,null,null,null,null,null,null,null,null,null,null,null,null,null,null,null,null,null,null,null,null,null,null,null,null,null,null,null,null,null,null,null,null,null,null,null,null,null,null,null,null,null,null,null,null,null,null,null,null,null,null,null,null,null,null,null,null,null,null,null,null,null,null,null,null,null,null,null,null,null,null,null,null,null,null,null,null,null,null,null,null,null,null,null,null,null,null,null,null,null,null,null,null,null,null,null,null,null,null,null,null,null,null,null,null,null,null,null,null,null,null,null,null,null,null,null,null,null,null,null,null,null,null,null,null,null,null,null,null,null,null,null,null,null,null,null,null,null,null,null,null,null,null,null,null,null,null,null,null,null,null,null,null,null,null,null,null,null,null,null,null,null,null,null,null,null,null,null,null,null,null,null,null,null,null,null,null,null,null,null,null,null,null,null,null,null,null,null,null,null,null,null,null,null,null,null,null,null,null,null,null,null,null,null,null,null,null,null,null,null,null,null,null,null,null,null,null,null,null,null,null,null,null,null,null,null,null,null,null,null,null,null,null,null,null,null,null,null,null,null,null,null,null,null,null,null,null,null,null,null,null,null,null,null,null,null,null,null,null,null,null,null,null,null,null,null,null,null,null,null,null,null,null,null,null,null,null,null,null,null,null,null,null,null,null,null,null,null,null,null,null,null,null,null,null,null,null,null,null,null,null,null,null,null,null,null,null,null,null,null,null,null,null,null,null,null,null,null,null,null,null,null,null,null,null,null,null,null,null,null,null,null,null,null,null,null,null,null,null,null,null,null,null,null,null,null,null,null,null,null,null,null,null,null,null,null,null,null,null,null,null,null,null,null,null,null,null,null,null,null,null,null,null,null,null,null,null,null,null,null,null,null,null,null,null,null,null,null,null,null,null,null,null,null,null,null,null,null,null,null,null,null,null,null,null,null,null,null,null,null,null,null,null,null,null,null,null,null,null,null,null,null,null,null,null,null,null,null,null,null,null,null,null,null,null,null,null,null,null,null,null,null,null,null,null,null,null,null,null,null,null,null,null,null,null,null,null,null,null,null,null,null,null,null,null,null,null,null,null,null,null,null,null,null,null,null,null,null,null,null,null,null,null,null,null,null,null,null,null,null,null,null,null,null,null,null,null,null,null,null,null,null,null,null,null,null,null,null,null,null,null,null,null,null,null,null,null,null,null,null,null,null,null,null,null,null,null,null,null,null,null,null,null,null,null,null,null,null,null,null,null,null,null,null,null,null,null,null,null,null,null,null,null,null,null,null,null,null,null,null,null,null,null,null,null,null,null,null,null,null,null,null,null,null,null,null,null,null,null,null,null,null,null,null,null,null,null,null,null,null,null,null,null,null,null,null,null,null,null,null,null,null,null,null,null,null,null,null,null,null,null,null,null,null,null,null,null,null,null,null,null,null,null,null,null,null,null,null,null,null,null,null,null,null,null,null,null,null,null,null,null,null,null,null,null,null,null,null,null,null,null,null,null,null,null,null,null,null,null,null,null,null,null,null,null,null,null,null,null,null,null,null,null,null,null,null,null,null,null,null,null,null,null,null,null,null,null,null,null,null,null,null,null,null,null,null,null,null,null,null,null,null,null,null,null,null,null,null,null,null,null,null,null,null,null,null,null,null,null,null,null,null,null,null,null,null,null,null,null,null,null,null,null,null,null,null,null,null,null,null,null,null,null,null,null,null,null,null,null,null,null,null,null,null,null,null,null,null,null,null,null,null,null,null,null,null,null,null,null,null,null,null,null,null,null,null,null,null,null,null,null,null,null,null,null,null,null,null,null,null,null,null,null,null,null,null,null,null,null,null,null,null,null,null,null,null,null,null,null,null,null,null,null,null,null,null,null,null,null,null,null,null,null,null,null,null,null,null,null,null,null,null,null,null,null,null,null,null,null,null,null,null,null,null,null,null,null,null,null,null,null,null,null,null,null,null,null,null,null,null,null,null,null,null,null,null,null,null,null,null,null,null,null,null,null,null,null,null,null,null,null,null,null,null,null,null,null,null,null,null,null,null,null,null,null,null,null,null,null,null,null,null,null,null,null,null,null,null,null,null,null,null,null,null,null,null,null,null,null,null,null,null,null,null,null,null,null,null,null,null,null,null,null,null,null,null,null,null,null,null,null,null,null,null,null,null,null,null,null,null,null,null,null,null,null,null,null,null,null,null,null,null,null,null,null,null,null,null,null,null,null,null,null,null,null,null,null,null,null,null,null,null,null,null,null,null,null,null,null,null,null,null,null,null,null,null,null,null,null,null,null,null,null,null,null,null,null,null,null,null,null,null,null,null,null,null,null,null,null,null,null,null,null,null,null,null,null,null,null,null,null,null,null,null,null,null,null,null,null,null,null,null,null,null,null,null,null,null,null,null,null,null,null,null,null,null,null,null,null,null,null,null,null,null,null,null,null,null,null,null,null,null,null,null,null,null,null,null,null,null,null,null,null,null,null,null,null,null,null,null,null,null,null,null,null,null,null,null,null,null,null,null,null,null,null,null,null,null,null,null,null,null,null,null,null,null,null,null,null,null,null,null,null,null,null,null,null,null,null,null,null,null,null,null,null,null,null,null,null,null,null,null,null,null,null,null,null,null,null,null,null,null,null,null,null,null,null,null,null,null,null,null,null,null,null,null,null,null,null,null,null,null,null,null,null,null,null,null,null,null,null,null,null,null,null,null,null,null,null,null,null,null,null,null,null,null,null,null,null,null,null,null,null,null,null,null,null,null,null,null,null,null,null,null,null,null,null,null,null,null,null,null,null,null,null,null,null,null,null,null,null,null,null,null,null,null,null,null,null,null,null,null,null,null,null,null,null,null,null,null,null,null,null,null,null,null,null,null,null,null,null,null,null,null,null,null,null,null,null,null,null,null,null,null,null,null,null,null,null,null,null,null,null,null,null,null,null,null,null,null,null,null,null,null,null,null,null,null,null,null,null,null,null,null,null,null,null,null,null,null,null,null,null,null,null,null,null,null,null,null,null,null,null,null,null,null,null,null,null,null,null,null,null,null,null,null,null,null,null,null,null,null,null,null,null,null,null,null,null,null,null,null,null,null,null,null,null,null,null,null,null,null,null,null,null,null,null,null,null,null,null,null,null,null,null,null,null,null,null,null,null,null,null,null,null,null,null,null,null,null,null,null,null,null,null,null,null,null,null,null,null,null,null,null,null,null,null,null,null,null,null,null,null,null,null,null,null,null,null,null,null,null,null,null,null,null,null,null,null,null,null,null,null,null,null,null,null,null,null,null,null,null,null,null,null,null,null,null,null,null,null,null,null,null,null,null,null,null,null,null,null,null,null,null,null,null,null,null,null,null,null,null,null,null,null,null,null,null,null,null,null,null,null,null,null,null,null,null,null,null,null,null,null,null,null,null,null,null,null,null,null,null,null,null,null,null,null,null,null,null,null,null,null,null,null,null,null,null,null,null,null,null,null,null,null,null,null,null,null,null,null,null,null,null,null,null,null,null,null,null,null,null,null,null,null,null,null,null,null,null,null,null,null,null,null,null,null,null,null,null,null,null,null,null,null,null,null,null,null,null,null,null,null,null,null,null,null,null,null,null,null,null,null,null,null,null,null,null,null,null,null,null,null,null,null,null,null,null,null,null,null,null,null,null,null,null,null,null,null,null,null,null,null,null,null,null,null,null,null,null,null,null,null,null,null,null,null,null,null,null,null,null,null,null,null,null,null,null,null,null,null,null,null,null,null,null,null,null,null,null,null,null,null,null,null,null,null,null,null,null,null,null,null,null,null,null,null,null,null,null,null,null,null,null,null,null,null,null,null,null,null,null,null,null,null,null,null,null,null,null,null,null,null,null,null,null,null,null,null,null,null,null,null,null,null,null,null,null,null,null,null,null,null,null,null,null,null,null,null,null,null,null,null,null,null,null,null,null,null,null,null,null,null,null,null,null,null,null,null,null,null,null,null,null,null,null,null,null,null,null,null,null,null,null,null,null,null,null,null,null,null,null,null,null,null,null,null,null,null,null,null,null,null,null,null,null,null,null,null,null,null,null,null,null,null,null,null,null,null,null,null,null,null,null,null,null,null,null,null,null,null,null,null,null,null,null,null,null,null,null,null,null,null,null,null,null,null,null,null,null,null,null,null,null,null,null,null,null,null,null,null,null,null,null,null,null,null,null,null,null,null,null,null,null,null,null,null,null,null,null,null,null,null,null,null,null,null,null,null,null,null,null,null,null,null,null,null,null,null,null,null,null,null,null,null,null,null,null,null,null,null,null,null,null,null,null,null,null,null,null,null,null,null,null,null,null,null,null,null,null,null,null,null,null,null,null,null,null,null,null,null,null,null,null,null,null,null,null,null,null,null,null,null,null,null,null,null,null,null,null,null,null,null,null,null,null,null,null,null,null,null,null,null,null,null,null,null,null,null,null,null,null,null,null,null,null,null,null,null,null,null,null,null,null,null,null,null,null,null,null,null,null,null,null,null,null,null,null,null,null,null,null,null,null,null,null,null,null,null,null,null,null,null,null,null,null,null,null,null,null,null,null,null,null,null,null,null,null,null,null,null,null,null,null,null,null,null,null,null,null,null,null,null,null,null,null,null,null,null,null,null,null,null,null,null,null,null,null,null,null,null,null,null,null,null,null,null,null,null,null,null,null,null,null,null,null,null,null,null,null,null,null,null,null,null,null,null,null,null,null,null,null,null,null,null,null,null,null,null,null,null,null,null,null,null,null,null,null,null,null,null,null,null,null,null,null,null,null,null,null,null,null,null,null,null,null,null,null,null,null,null,null,null,null,null,null,null,null,null,null,null,null,null,null,null,null,null,null,null,null,null,null,null,null,null,null,null,null,null,null,null,null,null,null,null,null,null,null,null,null,null,null,null,null,null,null,null,null,null,null,null,null,null,null,null,null,null,null,null,null,null,null,null,null,null,null,null,null,null,null,null,null,null,null,null,null,null,null,null,null,null,null,null,null,null,null,null,null,null,null,null,null,null,null,null,null,null,null,null,null,null,null,null,null,null,null,null,null,null,null,null,null,null,null,null,null,null,null,null,null,null,null,null,null,null,null,null,null,null,null,null,null,null,null,null,null,null,null,null,null,null,null,null,null,null,null,null,null,null,null,null,null,null,null,null,null,null,null,null,null,null,null,null,null,null,null,null,null,null,null,null,null,null,null,null,null,null,null,null,null,null,null,null,null,null,null,null,null,null,null,null,null,null,null,null,null,null,null,null,null,null,null,null,null,null,null,null,null,null,null,null,null,null,null,null,null,null,null,null,null,null,null,null,null,null,null,null,null,null,null,null,null,null,null,null,null,null,null,null,null,null,null,null,null,null,null,null,null,null,null,null,null,null,null,null,null,null,null,null,null,null,null,null,null,null,null,null,null,null,null,null,null,null,null,null,null,null,null,null,null,null,null,null,null,null,null,null,null,null,null,null,null,null,null,null,null,null,null,null,null,null,null,null,null,null,null,null,null,null,null,null,null,null,null,null,null,null,null,null,null,null,null,null,null,null,null,null,null,null,null,null,null,null,null,null,null,null,null,null,null,null,null,null,null,null,null,null,null,null,null,null,null,null,null,null,null,null,null,null,null,null,null,null,null,null,null,null,null,null,null,null,null,null,null,null,null,null,null,null,null,null,null,null,null,null,null,null,null,null,null,null,null,null,null,null,null,null,null,null,null,null,null,null,null,null,null,null,null,null,null,null,null,null,null,null,null,null,null,null,null,null,null,null,null,null,null,null,null,null,null,null,null,null,null,null,null,null,null,null,null,null,null,null,null,null,null,null,null,null,null,null,null,null,null,null,null,null,null,null,null,null,null,null,null,null,null,null,null,null,null,null,null,null,null,null,null,null,null,null,null,null,null,null,null,null,null,null,null,null,null,null,null,null,null,null,null,null,null,null,null,null,null,null,null,null,null,null,null,null,null,null,null,null,null,null,null,null,null,null,null,null,null,null,null,null,null,null,null,null,null,null,null,null,null,null,null,null,null,null,null,null,null,null,null,null,null,null,null,null,null,null,null,null,null,null,null,null,null,null,null,null,null,null,null,null,null,null,null,null,null,null,null,null,null,null,null,null,null,null,null,null,null,null,null,null,null,null,null,null,null,null,null,null,null,null,null,null,null,null,null,null,null,null,null,null,null,null,null,null,null,null,null,null,null,null,null,null,null,null,null,null,null,null,null,null,null,null,null,null,null,null,null,null,null,null,null,null,null,null,null,null,null,null,null,null,null,null,null,null,null,null,null,null,null,null,null,null,null,null,null,null,null,null,null,null,null,null,null,null,null,null,null,null,null,null,null,null,null,null,null,null,null,null,null,null,null,null,null,null,null,null,null,null,null,null,null,null,null,null,null,null,null,null,null,null,null,null,null,null,null,null,null,null,null,null,null,null,null,null,null,null,null,null,null,null,null,null,null,null,null,null,null,null,null,null,null,null,null,null,null,null,null,null,null,null,null,null,null,null,null,null,null,null,null,null,null,null,null,null,null,null,null,null,null,null,null,null,null,null,null,null,null,null,null,null,null,null,null,null,null,null,null,null,null,null,null,null,null,null,null,null,null,null,null,null,null,null,null,null,null,null,null,null,null,null,null,null,null,null,null,null,null,null,null,null,null,null,null,null,null,null,null,null,null,null,null,null,null,null,null,null,null,null,null,null,null,null,null,null,null,null,null,null,null,null,null,null,null,null,null,null,null,null,null,null,null,null,null,null,null,null,null,null,null,null,null,null,null,null,null,null,null,null,null,null,null,null,null,null,null,null,null,null,null,null,null,null,null,null,null,null,null,null,null,null,null,null,null,null,null,null,null,null,null,null,null,null,null,null,null,null,null,null,null,null,null,null,null,null,null,null,null,null,null,null,null,null,null,null,null,null,null,null,null,null,null,null,null,null,null,null,null,null,null,null,null,null,null,null,null,null,null,null,null,null,null,null,null,null,null,null,null,null,null,null,null,null,null,null,null,null,null,null,null,null,null,null,null,null,null,null,null,null,null,null,null,null,null,null,null,null,null,null,null,null,null,null,null,null,null,null,null,null,null,null,null,null,null,null,null,null,null,null,null,null,null,null,null,null,null,null,null,null,null,null,null,null,null,null,null,null,null,null,null,null,null,null,null,null,null,null,null,null,null,null,null,null,null,null,null,null,null,null,null,null,null,null,null,null,null,null,null,null,null,null,null,null,null,null,null,null,null,null,null,null,null,null,null,null,null,null,null,null,null,null,null,null,null,null,null,null,null,null,null,null,null,null,null,null,null,null,null,null,null,null,null,null,null,null,null,null,null,null,null,null,null,null,null,null,null,null,null,null,null,null,null,null,null,null,null,null,null,null,null,null,null,null,null,null,null,null,null,null,null,null,null,null,null,null,null,null,null,null,null,null,null,null,null,null,null,null,null,null,null,null,null,null,null,null,null,null,null,null,null,null,null,null,null,null,null,null,null,null,null,null,null,null,null,null,null,null,null,null,null,null,null,null,null,null,null,null,null,null,null,null,null,null,null,null,null,null,null,null,null,null,null,null,null,null,null,null,null,null,null,null,null,null,null,null,null,null,null,null,null,null,null,null,null,null,null,null,null,null,null,null,null,null,null,null,null,null,null,null,null,null,null,null,null,null,null,null,null,null,null,null,null,null,null,null,null,null,null,null,null,null,null,null,null,null,null,null,null,null,null,null,null,null,null,null,null,null,null,null,null,null,null,null,null,null,null,null,null,null,null,null,null,null,null,null,null,null,null,null,null,null,null,null,null,null,null,null,null,null,null,null,null,null,null,null,null,null,null,null,null,null,null,null,null,null,null,null,null,null,null,null,null,null,null,null,null,null,null,null,null,null,null,null,null,null,null,null,null,null,null,null,null,null,null,null,null,null,null,null,null,null,null,null,null,null,null,null,null,null,null,null,null,null,null,null,null,null,null,null,null,null,null,null,null,null,null,null,null,null,null,null,null,null,null,null,null,null,null,null,null,null,null,null,null,null,null,null,null,null,null,null,null,null,null,null,null,null,null,null,null,null,null,null,null,null,null,null,null,null,null,null,null,null,null,null,null,null,null,null,null,null,null,null,null,null,null,null,null,null,null,null,null,null,null,null,null,null,null,null,null,null,null,null,null,null,null,null,null,null,null,null,null,null,null,null,null,null,null,null,null,null,null,null,null,null,null,null,null,null,null,null,null,null,null,null,null,null,null,null,null,null,null,null,null,null,null,null,null,null,null,null,null,null,null,null,null,null,null,null,null,null,null,null,null,null,null,null,null,null,null,null,null,null,null,null,null,null,null,null,null,null,null,null,null,null,null,null,null,null,null,null,null,null,null,null,null,null,null,null,null,null,null,null,null,null,null,null,null,null,null,null,null,null,null,null,null,null,null,null,null,null,null,null,null,null,null,null,null,null,null,null,null,null,null,null,null,null,null,null,null,null,null,null,null,null,null,null,null,null,null,null,null,null,null,null,null,null,null,null,null,null,null,null,null,null,null,null,null,null,null,null,null,null,null,null,null,null,null,null,null,null,null,null,null,null,null,null,null,null,null,null,null,null,null,null,null,null,null,null,null,null,null,null,null,null,null,null,null,null,null,null,null,null,null,null,null,null,null,null,null,null,null,null,null,null,null,null,null,null,null,null,null,null,null,null,null,null,null,null,null,null,null,null,null,null,null,null,null,null,null,null,null,null,null,null,null,null,null,null,null,null,null,null,null,null,null,null,null,null,null,null,null,null,null,null,null,null,null,null,null,null,null,null,null,null,null,null,null,null,null,null,null,null,null,null,null,null,null,null,null,null,null,null,null,null,null,null,null,null,null,null,null,null,null,null,null,null,null,null,null,null,null,null,null,null,null,null,null,null,null,null,null,null,null,null,null,null,null,null,null,null,null,null,null,null,null,null,null,null,null,null,null,null,null,null,null,null,null,null,null,null,null,null,null,null,null,null,null,null,null,null,null,null,null,null,null,null,null,null,null,null,null,null,null,null,null,null,null,null,null,null,null,null,null,null,null,null,null,null,null,null,null,null,null,null,null,null,null,null,null,null,null,null,null,null,null,null,null,null,null,null,null,null,null,null,null,null,null,null,null,null,null,null,null,null,null,null,null,null,null,null,null,null,null,null,null,null,null,null,null,null,null,null,null,null,null,null,null,null,null,null,null,null,null,null,null,null,null,null,null,null,null,null,null,null,null,null,null,null,null,null,null,null,null,null,null,null,null,null,null,null,null,null,null,null,null,null,null,null,null,null,null,null,null,null,null,null,null,null,null,null,null,null,null,null,null,null,null,null,null,null,null,null,null,null,null,null,null,null,null,null,null,null,null,null,null,null,null,null,null,null,null,null,null,null,null,null,null,null,null,null,null,null,null,null,null,null,null,null,null,null,null,null,null,null,null,null,null,null,null,null,null,null,null,null,null,null,null,null,null,null,null,null,null,null,null,null,null,null,null,null,null,null,null,null,null,null,null,null,null,null,null,null,null,null,null,null,null,null,null,null,null,null,null,null,null,null,null,null,null,null,null,null,null,null,null,null,null,null,null,null,null,null,null,null,null,null,null,null,null,null,null,null,null,null,null,null,null,null,null,null,null,null,null,null,null,null,null,null,null,null,null,null,null,null,null,null,null,null,null,null,null,null,null,null,null,null,null,null,null,null,null,null,null,null,null,null,null,null,null,null,null,null,null,null,null,null,null,null,null,null,null,null,null,null,null,null,null,null,null,null,null,null,null,null,null,null,null,null,null,null,null,null,null,null,null,null,null,null,null,null,null,null,null,null,null,null,null,null,null,null,null,null,null,null,null,null,null,null,null,null,null,null,null,null,null,null,null,null,null,null,null,null,null,null,null,null,null,null,null,null,null,null,null,null,null,null,null,null,null,null,null,null,null,null,null,null,null,null,null,null,null,null,null,null,null,null,null,null,null,null,null,null,null,null,null,null,null,null,null,null,null,null,null,null,null,null,null,null,null,null,null,null,null,null,null,null,null,null,null,null,null,null,null,null,null,null,null,null,null,null,null,null,null,null,null,null,null,null,null,null,null,null,null,null,null,null,null,null,null,null,null,null,null,null,null,null,null,null,null,null,null,null,null,null,null,null,null,null,null,null,null,null,null,null,null,null,null,null,null,null,null,null,null,null,null,null,null,null,null,null,null,null,null,null,null,null,null,null,null,null,null,null,null,null,null,null,null,null,null,null,null,null,null,null,null,null,null,null,null,null,null,null,null,null,null,null,null,null,null,null,null,null,null,null,null,null,null,null,null,null,null,null,null,null,null,null,null,null,null,null,null,null,null,null,null,null,null,null,null,null,null,null,null,null,null,null,null,null,null,null,null,null,null,null,null,null,null,null,null,null,null,null,null,null,null,null,null,null,null,null,null,null,null,null,null,null,null,null,null,null,null,null,null,null,null,null,null,null,null,null,null,null,null,null,null,null,null,null,null,null,null,null,null,null,null,null,null,null,null,null,null,null,null,null,null,null,null,null,null,null,null,null,null,null,null,null,null,null,null,null,null,null,null,null,null,null,null,null,null,null,null,null,null,null,null,null,null,null,null,null,null,null,null,null,null,null,null,null,null,null,null,null,null,null,null,null,null,null,null,null,null,null,null,null,null,null,null,null,null,null,null,null,null,null,null,null,null,null,null,null,null,null,null,null,null,null,null,null,null,null,null,null,null,null,null,null,null,null,null,null,null,null,null,null,null,null,null,null,null,null,null,null,null,null,null,null,null,null,null,null,null,null,null,null,null,null,null,null,null,null,null,null,null,null,null,null,null,null,null,null,null,null,null,null,null,null,null,null,null,null,null,null,null,null,null,null,null,null,null,null,null,null,null,null,null,null,null,null,null,null,null,null,null,null,null,null,null,null,null,null,null,null,null,null,null,null,null,null,null,null,null,null,null,null,null,null,null,null,null,null,null,null,null,null,null,null,null,null,null,null,null,null,null,null,null,null,null,null,null,null,null,null,null,null,null,null,null,null,null,null,null,null,null,null,null,null,null,null,null,null,null,null,null,null,null,null,null,null,null,null,null,null,null,null,null,null,null,null,null,null,null,null,null,null,null,null,null,null,null,null,null,null,null,null,null,null,null,null,null,null,null,null,null,null,null,null,null,null,null,null,null,null,null,null,null,null,null,null,null,null,null,null,null,null,null,null,null,null,null,null,null,null,null,null,null,null,null,null,null,null,null,null,null,null,null,null,null,null,null,null,null,null,null,null,null,null,null,null,null,null,null,null,null,null,null,null,null,null,null,null,null,null,null,null,null,null,null,null,null,null,null,null,null,null,null,null,null,null,null,null,null,null,null,null,null,null,null,null,null,null,null,null,null,null,null,null,null,null,null,null,null,null,null,null,null,null,null,null,null,null,null,null,null,null,null,null,null,null,null,null,null,null,null,null,null,null,null,null,null,null,null,null,null,null,null,null,null,null,null,null,null,null,null,null,null,null,null,null,null,null,null,null,null,null,null,null,null,null,null,null,null,null,null,null,null,null,null,null,null,null,null,null,null,null,null,null,null,null,null,null,null,null,null,null,null,null,null,null,null,null,null,null,null,null,null,null,null,null,null,null,null,null,null,null,null,null,null,null,null,null,null,null,null,null,null,null,null,null,null,null,null,null,null,null,null,null,null,null,null,null,null,null,null,null,null,null,null,null,null,null,null,null,null,null,null,null,null,null,null,null,null,null,null,null,null,null,null,null,null,null,null,null,null,null,null,null,null,null,null,null,null,null,null,null,null,null,null,null,null,null,null,null,null,null,null,null,null,null,null,null,null,null,null,null,null,null,null,null,null,null,null,null,null,null,null,null,null,null,null,null,null,null,null,null,null,null,null,null,null,null,null,null,null,null,null,null,null,null,null,null,null,null,null,null,null,null,null,null,null,null,null,null,null,null,null,null,null,null,null,null,null,null,null,null,null,null,null,null,null,null,null,null,null,null,null,null,null,null,null,null,null,null,null,null,null,null,null,null,null,null,null,null,null,null,null,null,null,null,null,null,null,null,null,null,null,null,null,null,null,null,null,null,null,null,null,null,null,null,null,null,null,null,null,null,null,null,null,null,null,null,null,null,null,null,null,null,null,null,null,null,null,null,null,null,null,null,null,null,null,null,null,null,null,null,null,null,null,null,null,null,null,null,null,null,null,null,null,null,null,null,null,null,null,null,null,null,null,null,null,null,null,null,null,null,null,null,null,null,null,null,null,null,null,null,null,null,null,null,null,null,null,null,null,null,null,null,null,null,null,null,null,null,null,null,null,null,null,null,null,null,null,null,null,null,null,null,null,null,null,null,null,null,null,null,null,null,null,null,null,null,null,null,null,null,null,null,null,null,null,null,null,null,null,null,null,null,null,null,null,null,null,null,null,null,null,null,null,null,null,null,null,null,null,null,null,null,null,null,null,null,null,null,null,null,null,null,null,null,null,null,null,null,null,null,null,null,null,null,null,null,null,null,null,null,null,null,null,null,null,null,null,null,null,null,null,null,null,null,null,null,null,null,null,null,null,null,null,null,null,null,null,null,null,null,null,null,null,null,null,null,null,null,null,null,null,null,null,null,null,null,null,null,null,null,null,null,null,null,null,null,null,null,null,null,null,null,null,null,null,null,null,null,null,null,null,null,null,null,null,null,null,null,null,null,null,null,null,null,null,null,null,null,null,null,null,null,null,null,null,null,null,null,null,null,null,null,null,null,null,null,null,null,null,null,null,null,null,null,null,null,null,null,null,null,null,null,null,null,null,null,null,null,null,null,null,null,null,null,null,null,null,null,null,null,null,null,null,null,null,null,null,null,null,null,null,null,null,null,null,null,null,null,null,null,null,null,null,null,null,null,null,null,null,null,null,null,null,null,null,null,null,null,null,null,null,null,null,null,null,null,null,null,null,null,null,null,null,null,null,null,null,null,null,null,null,null,null,null,null,null,null,null,null,null,null,null,null,null,null,null,null,null,null,null,null,null,null,null,null,null,null,null,null,null,null,null,null,null,null,null,null,null,null,null,null,null,null,null,null,null,null,null,null,null,null,null,null,null,null,null,null,null,null,null,null,null,null,null,null,null,null,null,null,null,null,null,null,null,null,null,null,null,null,null,null,null,null,null,null,null,null,null,null,null,null,null,null,null,null,null,null,null,null,null,null,null,null,null,null,null,null,null,null,null,null,null,null,null,null,null,null,null,null,null,null,null,null,null,null,null,null,null,null,null,null,null,null,null,null,null,null,null,null,null,null,null,null,null,null,null,null,null,null,null,null,null,null,null,null,null,null,null,null,null,null,null,null,null,null,null,null,null,null,null,null,null,null,null,null,null,null,null,null,null,null,null,null,null,null,null,null,null,null,null,null,null,null,null,null,null,null,null,null,null,null,null,null,null,null,null,null,null,null,null,null,null,null,null,null,null,null,null,null,null,null,null,null,null,null,null,null,null,null,null,null,null,null,null,null,null,null,null,null,null,null,null,null,null,null,null,null,null,null,null,null,null,null,null,null,null,null,null,null,null,null,null,null,null,null,null,null,null,null,null,null,null,null,null,null,null,null,null,null,null,null,null,null,null,null,null,null,null,null,null,null,null,null,null,null,null,null,null,null,null,null,null,null,null,null,null,null,null,null,null,null,null,null,null,null,null,null,null,null,null,null,null,null,null,null,null,null,null,null,null,null,null,null,null,null,null,null,null,null,null,null,null,null,null,null,null,null,null,null,null,null,null,null,null,null,null,null,null,null,null,null,null,null,null,null,null,null,null,null,null,null,null,null,null,null,null,null,null,null,null,null,null,null,null,null,null,null,null,null,null,null,null,null,null,null,null,null,null,null,null,null,null,null,null,null,null,null,null,null,null,null,null,null,null,null,null,null,null,null,null,null,null,null,null,null,null,null,null,null,null,null,null,null,null,null,null,null,null,null,null,null,null,null,null,null,null,null,null,null,null,null,null,null,null,null,null,null,null,null,null,null,null,null,null,null,null,null,null,null,null,null,null,null,null,null,null,null,null,null,null,null,null,null,null,null,null,null,null,null,null,null,null,null,null,null,null,null,null,null,null,null,null,null,null,null,null,null,null,null,null,null,null,null,null,null,null,null,null,null,null,null,null,null,null,null,null,null,null,null,null,null,null,null,null,null,null,null,null,null,null,null,null,null,null,null,null,null,null,null,null,null,null,null,null,null,null,null,null,null,null,null,null,null,null,null,null,null,null,null,null,null,null,null,null,null,null,null,null,null,null,null,null,null,null,null,null,null,null,null,null,null,null,null,null,null,null,null,null,null,null,null,null,null,null,null,null,null,null,null,null,null,null,null,null,null,null,null,null,null,null,null,null,null,null,null,null,null,null,null,null,null,null,null,null,null,null,null,null,null,null,null,null,null,null,null,null,null,null,null,null,null,null,null,null,null,null,null,null,null,null,null,null,null,null,null,null,null,null,null,null,null,null,null,null,null,null,null,null,null,null,null,null,null,null,null,null,null,null,null,null,null,null,null,null,null,null,null,null,null,null,null,null,null,null,null,null,null,null,null,null,null,null,null,null,null,null,null,null,null,null,null,null,null,null,null,null,null,null,null,null,null,null,null,null,null,null,null,null,null,null,null,null,null,null,null,null,null,null,null,null,null,null,null,null,null,null,null,null,null,null,null,null,null,null,null,null,null,null,null,null,null,null,null,null,null,null,null,null,null,null,null,null,null,null,null,null,null,null,null,null,null,null,null,null,null,null,null,null,null,null,null,null,null,null,null,null,null,null,null,null,null,null,null,null,null,null,null,null,null,null,null,null,null,null,null,null,null,null,null,null,null,null,null,null,null,null,null,null,null,null,null,null,null,null,null,null,null,null,null,null,null,null,null,null,null,null,null,null,null,null,null,null,null,null,null,null,null,null,null,null,null,null,null,null,null,null,null,null,null,null,null,null,null,null,null,null,null,null,null,null,null,null,null,null,null,null,null,null,null,null,null,null,null,null,null,null,null,null,null,null,null,null,null,null,null,null,null,null,null,null,null,null,null,null,null,null,null,null,null,null,null,null,null,null,null,null,null,null,null,null,null,null,null,null,null,null,null,null,null,null,null,null,null,null,null,null,null,null,null,null,null,null,null,null,null,null,null,null,null,null,null,null,null,null,null,null,null,null,null,null,null,null,null,null,null,null,null,null,null,null,null,null,null,null,null,null,null,null,null,null,null,null,null,null,null,null,null,null,null,null,null,null,null,null,null,null,null,null,null,null,null,null,null,null,null,null,null,null,null,null,null,null,null,null,null,null,null,null,null,null,null,null,null,null,null,null,null,null,null,null,null,null,null,null,null,null,null,null,null,null,null,null,null,null,null,null,null,null,null,null,null,null,null,null,null,null,null,null,null,null,null,null,null,null,null,null,null,null,null,null,null,null,null,null,null,null,null,null,null,null,null,null,null,null,null,null,null,null,null,null,null,null,null,null,null,null,null,null,null,null,null,null,null,null,null,null,null,null,null,null,null,null,null,null,null,null,null,null,null,null,null,null,null,null,null,null,null,null,null,null,null,null,null,null,null,null,null,null,null,null,null,null,null,null,null,null,null,null,null,null,null,null,null,null,null,null,null,null,null,null,null,null,null,null,null,null,null,null,null,null,null,null,null,null,null,null,null,null,null,null,null,null,null,null,null,null,null,null,null,null,null,null,null,null,null,null,null,null,null,null,null,null,null,null,null,null,null,null,null,null,null,null,null,null,null,null,null,null,null,null,null,null,null,null,null,null,null,null,null,null,null,null,null,null,null,null,null,null,null,null,null,null,null,null,null,null,null,null,null,null,null,null,null,null,null,null,null,null,null,null,null,null,null,null,null,null,null,null,null,null,null,null,null,null,null,null,null,null,null,null,null,null,null,null,null,null,null,null,null,null,null,null,null,null,null,null,null,null,null,null,null,null,null,null,null,null,null,null,null,null,null,null,null,null,null,null,null,null,null,null,null,null,null,null,null,null,null,null,null,null,null,null,null,null,null,null,null,null,null,null,null,null,null,null,null,null,null,null,null,null,null,null,null,null,null,null,null,null,null,null,null,null,null,null,null,null,null,null,null,null,null,null,null,null,null,null,null,null,null,null,null,null,null,null,null,null,null,null,null,null,null,null,null,null,null,null,null,null,null,null,null,null,null,null,null,null,null,null,null,null,null,null,null,null,null,null,null,null,null,null,null,null,null,null,null,null,null,null,null,null,null,null,null,null,null,null,null,null,null,null,null,null,null,null,null,null,null,null,null,null,null,null,null,null,null,null,null,null,null,null,null,null,null,null,null,null,null,null,null,null,null,null,null,null,null,null,null,null,null,null,null,null,null,null,null,null,null,null,null,null,null,null,null,null,null,null,null,null,null,null,null,null,null,null,null,null,null,null,null,null,null,null,null,null,null,null,null,null,null,null,null,null,null,null,null,null,null,null,null,null,null,null,null,null,null,null,null,null,null,null,null,null,null,null,null,null,null,null,null,null,null,null,null,null,null,null,null,null,null,null,null,null,null,null,null,null,null,null,null,null,null,null,null,null,null,null,null,null,null,null,null,null,null,null,null,null,null,null,null,null,null,null,null,null,null,null,null,null,null,null,null,null,null,null,null,null,null,null,null,null,null,null,null,null,null,null,null,null,null,null,null,null,null,null,null,null,null,null,null,null,null,null,null,null,null,null,null,null,null,null,null,null,null,null,null,null,null,null,null,null,null,null,null,null,null,null,null,null,null,null,null,null,null,null,null,null,null,null,null,null,null,null,null,null,null,null,null,null,null,null,null,null,null,null,null,null,null,null,null,null,null,null,null,null,null,null,null,null,null,null,null,null,null,null,null,null,null,null,null,null,null,null,null,null,null,null,null,null,null,null,null,null,null,null,null,null,null,null,null,null,null,null,null,null,null,null,null,null,null,null,null,null,null,null,null,null,null,null,null,null,null,null,null,null,null,null,null,null,null,null,null,null,null,null,null,null,null,null,null,null,null,null,null,null,null,null,null,null,null,null,null,null,null,null,null,null,null,null,null,null,null,null,null,null,null,null,null,null,null,null,null,null,null,null,null,null,null,null,null,null,null,null,null,null,null,null,null,null,null,null,null,null,null,null,null,null,null,null,null,null,null,null,null,null,null,null,null,null,null,null,null,null,null,null,null,null,null,null,null,null,null,null,null,null,null,null,null,null,null,null,null,null,null,null,null,null,null,null,null,null,null,null,null,null,null,null,null,null,null,null,null,null,null,null,null,null,null,null,null,null,null,null,null,null,null,null,null,null,null,null,null,null,null,null,null,null,null,null,null,null,null,null,null,null,null,null,null,null,null,null,null,null,null,null,null,null,null,null,null,null,null,null,null,null,null,null,null,null,null,null,null,null,null,null,null,null,null,null,null,null,null,null,null,null,null,null,null,null,null,null,null,null,null,null,null,null,null,null,null,null,null,null,null,null,null,null,null,null,null,null,null,null,null,null,null,null,null,null,null,null,null,null,null,null,null,null,null,null,null,null,null,null,null,null,null,null,null,null,null,null,null,null,null,null,null,null,null,null,null,null,null,null,null,null,null,null,null,null,null,null,null,null,null,null,null,null,null,null,null,null,null,null,null,null,null,null,null,null,null,null,null,null,null,null,null,null,null,null,null,null,null,null,null,null,null,null,null,null,null,null,null,null,null,null,null,null,null,null,null,null,null,null,null,null,null,null,null,null,null,null,null,null,null,null,null,null,null,null,null,null,null,null,null,null,null,null,null,null,null,null,null,null,null,null,null,null,null,null,null,null,null,null,null,null,null,null,null,null,null,null,null,null,null,null,null,null,null,null,null,null,null,null,null,null,null,null,null,null,null,null,null,null,null,null,null,null,null,null,null,null,null,null,null,null,null,null,null,null,null,null,null,null,null,null,null,null,null,null,null,null,null,null,null,null,null,null,null,null,null,null,null,null,null,null,null,null,null,null,null,null,null,null,null,null,null,null,null,null,null,null,null,null,null,null,null,null,null,null,null,null,null,null,null,null,null,null,null,null,null,null,null,null,null,null,null,null,null,null,null,null,null,null,null,null,null,null,null,null,null,null,null,null,null,null,null,null,null,null,null,null,null,null,null,null,null,null,null,null,null,null,null,null,null,null,null,null,null,null,null,null,null,null,null,null,null,null,null,null,null,null,null,null,null,null,null,null,null,null,null,null,null,null,null,null,null,null,null,null,null,null,null,null,null,null,null,null,null,null,null,null,null,null,null,null,null,null,null,null,null,null,null,null,null,null,null,null,null,null,null,null,null,null,null,null,null,null,null,null,null,null,null,null,null,null,null,null,null,null,null,null,null,null,null,null,null,null,null,null,null,null,null,null,null,null,null,null,null,null,null,null,null,null,null,null,null,null,null,null,null,null,null,null,null,null,null,null,null,null,null,null,null,null,null,null,null,null,null,null,null,null,null,null,null,null,null,null,null,null,null,null,null,null,null,null,null,null,null,null,null,null,null,null,null,null,null,null,null,null,null,null,null,null,null,null,null,null,null,null,null,null,null,null,null,null,null,null,null,null,null,null,null,null,null,null,null,null,null,null,null,null,null,null,null,null,null,null,null,null,null,null,null,null,null,null,null,null,null,null,null,null,null,null,null,null,null,null,null,null,null,null,null,null,null,null,null,null,null,null,null,null,null,null,null,null,null,null,null,null,null,null,null,null,null,null,null,null,null,null,null,null,null,null,null,null,null,null,null,null,null,null,null,null,null,null,null,null,null,null,null,null,null,null,null,null,null,null,null,null,null,null,null,null,null,null,null,null,null,null,null,null,null,null,null,null,null,null,null,null,null,null,null,null,null,null,null,null,null,null,null,null,null,null,null,null,null,null,null,null,null,null,null,null,null,null,null,null,null,null,null,null,null,null,null,null,null,null,null,null,null,null,null,null,null,null,null,null,null,null,null,null,null,null,null,null,null,null,null,null,null,null,null,null,null,null,null,null,null,null,null,null,null,null,null,null,null,null,null,null,null,null,null,null,null,null,null,null,null,null,null,null,null,null,null,null,null,null,null,null,null,null,null,null,null,null,null,null,null,null,null,null,null,null,null,null,null,null,null,null,null,null,null,null,null,null,null,null,null,null,null,null,null,null,null,null,null,null,null,null,null,null,null,null,null,null,null,null,null,null,null,null,null,null,null,null,null,null,null,null,null,null,null,null,null,null,null,null,null,null,null,null,null,null,null,null,null,null,null,null,null,null,null,null,null,null,null,null,null,null,null,null,null,null,null,null,null,null,null,null,null,null,null,null,null,null,null,null,null,null,null,null,null,null,null,null,null,null,null,null,null,null,null,null,null,null,null,null,null,null,null,null,null,null,null,null,null,null,null,null,null,null,null,null,null,null,null,null,null,null,null,null,null,null,null,null,null,null,null,null,null,null,null,null,null,null,null,null,null,null,null,null,null,null,null,null,null,null,null,null,null,null,null,null,null,null,null,null,null,null,null,null,null,null,null,null,null,null,null,null,null,null,null,null,null,null,null,null,null,null,null,null,null,null,null,null,null,null,null,null,null,null,null,null,null,null,null,null,null,null,null,null,null,null,null,null,null,null,null,null,null,null,null,null,null,null,null,null,null,null,null,null,null,null,null,null,null,null,null,null,null,null,null,null,null,null,null,null,null,null,null,null,null,null,null,null,null,null,null,null,null,null,null,null,null,null,null,null,null,null,null,null,null,null,null,null,null,null,null,null,null,null,null,null,null,null,null,null,null,null,null,null,null,null,null,null,null,null,null,null,null,null,null,null,null,null,null,null,null,null,null,null,null,null,null,null,null,null,null,null,null,null,null,null,null,null,null,null,null,null,null,null,null,null,null,null,null,null,null,null,null,null,null,null,null,null,null,null,null,null,null,null,null,null,null,null,null,null,null,null,null,null,null,null,null,null,null,null,null,null,null,null,null,null,null,null,null,null,null,null,null,null,null,null,null,null,null,null,null,null,null,null,null,null,null,null,null,null,null,null,null,null,null,null,null,null,null,null,null,null,null,null,null,null,null,null,null,null,null,null,null,null,null,null,null,null,null,null,null,null,null,null,null,null,null,null,null,null,null,null,null,null,null,null,null,null,null,null,null,null,null,null,null,null,null,null,null,null,null,null,null,null,null,null,null,null,null,null,null,null,null,null,null,null,null,null,null,null,null,null,null,null,null,null,null,null,null,null,null,null,null,null,null,null,null,null,null,null,null,null,null,null,null,null,null,null,null,null,null,null,null,null,null,null,null,null,null,null,null,null,null,null,null,null,null,null,null,null,null,null,null,null,null,null,null,null,null,null,null,null,null,null,null,null,null,null,null,null,null,null,null,null,null,null,null,null,null,null,null,null,null,null,null,null,null,null,null,null,null,null,null,null,null,null,null,null,null,null,null,null,null,null,null,null,null,null,null,null,null,null,null,null,null,null,null,null,null,null,null,null,null,null,null,null,null,null,null,null,null,null,null,null,null,null,null,null,null,null,null,null,null,null,null,null,null,null,null,null,null,null,null,null,null,null,null,null,null,null,null,null,null,null,null,null,null,null,null,null,null,null,null,null,null,null,null,null,null,null,null,null,null,null,null,null,null,null,null,null,null,null,null,null,null,null,null,null,null,null,null,null,null,null,null,null,null,null,null,null,null,null,null,null,null,null,null,null,null,null,null,null,null,null,null,null,null,null,null,null,null,null,null,null,null,null,null,null,null,null,null,null,null,null,null,null,null,null,null,null,null,null,null,null,null,null,null,null,null,null,null,null,null,null,null,null,null,null,null,null,null,null,null,null,null,null,null,null,null,null,null,null,null,null,null,null,null,null,null,null,null,null,null,null,null,null,null,null,null,null,null,null,null,null,null,null,null,null,null,null,null,null,null,null,null,null,null,null,null,null,null,null,null,null,null,null,null,null,null,null,null,null,null,null,null,null,null,null,null,null,null,null,null,null,null,null,null,null,null,null,null,null,null,null,null,null,null,null,null,null,null,null,null,null,null,null,null,null,null,null,null,null,null,null,null,null,null,null,null,null,null,null,null,null,null,null,null,null,null,null,null,null,null,null,null,null,null,null,null,null,null,null,null,null,null,null,null,null,null,null,null,null,null,null,null,null,null,null,null,null,null,null,null,null,null,null,null,null,null,null,null,null,null,null,null,null,null,null,null,null,null,null,null,null,null,null,null,null,null,null,null,null,null,null,null,null,null,null,null,null,null,null,null,null,null,null,null,null,null,null,null,null,null,null,null,null,null,null,null,null,null,null,null,null,null,null,null,null,null,null,null,null,null,null,null,null,null,null,null,null,null,null,null,null,null,null,null,null,null,null,null,null,null,null,null,null,null,null,null,null,null,null,null,null,null,null,null,null,null,null,null,null,null,null,null,null,null,null,null,null,null,null,null,null,null,null,null,null,null,null,null,null,null,null,null,null,null,null,null,null,null,null,null,null,null,null,null,null,null,null,null,null,null,null,null,null,null,null,null,null,null,null,null,null,null,null,null,null,null,null,null,null,null,null,null,null,null,null,null,null,null,null,null,null,null,null,null,null,null,null,null,null,null,null,null,null,null,null,null,null,null,null,null,null,null,null,null,null,null,null,null,null,null,null,null,null,null,null,null,null,null,null,null,null,null,null,null,null,null,null,null,null,null,null,null,null,null,null,null,null,null,null,null,null,null,null,null,null,null,null,null,null,null,null,null,null,null,null,null,null,null,null,null,null,null,null,null,null,null,null,null,null,null,null,null,null,null,null,null,null,null,null,null,null,null,null,null,null,null,null,null,null,null,null,null,null,null,null,null,null,null,null,null,null,null,null,null,null,null,null,null,null,null,null,null,null,null,null,null,null,null,null,null,null,null,null,null,null,null,null,null,null,null,null,null,null,null,null,null,null,null,null,null,null,null,null,null,null,null,null,null,null,null,null,null,null,null,null,null,null,null,null,null,null,null,null,null,null,null,null,null,null,null,null,null,null,null,null,null,null,null,null,null,null,null,null,null,null,null,null,null,null,null,null,null,null,null,null,null,null,null,null,null,null,null,null,null,null,null,null,null,null,null,null,null,null,null,null,null,null,null,null,null,null,null,null,null,null,null,null,null,null,null,null,null,null,null,null,null,null,null,null,null,null,null,null,null,null,null,null,null,null,null,null,null,null,null,null,null,null,null,null,null,null,null,null,null,null,null,null,null,null,null,null,null,null,null,null,null,null,null,null,null,null,null,null,null,null,null,null,null,null,null,null,null,null,null,null,null,null,null,null,null,null,null,null,null,null,null,null,null,null,null,null,null,null,null,null,null,null,null,null,null,null,null,null,null,null,null,null,null,null,null,null,null,null,null,null,null,null,null,null,null,null,null,null,null,null,null,null,null,null,null,null,null,null,null,null,null,null,null,null,null,null,null,null,null,null,null,null,null,null,null,null,null,null,null,null,null,null,null,null,null,null,null,null,null,null,null,null,null,null,null,null,null,null,null,null,null,null,null,null,null,null,null,null,null,null,null,null,null,null,null,null,null,null,null,null,null,null,null,null,null,null,null,null,null,null,null,null,null,null,null,null,null,null,null,null,null,null,null,null,null,null,null,null,null,null,null,null,null,null,null,null,null,null,null,null,null,null,null,null,null,null,null,null,null,null,null,null,null,null,null,null,null,null,null,null,null,null,null,null,null,null,null,null,null,null,null,null,null,null,null,null,null,null,null,null,null,null,null,null,null,null,null,null,null,null,null,null,null,null,null,null,null,null,null,null,null,null,null,null,null,null,null,null,null,null,null,null,null,null,null,null,null,null,null,null,null,null,null,null,null,null,null,null,null,null,null,null,null,null,null,null,null,null,null,null,null,null,null,null,null,null,null,null,null,null,null,null,null,null,null,null,null,null,null,null,null,null,null,null,null,null,null,null,null,null,null,null,null,null,null,null,null,null,null,null,null,null,null,null,null,null,null,null,null,null,null,null,null,null,null,null,null,null,null,null,null,null,null,null,null,null,null,null,null,null,null,null,null,null,null,null,null,null,null,null,null,null,null,null,null,null,null,null,null,null,null,null,null,null,null,null,null,null,null,null,null,null,null,null,null,null,null,null,null,null,null,null,null,null,null,null,null,null,null,null,null,null,null,null,null,null,null,null,null,null,null,null,null,null,null,null,null,null,null,null,null,null,null,null,null,null,null,null,null,null,null,null,null,null,null,null,null,null,null,null,null,null,null,null,null,null,null,null,null,null,null,null,null,null,null,null,null,null,null,null,null,null,null,null,null,null,null,null,null,null,null,null,null,null,null,null,null,null,null,null,null,null,null,null,null,null,null,null,null,null,null,null,null,null,null,null,null,null,null,null,null,null,null,null,null,null,null,null,null,null,null,null,null,null,null,null,null,null,null,null,null,null,null,null,null,null,null,null,null,null,null,null,null,null,null,null,null,null,null,null,null,null,null,null,null,null,null,null,null,null,null,null,null,null,null,null,null,null,null,null,null,null,null,null,null,null,null,null,null,null,null,null,null,null,null,null,null,null,null,null,null,null,null,null,null,null,null,null,null,null,null,null,null,null,null,null,null,null,null,null,null,null,null,null,null,null,null,null,null,null,null,null,null,null,null,null,null,null,null,null,null,null,null,null,null,null,null,null,null,null,null,null,null,null,null,null,null,null,null,null,null,null,null,null,null,null,null,null,null,null,null,null,null,null,null,null,null,null,null,null,null,null,null,null,null,null,null,null,null,null,null,null,null,null,null,null,null,null,null,null,null,null,null,null,null,null,null,null,null,null,null,null,null,null,null,null,null,null,null,null,null,null,null,null,null,null,null,null,null,null,null,null,null,null,null,null,null,null,null,null,null,null,null,null,null,null,null,null,null,null,null,null,null,null,null,null,null,null,null,null,null,null,null,null,null,null,null,null,null,null,null,null,null,null,null,null,null,null,null,null,null,null,null,null,null,null,null,null,null,null,null,null,null,null,null,null,null,null,null,null,null,null,null,null,null,null,null,null,null,null,null,null,null,null,null,null,null,null,null,null,null,null,null,null,null,null,null,null,null,null,null,null,null,null,null,null,null,null,null,null,null,null,null,null,null,null,null,null,null,null,null,null,null,null,null,null,null,null,null,null,null,null,null,null,null,null,null,null,null,null,null,null,null,null,null,null,null,null,null,null,null,null,null,null,null,null,null,null,null,null,null,null,null,null,null,null,null,null,null,null,null,null,null,null,null,null,null,null,null,null,null,null,null,null,null,null,null,null,null,null,null,null,null,null,null,null,null,null,null,null,null,null,null,null,null,null,null,null,null,null,null,null,null,null,null,null,null,null,null,null,null,null,null,null,null,null,null,null,null,null,null,null,null,null,null,null,null,null,null,null,null,null,null,null,null,null,null,null,null,null,null,null,null,null,null,null,null,null,null,null,null,null,null,null,null,null,null,null,null,null,null,null,null,null,null,null,null,null,null,null,null,null,null,null,null,null,null,null,null,null,null,null,null,null,null,null,null,null,null,null,null,null,null,null,null,null,null,null,null,null,null,null,null,null,null,null,null,null,null,null,null,null,null,null,null,null,null,null,null,null,null,null,null,null,null,null,null,null,null,null,null,null,null,null,null,null,null,null,null,null,null,null,null,null,null,null,null,null,null,null,null,null,null,null,null,null,null,null,null,null,null,null,null,null,null,null,null,null,null,null,null,null,null,null,null,null,null,null,null,null,null,null,null,null,null,null,null,null,null,null,null,null,null,null,null,null,null,null,null,null,null,null,null,null,null,null,null,null,null,null,null,null,null,null,null,null,null,null,null,null,null,null,null,null,null,null,null,null,null,null,null,null,null,null,null,null,null,null,null,null,null,null,null,null,null,null,null,null,null,null,null,null,null,null,null,null,null,null,null,null,null,null,null,null,null,null,null,null,null,null,null,null,null,null,null,null,null,null,null,null,null,null,null,null,null,null,null,null,null,null,null,null,null,null,null,null,null,null,null,null,null,null,null,null,null,null,null,null,null,null,null,null,null,null,null,null,null,null,null,null,null,null,null,null,null,null,null,null,null,null,null,null,null,null,null,null,null,null,null,null,null,null,null,null,null,null,null,null,null,null,null,null,null,null,null,null,null,null,null,null,null,null,null,null,null,null,null,null,null,null,null,null,null,null,null,null,null,null,null,null,null,null,null,null,null,null,null,null,null,null,null,null,null,null,null,null,null,null,null,null,null,null,null,null,null,null,null,null,null,null,null,null,null,null,null,null,null,null,null,null,null,null,null,null,null,null,null,null,null,null,null,null,null,null,null,null,null,null,null,null,null,null,null,null,null,null,null,null,null,null,null,null,null,null,null,null,null,null,null,null,null,null,null,null,null,null,null,null,null,null,null,null,null,null,null,null,null,null,null,null,null,null,null,null,null,null,null,null,null,null,null,null,null,null,null,null,null,null,null,null,null,null,null,null,null,null,null,null,null,null,null,null,null,null,null,null,null,null,null,null,null,null,null,null,null,null,null,null,null,null,null,null,null,null,null,null,null,null,null,null,null,null,null,null,null,null,null,null,null,null,null,null,null,null,null,null,null,null,null,null,null,null,null,null,null,null,null,null,null,null,null,null,null,null,null,null,null,null,null,null,null,null,null,null,null,null,null,null,null,null,null,null,null,null,null,null,null,null,null,null,null,null,null,null,null,null,null,null,null,null,null,null,null,null,null,null,null,null,null,null,null,null,null,null,null,null,null,null,null,null,null,null,null,null,null,null,null,null,null,null,null,null,null,null,null,null,null,null,null,null,null,null,null,null,null,null,null,null,null,null,null,null,null,null,null,null,null,null,null,null,null,null,null,null,null,null,null,null,null,null,null,null,null,null,null,null,null,null,null,null,null,null,null,null,null,null,null,null,null,null,null,null,null,null,null,null,null,null,null,null,null,null,null,null,null,null,null,null,null,null,null,null,null,null,null,null,null,null,null,null,null,null,null,null,null,null,null,null,null,null,null,null,null,null,null,null,null,null,null,null,null,null,null,null,null,null,null,null,null,null,null,null,null,null,null,null,null,null,null,null,null,null,null,null,null,null,null,null,null,null,null,null,null,null,null,null,null,null,null,null,null,null,null,null,null,null,null,null,null,null,null,null,null,null,null,null,null,null,null,null,null,null,null,null,null,null,null,null,null,null,null,null,null,null,null,null,null,null,null,null,null,null,null,null,null,null,null,null,null,null,null,null,null,null,null,null,null,null,null,null,null,null,null,null,null,null,null,null,null,null,null,null,null,null,null,null,null,null,null,null,null,null,null,null,null,null,null,null,null,null,null,null,null,null,null,null,null,null,null,null,null,null,null,null,null,null,null,null,null,null,null,null,null,null,null,null,null,null,null,null,null,null,null,null,null,null,null,null,null,null,null,null,null,null,null,null,null,null,null,null,null,null,null,null,null,null,null,null,null,null,null,null,null,null,null,null,null,null,null,null,null,null,null,null,null,null,null,null,null,null,null,null,null,null,null,null,null,null,null,null,null,null,null,null,null,null,null,null,null,null,null,null,null,null,null,null,null,null,null,null,null,null,null,null,null,null,null,null,null,null,null,null,null,null,null,null,null,null,null,null,null,null,null,null,null,null,null,null,null,null,null,null,null,null,null,null,null,null,null,null,null,null,null,null,null,null,null,null,null,null,null,null,null,null,null,null,null,null,null,null,null,null,null,null,null,null,null,null,null,null,null,null,null,null,null,null,null,null,null,null,null,null,null,null,null,null,null,null,null,null,null,null,null,null,null,null,null,null,null,null,null,null,null,null,null,null,null,null,null,null,null,null,null,null,null,null,null,null,null,null,null,null,null,null,null,null,null,null,null,null,null,null,null,null,null,null,null,null,null,null,null,null,null,null,null,null,null,null,null,null,null,null,null,null,null,null,null,null,null,null,null,null,null,null,null,null,null,null,null,null,null,null,null,null,null,null,null,null,null,null,null,null,null,null,null,null,null,null,null,null,null,null,null,null,null,null,null,null,null,null,null,null,null,null,null,null,null,null,null,null,null,null,null,null,null,null,null,null,null,null,null,null,null,null,null,null,null,null,null,null,null,null,null,null,null,null,null,null,null,null,null,null,null,null,null,null,null,null,null,null,null,null,null,null,null,null,null,null,null,null,null,null,null,null,null,null,null,null,null,null,null,null,null,null,null,null,null,null,null,null,null,null,null,null,null,null,null,null,null,null,null,null,null,null,null,null,null,null,null,null,null,null,null,null,null,null,null,null,null,null,null,null,null,null,null,null,null,null,null,null,null,null,null,null,null,null,null,null,null,null,null,null,null,null,null,null,null,null,null,null,null,null,null,null,null,null,null,null,null,null,null,null,null,null,null,null,null,null,null,null,null,null,null,null,null,null,null,null,null,null,null,null,null,null,null,null,null,null,null,null,null,null,null,null,null,null,null,null,null,null,null,null,null,null,null,null,null,null,null,null,null,null,null,null,null,null,null,null,null,null,null,null,null,null,null,null,null,null,null,null,null,null,null,null,null,null,null,null,null,null,null,null,null,null,null,null,null,null,null,null,null,null,null,null,null,null,null,null,null,null,null,null,null,null,null,null,null,null,null,null,null,null,null,null,null,null,null,null,null,null,null,null,null,null,null,null,null,null,null,null,null,null,null,null,null,null,null,null,null,null,null,null,null,null,null,null,null,null,null,null,null,null,null,null,null,null,null,null,null,null,null,null,null,null,null,null,null,null,null,null,null,null,null,null,null,null,null,null,null,null,null,null,null,null,null,null,null,null,null,null,null,null,null,null,null,null,null,null,null,null,null,null,null,null,null,null,null,null,null,null,null,null,null,null,null,null,null,null,null,null,null,null,null,null,null,null,null,null,null,null,null,null,null,null,null,null,null,null,null,null,null,null,null,null,null,null,null,null,null,null,null,null,null,null,null,null,null,null,null,null,null,null,null,null,null,null,null,null,null,null,null,null,null,null,null,null,null,null,null,null,null,null,null,null,null,null,null,null,null,null,null,null,null,null,null,null,null,null,null,null,null,null,null,null,null,null,null,null,null,null,null,null,null,null,null,null,null,null,null,null,null,null,null,null,null,null,null,null,null,null,null,null,null,null,null,null,null,null,null,null,null,null,null,null,null,null,null,null,null,null,null,null,null,null,null,null,null,null,null,null,null,null,null,null,null,null,null,null,null,null,null,null,null,null,null,null,null,null,null,null,null,null,null,null,null,null,null,null,null,null,null,null,null,null,null,null,null,null,null,null,null,null,null,null,null,null,null,null,null,null,null,null,null,null,null,null,null,null,null,null,null,null,null,null,null,null,null,null,null,null,null,null,null,null,null,null,null,null,null,null,null,null,null,null,null,null,null,null,null,null,null,null,null,null,null,null,null,null,null,null,null,null,null,null,null,null,null,null,null,null,null,null,null,null,null,null,null,null,null,null,null,null,null,null,null,null,null,null,null,null,null,null,null,null,null,null,null,null,null,null,null,null,null,null,null,null,null,null,null,null,null,null,null,null,null,null,null,null,null,null,null,null,null,null,null,null,null,null,null,null,null,null,null,null,null,null,null,null,null,null,null,null,null,null,null,null,null,null,null,null,null,null,null,null,null,null,null,null,null,null,null,null,null,null,null,null,null,null,null,null,null,null,null,null,null,null,null,null,null,null,null,null,null,null,null,null,null,null,null,null,null,null,null,null,null,null,null,null,null,null,null,null,null,null,null,null,null,null,null,null,null,null,null,null,null,null,null,null,null,null,null,null,null,null,null,null,null,null,null,null,null,null,null,null,null,null,null,null,null,null,null,null,null,null,null,null,null,null,null,null,null,null,null,null,null,null,null,null,null,null,null,null,null,null,null,null,null,null,null,null,null,null,null,null,null,null,null,null,null,null,null,null,null,null,null,null,null,null,null,null,null,null,null,null,null,null,null,null,null,null,null,null,null,null,null,null,null,null,null,null,null,null,null,null,null,null,null,null,null,null,null,null,null,null,null,null,null,null,null,null,null,null,null,null,null,null,null,null,null,null,null,null,null,null,null,null,null,null,null,null,null,null,null,null,null,null,null,null,null,null,null,null,null,null,null,null,null,null,null,null,null,null,null,null,null,null,null,null,null,null,null,null,null,null,null,null,null,null,null,null,null,null,null,null,null,null,null,null,null,null,null,null,null,null,null,null,null,null,null,null,null,null,null,null,null,null,null,null,null,null,null,null,null,null,null,null,null,null,null,null,null,null,null,null,null,null,null,null,null,null,null,null,null,null,null,null,null,null,null,null,null,null,null,null,null,null,null,null,null,null,null,null,null,null,null,null,null,null,null,null,null,null,null,null,null,null,null,null,null,null,null,null,null,null,null,null,null,null,null,null,null,null,null,null,null,null,null,null,null,null,null,null,null,null,null,null,null,null,null,null,null,null,null,null,null,null,null,null,null,null,null,null,null,null,null,null,null,null,null,null,null,null,null,null,null,null,null,null,null,null,null,null,null,null,null,null,null,null,null,null,null,null,null,null,null,null,null,null,null,null,null,null,null,null,null,null,null,null,null,null,null,null,null,null,null,null,null,null,null,null,null,null,null,null,null,null,null,null,null,null,null,null,null,null,null,null,null,null,null,null,null,null,null,null,null,null,null,null,null,null,null,null,null,null,null,null,null,null,null,null,null,null,null,null,null,null,null,null,null,null,null,null,null,null,null,null,null,null,null,null,null,null,null,null,null,null,null,null,null,null,null,null,null,null,null,null,null,null,null,null,null,null,null,null,null,null,null,null,null,null,null,null,null,null,null,null,null,null,null,null,null,null,null,null,null,null,null,null,null,null,null,null,null,null,null,null,null,null,null,null,null,null,null,null,null,null,null,null,null,null,null,null,null,null,null,null,null,null,null,null,null,null,null,null,null,null,null,null,null,null,null,null,null,null,null,null,null,null,null,null,null,null,null,null,null,null,null,null,null,null,null,null,null,null,null,null,null,null,null,null,null,null,null,null,null,null,null,null,null,null,null,null,null,null,null,null,null,null,null,null,null,null,null,null,null,null,null,null,null,null,null,null,null,null,null,null,null,null,null,null,null,null,null,null,null,null,null,null,null,null,null,null,null,null,null,null,null,null,null,null,null,null,null,null,null,null,null,null,null,null,null,null,null,null,null,null,null,null,null,null,null,null,null,null,null,null,null,null,null,null,null,null,null,null,null,null,null,null,null,null,null,null,null,null,null,null,null,null,null,null,null,null,null,null,null,null,null,null,null,null,null,null,null,null,null,null,null,null,null,null,null,null,null,null,null,null,null,null,null,null,null,null,null,null,null,null,null,null,null,null,null,null,null,null,null,null,null,null,null,null,null,null,null,null,null,null,null,null,null,null,null,null,null,null,null,null,null,null,null,null,null,null,null,null,null,null,null,null,null,null,null,null,null,null,null,null,null,null,null,null,null,null,null,null,null,null,null,null,null,null,null,null,null,null,null,null,null,null,null,null,null,null,null,null,null,null,null,null,null,null,null,null,null,null,null,null,null,null,null,null,null,null,null,null,null,null,null,null,null,null,null,null,null,null,null,null,null,null,null,null,null,null,null,null,null,null,null,null,null,null,null,null,null,null,null,null,null,null,null,null,null,null,null,null,null,null,null,null,null,null,null,null,null,null,null,null,null,null,null,null,null,null,null,null,null,null,null,null,null,null,null,null,null,null,null,null,null,null,null,null,null,null,null,null,null,null,null,null,null,null,null,null,null,null,null,null,null,null,null,null,null,null,null,null,null,null,null,null,null,null,null,null,null,null,null,null,null,null,null,null,null,null,null,null,null,null,null,null,null,null,null,null,null,null,null,null,null,null,null,null,null,null,null,null,null,null,null,null,null,null,null,null,null,null,null,null,null,null,null,null,null,null,null,null,null,null,null,null,null,null,null,null,null,null,null,null,null,null,null,null,null,null,null,null,null,null,null,null,null,null,null,null,null,null,null,null,null,null,null,null,null,null,null,null,null,null,null,null,null,null,null,null,null,null,null,null,null,null,null,null,null,null,null,null,null,null,null,null,null,null,null,null,null,null,null,null,null,null,null,null,null,null,null,null,null,null,null,null,null,null,null,null,null,null,null,null,null,null,null,null,null,null,null,null,null,null,null,null,null,null,null,null,null,null,null,null,null,null,null,null,null,null,null,null,null,null,null,null,null,null,null,null,null,null,null,null,null,null,null,null,null,null,null,null,null,null,null,null,null,null,null,null,null,null,null,null,null,null,null,null,null,null,null,null,null,null,null,null,null,null,null,null,null,null,null,null,null,null,null,null,null,null,null,null,null,null,null,null,null,null,null,null,null,null,null,null,null,null,null,null,null,null,null,null,null,null,null,null,null,null,null,null,null,null,null,null,null,null,null,null,null,null,null,null,null,null,null,null,null,null,null,null,null,null,null,null,null,null,null,null,null,null,null,null,null,null,null,null,null,null,null,null,null,null,null,null,null,null,null,null,null,null,null,null,null,null,null,null,null,null,null,null,null,null,null,null,null,null,null,null,null,null,null,null,null,null,null,null,null,null,null,null,null,null,null,null,null,null,null,null,null,null,null,null,null,null,null,null,null,null,null,null,null,null,null,null,null,null,null,null,null,null,null,null,null,null,null,null,null,null,null,null,null,null,null,null,null,null,null,null,null,null,null,null,null,null,null,null,null,null,null,null,null,null,null,null,null,null,null,null,null,null,null,null,null,null,null,null,null,null,null,null,null,null,null,null,null,null,null,null,null,null,null,null,null,null,null,null,null,null,null,null,null,null,null,null,null,null,null,null,null,null,null,null,null,null,null,null,null,null,null,null,null,null,null,null,null,null,null,null,null,null,null,null,null,null,null,null,null,null,null,null,null,null,null,null,null,null,null,null,null,null,null,null,null,null,null,null,null,null,null,null,null,null,null,null,null,null,null,null,null,null,null,null,null,null,null,null,null,null,null,null,null,null,null,null,null,null,null,null,null,null,null,null,null,null,null,null,null,null,null,null,null,null,null,null,null,null,null,null,null,null,null,null,null,null,null,null,null,null,null,null,null,null,null,null,null,null,null,null,null,null,null,null,null,null,null,null,null,null,null,null,null,null,null,null,null,null,null,null,null,null,null,null,null,null,null,null,null,null,null,null,null,null,null,null,null,null,null,null,null,null,null,null,null,null,null,null,null,null,null,null,null,null,null,null,null,null,null,null,null,null,null,null,null,null,null,null,null,null,null,null,null,null,null,null,null,null,null,null,null,null,null,null,null,null,null,null,null,null,null,null,null,null,null,null,null,null,null,null,null,null,null,null,null,null,null,null,null,null,null,null,null,null,null,null,null,null,null,null,null,null,null,null,null,null,null,null,null,null,null,null,null,null,null,null,null,null,null,null,null,null,null,null,null,null,null,null,null,null,null,null,null,null,null,null,null,null,null,null,null,null,null,null,null,null,null,null,null,null,null,null,null,null,null,null,null,null,null,null,null,null,null,null,null,null,null,null,null,null,null,null,null,null,null,null,null,null,null,null,null,null,null,null,null,null,null,null,null,null,null,null,null,null,null,null,null,null,null,null,null,null,null,null,null,null,null,null,null,null,null,null,null,null,null,null,null,null,null,null,null,null,null,null,null,null,null,null,null,null,null,null,null,null,null,null,null,null,null,null,null,null,null,null,null,null,null,null,null,null,null,null,null,null,null,null,null,null,null,null,null,null,null,null,null,null,null,null,null,null,null,null,null,null,null,null,null,null,null,null,null,null,null,null,null,null,null,null,null,null,null,null,null,null,null,null,null,null,null,null,null,null,null,null,null,null,null,null,null,null,null,null,null,null,null,null,null,null,null,null,null,null,null,null,null,null,null,null,null,null,null,null,null,null,null,null,null,null,null,null,null,null,null,null,null,null,null,null,null,null,null,null,null,null,null,null,null,null,null,null,null,null,null,null,null,null,null,null,null,null,null,null,null,null,null,null,null,null,null,null,null,null,null,null,null,null,null,null,null,null,null,null,null,null,null,null,null,null,null,null,null,null,null,null,null,null,null,null,null,null,null,null,null,null,null,null,null,null,null,null,null,null,null,null,null,null,null,null,null,null,null,null,null,null,null,null,null,null,null,null,null,null,null,null,null,null,null,null,null,null,null,null,null,null,null,null,null,null,null,null,null,null,null,null,null,null,null,null,null,null,null,null,null,null,null,null,null,null,null,null,null,null,null,null,null,null,null,null,null,null,null,null,null,null,null,null,null,null,null,null,null,null,null,null,null,null,null,null,null,null,null,null,null,null,null,null,null,null,null,null,null,null,null,null,null,null,null,null,null,null,null,null,null,null,null,null,null,null,null,null,null,null,null,null,null,null,null,null,null,null,null,null,null,null,null,null,null,null,null,null,null,null,null,null,null,null,null,null,null,null,null,null,null,null,null,null,null,null,null,null,null,null,null,null,null,null,null,null,null,null,null,null,null,null,null,null,null,null,null,null,null,null,null,null,null,null,null,null,null,null,null,null,null,null,null,null,null,null,null,null,null,null,null,null,null,null,null,null,null,null,null,null,null,null,null,null,null,null,null,null,null,null,null,null,null,null,null,null,null,null,null,null,null,null,null,null,null,null,null,null,null,null,null,null,null,null,null,null,null,null,null,null,null,null,null,null,null,null,null,null,null,null,null,null,null,null,null,null,null,null,null,null,null,null,null,null,null,null,null,null,null,null,null,null,null,null,null,null,null,null,null,null,null,null,null,null,null,null,null,null,null,null,null,null,null,null,null,null,null,null,null,null,null,null,null,null,null,null,null,null,null,null,null,null,null,null,null,null,null,null,null,null,null,null,null,null,null,null,null,null,null,null,null,null,null,null,null,null,null,null,null,null,null,null,null,null,null,null,null,null,null,null,null,null,null,null,null,null,null,null,null,null,null,null,null,null,null,null,null,null,null,null,null,null,null,null,null,null,null,null,null,null,null,null,null,null,null,null,null,null,null,null,null,null,null,null,null,null,null,null,null,null,null,null,null,null,null,null,null,null,null,null,null,null,null,null,null,null,null,null,null,null,null,null,null,null,null,null,null,null,null,null,null,null,null,null,null,null,null,null,null,null,null,null,null,null,null,null,null,null,null,null,null,null,null,null,null,null,null,null,null,null,null,null,null,null,null,null,null,null,null,null,null,null,null,null,null,null,null,null,null,null,null,null,null,null,null,null,null,null,null,null,null,null,null,null,null,null,null,null,null,null,null,null,null,null,null,null,null,null,null,null,null,null,null,null,null,null,null,null,null,null,null,null,null,null,null,null,null,null,null,null,null,null,null,null,null,null,null,null,null,null,null,null,null,null,null,null,null,null,null,null,null,null,null,null,null,null,null,null,null,null,null,null,null,null,null,null,null,null,null,null,null,null,null,null,null,null,null,null,null,null,null,null,null,null,null,null,null,null,null,null,null,null,null,null,null,null,null,null,null,null,null,null,null,null,null,null,null,null,null,null,null,null,null,null,null,null,null,null,null,null,null,null,null,null,null,null,null,null,null,null,null,null,null,null,null,null,null,null,null,null,null,null,null,null,null,null,null,null,null,null,null,null,null,null,null,null,null,null,null,null,null,null,null,null,null,null,null,null,null,null,null,null,null,null,null,null,null,null,null,null,null,null,null,null,null,null,null,null,null,null,null,null,null,null,null,null,null,null,null,null,null,null,null,null,null,null,null,null,null,null,null,null,null,null,null,null,null,null,null,null,null,null,null,null,null,null,null,null,null,null,null,null,null,null,null,null,null,null,null,null,null,null,null,null,null,null,null,null,null,null,null,null,null,null,null,null,null,null,null,null,null,null,null,null,null,null,null,null,null,null,null,null,null,null,null,null,null,null,null,null,null,null,null,null,null,null,null,null,null,null,null,null,null,null,null,null,null,null,null,null,null,null,null,null,null,null,null,null,null,null,null,null,null,null,null,null,null,null,null,null,null,null,null,null,null,null,null,null,null,null,null,null,null,null,null,null,null,null,null,null,null,null,null,null,null,null,null,null,null,null,null,null,null,null,null,null,null,null,null,null,null,null,null,null,null,null,null,null,null,null,null,null,null,null,null,null,null,null,null,null,null,null,null,null,null,null,null,null,null,null,null,null,null,null,null,null,null,null,null,null,null,null,null,null,null,null,null,null,null,null,null,null,null,null,null,null,null,null,null,null,null,null,null,null,null,null,null,null,null,null,null,null,null,null,null,null,null,null,null,null,null,null,null,null,null,null,null,null,null,null,null,null,null,null,null,null,null,null,null,null,null,null,null,null,null,null,null,null,null,null,null,null,null,null,null,null,null,null,null,null,null,null,null,null,null,null,null,null,null,null,null,null,null,null,null,null,null,null,null,null,null,null,null,null,null,null,null,null,null,null,null,null,null,null,null,null,null,null,null,null,null,null,null,null,null,null,null,null,null,null,null,null,null,null,null,null,null,null,null,null,null,null,null,null,null,null,null,null,null,null,null,null,null,null,null,null,null,null,null,null,null,null,null,null,null,null,null,null,null,null,null,null,null,null,null,null,null,null,null,null,null,null,null,null,null,null,null,null,null,null,null,null,null,null,null,null,null,null,null,null,null,null,null,null,null,null,null,null,null,null,null,null,null,null,null,null,null,null,null,null,null,null,null,null,null,null,null,null,null,null,null,null,null,null,null,null,null,null,null,null,null,null,null,null,null,null,null,null,1,{"$f":"Coding!C293","v":"اسماعيل الجن"},null,1,{"$f":"Coding!C202","v":0}]
[null,null,null,null,null,null,null,{"$f":"SUMIF($K$5:$BR$5,\"القيمة\",K7:BR7)","v":0},null,{"$f":"IF(H7>0,H7-I7,\"\")","v":""},null,null,{"$f":"IF(K7+L7<>0,IF(F7=$FB$5,(K7*$FA$6*$FB$6)+L7*$FB$6,IF(F7=$FC$5,(K7*$FA$6*$FC$6)+L7*$FC$6,IF(F7=$FD$5,(K7*$FA$6*$FD$6)+L7*$FD$6,IF(F7=$FE$5,(K7*$FA$6*$FE$6)+L7*$FE$6,\"\")))),\"\")","v":""},null,null,{"$f":"IF(N7+O7<>0,IF(F7=$FB$5,(N7*$FA$7*$FB$7)+O7*$FB$7,IF(F7=$FC$5,(N7*$FA$7*$FC$7)+O7*$FC$7,IF(F7=$FD$5,(N7*$FA$7*$FD$7)+O7*$FD$7,IF(F7=$FE$5,(N7*$FA$7*$FE$7)+O7*$FE$7,\"\")))),\"\")","v":""},null,null,{"$f":"IF(Q7+R7<>0,IF(F7=$FB$5,(Q7*$FA$8*$FB$8)+R7*$FB$8,IF(F7=$FC$5,(Q7*$FA$8*$FC$8)+R7*$FC$8,IF(F7=$FD$5,(Q7*$FA$8*$FD$8)+R7*$FD$8,IF(F7=$FE$5,(Q7*$FA$8*$FE$8)+R7*$FE$8,\"\")))),\"\")","v":""},null,null,{"$f":"IF(T7+U7<>0,IF(F7=$FB$5,(T7*$FA$9*$FB$9)+U7*$FB$9,IF(F7=$FC$5,(T7*$FA$9*$FC$9)+U7*$FC$9,IF(F7=$FD$5,(T7*$FA$9*$FD$9)+U7*$FD$9,IF(F7=$FE$5,(T7*$FA$9*$FE$9)+U7*$FE$9,\"\")))),\"\")","v":""},null,null,{"$f":"IF(W7+X7<>0,IF(F7=$FB$5,(W7*$FA$10*$FB$10)+X7*$FB$10,IF(F7=$FC$5,(W7*$FA$10*$FC$10)+X7*$FC$10,IF(F7=$FD$5,(W7*$FA$10*$FD$10)+X7*$FD$10,IF(F7=$FE$5,(W7*$FA$10*$FE$10)+X7*$FE$10,\"\")))),\"\")","v":""},null,null,{"$f":"IF(Z7+AA7<>0,IF(F7=$FB$5,(Z7*$FA$11*$FB$11)+AA7*$FB$11,IF(F7=$FC$5,(Z7*$FA$11*$FC$11)+AA7*$FC$11,IF(F7=$FD$5,(Z7*$FA$11*$FD$11)+AA7*$FD$11,IF(F7=$FE$5,(Z7*$FA$11*$FE$11)+AA7*$FE$11,\"\")))),\"\")","v":""},null,null,{"$f":"IF(AC7+AD7<>0,IF(F7=$FB$5,(AC7*$FA$12*$FB$12)+AD7*$FB$12,IF(F7=$FC$5,(AC7*$FA$12*$FC$12)+AD7*$FC$12,IF(F7=$FD$5,(AC7*$FA$12*$FD$12)+AD7*$FD$12,IF(F7=$FE$5,(AC7*$FA$12*$FE$12)+AD7*$FE$12,\"\")))),\"\")","v":""},null,null,{"$f":"IF(AF7+AG7<>0,IF(F7=$FB$5,(AF7*$FA$13*$FB$13)+AG7*$FB$13,IF(F7=$FC$5,(AF7*$FA$13*$FC$13)+AG7*$FC$13,IF(F7=$FD$5,(AF7*$FA$13*$FD$13)+AG7*$FD$13,IF(F7=$FE$5,(AF7*$FA$13*$FE$13)+AG7*$FE$13,\"\")))),\"\")","v":""},null,null,{"$f":"IF(AI7+AJ7<>0,IF(F7=$FB$5,(AI7*$FA$14*$FB$14)+AJ7*$FB$14,IF(F7=$FC$5,(AI7*$FA$14*$FC$14)+AJ7*$FC$14,IF(F7=$FD$5,(AI7*$FA$14*$FD$14)+AJ7*$FD$14,IF(F7=$FE$5,(AI7*$FA$14*$FE$14)+AJ7*$FE$14,\"\")))),\"\")","v":""},null,null,{"$f":"IF(AL7+AM7<>0,IF(F7=$FB$5,(AL7*$FA$15*$FB$15)+AM7*$FB$15,IF(F7=$FC$5,(AL7*$FA$15*$FC$15)+AM7*$FC$15,IF(F7=$FD$5,(AL7*$FA$15*$FD$15)+AM7*$FD$15,IF(F7=$FE$5,(AL7*$FA$15*$FE$15)+AM7*$FE$15,\"\")))),\"\")","v":""},null,null,{"$f":"IF(AO7+AP7<>0,IF(F7=$FB$5,(AO7*$FA$16*$FB$16)+AP7*$FB$16,IF(F7=$FC$5,(AO7*$FA$16*$FC$16)+AP7*$FC$16,IF(F7=$FD$5,(AO7*$FA$16*$FD$16)+AP7*$FD$16,IF(F7=$FE$5,(AO7*$FA$16*$FE$16)+AP7*$FE$16,\"\")))),\"\")","v":""},null,null,{"$f":"IF(AR7+AS7<>0,IF(F7=$FB$5,(AR7*$FA$17*$FB$17)+AS7*$FB$17,IF(F7=$FC$5,(AR7*$FA$17*$FC$17)+AS7*$FC$17,IF(F7=$FD$5,(AR7*$FA$17*$FD$17)+AS7*$FD$17,IF(F7=$FE$5,(AR7*$FA$17*$FE$17)+AS7*$FE$17,\"\")))),\"\")","v":""},null,null,{"$f":"IF(AU7+AV7<>0,IF(F7=$FB$5,(AU7*$FA$18*$FB$18)+AV7*$FB$18,IF(F7=$FC$5,(AU7*$FA$18*$FC$18)+AV7*$FC$18,IF(F7=$FD$5,(AU7*$FA$18*$FD$18)+AV7*$FD$18,IF(F7=$FE$5,(AU7*$FA$18*$FE$18)+AV7*$FE$18,\"\")))),\"\")","v":""},null,null,{"$f":"IF(AX7+AY7<>0,IF(F7=$FB$5,(AX7*$FA$19*$FB$19)+AY7*$FB$19,IF(F7=$FC$5,(AX7*$FA$19*$FC$19)+AY7*$FC$19,IF(F7=$FD$5,(AX7*$FA$19*$FD$19)+AY7*$FD$19,IF(F7=$FE$5,(AX7*$FA$19*$FE$19)+AY7*$FE$19,\"\")))),\"\")","v":""},null,null,{"$f":"IF(BA7+BB7<>0,IF(F7=$FB$5,(BA7*$FA$20*$FB$20)+BB7*$FB$20,IF(F7=$FC$5,(BA7*$FA$20*$FC$20)+BB7*$FC$20,IF(F7=$FD$5,(BA7*$FA$20*$FD$20)+BB7*$FD$20,IF(F7=$FE$5,(BA7*$FA$20*$FE$20)+BB7*$FE$20,\"\")))),\"\")","v":""},null,null,{"$f":"IF(BD7+BE7<>0,IF(F7=$FB$5,(BD7*$FA$21*$FB$21)+BE7*$FB$21,IF(F7=$FC$5,(BD7*$FA$21*$FC$21)+BE7*$FC$21,IF(F7=$FD$5,(BD7*$FA$21*$FD$21)+BE7*$FD$21,IF(F7=$FE$5,(BD7*$FA$21*$FE$21)+BE7*$FE$21,\"\")))),\"\")","v":""},null,null,{"$f":"IF(BG7+BH7<>0,IF(F7=$FB$5,(BG7*$FA$22*$FB$22)+BH7*$FB$22,IF(F7=$FC$5,(BG7*$FA$22*$FC$22)+BH7*$FC$22,IF(F7=$FD$5,(BG7*$FA$22*$FD$22)+BH7*$FD$22,IF(F7=$FE$5,(BG7*$FA$22*$FE$22)+BH7*$FE$22,\"\")))),\"\")","v":""},null,null,{"$f":"IF(BJ7+BK7<>0,IF(F7=$FB$5,(BJ7*$FA$23*$FB$23)+BK7*$FB$23,IF(F7=$FC$5,(BJ7*$FA$23*$FC$23)+BK7*$FC$23,IF(F7=$FD$5,(BJ7*$FA$23*$FD$23)+BK7*$FD$23,IF(F7=$FE$5,(BJ7*$FA$23*$FE$23)+BK7*$FE$23,\"\")))),\"\")","v":""},null,null,{"$f":"IF(BM7+BN7<>0,IF(F7=$FB$5,(BM7*$FA$24*$FB$24)+BN7*$FB$24,IF(F7=$FC$5,(BM7*$FA$24*$FC$24)+BN7*$FC$24,IF(F7=$FD$5,(BM7*$FA$24*$FD$24)+BN7*$FD$24,IF(F7=$FE$5,(BM7*$FA$24*$FE$24)+BN7*$FE$24,\"\")))),\"\")","v":""},null,null,{"$f":"IF(BP7+BQ7<>0,IF(F7=$FB$5,(BP7*$FA$25*$FB$25)+BQ7*$FB$25,IF(F7=$FC$5,(BP7*$FA$25*$FC$25)+BQ7*$FC$25,IF(F7=$FD$5,(BP7*$FA$25*$FD$25)+BQ7*$FD$25,IF(F7=$FE$5,(BP7*$FA$25*$FE$25)+BQ7*$FE$25,\"\")))),\"\")","v":""},null,null,{"$f":"IFERROR(I7/H7,\"Error\")","v":"Error"},{"$f":"IFERROR(J7-G7,\"Error\")","v":"Error"},{"$f":"BW6+1","v":"1900-01-01"},{"$f":"Coding!C379","v":0},null,null,null,null,null,null,null,null,null,null,null,null,null,null,null,null,null,null,null,null,null,null,null,null,null,null,null,null,null,null,null,null,null,null,null,null,null,null,null,null,null,null,null,null,null,null,null,null,null,null,null,null,null,null,null,null,null,null,null,null,null,null,null,null,null,null,null,null,2,0,{"$f":"SUM(P6:P350)","v":0},null,null,null,null,null,null,null,2,{"$f":"Coding!B103","v":0},{"$f":"Coding!E103","v":0},{"$f":"Coding!D379","v":0},{"$f":"Coding!E379","v":0},{"$f":"Coding!F379","v":0},{"$f":"Coding!G379","v":0},null,null,null,null,null,null,null,null,null,null,null,null,null,null,null,null,null,null,null,null,null,null,null,null,null,null,null,null,null,null,null,null,null,null,null,null,null,null,null,null,null,null,null,null,null,null,null,null,null,null,null,null,null,null,null,null,null,null,null,null,null,null,null,null,null,null,null,null,null,null,null,null,null,null,null,null,null,null,null,null,null,null,null,null,null,null,null,null,null,null,null,null,null,null,null,null,null,null,null,null,null,null,null,null,null,null,null,null,null,null,null,null,null,null,null,null,null,null,null,null,null,null,null,null,null,null,null,null,null,null,null,null,null,null,null,null,null,null,null,null,null,null,null,null,null,null,null,null,null,null,null,null,null,null,null,null,null,null,null,null,null,null,null,null,null,null,null,null,null,null,null,null,null,null,null,null,null,null,null,null,null,null,null,null,null,null,null,null,null,null,null,null,null,null,null,null,null,null,null,null,null,null,null,null,null,null,null,null,null,null,null,null,null,null,null,null,null,null,null,null,null,null,null,null,null,null,null,null,null,null,null,null,null,null,null,null,null,null,null,null,null,null,null,null,null,null,null,null,null,null,null,null,null,null,null,null,null,null,null,null,null,null,null,null,null,null,null,null,null,null,null,null,null,null,null,null,null,null,null,null,null,null,null,null,null,null,null,null,null,null,null,null,null,null,null,null,null,null,null,null,null,null,null,null,null,null,null,null,null,null,null,null,null,null,null,null,null,null,null,null,null,null,null,null,null,null,null,null,null,null,null,null,null,null,null,null,null,null,null,null,null,null,null,null,null,null,null,null,null,null,null,null,null,null,null,null,null,null,null,null,null,null,null,null,null,null,null,null,null,null,null,null,null,null,null,null,null,null,null,null,null,null,null,null,null,null,null,null,null,null,null,null,null,null,null,null,null,null,null,null,null,null,null,null,null,null,null,null,null,null,null,null,null,null,null,null,null,null,null,null,null,null,null,null,null,null,null,null,null,null,null,null,null,null,null,null,null,null,null,null,null,null,null,null,null,null,null,null,null,null,null,null,null,null,null,null,null,null,null,null,null,null,null,null,null,null,null,null,null,null,null,null,null,null,null,null,null,null,null,null,null,null,null,null,null,null,null,null,null,null,null,null,null,null,null,null,null,null,null,null,null,null,null,null,null,null,null,null,null,null,null,null,null,null,null,null,null,null,null,null,null,null,null,null,null,null,null,null,null,null,null,null,null,null,null,null,null,null,null,null,null,null,null,null,null,null,null,null,null,null,null,null,null,null,null,null,null,null,null,null,null,null,null,null,null,null,null,null,null,null,null,null,null,null,null,null,null,null,null,null,null,null,null,null,null,null,null,null,null,null,null,null,null,null,null,null,null,null,null,null,null,null,null,null,null,null,null,null,null,null,null,null,null,null,null,null,null,null,null,null,null,null,null,null,null,null,null,null,null,null,null,null,null,null,null,null,null,null,null,null,null,null,null,null,null,null,null,null,null,null,null,null,null,null,null,null,null,null,null,null,null,null,null,null,null,null,null,null,null,null,null,null,null,null,null,null,null,null,null,null,null,null,null,null,null,null,null,null,null,null,null,null,null,null,null,null,null,null,null,null,null,null,null,null,null,null,null,null,null,null,null,null,null,null,null,null,null,null,null,null,null,null,null,null,null,null,null,null,null,null,null,null,null,null,null,null,null,null,null,null,null,null,null,null,null,null,null,null,null,null,null,null,null,null,null,null,null,null,null,null,null,null,null,null,null,null,null,null,null,null,null,null,null,null,null,null,null,null,null,null,null,null,null,null,null,null,null,null,null,null,null,null,null,null,null,null,null,null,null,null,null,null,null,null,null,null,null,null,null,null,null,null,null,null,null,null,null,null,null,null,null,null,null,null,null,null,null,null,null,null,null,null,null,null,null,null,null,null,null,null,null,null,null,null,null,null,null,null,null,null,null,null,null,null,null,null,null,null,null,null,null,null,null,null,null,null,null,null,null,null,null,null,null,null,null,null,null,null,null,null,null,null,null,null,null,null,null,null,null,null,null,null,null,null,null,null,null,null,null,null,null,null,null,null,null,null,null,null,null,null,null,null,null,null,null,null,null,null,null,null,null,null,null,null,null,null,null,null,null,null,null,null,null,null,null,null,null,null,null,null,null,null,null,null,null,null,null,null,null,null,null,null,null,null,null,null,null,null,null,null,null,null,null,null,null,null,null,null,null,null,null,null,null,null,null,null,null,null,null,null,null,null,null,null,null,null,null,null,null,null,null,null,null,null,null,null,null,null,null,null,null,null,null,null,null,null,null,null,null,null,null,null,null,null,null,null,null,null,null,null,null,null,null,null,null,null,null,null,null,null,null,null,null,null,null,null,null,null,null,null,null,null,null,null,null,null,null,null,null,null,null,null,null,null,null,null,null,null,null,null,null,null,null,null,null,null,null,null,null,null,null,null,null,null,null,null,null,null,null,null,null,null,null,null,null,null,null,null,null,null,null,null,null,null,null,null,null,null,null,null,null,null,null,null,null,null,null,null,null,null,null,null,null,null,null,null,null,null,null,null,null,null,null,null,null,null,null,null,null,null,null,null,null,null,null,null,null,null,null,null,null,null,null,null,null,null,null,null,null,null,null,null,null,null,null,null,null,null,null,null,null,null,null,null,null,null,null,null,null,null,null,null,null,null,null,null,null,null,null,null,null,null,null,null,null,null,null,null,null,null,null,null,null,null,null,null,null,null,null,null,null,null,null,null,null,null,null,null,null,null,null,null,null,null,null,null,null,null,null,null,null,null,null,null,null,null,null,null,null,null,null,null,null,null,null,null,null,null,null,null,null,null,null,null,null,null,null,null,null,null,null,null,null,null,null,null,null,null,null,null,null,null,null,null,null,null,null,null,null,null,null,null,null,null,null,null,null,null,null,null,null,null,null,null,null,null,null,null,null,null,null,null,null,null,null,null,null,null,null,null,null,null,null,null,null,null,null,null,null,null,null,null,null,null,null,null,null,null,null,null,null,null,null,null,null,null,null,null,null,null,null,null,null,null,null,null,null,null,null,null,null,null,null,null,null,null,null,null,null,null,null,null,null,null,null,null,null,null,null,null,null,null,null,null,null,null,null,null,null,null,null,null,null,null,null,null,null,null,null,null,null,null,null,null,null,null,null,null,null,null,null,null,null,null,null,null,null,null,null,null,null,null,null,null,null,null,null,null,null,null,null,null,null,null,null,null,null,null,null,null,null,null,null,null,null,null,null,null,null,null,null,null,null,null,null,null,null,null,null,null,null,null,null,null,null,null,null,null,null,null,null,null,null,null,null,null,null,null,null,null,null,null,null,null,null,null,null,null,null,null,null,null,null,null,null,null,null,null,null,null,null,null,null,null,null,null,null,null,null,null,null,null,null,null,null,null,null,null,null,null,null,null,null,null,null,null,null,null,null,null,null,null,null,null,null,null,null,null,null,null,null,null,null,null,null,null,null,null,null,null,null,null,null,null,null,null,null,null,null,null,null,null,null,null,null,null,null,null,null,null,null,null,null,null,null,null,null,null,null,null,null,null,null,null,null,null,null,null,null,null,null,null,null,null,null,null,null,null,null,null,null,null,null,null,null,null,null,null,null,null,null,null,null,null,null,null,null,null,null,null,null,null,null,null,null,null,null,null,null,null,null,null,null,null,null,null,null,null,null,null,null,null,null,null,null,null,null,null,null,null,null,null,null,null,null,null,null,null,null,null,null,null,null,null,null,null,null,null,null,null,null,null,null,null,null,null,null,null,null,null,null,null,null,null,null,null,null,null,null,null,null,null,null,null,null,null,null,null,null,null,null,null,null,null,null,null,null,null,null,null,null,null,null,null,null,null,null,null,null,null,null,null,null,null,null,null,null,null,null,null,null,null,null,null,null,null,null,null,null,null,null,null,null,null,null,null,null,null,null,null,null,null,null,null,null,null,null,null,null,null,null,null,null,null,null,null,null,null,null,null,null,null,null,null,null,null,null,null,null,null,null,null,null,null,null,null,null,null,null,null,null,null,null,null,null,null,null,null,null,null,null,null,null,null,null,null,null,null,null,null,null,null,null,null,null,null,null,null,null,null,null,null,null,null,null,null,null,null,null,null,null,null,null,null,null,null,null,null,null,null,null,null,null,null,null,null,null,null,null,null,null,null,null,null,null,null,null,null,null,null,null,null,null,null,null,null,null,null,null,null,null,null,null,null,null,null,null,null,null,null,null,null,null,null,null,null,null,null,null,null,null,null,null,null,null,null,null,null,null,null,null,null,null,null,null,null,null,null,null,null,null,null,null,null,null,null,null,null,null,null,null,null,null,null,null,null,null,null,null,null,null,null,null,null,null,null,null,null,null,null,null,null,null,null,null,null,null,null,null,null,null,null,null,null,null,null,null,null,null,null,null,null,null,null,null,null,null,null,null,null,null,null,null,null,null,null,null,null,null,null,null,null,null,null,null,null,null,null,null,null,null,null,null,null,null,null,null,null,null,null,null,null,null,null,null,null,null,null,null,null,null,null,null,null,null,null,null,null,null,null,null,null,null,null,null,null,null,null,null,null,null,null,null,null,null,null,null,null,null,null,null,null,null,null,null,null,null,null,null,null,null,null,null,null,null,null,null,null,null,null,null,null,null,null,null,null,null,null,null,null,null,null,null,null,null,null,null,null,null,null,null,null,null,null,null,null,null,null,null,null,null,null,null,null,null,null,null,null,null,null,null,null,null,null,null,null,null,null,null,null,null,null,null,null,null,null,null,null,null,null,null,null,null,null,null,null,null,null,null,null,null,null,null,null,null,null,null,null,null,null,null,null,null,null,null,null,null,null,null,null,null,null,null,null,null,null,null,null,null,null,null,null,null,null,null,null,null,null,null,null,null,null,null,null,null,null,null,null,null,null,null,null,null,null,null,null,null,null,null,null,null,null,null,null,null,null,null,null,null,null,null,null,null,null,null,null,null,null,null,null,null,null,null,null,null,null,null,null,null,null,null,null,null,null,null,null,null,null,null,null,null,null,null,null,null,null,null,null,null,null,null,null,null,null,null,null,null,null,null,null,null,null,null,null,null,null,null,null,null,null,null,null,null,null,null,null,null,null,null,null,null,null,null,null,null,null,null,null,null,null,null,null,null,null,null,null,null,null,null,null,null,null,null,null,null,null,null,null,null,null,null,null,null,null,null,null,null,null,null,null,null,null,null,null,null,null,null,null,null,null,null,null,null,null,null,null,null,null,null,null,null,null,null,null,null,null,null,null,null,null,null,null,null,null,null,null,null,null,null,null,null,null,null,null,null,null,null,null,null,null,null,null,null,null,null,null,null,null,null,null,null,null,null,null,null,null,null,null,null,null,null,null,null,null,null,null,null,null,null,null,null,null,null,null,null,null,null,null,null,null,null,null,null,null,null,null,null,null,null,null,null,null,null,null,null,null,null,null,null,null,null,null,null,null,null,null,null,null,null,null,null,null,null,null,null,null,null,null,null,null,null,null,null,null,null,null,null,null,null,null,null,null,null,null,null,null,null,null,null,null,null,null,null,null,null,null,null,null,null,null,null,null,null,null,null,null,null,null,null,null,null,null,null,null,null,null,null,null,null,null,null,null,null,null,null,null,null,null,null,null,null,null,null,null,null,null,null,null,null,null,null,null,null,null,null,null,null,null,null,null,null,null,null,null,null,null,null,null,null,null,null,null,null,null,null,null,null,null,null,null,null,null,null,null,null,null,null,null,null,null,null,null,null,null,null,null,null,null,null,null,null,null,null,null,null,null,null,null,null,null,null,null,null,null,null,null,null,null,null,null,null,null,null,null,null,null,null,null,null,null,null,null,null,null,null,null,null,null,null,null,null,null,null,null,null,null,null,null,null,null,null,null,null,null,null,null,null,null,null,null,null,null,null,null,null,null,null,null,null,null,null,null,null,null,null,null,null,null,null,null,null,null,null,null,null,null,null,null,null,null,null,null,null,null,null,null,null,null,null,null,null,null,null,null,null,null,null,null,null,null,null,null,null,null,null,null,null,null,null,null,null,null,null,null,null,null,null,null,null,null,null,null,null,null,null,null,null,null,null,null,null,null,null,null,null,null,null,null,null,null,null,null,null,null,null,null,null,null,null,null,null,null,null,null,null,null,null,null,null,null,null,null,null,null,null,null,null,null,null,null,null,null,null,null,null,null,null,null,null,null,null,null,null,null,null,null,null,null,null,null,null,null,null,null,null,null,null,null,null,null,null,null,null,null,null,null,null,null,null,null,null,null,null,null,null,null,null,null,null,null,null,null,null,null,null,null,null,null,null,null,null,null,null,null,null,null,null,null,null,null,null,null,null,null,null,null,null,null,null,null,null,null,null,null,null,null,null,null,null,null,null,null,null,null,null,null,null,null,null,null,null,null,null,null,null,null,null,null,null,null,null,null,null,null,null,null,null,null,null,null,null,null,null,null,null,null,null,null,null,null,null,null,null,null,null,null,null,null,null,null,null,null,null,null,null,null,null,null,null,null,null,null,null,null,null,null,null,null,null,null,null,null,null,null,null,null,null,null,null,null,null,null,null,null,null,null,null,null,null,null,null,null,null,null,null,null,null,null,null,null,null,null,null,null,null,null,null,null,null,null,null,null,null,null,null,null,null,null,null,null,null,null,null,null,null,null,null,null,null,null,null,null,null,null,null,null,null,null,null,null,null,null,null,null,null,null,null,null,null,null,null,null,null,null,null,null,null,null,null,null,null,null,null,null,null,null,null,null,null,null,null,null,null,null,null,null,null,null,null,null,null,null,null,null,null,null,null,null,null,null,null,null,null,null,null,null,null,null,null,null,null,null,null,null,null,null,null,null,null,null,null,null,null,null,null,null,null,null,null,null,null,null,null,null,null,null,null,null,null,null,null,null,null,null,null,null,null,null,null,null,null,null,null,null,null,null,null,null,null,null,null,null,null,null,null,null,null,null,null,null,null,null,null,null,null,null,null,null,null,null,null,null,null,null,null,null,null,null,null,null,null,null,null,null,null,null,null,null,null,null,null,null,null,null,null,null,null,null,null,null,null,null,null,null,null,null,null,null,null,null,null,null,null,null,null,null,null,null,null,null,null,null,null,null,null,null,null,null,null,null,null,null,null,null,null,null,null,null,null,null,null,null,null,null,null,null,null,null,null,null,null,null,null,null,null,null,null,null,null,null,null,null,null,null,null,null,null,null,null,null,null,null,null,null,null,null,null,null,null,null,null,null,null,null,null,null,null,null,null,null,null,null,null,null,null,null,null,null,null,null,null,null,null,null,null,null,null,null,null,null,null,null,null,null,null,null,null,null,null,null,null,null,null,null,null,null,null,null,null,null,null,null,null,null,null,null,null,null,null,null,null,null,null,null,null,null,null,null,null,null,null,null,null,null,null,null,null,null,null,null,null,null,null,null,null,null,null,null,null,null,null,null,null,null,null,null,null,null,null,null,null,null,null,null,null,null,null,null,null,null,null,null,null,null,null,null,null,null,null,null,null,null,null,null,null,null,null,null,null,null,null,null,null,null,null,null,null,null,null,null,null,null,null,null,null,null,null,null,null,null,null,null,null,null,null,null,null,null,null,null,null,null,null,null,null,null,null,null,null,null,null,null,null,null,null,null,null,null,null,null,null,null,null,null,null,null,null,null,null,null,null,null,null,null,null,null,null,null,null,null,null,null,null,null,null,null,null,null,null,null,null,null,null,null,null,null,null,null,null,null,null,null,null,null,null,null,null,null,null,null,null,null,null,null,null,null,null,null,null,null,null,null,null,null,null,null,null,null,null,null,null,null,null,null,null,null,null,null,null,null,null,null,null,null,null,null,null,null,null,null,null,null,null,null,null,null,null,null,null,null,null,null,null,null,null,null,null,null,null,null,null,null,null,null,null,null,null,null,null,null,null,null,null,null,null,null,null,null,null,null,null,null,null,null,null,null,null,null,null,null,null,null,null,null,null,null,null,null,null,null,null,null,null,null,null,null,null,null,null,null,null,null,null,null,null,null,null,null,null,null,null,null,null,null,null,null,null,null,null,null,null,null,null,null,null,null,null,null,null,null,null,null,null,null,null,null,null,null,null,null,null,null,null,null,null,null,null,null,null,null,null,null,null,null,null,null,null,null,null,null,null,null,null,null,null,null,null,null,null,null,null,null,null,null,null,null,null,null,null,null,null,null,null,null,null,null,null,null,null,null,null,null,null,null,null,null,null,null,null,null,null,null,null,null,null,null,null,null,null,null,null,null,null,null,null,null,null,null,null,null,null,null,null,null,null,null,null,null,null,null,null,null,null,null,null,null,null,null,null,null,null,null,null,null,null,null,null,null,null,null,null,null,null,null,null,null,null,null,null,null,null,null,null,null,null,null,null,null,null,null,null,null,null,null,null,null,null,null,null,null,null,null,null,null,null,null,null,null,null,null,null,null,null,null,null,null,null,null,null,null,null,null,null,null,null,null,null,null,null,null,null,null,null,null,null,null,null,null,null,null,null,null,null,null,null,null,null,null,null,null,null,null,null,null,null,null,null,null,null,null,null,null,null,null,null,null,null,null,null,null,null,null,null,null,null,null,null,null,null,null,null,null,null,null,null,null,null,null,null,null,null,null,null,null,null,null,null,null,null,null,null,null,null,null,null,null,null,null,null,null,null,null,null,null,null,null,null,null,null,null,null,null,null,null,null,null,null,null,null,null,null,null,null,null,null,null,null,null,null,null,null,null,null,null,null,null,null,null,null,null,null,null,null,null,null,null,null,null,null,null,null,null,null,null,null,null,null,null,null,null,null,null,null,null,null,null,null,null,null,null,null,null,null,null,null,null,null,null,null,null,null,null,null,null,null,null,null,null,null,null,null,null,null,null,null,null,null,null,null,null,null,null,null,null,null,null,null,null,null,null,null,null,null,null,null,null,null,null,null,null,null,null,null,null,null,null,null,null,null,null,null,null,null,null,null,null,null,null,null,null,null,null,null,null,null,null,null,null,null,null,null,null,null,null,null,null,null,null,null,null,null,null,null,null,null,null,null,null,null,null,null,null,null,null,null,null,null,null,null,null,null,null,null,null,null,null,null,null,null,null,null,null,null,null,null,null,null,null,null,null,null,null,null,null,null,null,null,null,null,null,null,null,null,null,null,null,null,null,null,null,null,null,null,null,null,null,null,null,null,null,null,null,null,null,null,null,null,null,null,null,null,null,null,null,null,null,null,null,null,null,null,null,null,null,null,null,null,null,null,null,null,null,null,null,null,null,null,null,null,null,null,null,null,null,null,null,null,null,null,null,null,null,null,null,null,null,null,null,null,null,null,null,null,null,null,null,null,null,null,null,null,null,null,null,null,null,null,null,null,null,null,null,null,null,null,null,null,null,null,null,null,null,null,null,null,null,null,null,null,null,null,null,null,null,null,null,null,null,null,null,null,null,null,null,null,null,null,null,null,null,null,null,null,null,null,null,null,null,null,null,null,null,null,null,null,null,null,null,null,null,null,null,null,null,null,null,null,null,null,null,null,null,null,null,null,null,null,null,null,null,null,null,null,null,null,null,null,null,null,null,null,null,null,null,null,null,null,null,null,null,null,null,null,null,null,null,null,null,null,null,null,null,null,null,null,null,null,null,null,null,null,null,null,null,null,null,null,null,null,null,null,null,null,null,null,null,null,null,null,null,null,null,null,null,null,null,null,null,null,null,null,null,null,null,null,null,null,null,null,null,null,null,null,null,null,null,null,null,null,null,null,null,null,null,null,null,null,null,null,null,null,null,null,null,null,null,null,null,null,null,null,null,null,null,null,null,null,null,null,null,null,null,null,null,null,null,null,null,null,null,null,null,null,null,null,null,null,null,null,null,null,null,null,null,null,null,null,null,null,null,null,null,null,null,null,null,null,null,null,null,null,null,null,null,null,null,null,null,null,null,null,null,null,null,null,null,null,null,null,null,null,null,null,null,null,null,null,null,null,null,null,null,null,null,null,null,null,null,null,null,null,null,null,null,null,null,null,null,null,null,null,null,null,null,null,null,null,null,null,null,null,null,null,null,null,null,null,null,null,null,null,null,null,null,null,null,null,null,null,null,null,null,null,null,null,null,null,null,null,null,null,null,null,null,null,null,null,null,null,null,null,null,null,null,null,null,null,null,null,null,null,null,null,null,null,null,null,null,null,null,null,null,null,null,null,null,null,null,null,null,null,null,null,null,null,null,null,null,null,null,null,null,null,null,null,null,null,null,null,null,null,null,null,null,null,null,null,null,null,null,null,null,null,null,null,null,null,null,null,null,null,null,null,null,null,null,null,null,null,null,null,null,null,null,null,null,null,null,null,null,null,null,null,null,null,null,null,null,null,null,null,null,null,null,null,null,null,null,null,null,null,null,null,null,null,null,null,null,null,null,null,null,null,null,null,null,null,null,null,null,null,null,null,null,null,null,null,null,null,null,null,null,null,null,null,null,null,null,null,null,null,null,null,null,null,null,null,null,null,null,null,null,null,null,null,null,null,null,null,null,null,null,null,null,null,null,null,null,null,null,null,null,null,null,null,null,null,null,null,null,null,null,null,null,null,null,null,null,null,null,null,null,null,null,null,null,null,null,null,null,null,null,null,null,null,null,null,null,null,null,null,null,null,null,null,null,null,null,null,null,null,null,null,null,null,null,null,null,null,null,null,null,null,null,null,null,null,null,null,null,null,null,null,null,null,null,null,null,null,null,null,null,null,null,null,null,null,null,null,null,null,null,null,null,null,null,null,null,null,null,null,null,null,null,null,null,null,null,null,null,null,null,null,null,null,null,null,null,null,null,null,null,null,null,null,null,null,null,null,null,null,null,null,null,null,null,null,null,null,null,null,null,null,null,null,null,null,null,null,null,null,null,null,null,null,null,null,null,null,null,null,null,null,null,null,null,null,null,null,null,null,null,null,null,null,null,null,null,null,null,null,null,null,null,null,null,null,null,null,null,null,null,null,null,null,null,null,null,null,null,null,null,null,null,null,null,null,null,null,null,null,null,null,null,null,null,null,null,null,null,null,null,null,null,null,null,null,null,null,null,null,null,null,null,null,null,null,null,null,null,null,null,null,null,null,null,null,null,null,null,null,null,null,null,null,null,null,null,null,null,null,null,null,null,null,null,null,null,null,null,null,null,null,null,null,null,null,null,null,null,null,null,null,null,null,null,null,null,null,null,null,null,null,null,null,null,null,null,null,null,null,null,null,null,null,null,null,null,null,null,null,null,null,null,null,null,null,null,null,null,null,null,null,null,null,null,null,null,null,null,null,null,null,null,null,null,null,null,null,null,null,null,null,null,null,null,null,null,null,null,null,null,null,null,null,null,null,null,null,null,null,null,null,null,null,null,null,null,null,null,null,null,null,null,null,null,null,null,null,null,null,null,null,null,null,null,null,null,null,null,null,null,null,null,null,null,null,null,null,null,null,null,null,null,null,null,null,null,null,null,null,null,null,null,null,null,null,null,null,null,null,null,null,null,null,null,null,null,null,null,null,null,null,null,null,null,null,null,null,null,null,null,null,null,null,null,null,null,null,null,null,null,null,null,null,null,null,null,null,null,null,null,null,null,null,null,null,null,null,null,null,null,null,null,null,null,null,null,null,null,null,null,null,null,null,null,null,null,null,null,null,null,null,null,null,null,null,null,null,null,null,null,null,null,null,null,null,null,null,null,null,null,null,null,null,null,null,null,null,null,null,null,null,null,null,null,null,null,null,null,null,null,null,null,null,null,null,null,null,null,null,null,null,null,null,null,null,null,null,null,null,null,null,null,null,null,null,null,null,null,null,null,null,null,null,null,null,null,null,null,null,null,null,null,null,null,null,null,null,null,null,null,null,null,null,null,null,null,null,null,null,null,null,null,null,null,null,null,null,null,null,null,null,null,null,null,null,null,null,null,null,null,null,null,null,null,null,null,null,null,null,null,null,null,null,null,null,null,null,null,null,null,null,null,null,null,null,null,null,null,null,null,null,null,null,null,null,null,null,null,null,null,null,null,null,null,null,null,null,null,null,null,null,null,null,null,null,null,null,null,null,null,null,null,null,null,null,null,null,null,null,null,null,null,null,null,null,null,null,null,null,null,null,null,null,null,null,null,null,null,null,null,null,null,null,null,null,null,null,null,null,null,null,null,null,null,null,null,null,null,null,null,null,null,null,null,null,null,null,null,null,null,null,null,null,null,null,null,null,null,null,null,null,null,null,null,null,null,null,null,null,null,null,null,null,null,null,null,null,null,null,null,null,null,null,null,null,null,null,null,null,null,null,null,null,null,null,null,null,null,null,null,null,null,null,null,null,null,null,null,null,null,null,null,null,null,null,null,null,null,null,null,null,null,null,null,null,null,null,null,null,null,null,null,null,null,null,null,null,null,null,null,null,null,null,null,null,null,null,null,null,null,null,null,null,null,null,null,null,null,null,null,null,null,null,null,null,null,null,null,null,null,null,null,null,null,null,null,null,null,null,null,null,null,null,null,null,null,null,null,null,null,null,null,null,null,null,null,null,null,null,null,null,null,null,null,null,null,null,null,null,null,null,null,null,null,null,null,null,null,null,null,null,null,null,null,null,null,null,null,null,null,null,null,null,null,null,null,null,null,null,null,null,null,null,null,null,null,null,null,null,null,null,null,null,null,null,null,null,null,null,null,null,null,null,null,null,null,null,null,null,null,null,null,null,null,null,null,null,null,null,null,null,null,null,null,null,null,null,null,null,null,null,null,null,null,null,null,null,null,null,null,null,null,null,null,null,null,null,null,null,null,null,null,null,null,null,null,null,null,null,null,null,null,null,null,null,null,null,null,null,null,null,null,null,null,null,null,null,null,null,null,null,null,null,null,null,null,null,null,null,null,null,null,null,null,null,null,null,null,null,null,null,null,null,null,null,null,null,null,null,null,null,null,null,null,null,null,null,null,null,null,null,null,null,null,null,null,null,null,null,null,null,null,null,null,null,null,null,null,null,null,null,null,null,null,null,null,null,null,null,null,null,null,null,null,null,null,null,null,null,null,null,null,null,null,null,null,null,null,null,null,null,null,null,null,null,null,null,null,null,null,null,null,null,null,null,null,null,null,null,null,null,null,null,null,null,null,null,null,null,null,null,null,null,null,null,null,null,null,null,null,null,null,null,null,null,null,null,null,null,null,null,null,null,null,null,null,null,null,null,null,null,null,null,null,null,null,null,null,null,null,null,null,null,null,null,null,null,null,null,null,null,null,null,null,null,null,null,null,null,null,null,null,null,null,null,null,null,null,null,null,null,null,null,null,null,null,null,null,null,null,null,null,null,null,null,null,null,null,null,null,null,null,null,null,null,null,null,null,null,null,null,null,null,null,null,null,null,null,null,null,null,null,null,null,null,null,null,null,null,null,null,null,null,null,null,null,null,null,null,null,null,null,null,null,null,null,null,null,null,null,null,null,null,null,null,null,null,null,null,null,null,null,null,null,null,null,null,null,null,null,null,null,null,null,null,null,null,null,null,null,null,null,null,null,null,null,null,null,null,null,null,null,null,null,null,null,null,null,null,null,null,null,null,null,null,null,null,null,null,null,null,null,null,null,null,null,null,null,null,null,null,null,null,null,null,null,null,null,null,null,null,null,null,null,null,null,null,null,null,null,null,null,null,null,null,null,null,null,null,null,null,null,null,null,null,null,null,null,null,null,null,null,null,null,null,null,null,null,null,null,null,null,null,null,null,null,null,null,null,null,null,null,null,null,null,null,null,null,null,null,null,null,null,null,null,null,null,null,null,null,null,null,null,null,null,null,null,null,null,null,null,null,null,null,null,null,null,null,null,null,null,null,null,null,null,null,null,null,null,null,null,null,null,null,null,null,null,null,null,null,null,null,null,null,null,null,null,null,null,null,null,null,null,null,null,null,null,null,null,null,null,null,null,null,null,null,null,null,null,null,null,null,null,null,null,null,null,null,null,null,null,null,null,null,null,null,null,null,null,null,null,null,null,null,null,null,null,null,null,null,null,null,null,null,null,null,null,null,null,null,null,null,null,null,null,null,null,null,null,null,null,null,null,null,null,null,null,null,null,null,null,null,null,null,null,null,null,null,null,null,null,null,null,null,null,null,null,null,null,null,null,null,null,null,null,null,null,null,null,null,null,null,null,null,null,null,null,null,null,null,null,null,null,null,null,null,null,null,null,null,null,null,null,null,null,null,null,null,null,null,null,null,null,null,null,null,null,null,null,null,null,null,null,null,null,null,null,null,null,null,null,null,null,null,null,null,null,null,null,null,null,null,null,null,null,null,null,null,null,null,null,null,null,null,null,null,null,null,null,null,null,null,null,null,null,null,null,null,null,null,null,null,null,null,null,null,null,null,null,null,null,null,null,null,null,null,null,null,null,null,null,null,null,null,null,null,null,null,null,null,null,null,null,null,null,null,null,null,null,null,null,null,null,null,null,null,null,null,null,null,null,null,null,null,null,null,null,null,null,null,null,null,null,null,null,null,null,null,null,null,null,null,null,null,null,null,null,null,null,null,null,null,null,null,null,null,null,null,null,null,null,null,null,null,null,null,null,null,null,null,null,null,null,null,null,null,null,null,null,null,null,null,null,null,null,null,null,null,null,null,null,null,null,null,null,null,null,null,null,null,null,null,null,null,null,null,null,null,null,null,null,null,null,null,null,null,null,null,null,null,null,null,null,null,null,null,null,null,null,null,null,null,null,null,null,null,null,null,null,null,null,null,null,null,null,null,null,null,null,null,null,null,null,null,null,null,null,null,null,null,null,null,null,null,null,null,null,null,null,null,null,null,null,null,null,null,null,null,null,null,null,null,null,null,null,null,null,null,null,null,null,null,null,null,null,null,null,null,null,null,null,null,null,null,null,null,null,null,null,null,null,null,null,null,null,null,null,null,null,null,null,null,null,null,null,null,null,null,null,null,null,null,null,null,null,null,null,null,null,null,null,null,null,null,null,null,null,null,null,null,null,null,null,null,null,null,null,null,null,null,null,null,null,null,null,null,null,null,null,null,null,null,null,null,null,null,null,null,null,null,null,null,null,null,null,null,null,null,null,null,null,null,null,null,null,null,null,null,null,null,null,null,null,null,null,null,null,null,null,null,null,null,null,null,null,null,null,null,null,null,null,null,null,null,null,null,null,null,null,null,null,null,null,null,null,null,null,null,null,null,null,null,null,null,null,null,null,null,null,null,null,null,null,null,null,null,null,null,null,null,null,null,null,null,null,null,null,null,null,null,null,null,null,null,null,null,null,null,null,null,null,null,null,null,null,null,null,null,null,null,null,null,null,null,null,null,null,null,null,null,null,null,null,null,null,null,null,null,null,null,null,null,null,null,null,null,null,null,null,null,null,null,null,null,null,null,null,null,null,null,null,null,null,null,null,null,null,null,null,null,null,null,null,null,null,null,null,null,null,null,null,null,null,null,null,null,null,null,null,null,null,null,null,null,null,null,null,null,null,null,null,null,null,null,null,null,null,null,null,null,null,null,null,null,null,null,null,null,null,null,null,null,null,null,null,null,null,null,null,null,null,null,null,null,null,null,null,null,null,null,null,null,null,null,null,null,null,null,null,null,null,null,null,null,null,null,null,null,null,null,null,null,null,null,null,null,null,null,null,null,null,null,null,null,null,null,null,null,null,null,null,null,null,null,null,null,null,null,null,null,null,null,null,null,null,null,null,null,null,null,null,null,null,null,null,null,null,null,null,null,null,null,null,null,null,null,null,null,null,null,null,null,null,null,null,null,null,null,null,null,null,null,null,null,null,null,null,null,null,null,null,null,null,null,null,null,null,null,null,null,null,null,null,null,null,null,null,null,null,null,null,null,null,null,null,null,null,null,null,null,null,null,null,null,null,null,null,null,null,null,null,null,null,null,null,null,null,null,null,null,null,null,null,null,null,null,null,null,null,null,null,null,null,null,null,null,null,null,null,null,null,null,null,null,null,null,null,null,null,null,null,null,null,null,null,null,null,null,null,null,null,null,null,null,null,null,null,null,null,null,null,null,null,null,null,null,null,null,null,null,null,null,null,null,null,null,null,null,null,null,null,null,null,null,null,null,null,null,null,null,null,null,null,null,null,null,null,null,null,null,null,null,null,null,null,null,null,null,null,null,null,null,null,null,null,null,null,null,null,null,null,null,null,null,null,null,null,null,null,null,null,null,null,null,null,null,null,null,null,null,null,null,null,null,null,null,null,null,null,null,null,null,null,null,null,null,null,null,null,null,null,null,null,null,null,null,null,null,null,null,null,null,null,null,null,null,null,null,null,null,null,null,null,null,null,null,null,null,null,null,null,null,null,null,null,null,null,null,null,null,null,null,null,null,null,null,null,null,null,null,null,null,null,null,null,null,null,null,null,null,null,null,null,null,null,null,null,null,null,null,null,null,null,null,null,null,null,null,null,null,null,null,null,null,null,null,null,null,null,null,null,null,null,null,null,null,null,null,null,null,null,null,null,null,null,null,null,null,null,null,null,null,null,null,null,null,null,null,null,null,null,null,null,null,null,null,null,null,null,null,null,null,null,null,null,null,null,null,null,null,null,null,null,null,null,null,null,null,null,null,null,null,null,null,null,null,null,null,null,null,null,null,null,null,null,null,null,null,null,null,null,null,null,null,null,null,null,null,null,null,null,null,null,null,null,null,null,null,null,null,null,null,null,null,null,null,null,null,null,null,null,null,null,null,null,null,null,null,null,null,null,null,null,null,null,null,null,null,null,null,null,null,null,null,null,null,null,null,null,null,null,null,null,null,null,null,null,null,null,null,null,null,null,null,null,null,null,null,null,null,null,null,null,null,null,null,null,null,null,null,null,null,null,null,null,null,null,null,null,null,null,null,null,null,null,null,null,null,null,null,null,null,null,null,null,null,null,null,null,null,null,null,null,null,null,null,null,null,null,null,null,null,null,null,null,null,null,null,null,null,null,null,null,null,null,null,null,null,null,null,null,null,null,null,null,null,null,null,null,null,null,null,null,null,null,null,null,null,null,null,null,null,null,null,null,null,null,null,null,null,null,null,null,null,null,null,null,null,null,null,null,null,null,null,null,null,null,null,null,null,null,null,null,null,null,null,null,null,null,null,null,null,null,null,null,null,null,null,null,null,null,null,null,null,null,null,null,null,null,null,null,null,null,null,null,null,null,null,null,null,null,null,null,null,null,null,null,null,null,null,null,null,null,null,null,null,null,null,null,null,null,null,null,null,null,null,null,null,null,null,null,null,null,null,null,null,null,null,null,null,null,null,null,null,null,null,null,null,null,null,null,null,null,null,null,null,null,null,null,null,null,null,null,null,null,null,null,null,null,null,null,null,null,null,null,null,null,null,null,null,null,null,null,null,null,null,null,null,null,null,null,null,null,null,null,null,null,null,null,null,null,null,null,null,null,null,null,null,null,null,null,null,null,null,null,null,null,null,null,null,null,null,null,null,null,null,null,null,null,null,null,null,null,null,null,null,null,null,null,null,null,null,null,null,null,null,null,null,null,null,null,null,null,null,null,null,null,null,null,null,null,null,null,null,null,null,null,null,null,null,null,null,null,null,null,null,null,null,null,null,null,null,null,null,null,null,null,null,null,null,null,null,null,null,null,null,null,null,null,null,null,null,null,null,null,null,null,null,null,null,null,null,null,null,null,null,null,null,null,null,null,null,null,null,null,null,null,null,null,null,null,null,null,null,null,null,null,null,null,null,null,null,null,null,null,null,null,null,null,null,null,null,null,null,null,null,null,null,null,null,null,null,null,null,null,null,null,null,null,null,null,null,null,null,null,null,null,null,null,null,null,null,null,null,null,null,null,null,null,null,null,null,null,null,null,null,null,null,null,null,null,null,null,null,null,null,null,null,null,null,null,null,null,null,null,null,null,null,null,null,null,null,null,null,null,null,null,null,null,null,null,null,null,null,null,null,null,null,null,null,null,null,null,null,null,null,null,null,null,null,null,null,null,null,null,null,null,null,null,null,null,null,null,null,null,null,null,null,null,null,null,null,null,null,null,null,null,null,null,null,null,null,null,null,null,null,null,null,null,null,null,null,null,null,null,null,null,null,null,null,null,null,null,null,null,null,null,null,null,null,null,null,null,null,null,null,null,null,null,null,null,null,null,null,null,null,null,null,null,null,null,null,null,null,null,null,null,null,null,null,null,null,null,null,null,null,null,null,null,null,null,null,null,null,null,null,null,null,null,null,null,null,null,null,null,null,null,null,null,null,null,null,null,null,null,null,null,null,null,null,null,null,null,null,null,null,null,null,null,null,null,null,null,null,null,null,null,null,null,null,null,null,null,null,null,null,null,null,null,null,null,null,null,null,null,null,null,null,null,null,null,null,null,null,null,null,null,null,null,null,null,null,null,null,null,null,null,null,null,null,null,null,null,null,null,null,null,null,null,null,null,null,null,null,null,null,null,null,null,null,null,null,null,null,null,null,null,null,null,null,null,null,null,null,null,null,null,null,null,null,null,null,null,null,null,null,null,null,null,null,null,null,null,null,null,null,null,null,null,null,null,null,null,null,null,null,null,null,null,null,null,null,null,null,null,null,null,null,null,null,null,null,null,null,null,null,null,null,null,null,null,null,null,null,null,null,null,null,null,null,null,null,null,null,null,null,null,null,null,null,null,null,null,null,null,null,null,null,null,null,null,null,null,null,null,null,null,null,null,null,null,null,null,null,null,null,null,null,null,null,null,null,null,null,null,null,null,null,null,null,null,null,null,null,null,null,null,null,null,null,null,null,null,null,null,null,null,null,null,null,null,null,null,null,null,null,null,null,null,null,null,null,null,null,null,null,null,null,null,null,null,null,null,null,null,null,null,null,null,null,null,null,null,null,null,null,null,null,null,null,null,null,null,null,null,null,null,null,null,null,null,null,null,null,null,null,null,null,null,null,null,null,null,null,null,null,null,null,null,null,null,null,null,null,null,null,null,null,null,null,null,null,null,null,null,null,null,null,null,null,null,null,null,null,null,null,null,null,null,null,null,null,null,null,null,null,null,null,null,null,null,null,null,null,null,null,null,null,null,null,null,null,null,null,null,null,null,null,null,null,null,null,null,null,null,null,null,null,null,null,null,null,null,null,null,null,null,null,null,null,null,null,null,null,null,null,null,null,null,null,null,null,null,null,null,null,null,null,null,null,null,null,null,null,null,null,null,null,null,null,null,null,null,null,null,null,null,null,null,null,null,null,null,null,null,null,null,null,null,null,null,null,null,null,null,null,null,null,null,null,null,null,null,null,null,null,null,null,null,null,null,null,null,null,null,null,null,null,null,null,null,null,null,null,null,null,null,null,null,null,null,null,null,null,null,null,null,null,null,null,null,null,null,null,null,null,null,null,null,null,null,null,null,null,null,null,null,null,null,null,null,null,null,null,null,null,null,null,null,null,null,null,null,null,null,null,null,null,null,null,null,null,null,null,null,null,null,null,null,null,null,null,null,null,null,null,null,null,null,null,null,null,null,null,null,null,null,null,null,null,null,null,null,null,null,null,null,null,null,null,null,null,null,null,null,null,null,null,null,null,null,null,null,null,null,null,null,null,null,null,null,null,null,null,null,null,null,null,null,null,null,null,null,null,null,null,null,null,null,null,null,null,null,null,null,null,null,null,null,null,null,null,null,null,null,null,null,null,null,null,null,null,null,null,null,null,null,null,null,null,null,null,null,null,null,null,null,null,null,null,null,null,null,null,null,null,null,null,null,null,null,null,null,null,null,null,null,null,null,null,null,null,null,null,null,null,null,null,null,null,null,null,null,null,null,null,null,null,null,null,null,null,null,null,null,null,null,null,null,null,null,null,null,null,null,null,null,null,null,null,null,null,null,null,null,null,null,null,null,null,null,null,null,null,null,null,null,null,null,null,null,null,null,null,null,null,null,null,null,null,null,null,null,null,null,null,null,null,null,null,null,null,null,null,null,null,null,null,null,null,null,null,null,null,null,null,null,null,null,null,null,null,null,null,null,null,null,null,null,null,null,null,null,null,null,null,null,null,null,null,null,null,null,null,null,null,null,null,null,null,null,null,null,null,null,null,null,null,null,null,null,null,null,null,null,null,null,null,null,null,null,null,null,null,null,null,null,null,null,null,null,null,null,null,null,null,null,null,null,null,null,null,null,null,null,null,null,null,null,null,null,null,null,null,null,null,null,null,null,null,null,null,null,null,null,null,null,null,null,null,null,null,null,null,null,null,null,null,null,null,null,null,null,null,null,null,null,null,null,null,null,null,null,null,null,null,null,null,null,null,null,null,null,null,null,null,null,null,null,null,null,null,null,null,null,null,null,null,null,null,null,null,null,null,null,null,null,null,null,null,null,null,null,null,null,null,null,null,null,null,null,null,null,null,null,null,null,null,null,null,null,null,null,null,null,null,null,null,null,null,null,null,null,null,null,null,null,null,null,null,null,null,null,null,null,null,null,null,null,null,null,null,null,null,null,null,null,null,null,null,null,null,null,null,null,null,null,null,null,null,null,null,null,null,null,null,null,null,null,null,null,null,null,null,null,null,null,null,null,null,null,null,null,null,null,null,null,null,null,null,null,null,null,null,null,null,null,null,null,null,null,null,null,null,null,null,null,null,null,null,null,null,null,null,null,null,null,null,null,null,null,null,null,null,null,null,null,null,null,null,null,null,null,null,null,null,null,null,null,null,null,null,null,null,null,null,null,null,null,null,null,null,null,null,null,null,null,null,null,null,null,null,null,null,null,null,null,null,null,null,null,null,null,null,null,null,null,null,null,null,null,null,null,null,null,null,null,null,null,null,null,null,null,null,null,null,null,null,null,null,null,null,null,null,null,null,null,null,null,null,null,null,null,null,null,null,null,null,null,null,null,null,null,null,null,null,null,null,null,null,null,null,null,null,null,null,null,null,null,null,null,null,null,null,null,null,null,null,null,null,null,null,null,null,null,null,null,null,null,null,null,null,null,null,null,null,null,null,null,null,null,null,null,null,null,null,null,null,null,null,null,null,null,null,null,null,null,null,null,null,null,null,null,null,null,null,null,null,null,null,null,null,null,null,null,null,null,null,null,null,null,null,null,null,null,null,null,null,null,null,null,null,null,null,null,null,null,null,null,null,null,null,null,null,null,null,null,null,null,null,null,null,null,null,null,null,null,null,null,null,null,null,null,null,null,null,null,null,null,null,null,null,null,null,null,null,null,null,null,null,null,null,null,null,null,null,null,null,null,null,null,null,null,null,null,null,null,null,null,null,null,null,null,null,null,null,null,null,null,null,null,null,null,null,null,null,null,null,null,null,null,null,null,null,null,null,null,null,null,null,null,null,null,null,null,null,null,null,null,null,null,null,null,null,null,null,null,null,null,null,null,null,null,null,null,null,null,null,null,null,null,null,null,null,null,null,null,null,null,null,null,null,null,null,null,null,null,null,null,null,null,null,null,null,null,null,null,null,null,null,null,null,null,null,null,null,null,null,null,null,null,null,null,null,null,null,null,null,null,null,null,null,null,null,null,null,null,null,null,null,null,null,null,null,null,null,null,null,null,null,null,null,null,null,null,null,null,null,null,null,null,null,null,null,null,null,null,null,null,null,null,null,null,null,null,null,null,null,null,null,null,null,null,null,null,null,null,null,null,null,null,null,null,null,null,null,null,null,null,null,null,null,null,null,null,null,null,null,null,null,null,null,null,null,null,null,null,null,null,null,null,null,null,null,null,null,null,null,null,null,null,null,null,null,null,null,null,null,null,null,null,null,null,null,null,null,null,null,null,null,null,null,null,null,null,null,null,null,null,null,null,null,null,null,null,null,null,null,null,null,null,null,null,null,null,null,null,null,null,null,null,null,null,null,null,null,null,null,null,null,null,null,null,null,null,null,null,null,null,null,null,null,null,null,null,null,null,null,null,null,null,null,null,null,null,null,null,null,null,null,null,null,null,null,null,null,null,null,null,null,null,null,null,null,null,null,null,null,null,null,null,null,null,null,null,null,null,null,null,null,null,null,null,null,null,null,null,null,null,null,null,null,null,null,null,null,null,null,null,null,null,null,null,null,null,null,null,null,null,null,null,null,null,null,null,null,null,null,null,null,null,null,null,null,null,null,null,null,null,null,null,null,null,null,null,null,null,null,null,null,null,null,null,null,null,null,null,null,null,null,null,null,null,null,null,null,null,null,null,null,null,null,null,null,null,null,null,null,null,null,null,null,null,null,null,null,null,null,null,null,null,null,null,null,null,null,null,null,null,null,null,null,null,null,null,null,null,null,null,null,null,null,null,null,null,null,null,null,null,null,null,null,null,null,null,null,null,null,null,null,null,null,null,null,null,null,null,null,null,null,null,null,null,null,null,null,null,null,null,null,null,null,null,null,null,null,null,null,null,null,null,null,null,null,null,null,null,null,null,null,null,null,null,null,null,null,null,null,null,null,null,null,null,null,null,null,null,null,null,null,null,null,null,null,null,null,null,null,null,null,null,null,null,null,null,null,null,null,null,null,null,null,null,null,null,null,null,null,null,null,null,null,null,null,null,null,null,null,null,null,null,null,null,null,null,null,null,null,null,null,null,null,null,null,null,null,null,null,null,null,null,null,null,null,null,null,null,null,null,null,null,null,null,null,null,null,null,null,null,null,null,null,null,null,null,null,null,null,null,null,null,null,null,null,null,null,null,null,null,null,null,null,null,null,null,null,null,null,null,null,null,null,null,null,null,null,null,null,null,null,null,null,null,null,null,null,null,null,null,null,null,null,null,null,null,null,null,null,null,null,null,null,null,null,null,null,null,null,null,null,null,null,null,null,null,null,null,null,null,null,null,null,null,null,null,null,null,null,null,null,null,null,null,null,null,null,null,null,null,null,null,null,null,null,null,null,null,null,null,null,null,null,null,null,null,null,null,null,null,null,null,null,null,null,null,null,null,null,null,null,null,null,null,null,null,null,null,null,null,null,null,null,null,null,null,null,null,null,null,null,null,null,null,null,null,null,null,null,null,null,null,null,null,null,null,null,null,null,null,null,null,null,null,null,null,null,null,null,null,null,null,null,null,null,null,null,null,null,null,null,null,null,null,null,null,null,null,null,null,null,null,null,null,null,null,null,null,null,null,null,null,null,null,null,null,null,null,null,null,null,null,null,null,null,null,null,null,null,null,null,null,null,null,null,null,null,null,null,null,null,null,null,null,null,null,null,null,null,null,null,null,null,null,null,null,null,null,null,null,null,null,null,null,null,null,null,null,null,null,null,null,null,null,null,null,null,null,null,null,null,null,null,null,null,null,null,null,null,null,null,null,null,null,null,null,null,null,null,null,null,null,null,null,null,null,null,null,null,null,null,null,null,null,null,null,null,null,null,null,null,null,null,null,null,null,null,null,null,null,null,null,null,null,null,null,null,null,null,null,null,null,null,null,null,null,null,null,null,null,null,null,null,null,null,null,null,null,null,null,null,null,null,null,null,null,null,null,null,null,null,null,null,null,null,null,null,null,null,null,null,null,null,null,null,null,null,null,null,null,null,null,null,null,null,null,null,null,null,null,null,null,null,null,null,null,null,null,null,null,null,null,null,null,null,null,null,null,null,null,null,null,null,null,null,null,null,null,null,null,null,null,null,null,null,null,null,null,null,null,null,null,null,null,null,null,null,null,null,null,null,null,null,null,null,null,null,null,null,null,null,null,null,null,null,null,null,null,null,null,null,null,null,null,null,null,null,null,null,null,null,null,null,null,null,null,null,null,null,null,null,null,null,null,null,null,null,null,null,null,null,null,null,null,null,null,null,null,null,null,null,null,null,null,null,null,null,null,null,null,null,null,null,null,null,null,null,null,null,null,null,null,null,null,null,null,null,null,null,null,null,null,null,null,null,null,null,null,null,null,null,null,null,null,null,null,null,null,null,null,null,null,null,null,null,null,null,null,null,null,null,null,null,null,null,null,null,null,null,null,null,null,null,null,null,null,null,null,null,null,null,null,null,null,null,null,null,null,null,null,null,null,null,null,null,null,null,null,null,null,null,null,null,null,null,null,null,null,null,null,null,null,null,null,null,null,null,null,null,null,null,null,null,null,null,null,null,null,null,null,null,null,null,null,null,null,null,null,null,null,null,null,null,null,null,null,null,null,null,null,null,null,null,null,null,null,null,null,null,null,null,null,null,null,null,null,null,null,null,null,null,null,null,null,null,null,null,null,null,null,null,null,null,null,null,null,null,null,null,null,null,null,null,null,null,null,null,null,null,null,null,null,null,null,null,null,null,null,null,null,null,null,null,null,null,null,null,null,null,null,null,null,null,null,null,null,null,null,null,null,null,null,null,null,null,null,null,null,null,null,null,null,null,null,null,null,null,null,null,null,null,null,null,null,null,null,null,null,null,null,null,null,null,null,null,null,null,null,null,null,null,null,null,null,null,null,null,null,null,null,null,null,null,null,null,null,null,null,null,null,null,null,null,null,null,null,null,null,null,null,null,null,null,null,null,null,null,null,null,null,null,null,null,null,null,null,null,null,null,null,null,null,null,null,null,null,null,null,null,null,null,null,null,null,null,null,null,null,null,null,null,null,null,null,null,null,null,null,null,null,null,null,null,null,null,null,null,null,null,null,null,null,null,null,null,null,null,null,null,null,null,null,null,null,null,null,null,null,null,null,null,null,null,null,null,null,null,null,null,null,null,null,null,null,null,null,null,null,null,null,null,null,null,null,null,null,null,null,null,null,null,null,null,null,null,null,null,null,null,null,null,null,null,null,null,null,null,null,null,null,null,null,null,null,null,null,null,null,null,null,null,null,null,null,null,null,null,null,null,null,null,null,null,null,null,null,null,null,null,null,null,null,null,null,null,null,null,null,null,null,null,null,null,null,null,null,null,null,null,null,null,null,null,null,null,null,null,null,null,null,null,null,null,null,null,null,null,null,null,null,null,null,null,null,null,null,null,null,null,null,null,null,null,null,null,null,null,null,null,null,null,null,null,null,null,null,null,null,null,null,null,null,null,null,null,null,null,null,null,null,null,null,null,null,null,null,null,null,null,null,null,null,null,null,null,null,null,null,null,null,null,null,null,null,null,null,null,null,null,null,null,null,null,null,null,null,null,null,null,null,null,null,null,null,null,null,null,null,null,null,null,null,null,null,null,null,null,null,null,null,null,null,null,null,null,null,null,null,null,null,null,null,null,null,null,null,null,null,null,null,null,null,null,null,null,null,null,null,null,null,null,null,null,null,null,null,null,null,null,null,null,null,null,null,null,null,null,null,null,null,null,null,null,null,null,null,null,null,null,null,null,null,null,null,null,null,null,null,null,null,null,null,null,null,null,null,null,null,null,null,null,null,null,null,null,null,null,null,null,null,null,null,null,null,null,null,null,null,null,null,null,null,null,null,null,null,null,null,null,null,null,null,null,null,null,null,null,null,null,null,null,null,null,null,null,null,null,null,null,null,null,null,null,null,null,null,null,null,null,null,null,null,null,null,null,null,null,null,null,null,null,null,null,null,null,null,null,null,null,null,null,null,null,null,null,null,null,null,null,null,null,null,null,null,null,null,null,null,null,null,null,null,null,null,null,null,null,null,null,null,null,null,null,null,null,null,null,null,null,null,null,null,null,null,null,null,null,null,null,null,null,null,null,null,null,null,null,null,null,null,null,null,null,null,null,null,null,null,null,null,null,null,null,null,null,null,null,null,null,null,null,null,null,null,null,null,null,null,null,null,null,null,null,null,null,null,null,null,null,null,null,null,null,null,null,null,null,null,null,null,null,null,null,null,null,null,null,null,null,null,null,null,null,null,null,null,null,null,null,null,null,null,null,null,null,null,null,null,null,null,null,null,null,null,null,null,null,null,null,null,null,null,null,null,null,null,null,null,null,null,null,null,null,null,null,null,null,null,null,null,null,null,null,null,null,null,null,null,null,null,null,null,null,null,null,null,null,null,null,null,null,null,null,null,null,null,null,null,null,null,null,null,null,null,null,null,null,null,null,null,null,null,null,null,null,null,null,null,null,null,null,null,null,null,null,null,null,null,null,null,null,null,null,null,null,null,null,null,null,null,null,null,null,null,null,null,null,null,null,null,null,null,null,null,null,null,null,null,null,null,null,null,null,null,null,null,null,null,null,null,null,null,null,null,null,null,null,null,null,null,null,null,null,null,null,null,null,null,null,null,null,null,null,null,null,null,null,null,null,null,null,null,null,null,null,null,null,null,null,null,null,null,null,null,null,null,null,null,null,null,null,null,null,null,null,null,null,null,null,null,null,null,null,null,null,null,null,null,null,null,null,null,null,null,null,null,null,null,null,null,null,null,null,null,null,null,null,null,null,null,null,null,null,null,null,null,null,null,null,null,null,null,null,null,null,null,null,null,null,null,null,null,null,null,null,null,null,null,null,null,null,null,null,null,null,null,null,null,null,null,null,null,null,null,null,null,null,null,null,null,null,null,null,null,null,null,null,null,null,null,null,null,null,null,null,null,null,null,null,null,null,null,null,null,null,null,null,null,null,null,null,null,null,null,null,null,null,null,null,null,null,null,null,null,null,null,null,null,null,null,null,null,null,null,null,null,null,null,null,null,null,null,null,null,null,null,null,null,null,null,null,null,null,null,null,null,null,null,null,null,null,null,null,null,null,null,null,null,null,null,null,null,null,null,null,null,null,null,null,null,null,null,null,null,null,null,null,null,null,null,null,null,null,null,null,null,null,null,null,null,null,null,null,null,null,null,null,null,null,null,null,null,null,null,null,null,null,null,null,null,null,null,null,null,null,null,null,null,null,null,null,null,null,null,null,null,null,null,null,null,null,null,null,null,null,null,null,null,null,null,null,null,null,null,null,null,null,null,null,null,null,null,null,null,null,null,null,null,null,null,null,null,null,null,null,null,null,null,null,null,null,null,null,null,null,null,null,null,null,null,null,null,null,null,null,null,null,null,null,null,null,null,null,null,null,null,null,null,null,null,null,null,null,null,null,null,null,null,null,null,null,null,null,null,null,null,null,null,null,null,null,null,null,null,null,null,null,null,null,null,null,null,null,null,null,null,null,null,null,null,null,null,null,null,null,null,null,null,null,null,null,null,null,null,null,null,null,null,null,null,null,null,null,null,null,null,null,null,null,null,null,null,null,null,null,null,null,null,null,null,null,null,null,null,null,null,null,null,null,null,null,null,null,null,null,null,null,null,null,null,null,null,null,null,null,null,null,null,null,null,null,null,null,null,null,null,null,null,null,null,null,null,null,null,null,null,null,null,null,null,null,null,null,null,null,null,null,null,null,null,null,null,null,null,null,null,null,null,null,null,null,null,null,null,null,null,null,null,null,null,null,null,null,null,null,null,null,null,null,null,null,null,null,null,null,null,null,null,null,null,null,null,null,null,null,null,null,null,null,null,null,null,null,null,null,null,null,null,null,null,null,null,null,null,null,null,null,null,null,null,null,null,null,null,null,null,null,null,null,null,null,null,null,null,null,null,null,null,null,null,null,null,null,null,null,null,null,null,null,null,null,null,null,null,null,null,null,null,null,null,null,null,null,null,null,null,null,null,null,null,null,null,null,null,null,null,null,null,null,null,null,null,null,null,null,null,null,null,null,null,null,null,null,null,null,null,null,null,null,null,null,null,null,null,null,null,null,null,null,null,null,null,null,null,null,null,null,null,null,null,null,null,null,null,null,null,null,null,null,null,null,null,null,null,null,null,null,null,null,null,null,null,null,null,null,null,null,null,null,null,null,null,null,null,null,null,null,null,null,null,null,null,null,null,null,null,null,null,null,null,null,null,null,null,null,null,null,null,null,null,null,null,null,null,null,null,null,null,null,null,null,null,null,null,null,null,null,null,null,null,null,null,null,null,null,null,null,null,null,null,null,null,null,null,null,null,null,null,null,null,null,null,null,null,null,null,null,null,null,null,null,null,null,null,null,null,null,null,null,null,null,null,null,null,null,null,null,null,null,null,null,null,null,null,null,null,null,null,null,null,null,null,null,null,null,null,null,null,null,null,null,null,null,null,null,null,null,null,null,null,null,null,null,null,null,null,null,null,null,null,null,null,null,null,null,null,null,null,null,null,null,null,null,null,null,null,null,null,null,null,null,null,null,null,null,null,null,null,null,null,null,null,null,null,null,null,null,null,null,null,null,null,null,null,null,null,null,null,null,null,null,null,null,null,null,null,null,null,null,null,null,null,null,null,null,null,null,null,null,null,null,null,null,null,null,null,null,null,null,null,null,null,null,null,null,null,null,null,null,null,null,null,null,null,null,null,null,null,null,null,null,null,null,null,null,null,null,null,null,null,null,null,null,null,null,null,null,null,null,null,null,null,null,null,null,null,null,null,null,null,null,null,null,null,null,null,null,null,null,null,null,null,null,null,null,null,null,null,null,null,null,null,null,null,null,null,null,null,null,null,null,null,null,null,null,null,null,null,null,null,null,null,null,null,null,null,null,null,null,null,null,null,null,null,null,null,null,null,null,null,null,null,null,null,null,null,null,null,null,null,null,null,null,null,null,null,null,null,null,null,null,null,null,null,null,null,null,null,null,null,null,null,null,null,null,null,null,null,null,null,null,null,null,null,null,null,null,null,null,null,null,null,null,null,null,null,null,null,null,null,null,null,null,null,null,null,null,null,null,null,null,null,null,null,null,null,null,null,null,null,null,null,null,null,null,null,null,null,null,null,null,null,null,null,null,null,null,null,null,null,null,null,null,null,null,null,null,null,null,null,null,null,null,null,null,null,null,null,null,null,null,null,null,null,null,null,null,null,null,null,null,null,null,null,null,null,null,null,null,null,null,null,null,null,null,null,null,null,null,null,null,null,null,null,null,null,null,null,null,null,null,null,null,null,null,null,null,null,null,null,null,null,null,null,null,null,null,null,null,null,null,null,null,null,null,null,null,null,null,null,null,null,null,null,null,null,null,null,null,null,null,null,null,null,null,null,null,null,null,null,null,null,null,null,null,null,null,null,null,null,null,null,null,null,null,null,null,null,null,null,null,null,null,null,null,null,null,null,null,null,null,null,null,null,null,null,null,null,null,null,null,null,null,null,null,null,null,null,null,null,null,null,null,null,null,null,null,null,null,null,null,null,null,null,null,null,null,null,null,null,null,null,null,null,null,null,null,null,null,null,null,null,null,null,null,null,null,null,null,null,null,null,null,null,null,null,null,null,null,null,null,null,null,null,null,null,null,null,null,null,null,null,null,null,null,null,null,null,null,null,null,null,null,null,null,null,null,null,null,null,null,null,null,null,null,null,null,null,null,null,null,null,null,null,null,null,null,null,null,null,null,null,null,null,null,null,null,null,null,null,null,null,null,null,null,null,null,null,null,null,null,null,null,null,null,null,null,null,null,null,null,null,null,null,null,null,null,null,null,null,null,null,null,null,null,null,null,null,null,null,null,null,null,null,null,null,null,null,null,null,null,null,null,null,null,null,null,null,null,null,null,null,null,null,null,null,null,null,null,null,null,null,null,null,null,null,null,null,null,null,null,null,null,null,null,null,null,null,null,null,null,null,null,null,null,null,null,null,null,null,null,null,null,null,null,null,null,null,null,null,null,null,null,null,null,null,null,null,null,null,null,null,null,null,null,null,null,null,null,null,null,null,null,null,null,null,null,null,null,null,null,null,null,null,null,null,null,null,null,null,null,null,null,null,null,null,null,null,null,null,null,null,null,null,null,null,null,null,null,null,null,null,null,null,null,null,null,null,null,null,null,null,null,null,null,null,null,null,null,null,null,null,null,null,null,null,null,null,null,null,null,null,null,null,null,null,null,null,null,null,null,null,null,null,null,null,null,null,null,null,null,null,null,null,null,null,null,null,null,null,null,null,null,null,null,null,null,null,null,null,null,null,null,null,null,null,null,null,null,null,null,null,null,null,null,null,null,null,null,null,null,null,null,null,null,null,null,null,null,null,null,null,null,null,null,null,null,null,null,null,null,null,null,null,null,null,null,null,null,null,null,null,null,null,null,null,null,null,null,null,null,null,null,null,null,null,null,null,null,null,null,null,null,null,null,null,null,null,null,null,null,null,null,null,null,null,null,null,null,null,null,null,null,null,null,null,null,null,null,null,null,null,null,null,null,null,null,null,null,null,null,null,null,null,null,null,null,null,null,null,null,null,null,null,null,null,null,null,null,null,null,null,null,null,null,null,null,null,null,null,null,null,null,null,null,null,null,null,null,null,null,null,null,null,null,null,null,null,null,null,null,null,null,null,null,null,null,null,null,null,null,null,null,null,null,null,null,null,null,null,null,null,null,null,null,null,null,null,null,null,null,null,null,null,null,null,null,null,null,null,null,null,null,null,null,null,null,null,null,null,null,null,null,null,null,null,null,null,null,null,null,null,null,null,null,null,null,null,null,null,null,null,null,null,null,null,null,null,null,null,null,null,null,null,null,null,null,null,null,null,null,null,null,null,null,null,null,null,null,null,null,null,null,null,null,null,null,null,null,null,null,null,null,null,null,null,null,null,null,null,null,null,null,null,null,null,null,null,null,null,null,null,null,null,null,null,null,null,null,null,null,null,null,null,null,null,null,null,null,null,null,null,null,null,null,null,null,null,null,null,null,null,null,null,null,null,null,null,null,null,null,null,null,null,null,null,null,null,null,null,null,null,null,null,null,null,null,null,null,null,null,null,null,null,null,null,null,null,null,null,null,null,null,null,null,null,null,null,null,null,null,null,null,null,null,null,null,null,null,null,null,null,null,null,null,null,null,null,null,null,null,null,null,null,null,null,null,null,null,null,null,null,null,null,null,null,null,null,null,null,null,null,null,null,null,null,null,null,null,null,null,null,null,null,null,null,null,null,null,null,null,null,null,null,null,null,null,null,null,null,null,null,null,null,null,null,null,null,null,null,null,null,null,null,null,null,null,null,null,null,null,null,null,null,null,null,null,null,null,null,null,null,null,null,null,null,null,null,null,null,null,null,null,null,null,null,null,null,null,null,null,null,null,null,null,null,null,null,null,null,null,null,null,null,null,null,null,null,null,null,null,null,null,null,null,null,null,null,null,null,null,null,null,null,null,null,null,null,null,null,null,null,null,null,null,null,null,null,null,null,null,null,null,null,null,null,null,null,null,null,null,null,null,null,null,null,null,null,null,null,null,null,null,null,null,null,null,null,null,null,null,null,null,null,null,null,null,null,null,null,null,null,null,null,null,null,null,null,null,null,null,null,null,null,null,null,null,null,null,null,null,null,null,null,null,null,null,null,null,null,null,null,null,null,null,null,null,null,null,null,null,null,null,null,null,null,null,null,null,null,null,null,null,null,null,null,null,null,null,null,null,null,null,null,null,null,null,null,null,null,null,null,null,null,null,null,null,null,null,null,null,null,null,null,null,null,null,null,null,null,null,null,null,null,null,null,null,null,null,null,null,null,null,null,null,null,null,null,null,null,null,null,null,null,null,null,null,null,null,null,null,null,null,null,null,null,null,null,null,null,null,null,null,null,null,null,null,null,null,null,null,null,null,null,null,null,null,null,null,null,null,null,null,null,null,null,null,null,null,null,null,null,null,null,null,null,null,null,null,null,null,null,null,null,null,null,null,null,null,null,null,null,null,null,null,null,null,null,null,null,null,null,null,null,null,null,null,null,null,null,null,null,null,null,null,null,null,null,null,null,null,null,null,null,null,null,null,null,null,null,null,null,null,null,null,null,null,null,null,null,null,null,null,null,null,null,null,null,null,null,null,null,null,null,null,null,null,null,null,null,null,null,null,null,null,null,null,null,null,null,null,null,null,null,null,null,null,null,null,null,null,null,null,null,null,null,null,null,null,null,null,null,null,null,null,null,null,null,null,null,null,null,null,null,null,null,null,null,null,null,null,null,null,null,null,null,null,null,null,null,null,null,null,null,null,null,null,null,null,null,null,null,null,null,null,null,null,null,null,null,null,null,null,null,null,null,null,null,null,null,null,null,null,null,null,null,null,null,null,null,null,null,null,null,null,null,null,null,null,null,null,null,null,null,null,null,null,null,null,null,null,null,null,null,null,null,null,null,null,null,null,null,null,null,null,null,null,null,null,null,null,null,null,null,null,null,null,null,null,null,null,null,null,null,null,null,null,null,null,null,null,null,null,null,null,null,null,null,null,null,null,null,null,null,null,null,null,null,null,null,null,null,null,null,null,null,null,null,null,null,null,null,null,null,null,null,null,null,null,null,null,null,null,null,null,null,null,null,null,null,null,null,null,null,null,null,null,null,null,null,null,null,null,null,null,null,null,null,null,null,null,null,null,null,null,null,null,null,null,null,null,null,null,null,null,null,null,null,null,null,null,null,null,null,null,null,null,null,null,null,null,null,null,null,null,null,null,null,null,null,null,null,null,null,null,null,null,null,null,null,null,null,null,null,null,null,null,null,null,null,null,null,null,null,null,null,null,null,null,null,null,null,null,null,null,null,null,null,null,null,null,null,null,null,null,null,null,null,null,null,null,null,null,null,null,null,null,null,null,null,null,null,null,null,null,null,null,null,null,null,null,null,null,null,null,null,null,null,null,null,null,null,null,null,null,null,null,null,null,null,null,null,null,null,null,null,null,null,null,null,null,null,null,null,null,null,null,null,null,null,null,null,null,null,null,null,null,null,null,null,null,null,null,null,null,null,null,null,null,null,null,null,null,null,null,null,null,null,null,null,null,null,null,null,null,null,null,null,null,null,null,null,null,null,null,null,null,null,null,null,null,null,null,null,null,null,null,null,null,null,null,null,null,null,null,null,null,null,null,null,null,null,null,null,null,null,null,null,null,null,null,null,null,null,null,null,null,null,null,null,null,null,null,null,null,null,null,null,null,null,null,null,null,null,null,null,null,null,null,null,null,null,null,null,null,null,null,null,null,null,null,null,null,null,null,null,null,null,null,null,null,null,null,null,null,null,null,null,null,null,null,null,null,null,null,null,null,null,null,null,null,null,null,null,null,null,null,null,null,null,null,null,null,null,null,null,null,null,null,null,null,null,null,null,null,null,null,null,null,null,null,null,null,null,null,null,null,null,null,null,null,null,null,null,null,null,null,null,null,null,null,null,null,null,null,null,null,null,null,null,null,null,null,null,null,null,null,null,null,null,null,null,null,null,null,null,null,null,null,null,null,null,null,null,null,null,null,null,null,null,null,null,null,null,null,null,null,null,null,null,null,null,null,null,null,null,null,null,null,null,null,null,null,null,null,null,null,null,null,null,null,null,null,null,null,null,null,null,null,null,null,null,null,null,null,null,null,null,null,null,null,null,null,null,null,null,null,null,null,null,null,null,null,null,null,null,null,null,null,null,null,null,null,null,null,null,null,null,null,null,null,null,null,null,null,null,null,null,null,null,null,null,null,null,null,null,null,null,null,null,null,null,null,null,null,null,null,null,null,null,null,null,null,null,null,null,null,null,null,null,null,null,null,null,null,null,null,null,null,null,null,null,null,null,null,null,null,null,null,null,null,null,null,null,null,null,null,null,null,null,null,null,null,null,null,null,null,null,null,null,null,null,null,null,null,null,null,null,null,null,null,null,null,null,null,null,null,null,null,null,null,null,null,null,null,null,null,null,null,null,null,null,null,null,null,null,null,null,null,null,null,null,null,null,null,null,null,null,null,null,null,null,null,null,null,null,null,null,null,null,null,null,null,null,null,null,null,null,null,null,null,null,null,null,null,null,null,null,null,null,null,null,null,null,null,null,null,null,null,null,null,null,null,null,null,null,null,null,null,null,null,null,null,null,null,null,null,null,null,null,null,null,null,null,null,null,null,null,null,null,null,null,null,null,null,null,null,null,null,null,null,null,null,null,null,null,null,null,null,null,null,null,null,null,null,null,null,null,null,null,null,null,null,null,null,null,null,null,null,null,null,null,null,null,null,null,null,null,null,null,null,null,null,null,null,null,null,null,null,null,null,null,null,null,null,null,null,null,null,null,null,null,null,null,null,null,null,null,null,null,null,null,null,null,null,null,null,null,null,null,null,null,null,null,null,null,null,null,null,null,null,null,null,null,null,null,null,null,null,null,null,null,null,null,null,null,null,null,null,null,null,null,null,null,null,null,null,null,null,null,null,null,null,null,null,null,null,null,null,null,null,null,null,null,null,null,null,null,null,null,null,null,null,null,null,null,null,null,null,null,null,null,null,null,null,null,null,null,null,null,null,null,null,null,null,null,null,null,null,null,null,null,null,null,null,null,null,null,null,null,null,null,null,null,null,null,null,null,null,null,null,null,null,null,null,null,null,null,null,null,null,null,null,null,null,null,null,null,null,null,null,null,null,null,null,null,null,null,null,null,null,null,null,null,null,null,null,null,null,null,null,null,null,null,null,null,null,null,null,null,null,null,null,null,null,null,null,null,null,null,null,null,null,null,null,null,null,null,null,null,null,null,null,null,null,null,null,null,null,null,null,null,null,null,null,null,null,null,null,null,null,null,null,null,null,null,null,null,null,null,null,null,null,null,null,null,null,null,null,null,null,null,null,null,null,null,null,null,null,null,null,null,null,null,null,null,null,null,null,null,null,null,null,null,null,null,null,null,null,null,null,null,null,null,null,null,null,null,null,null,null,null,null,null,null,null,null,null,null,null,null,null,null,null,null,null,null,null,null,null,null,null,null,null,null,null,null,null,null,null,null,null,null,null,null,null,null,null,null,null,null,null,null,null,null,null,null,null,null,null,null,null,null,null,null,null,null,null,null,null,null,null,null,null,null,null,null,null,null,null,null,null,null,null,null,null,null,null,null,null,null,null,null,null,null,null,null,null,null,null,null,null,null,null,null,null,null,null,null,null,null,null,null,null,null,null,null,null,null,null,null,null,null,null,null,null,null,null,null,null,null,null,null,null,null,null,null,null,null,null,null,null,null,null,null,null,null,null,null,null,null,null,null,null,null,null,null,null,null,null,null,null,null,null,null,null,null,null,null,null,null,null,null,null,null,null,null,null,null,null,null,null,null,null,null,null,null,null,null,null,null,null,null,null,null,null,null,null,null,null,null,null,null,null,null,null,null,null,null,null,null,null,null,null,null,null,null,null,null,null,null,null,null,null,null,null,null,null,null,null,null,null,null,null,null,null,null,null,null,null,null,null,null,null,null,null,null,null,null,null,null,null,null,null,null,null,null,null,null,null,null,null,null,null,null,null,null,null,null,null,null,null,null,null,null,null,null,null,null,null,null,null,null,null,null,null,null,null,null,null,null,null,null,null,null,null,null,null,null,null,null,null,null,null,null,null,null,null,null,null,null,null,null,null,null,null,null,null,null,null,null,null,null,null,null,null,null,null,null,null,null,null,null,null,null,null,null,null,null,null,null,null,null,null,null,null,null,null,null,null,null,null,null,null,null,null,null,null,null,null,null,null,null,null,null,null,null,null,null,null,null,null,null,null,null,null,null,null,null,null,null,null,null,null,null,null,null,null,null,null,null,null,null,null,null,null,null,null,null,null,null,null,null,null,null,null,null,null,null,null,null,null,null,null,null,null,null,null,null,null,null,null,null,null,null,null,null,null,null,null,null,null,null,null,null,null,null,null,null,null,null,null,null,null,null,null,null,null,null,null,null,null,null,null,null,null,null,null,null,null,null,null,null,null,null,null,null,null,null,null,null,null,null,null,null,null,null,null,null,null,null,null,null,null,null,null,null,null,null,null,null,null,null,null,null,null,null,null,null,null,null,null,null,null,null,null,null,null,null,null,null,null,null,null,null,null,null,null,null,null,null,null,null,null,null,null,null,null,null,null,null,null,null,null,null,null,null,null,null,null,null,null,null,null,null,null,null,null,null,null,null,null,null,null,null,null,null,null,null,null,null,null,null,null,null,null,null,null,null,null,null,null,null,null,null,null,null,null,null,null,null,null,null,null,null,null,null,null,null,null,null,null,null,null,null,null,null,null,null,null,null,null,null,null,null,null,null,null,null,null,null,null,null,null,null,null,null,null,null,null,null,null,null,null,null,null,null,null,null,null,null,null,null,null,null,null,null,null,null,null,null,null,null,null,null,null,null,null,null,null,null,null,null,null,null,null,null,null,null,null,null,null,null,null,null,null,null,null,null,null,null,null,null,null,null,null,null,null,null,null,null,null,null,null,null,null,null,null,null,null,null,null,null,null,null,null,null,null,null,null,null,null,null,null,null,null,null,null,null,null,null,null,null,null,null,null,null,null,null,null,null,null,null,null,null,null,null,null,null,null,null,null,null,null,null,null,null,null,null,null,null,null,null,null,null,null,null,null,null,null,null,null,null,null,null,null,null,null,null,null,null,null,null,null,null,null,null,null,null,null,null,null,null,null,null,null,null,null,null,null,null,null,null,null,null,null,null,null,null,null,null,null,null,null,null,null,null,null,null,null,null,null,null,null,null,null,null,null,null,null,null,null,null,null,null,null,null,null,null,null,null,null,null,null,null,null,null,null,null,null,null,null,null,null,null,null,null,null,null,null,null,null,null,null,null,null,null,null,null,null,null,null,null,null,null,null,null,null,null,null,null,null,null,null,null,null,null,null,null,null,null,null,null,null,null,null,null,null,null,null,null,null,null,null,null,null,null,null,null,null,null,null,null,null,null,null,null,null,null,null,null,null,null,null,null,null,null,null,null,null,null,null,null,null,null,null,null,null,null,null,null,null,null,null,null,null,null,null,null,null,null,null,null,null,null,null,null,null,null,null,null,null,null,null,null,null,null,null,null,null,null,null,null,null,null,null,null,null,null,null,null,null,null,null,null,null,2,{"$f":"Coding!C294","v":0},null,2,{"$f":"Coding!C203","v":0}]
[null,null,null,null,null,null,null,0,null,"",null,null,"",null,null,"",null,null,"",null,null,"",null,null,"",null,null,"",null,null,"",null,null,"",null,null,"",null,null,"",null,null,"",null,null,"",null,null,"",null,null,"",null,null,"",null,null,"",null,null,"",null,null,"",null,null,"",null,null,"",null,null,"Error","Error","1900-01-11",{"$f":"Coding!C389","v":0},null,null,null,null,null,null,null,null,null,null,null,null,null,null,null,null,null,null,null,null,null,null,null,null,null,null,null,null,null,null,null,null,null,null,null,null,null,null,null,null,null,null,null,null,null,null,null,null,null,null,null,null,null,null,null,null,null,null,null,null,null,null,null,null,null,null,null,null,12,0,{"$f":"SUM(AT6:AT350)","v":0},null,null,null,null,null,null,null,12,{"$f":"Coding!B113","v":0},{"$f":"Coding!E113","v":0},{"$f":"Coding!D389","v":0},{"$f":"Coding!E389","v":0},{"$f":"Coding!F389","v":0},{"$f":"Coding!G389","v":0}]
[null,null,null,null,null,null,null,0,null,"",null,null,"",null,null,"",null,null,"",null,null,"",null,null,"",null,null,"",null,null,"",null,null,"",null,null,"",null,null,"",null,null,"",null,null,"",null,null,"",null,null,"",null,null,"",null,null,"",null,null,"",null,null,"",null,null,"",null,null,"",null,null,"Error","Error"]
[null,null,null,null,null,null,null,0,null,"",null,null,"",null,null,"",null,null,"",null,null,"",null,null,"",null,null,"",null,null,"",null,null,"",null,null,"",null,null,"",null,null,"",null,null,"",null,null,"",null,null,"",null,null,"",null,null,"",null,null,"",null,null,"",null,null,"",null,null,"",null,null,"Error","Error"]
[null,null,null,null,null,null,null,0,null,"",null,null,"",null,null,"",null,null,"",null,null,"",null,null,"",null,null,"",null,null,"",null,null,"",null,null,"",null,null,"",null,null,"",null,null,"",null,null,"",null,null,"",null,null,"",null,null,"",null,null,"",null,null,"",null,null,"",null,null,"",null,null,"Error","Error"]
[null,null,null,null,null,null,null,0,null,"",null,null,"",null,null,"",null,null,"",null,null,"",null,null,"",null,null,"",null,null,"",null,null,"",null,null,"",null,null,"",null,null,"",null,null,"",null,null,"",null,null,"",null,null,"",null,null,"",null,null,"",null,null,"",null,null,"",null,null,"",null,null,"Error","Error"]
[null,null,null,null,null,null,null,0,null,"",null,null,"",null,null,"",null,null,"",null,null,"",null,null,"",null,null,"",null,null,"",null,null,"",null,null,"",null,null,"",null,null,"",null,null,"",null,null,"",null,null,"",null,null,"",null,null,"",null,null,"",null,null,"",null,null,"",null,null,"",null,null,"Error","Error"]
[null,null,null,null,null,null,null,0,null,"",null,null,"",null,null,"",null,null,"",null,null,"",null,null,"",null,null,"",null,null,"",null,null,"",null,null,"",null,null,"",null,null,"",null,null,"",null,null,"",null,null,"",null,null,"",null,null,"",null,null,"",null,null,"",null,null,"",null,null,"",null,null,"Error","Error"]
[null,null,null,null,null,null,null,{"$f":"SUMIF($K$5:$BR$5,\"القيمة\",K350:BR350)","v":0},null,"",null,null,{"$f":"IF(K350+L350<>0,IF(F350=$FB$5,(K350*$FA$6*$FB$6)+L350*$FB$6,IF(F350=$FC$5,(K350*$FA$6*$FC$6)+L350*$FC$6,IF(F350=$FD$5,(K350*$FA$6*$FD$6)+L350*$FD$6,IF(F350=$FE$5,(K350*$FA$6*$FE$6)+L350*$FE$6,\"\")))),\"\")","v":""},null,null,{"$f":"IF(N350+O350<>0,IF(F350=$FB$5,(N350*$FA$7*$FB$7)+O350*$FB$7,IF(F350=$FC$5,(N350*$FA$7*$FC$7)+O350*$FC$7,IF(F350=$FD$5,(N350*$FA$7*$FD$7)+O350*$FD$7,IF(F350=$FE$5,(N350*$FA$7*$FE$7)+O350*$FE$7,\"\")))),\"\")","v":""},null,null,{"$f":"IF(Q350+R350<>0,IF(F350=$FB$5,(Q350*$FA$8*$FB$8)+R350*$FB$8,IF(F350=$FC$5,(Q350*$FA$8*$FC$8)+R350*$FC$8,IF(F350=$FD$5,(Q350*$FA$8*$FD$8)+R350*$FD$8,IF(F350=$FE$5,(Q350*$FA$8*$FE$8)+R350*$FE$8,\"\")))),\"\")","v":""},null,null,{"$f":"IF(T350+U350<>0,IF(F350=$FB$5,(T350*$FA$9*$FB$9)+U350*$FB$9,IF(F350=$FC$5,(T350*$FA$9*$FC$9)+U350*$FC$9,IF(F350=$FD$5,(T350*$FA$9*$FD$9)+U350*$FD$9,IF(F350=$FE$5,(T350*$FA$9*$FE$9)+U350*$FE$9,\"\")))),\"\")","v":""},null,null,{"$f":"IF(W350+X350<>0,IF(F350=$FB$5,(W350*$FA$10*$FB$10)+X350*$FB$10,IF(F350=$FC$5,(W350*$FA$10*$FC$10)+X350*$FC$10,IF(F350=$FD$5,(W350*$FA$10*$FD$10)+X350*$FD$10,IF(F350=$FE$5,(W350*$FA$10*$FE$10)+X350*$FE$10,\"\")))),\"\")","v":""},null,null,{"$f":"IF(Z350+AA350<>0,IF(F350=$FB$5,(Z350*$FA$11*$FB$11)+AA350*$FB$11,IF(F350=$FC$5,(Z350*$FA$11*$FC$11)+AA350*$FC$11,IF(F350=$FD$5,(Z350*$FA$11*$FD$11)+AA350*$FD$11,IF(F350=$FE$5,(Z350*$FA$11*$FE$11)+AA350*$FE$11,\"\")))),\"\")","v":""},null,null,{"$f":"IF(AC350+AD350<>0,IF(F350=$FB$5,(AC350*$FA$12*$FB$12)+AD350*$FB$12,IF(F350=$FC$5,(AC350*$FA$12*$FC$12)+AD350*$FC$12,IF(F350=$FD$5,(AC350*$FA$12*$FD$12)+AD350*$FD$12,IF(F350=$FE$5,(AC350*$FA$12*$FE$12)+AD350*$FE$12,\"\")))),\"\")","v":""},null,null,{"$f":"IF(AF350+AG350<>0,IF(F350=$FB$5,(AF350*$FA$13*$FB$13)+AG350*$FB$13,IF(F350=$FC$5,(AF350*$FA$13*$FC$13)+AG350*$FC$13,IF(F350=$FD$5,(AF350*$FA$13*$FD$13)+AG350*$FD$13,IF(F350=$FE$5,(AF350*$FA$13*$FE$13)+AG350*$FE$13,\"\")))),\"\")","v":""},null,null,{"$f":"IF(AI350+AJ350<>0,IF(F350=$FB$5,(AI350*$FA$14*$FB$14)+AJ350*$FB$14,IF(F350=$FC$5,(AI350*$FA$14*$FC$14)+AJ350*$FC$14,IF(F350=$FD$5,(AI350*$FA$14*$FD$14)+AJ350*$FD$14,IF(F350=$FE$5,(AI350*$FA$14*$FE$14)+AJ350*$FE$14,\"\")))),\"\")","v":""},null,null,{"$f":"IF(AL350+AM350<>0,IF(F350=$FB$5,(AL350*$FA$15*$FB$15)+AM350*$FB$15,IF(F350=$FC$5,(AL350*$FA$15*$FC$15)+AM350*$FC$15,IF(F350=$FD$5,(AL350*$FA$15*$FD$15)+AM350*$FD$15,IF(F350=$FE$5,(AL350*$FA$15*$FE$15)+AM350*$FE$15,\"\")))),\"\")","v":""},null,null,{"$f":"IF(AO350+AP350<>0,IF(F350=$FB$5,(AO350*$FA$16*$FB$16)+AP350*$FB$16,IF(F350=$FC$5,(AO350*$FA$16*$FC$16)+AP350*$FC$16,IF(F350=$FD$5,(AO350*$FA$16*$FD$16)+AP350*$FD$16,IF(F350=$FE$5,(AO350*$FA$16*$FE$16)+AP350*$FE$16,\"\")))),\"\")","v":""},null,null,{"$f":"IF(AR350+AS350<>0,IF(F350=$FB$5,(AR350*$FA$17*$FB$17)+AS350*$FB$17,IF(F350=$FC$5,(AR350*$FA$17*$FC$17)+AS350*$FC$17,IF(F350=$FD$5,(AR350*$FA$17*$FD$17)+AS350*$FD$17,IF(F350=$FE$5,(AR350*$FA$17*$FE$17)+AS350*$FE$17,\"\")))),\"\")","v":""},null,null,{"$f":"IF(AU350+AV350<>0,IF(F350=$FB$5,(AU350*$FA$18*$FB$18)+AV350*$FB$18,IF(F350=$FC$5,(AU350*$FA$18*$FC$18)+AV350*$FC$18,IF(F350=$FD$5,(AU350*$FA$18*$FD$18)+AV350*$FD$18,IF(F350=$FE$5,(AU350*$FA$18*$FE$18)+AV350*$FE$18,\"\")))),\"\")","v":""},null,null,{"$f":"IF(AX350+AY350<>0,IF(F350=$FB$5,(AX350*$FA$19*$FB$19)+AY350*$FB$19,IF(F350=$FC$5,(AX350*$FA$19*$FC$19)+AY350*$FC$19,IF(F350=$FD$5,(AX350*$FA$19*$FD$19)+AY350*$FD$19,IF(F350=$FE$5,(AX350*$FA$19*$FE$19)+AY350*$FE$19,\"\")))),\"\")","v":""},null,null,{"$f":"IF(BA350+BB350<>0,IF(F350=$FB$5,(BA350*$FA$20*$FB$20)+BB350*$FB$20,IF(F350=$FC$5,(BA350*$FA$20*$FC$20)+BB350*$FC$20,IF(F350=$FD$5,(BA350*$FA$20*$FD$20)+BB350*$FD$20,IF(F350=$FE$5,(BA350*$FA$20*$FE$20)+BB350*$FE$20,\"\")))),\"\")","v":""},null,null,{"$f":"IF(BD350+BE350<>0,IF(F350=$FB$5,(BD350*$FA$21*$FB$21)+BE350*$FB$21,IF(F350=$FC$5,(BD350*$FA$21*$FC$21)+BE350*$FC$21,IF(F350=$FD$5,(BD350*$FA$21*$FD$21)+BE350*$FD$21,IF(F350=$FE$5,(BD350*$FA$21*$FE$21)+BE350*$FE$21,\"\")))),\"\")","v":""},null,null,{"$f":"IF(BG350+BH350<>0,IF(F350=$FB$5,(BG350*$FA$22*$FB$22)+BH350*$FB$22,IF(F350=$FC$5,(BG350*$FA$22*$FC$22)+BH350*$FC$22,IF(F350=$FD$5,(BG350*$FA$22*$FD$22)+BH350*$FD$22,IF(F350=$FE$5,(BG350*$FA$22*$FE$22)+BH350*$FE$22,\"\")))),\"\")","v":""},null,null,{"$f":"IF(BJ350+BK350<>0,IF(F350=$FB$5,(BJ350*$FA$23*$FB$23)+BK350*$FB$23,IF(F350=$FC$5,(BJ350*$FA$23*$FC$23)+BK350*$FC$23,IF(F350=$FD$5,(BJ350*$FA$23*$FD$23)+BK350*$FD$23,IF(F350=$FE$5,(BJ350*$FA$23*$FE$23)+BK350*$FE$23,\"\")))),\"\")","v":""},null,null,{"$f":"IF(BM350+BN350<>0,IF(F350=$FB$5,(BM350*$FA$24*$FB$24)+BN350*$FB$24,IF(F350=$FC$5,(BM350*$FA$24*$FC$24)+BN350*$FC$24,IF(F350=$FD$5,(BM350*$FA$24*$FD$24)+BN350*$FD$24,IF(F350=$FE$5,(BM350*$FA$24*$FE$24)+BN350*$FE$24,\"\")))),\"\")","v":""},null,null,{"$f":"IF(BP350+BQ350<>0,IF(F350=$FB$5,(BP350*$FA$25*$FB$25)+BQ350*$FB$25,IF(F350=$FC$5,(BP350*$FA$25*$FC$25)+BQ350*$FC$25,IF(F350=$FD$5,(BP350*$FA$25*$FD$25)+BQ350*$FD$25,IF(F350=$FE$5,(BP350*$FA$25*$FE$25)+BQ350*$FE$25,\"\")))),\"\")","v":""},null,null,"Error","Error"]

{"sheet":"Report","index":1,"n_rows":38,"n_cols":20,"rows_kept":38,"cut":false,"hidden":false,"merged":[[1,14,1,15],[2,14,2,15],[3,14,3,15],[1,16,1,17],[2,16,2,17],[3,16,3,17],[5,14,5,15],[5,16,5,17],[5,6,5,7],[5,8,5,9],[5,10,5,11],[5,2,5,3],[5,1,6,1],[5,4,6,4],[1,7,2,11],[5,12,5,13]]}
[]
[null,"المصرية للاستشارت وخدمات التطوير",null,null,null,null,null,"تـقــريـر مـبــيــعـات",null,null,null,null,null,null,"جملة المبيعات",null,{"$f":"SUMIF(Sales!B:B,E3,Sales!H:H)","v":0}]
[null,null,null,"يــــــــــوم","2012-01-01",null,null,null,null,null,null,null,null,{"$f":"IF(Q2>0,(Q3/Q2),\"\")","v":""},"الخصومات",null,{"$f":"SUMIF(Sales!B:B,E3,Sales!I:I)","v":0}]
[null,null,null,null,null,null,null,null,null,null,null,null,null,null,"صافي المبيعات",null,{"$f":"SUMIF(Sales!B:B,E3,Sales!J:J)","v":0}]
[null,"أولا : - تحليل إجمالي المبيعات  ....... \"  للأصــــنـــــــاف \"",null,null,null,null,null,"ثانيا : - تحليل إجمالي المبيعات  ....... \"  للـــــمـــنـــــــدوبـــــــيــــــــن \""]
[null,"بيان الصنف","الكمية",null,"إجمالي المبيعات",null,{"$f":"Sales!XEZ6","v":"اسماعيل الجن"},null,{"$f":"Sales!XEZ7","v":0},null,{"$f":"Sales!XEZ8","v":0},null,{"$f":"Sales!XEZ9","v":0},null,{"$f":"Sales!XEZ10","v":0},null,{"$f":"Sales!XEZ11","v":0},null,null,{"$f":"Coding!D4","v":"00:00:00"}]
[null,null,"وحدة رئيسية","وحدة فرعية",null,null,"كرتونة","قطعة","كرتونة","قطعة","كرتونة","قطعة","كرتونة","قطعة","كرتونة","قطعة","كرتونة","قطعة",null,{"$f":"+T6+1","v":"1900-01-01"}]
[null,{"$f":"Sales!B1","v":0},{"$f":"SUMIF(Sales!B:B,$E$3,Sales!K:K)","v":0},{"$f":"SUMIF(Sales!B:B,$E$3,Sales!L:L)","v":0},{"$f":"SUMIF(Sales!B:B,$E$3,Sales!M:M)","v":0},null,{"$f":"SUMIFS(Sales!K:K,Sales!B:B,$E$3,Sales!D:D,$G$6)","v":0},{"$f":"SUMIFS(Sales!L:L,Sales!B:B,$E$3,Sales!D:D,$G$6)","v":0},{"$f":"SUMIFS(Sales!K:K,Sales!B:B,$E$3,Sales!D:D,$I$6)","v":0},{"$f":"SUMIFS(Sales!L:L,Sales!B:B,$E$3,Sales!D:D,$I$6)","v":0},{"$f":"SUMIFS(Sales!K:K,Sales!B:B,$E$3,Sales!D:D,$K$6)","v":0},{"$f":"SUMIFS(Sales!L:L,Sales!B:B,$E$3,Sales!D:D,$K$6)","v":0},{"$f":"SUMIFS(Sales!K:K,Sales!B:B,$E$3,Sales!D:D,$M$6)","v":0},{"$f":"SUMIFS(Sales!L:L,Sales!B:B,$E$3,Sales!D:D,$M$6)","v":0},{"$f":"SUMIFS(Sales!K:K,Sales!B:B,$E$3,Sales!D:D,$O$6)","v":0},{"$f":"SUMIFS(Sales!L:L,Sales!B:B,$E$3,Sales!D:D,$O$6)","v":0},{"$f":"SUMIFS(Sales!K:K,Sales!B:B,$E$3,Sales!D:D,$Q$6)","v":0},{"$f":"SUMIFS(Sales!L:L,Sales!B:B,$E$3,Sales!D:D,$Q$6)","v":0},null,{"$f":"+T7+1","v":"1900-01-02"}]
[null,{"$f":"Sales!B2","v":0},{"$f":"SUMIF(Sales!B:B,$E$3,Sales!N:N)","v":0},{"$f":"SUMIF(Sales!B:B,$E$3,Sales!O:O)","v":0},{"$f":"SUMIF(Sales!B:B,$E$3,Sales!P:P)","v":0},null,{"$f":"SUMIFS(Sales!N:N,Sales!B:B,$E$3,Sales!D:D,$G$6)","v":0},{"$f":"SUMIFS(Sales!O:O,Sales!B:B,$E$3,Sales!D:D,$G$6)","v":0},{"$f":"SUMIFS(Sales!N:N,Sales!B:B,$E$3,Sales!D:D,$I$6)","v":0},{"$f":"SUMIFS(Sales!O:O,Sales!B:B,$E$3,Sales!D:D,$I$6)","v":0},{"$f":"SUMIFS(Sales!N:N,Sales!B:B,$E$3,Sales!D:D,$K$6)","v":0},{"$f":"SUMIFS(Sales!O:O,Sales!B:B,$E$3,Sales!D:D,$K$6)","v":0},{"$f":"SUMIFS(Sales!N:N,Sales!B:B,$E$3,Sales!D:D,$M$6)","v":0},{"$f":"SUMIFS(Sales!O:O,Sales!B:B,$E$3,Sales!D:D,$M$6)","v":0},{"$f":"SUMIFS(Sales!N:N,Sales!B:B,$E$3,Sales!D:D,$O$6)","v":0},{"$f":"SUMIFS(Sales!O:O,Sales!B:B,$E$3,Sales!D:D,$O$6)","v":0},{"$f":"SUMIFS(Sales!N:N,Sales!B:B,$E$3,Sales!D:D,$Q$6)","v":0},{"$f":"SUMIFS(Sales!O:O,Sales!B:B,$E$3,Sales!D:D,$Q$6)","v":0},null,"1900-01-03"]
[null,{"$f":"Sales!B3","v":0},{"$f":"SUMIF(Sales!B:B,$E$3,Sales!Q:Q)","v":0},{"$f":"SUMIF(Sales!B:B,$E$3,Sales!R:R)","v":0},{"$f":"SUMIF(Sales!B:B,$E$3,Sales!S:S)","v":0},null,{"$f":"SUMIFS(Sales!Q:Q,Sales!B:B,$E$3,Sales!D:D,$G$6)","v":0},{"$f":"SUMIFS(Sales!R:R,Sales!B:B,$E$3,Sales!D:D,$G$6)","v":0},{"$f":"SUMIFS(Sales!Q:Q,Sales!B:B,$E$3,Sales!D:D,$I$6)","v":0},{"$f":"SUMIFS(Sales!R:R,Sales!B:B,$E$3,Sales!D:D,$I$6)","v":0},{"$f":"SUMIFS(Sales!Q:Q,Sales!B:B,$E$3,Sales!D:D,$K$6)","v":0},{"$f":"SUMIFS(Sales!R:R,Sales!B:B,$E$3,Sales!D:D,$K$6)","v":0},{"$f":"SUMIFS(Sales!Q:Q,Sales!B:B,$E$3,Sales!D:D,$M$6)","v":0},{"$f":"SUMIFS(Sales!R:R,Sales!B:B,$E$3,Sales!D:D,$M$6)","v":0},{"$f":"SUMIFS(Sales!Q:Q,Sales!B:B,$E$3,Sales!D:D,$O$6)","v":0},{"$f":"SUMIFS(Sales!R:R,Sales!B:B,$E$3,Sales!D:D,$O$6)","v":0},{"$f":"SUMIFS(Sales!Q:Q,Sales!B:B,$E$3,Sales!D:D,$Q$6)","v":0},{"$f":"SUMIFS(Sales!R:R,Sales!B:B,$E$3,Sales!D:D,$Q$6)","v":0},null,"1900-01-04"]
[null,{"$f":"Sales!B4","v":0},{"$f":"SUMIF(Sales!B:B,$E$3,Sales!T:T)","v":0},{"$f":"SUMIF(Sales!B:B,$E$3,Sales!U:U)","v":0},{"$f":"SUMIF(Sales!B:B,$E$3,Sales!V:V)","v":0},null,{"$f":"SUMIFS(Sales!T:T,Sales!B:B,$E$3,Sales!D:D,$G$6)","v":0},{"$f":"SUMIFS(Sales!U:U,Sales!B:B,$E$3,Sales!D:D,$G$6)","v":0},{"$f":"SUMIFS(Sales!T:T,Sales!B:B,$E$3,Sales!D:D,$I$6)","v":0},{"$f":"SUMIFS(Sales!U:U,Sales!B:B,$E$3,Sales!D:D,$I$6)","v":0},{"$f":"SUMIFS(Sales!T:T,Sales!B:B,$E$3,Sales!D:D,$K$6)","v":0},{"$f":"SUMIFS(Sales!U:U,Sales!B:B,$E$3,Sales!D:D,$K$6)","v":0},{"$f":"SUMIFS(Sales!T:T,Sales!B:B,$E$3,Sales!D:D,$M$6)","v":0},{"$f":"SUMIFS(Sales!U:U,Sales!B:B,$E$3,Sales!D:D,$M$6)","v":0},{"$f":"SUMIFS(Sales!T:T,Sales!B:B,$E$3,Sales!D:D,$O$6)","v":0},{"$f":"SUMIFS(Sales!U:U,Sales!B:B,$E$3,Sales!D:D,$O$6)","v":0},{"$f":"SUMIFS(Sales!T:T,Sales!B:B,$E$3,Sales!D:D,$Q$6)","v":0},{"$f":"SUMIFS(Sales!U:U,Sales!B:B,$E$3,Sales!D:D,$Q$6)","v":0},null,"1900-01-05"]
[null,{"$f":"Sales!C1","v":0},{"$f":"SUMIF(Sales!B:B,$E$3,Sales!W:W)","v":0},{"$f":"SUMIF(Sales!B:B,$E$3,Sales!X:X)","v":0},{"$f":"SUMIF(Sales!B:B,$E$3,Sales!Y:Y)","v":0},null,{"$f":"SUMIFS(Sales!W:W,Sales!B:B,$E$3,Sales!D:D,$G$6)","v":0},{"$f":"SUMIFS(Sales!X:X,Sales!B:B,$E$3,Sales!D:D,$G$6)","v":0},{"$f":"SUMIFS(Sales!W:W,Sales!B:B,$E$3,Sales!D:D,$I$6)","v":0},{"$f":"SUMIFS(Sales!X:X,Sales!B:B,$E$3,Sales!D:D,$I$6)","v":0},{"$f":"SUMIFS(Sales!W:W,Sales!B:B,$E$3,Sales!D:D,$K$6)","v":0},{"$f":"SUMIFS(Sales!X:X,Sales!B:B,$E$3,Sales!D:D,$K$6)","v":0},{"$f":"SUMIFS(Sales!W:W,Sales!B:B,$E$3,Sales!D:D,$M$6)","v":0},{"$f":"SUMIFS(Sales!X:X,Sales!B:B,$E$3,Sales!D:D,$M$6)","v":0},{"$f":"SUMIFS(Sales!W:W,Sales!B:B,$E$3,Sales!D:D,$O$6)","v":0},{"$f":"SUMIFS(Sales!X:X,Sales!B:B,$E$3,Sales!D:D,$O$6)","v":0},{"$f":"SUMIFS(Sales!W:W,Sales!B:B,$E$3,Sales!D:D,$Q$6)","v":0},{"$f":"SUMIFS(Sales!X:X,Sales!B:B,$E$3,Sales!D:D,$Q$6)","v":0},null,"1900-01-06"]
[null,{"$f":"Sales!C2","v":0},{"$f":"SUMIF(Sales!B:B,$E$3,Sales!Z:Z)","v":0},{"$f":"SUMIF(Sales!B:B,$E$3,Sales!AA:AA)","v":0},{"$f":"SUMIF(Sales!B:B,$E$3,Sales!AB:AB)","v":0},null,{"$f":"SUMIFS(Sales!Z:Z,Sales!B:B,$E$3,Sales!D:D,$G$6)","v":0},{"$f":"SUMIFS(Sales!AA:AA,Sales!B:B,$E$3,Sales!D:D,$G$6)","v":0},{"$f":"SUMIFS(Sales!Z:Z,Sales!B:B,$E$3,Sales!D:D,$I$6)","v":0},{"$f":"SUMIFS(Sales!AA:AA,Sales!B:B,$E$3,Sales!D:D,$I$6)","v":0},{"$f":"SUMIFS(Sales!Z:Z,Sales!B:B,$E$3,Sales!D:D,$K$6)","v":0},{"$f":"SUMIFS(Sales!AA:AA,Sales!B:B,$E$3,Sales!D:D,$K$6)","v":0},{"$f":"SUMIFS(Sales!Z:Z,Sales!B:B,$E$3,Sales!D:D,$M$6)","v":0},{"$f":"SUMIFS(Sales!AA:AA,Sales!B:B,$E$3,Sales!D:D,$M$6)","v":0},{"$f":"SUMIFS(Sales!Z:Z,Sales!B:B,$E$3,Sales!D:D,$O$6)","v":0},{"$f":"SUMIFS(Sales!AA:AA,Sales!B:B,$E$3,Sales!D:D,$O$6)","v":0},{"$f":"SUMIFS(Sales!Z:Z,Sales!B:B,$E$3,Sales!D:D,$Q$6)","v":0},{"$f":"SUMIFS(Sales!AA:AA,Sales!B:B,$E$3,Sales!D:D,$Q$6)","v":0},null,"1900-01-07"]
[null,{"$f":"Sales!C3","v":0},{"$f":"SUMIF(Sales!B:B,$E$3,Sales!AC:AC)","v":0},{"$f":"SUMIF(Sales!B:B,$E$3,Sales!AD:AD)","v":0},{"$f":"SUMIF(Sales!B:B,$E$3,Sales!AE:AE)","v":0},null,{"$f":"SUMIFS(Sales!AC:AC,Sales!B:B,$E$3,Sales!D:D,$G$6)","v":0},{"$f":"SUMIFS(Sales!AD:AD,Sales!B:B,$E$3,Sales!D:D,$G$6)","v":0},{"$f":"SUMIFS(Sales!AC:AC,Sales!B:B,$E$3,Sales!D:D,$I$6)","v":0},{"$f":"SUMIFS(Sales!AD:AD,Sales!B:B,$E$3,Sales!D:D,$I$6)","v":0},{"$f":"SUMIFS(Sales!AC:AC,Sales!B:B,$E$3,Sales!D:D,$K$6)","v":0},{"$f":"SUMIFS(Sales!AD:AD,Sales!B:B,$E$3,Sales!D:D,$K$6)","v":0},{"$f":"SUMIFS(Sales!AC:AC,Sales!B:B,$E$3,Sales!D:D,$M$6)","v":0},{"$f":"SUMIFS(Sales!AD:AD,Sales!B:B,$E$3,Sales!D:D,$M$6)","v":0},{"$f":"SUMIFS(Sales!AC:AC,Sales!B:B,$E$3,Sales!D:D,$O$6)","v":0},{"$f":"SUMIFS(Sales!AD:AD,Sales!B:B,$E$3,Sales!D:D,$O$6)","v":0},{"$f":"SUMIFS(Sales!AC:AC,Sales!B:B,$E$3,Sales!D:D,$Q$6)","v":0},{"$f":"SUMIFS(Sales!AD:AD,Sales!B:B,$E$3,Sales!D:D,$Q$6)","v":0},null,"1900-01-08"]
[null,{"$f":"Sales!C4","v":0},{"$f":"SUMIF(Sales!B:B,$E$3,Sales!AF:AF)","v":0},{"$f":"SUMIF(Sales!B:B,$E$3,Sales!AG:AG)","v":0},{"$f":"SUMIF(Sales!B:B,$E$3,Sales!AH:AH)","v":0},null,{"$f":"SUMIFS(Sales!AF:AF,Sales!B:B,$E$3,Sales!D:D,$G$6)","v":0},{"$f":"SUMIFS(Sales!AG:AG,Sales!B:B,$E$3,Sales!D:D,$G$6)","v":0},{"$f":"SUMIFS(Sales!AF:AF,Sales!B:B,$E$3,Sales!D:D,$I$6)","v":0},{"$f":"SUMIFS(Sales!AG:AG,Sales!B:B,$E$3,Sales!D:D,$I$6)","v":0},{"$f":"SUMIFS(Sales!AF:AF,Sales!B:B,$E$3,Sales!D:D,$K$6)","v":0},{"$f":"SUMIFS(Sales!AG:AG,Sales!B:B,$E$3,Sales!D:D,$G$6)","v":0},{"$f":"SUMIFS(Sales!AF:AF,Sales!B:B,$E$3,Sales!D:D,$M$6)","v":0},{"$f":"SUMIFS(Sales!AG:AG,Sales!B:B,$E$3,Sales!D:D,$M$6)","v":0},{"$f":"SUMIFS(Sales!AF:AF,Sales!B:B,$E$3,Sales!D:D,$O$6)","v":0},{"$f":"SUMIFS(Sales!AG:AG,Sales!B:B,$E$3,Sales!D:D,$O$6)","v":0},{"$f":"SUMIFS(Sales!AF:AF,Sales!B:B,$E$3,Sales!D:D,$Q$6)","v":0},{"$f":"SUMIFS(Sales!AG:AG,Sales!B:B,$E$3,Sales!D:D,$Q$6)","v":0},null,"1900-01-09"]
[null,{"$f":"Sales!D1","v":0},{"$f":"SUMIF(Sales!B:B,$E$3,Sales!AI:AI)","v":0},{"$f":"SUMIF(Sales!B:B,$E$3,Sales!AJ:AJ)","v":0},{"$f":"SUMIF(Sales!B:B,$E$3,Sales!AK:AK)","v":0},null,{"$f":"SUMIFS(Sales!AI:AI,Sales!B:B,$E$3,Sales!D:D,$G$6)","v":0},{"$f":"SUMIFS(Sales!AJ:AJ,Sales!B:B,$E$3,Sales!D:D,$G$6)","v":0},{"$f":"SUMIFS(Sales!AI:AI,Sales!B:B,$E$3,Sales!D:D,$I$6)","v":0},{"$f":"SUMIFS(Sales!AJ:AJ,Sales!B:B,$E$3,Sales!D:D,$I$6)","v":0},{"$f":"SUMIFS(Sales!AI:AI,Sales!B:B,$E$3,Sales!D:D,$K$6)","v":0},{"$f":"SUMIFS(Sales!AJ:AJ,Sales!B:B,$E$3,Sales!D:D,$K$6)","v":0},{"$f":"SUMIFS(Sales!AI:AI,Sales!B:B,$E$3,Sales!D:D,$M$6)","v":0},{"$f":"SUMIFS(Sales!AJ:AJ,Sales!B:B,$E$3,Sales!D:D,$M$6)","v":0},{"$f":"SUMIFS(Sales!AI:AI,Sales!B:B,$E$3,Sales!D:D,$O$6)","v":0},{"$f":"SUMIFS(Sales!AJ:AJ,Sales!B:B,$E$3,Sales!D:D,$O$6)","v":0},{"$f":"SUMIFS(Sales!AI:AI,Sales!B:B,$E$3,Sales!D:D,$Q$6)","v":0},{"$f":"SUMIFS(Sales!AJ:AJ,Sales!B:B,$E$3,Sales!D:D,$Q$6)","v":0},null,"1900-01-10"]
[null,{"$f":"Sales!D2","v":0},{"$f":"SUMIF(Sales!B:B,$E$3,Sales!AL:AL)","v":0},{"$f":"SUMIF(Sales!B:B,$E$3,Sales!AM:AM)","v":0},{"$f":"SUMIF(Sales!B:B,$E$3,Sales!AN:AN)","v":0},null,{"$f":"SUMIFS(Sales!AL:AL,Sales!B:B,$E$3,Sales!D:D,$G$6)","v":0},{"$f":"SUMIFS(Sales!AM:AM,Sales!B:B,$E$3,Sales!D:D,$G$6)","v":0},{"$f":"SUMIFS(Sales!AL:AL,Sales!B:B,$E$3,Sales!D:D,$I$6)","v":0},{"$f":"SUMIFS(Sales!AM:AM,Sales!B:B,$E$3,Sales!D:D,$I$6)","v":0},{"$f":"SUMIFS(Sales!AL:AL,Sales!B:B,$E$3,Sales!D:D,$K$6)","v":0},{"$f":"SUMIFS(Sales!AM:AM,Sales!B:B,$E$3,Sales!D:D,$K$6)","v":0},{"$f":"SUMIFS(Sales!AL:AL,Sales!B:B,$E$3,Sales!D:D,$M$6)","v":0},{"$f":"SUMIFS(Sales!AM:AM,Sales!B:B,$E$3,Sales!D:D,$M$6)","v":0},{"$f":"SUMIFS(Sales!AL:AL,Sales!B:B,$E$3,Sales!D:D,$O$6)","v":0},{"$f":"SUMIFS(Sales!AM:AM,Sales!B:B,$E$3,Sales!D:D,$O$6)","v":0},{"$f":"SUMIFS(Sales!AL:AL,Sales!B:B,$E$3,Sales!D:D,$Q$6)","v":0},{"$f":"SUMIFS(Sales!AM:AM,Sales!B:B,$E$3,Sales!D:D,$Q$6)","v":0},null,"1900-01-11"]
[null,{"$f":"Sales!D3","v":0},{"$f":"SUMIF(Sales!B:B,$E$3,Sales!AO:AO)","v":0},{"$f":"SUMIF(Sales!B:B,$E$3,Sales!AP:AP)","v":0},{"$f":"SUMIF(Sales!B:B,$E$3,Sales!AQ:AQ)","v":0},null,{"$f":"SUMIFS(Sales!AO:AO,Sales!B:B,$E$3,Sales!D:D,$G$6)","v":0},{"$f":"SUMIFS(Sales!AP:AP,Sales!B:B,$E$3,Sales!D:D,$G$6)","v":0},{"$f":"SUMIFS(Sales!AO:AO,Sales!B:B,$E$3,Sales!D:D,$I$6)","v":0},{"$f":"SUMIFS(Sales!AP:AP,Sales!B:B,$E$3,Sales!D:D,$I$6)","v":0},{"$f":"SUMIFS(Sales!AO:AO,Sales!B:B,$E$3,Sales!D:D,$K$6)","v":0},{"$f":"SUMIFS(Sales!AP:AP,Sales!B:B,$E$3,Sales!D:D,$K$6)","v":0},{"$f":"SUMIFS(Sales!AO:AO,Sales!B:B,$E$3,Sales!D:D,$M$6)","v":0},{"$f":"SUMIFS(Sales!AP:AP,Sales!B:B,$E$3,Sales!D:D,$M$6)","v":0},{"$f":"SUMIFS(Sales!AO:AO,Sales!B:B,$E$3,Sales!D:D,$O$6)","v":0},{"$f":"SUMIFS(Sales!AP:AP,Sales!B:B,$E$3,Sales!D:D,$O$6)","v":0},{"$f":"SUMIFS(Sales!AO:AO,Sales!B:B,$E$3,Sales!D:D,$Q$6)","v":0},{"$f":"SUMIFS(Sales!AP:AP,Sales!B:B,$E$3,Sales!D:D,$Q$6)","v":0},null,"1900-01-12"]
[null,{"$f":"Sales!D4","v":0},{"$f":"SUMIF(Sales!B:B,$E$3,Sales!AR:AR)","v":0},{"$f":"SUMIF(Sales!B:B,$E$3,Sales!AS:AS)","v":0},{"$f":"SUMIF(Sales!B:B,$E$3,Sales!AT:AT)","v":0},null,{"$f":"SUMIFS(Sales!AR:AR,Sales!B:B,$E$3,Sales!D:D,$G$6)","v":0},{"$f":"SUMIFS(Sales!AS:AS,Sales!B:B,$E$3,Sales!D:D,$G$6)","v":0},{"$f":"SUMIFS(Sales!AR:AR,Sales!B:B,$E$3,Sales!D:D,$I$6)","v":0},{"$f":"SUMIFS(Sales!AS:AS,Sales!B:B,$E$3,Sales!D:D,$I$6)","v":0},{"$f":"SUMIFS(Sales!AR:AR,Sales!B:B,$E$3,Sales!D:D,$K$6)","v":0},{"$f":"SUMIFS(Sales!AS:AS,Sales!B:B,$E$3,Sales!D:D,$K$6)","v":0},{"$f":"SUMIFS(Sales!AR:AR,Sales!B:B,$E$3,Sales!D:D,$M$6)","v":0},{"$f":"SUMIFS(Sales!AS:AS,Sales!B:B,$E$3,Sales!D:D,$M$6)","v":0},{"$f":"SUMIFS(Sales!AR:AR,Sales!B:B,$E$3,Sales!D:D,$O$6)","v":0},{"$f":"SUMIFS(Sales!AS:AS,Sales!B:B,$E$3,Sales!D:D,$O$6)","v":0},{"$f":"SUMIFS(Sales!AR:AR,Sales!B:B,$E$3,Sales!D:D,$Q$6)","v":0},{"$f":"SUMIFS(Sales!AS:AS,Sales!B:B,$E$3,Sales!D:D,$Q$6)","v":0},null,"1900-01-13"]
[null,{"$f":"Sales!E1","v":0},{"$f":"SUMIF(Sales!B:B,$E$3,Sales!AU:AU)","v":0},{"$f":"SUMIF(Sales!B:B,$E$3,Sales!AV:AV)","v":0},{"$f":"SUMIF(Sales!B:B,$E$3,Sales!AW:AW)","v":0},null,{"$f":"SUMIFS(Sales!AU:AU,Sales!B:B,$E$3,Sales!D:D,$G$6)","v":0},{"$f":"SUMIFS(Sales!AV:AV,Sales!B:B,$E$3,Sales!D:D,$G$6)","v":0},{"$f":"SUMIFS(Sales!AU:AU,Sales!B:B,$E$3,Sales!D:D,$I$6)","v":0},{"$f":"SUMIFS(Sales!AV:AV,Sales!B:B,$E$3,Sales!D:D,$I$6)","v":0},{"$f":"SUMIFS(Sales!AU:AU,Sales!B:B,$E$3,Sales!D:D,$K$6)","v":0},{"$f":"SUMIFS(Sales!AV:AV,Sales!B:B,$E$3,Sales!D:D,$K$6)","v":0},{"$f":"SUMIFS(Sales!AU:AU,Sales!B:B,$E$3,Sales!D:D,$M$6)","v":0},{"$f":"SUMIFS(Sales!AV:AV,Sales!B:B,$E$3,Sales!D:D,$M$6)","v":0},{"$f":"SUMIFS(Sales!AU:AU,Sales!B:B,$E$3,Sales!D:D,$O$6)","v":0},{"$f":"SUMIFS(Sales!AV:AV,Sales!B:B,$E$3,Sales!D:D,$O$6)","v":0},{"$f":"SUMIFS(Sales!AU:AU,Sales!B:B,$E$3,Sales!D:D,$Q$6)","v":0},{"$f":"SUMIFS(Sales!AV:AV,Sales!B:B,$E$3,Sales!D:D,$Q$6)","v":0},null,"1900-01-14"]
[null,{"$f":"Sales!E2","v":0},{"$f":"SUMIF(Sales!B:B,$E$3,Sales!AX:AX)","v":0},{"$f":"SUMIF(Sales!B:B,$E$3,Sales!AY:AY)","v":0},{"$f":"SUMIF(Sales!B:B,$E$3,Sales!AZ:AZ)","v":0},null,{"$f":"SUMIFS(Sales!AX:AX,Sales!B:B,$E$3,Sales!D:D,$G$6)","v":0},{"$f":"SUMIFS(Sales!AY:AY,Sales!B:B,$E$3,Sales!D:D,$G$6)","v":0},{"$f":"SUMIFS(Sales!AX:AX,Sales!B:B,$E$3,Sales!D:D,$I$6)","v":0},{"$f":"SUMIFS(Sales!AY:AY,Sales!B:B,$E$3,Sales!D:D,$I$6)","v":0},{"$f":"SUMIFS(Sales!AX:AX,Sales!B:B,$E$3,Sales!D:D,$K$6)","v":0},{"$f":"SUMIFS(Sales!AY:AY,Sales!B:B,$E$3,Sales!D:D,$K$6)","v":0},{"$f":"SUMIFS(Sales!AX:AX,Sales!B:B,$E$3,Sales!D:D,$M$6)","v":0},{"$f":"SUMIFS(Sales!AY:AY,Sales!B:B,$E$3,Sales!D:D,$M$6)","v":0},{"$f":"SUMIFS(Sales!AX:AX,Sales!B:B,$E$3,Sales!D:D,$O$6)","v":0},{"$f":"SUMIFS(Sales!AY:AY,Sales!B:B,$E$3,Sales!D:D,$O$6)","v":0},{"$f":"SUMIFS(Sales!AX:AX,Sales!B:B,$E$3,Sales!D:D,$Q$6)","v":0},{"$f":"SUMIFS(Sales!AY:AY,Sales!B:B,$E$3,Sales!D:D,$Q$6)","v":0},null,"1900-01-15"]
[null,{"$f":"Sales!E3","v":0},{"$f":"SUMIF(Sales!B:B,$E$3,Sales!BA:BA)","v":0},{"$f":"SUMIF(Sales!B:B,$E$3,Sales!BB:BB)","v":0},{"$f":"SUMIF(Sales!B:B,$E$3,Sales!BC:BC)","v":0},null,{"$f":"SUMIFS(Sales!BA:BA,Sales!B:B,$E$3,Sales!D:D,$G$6)","v":0},{"$f":"SUMIFS(Sales!BB:BB,Sales!B:B,$E$3,Sales!D:D,$G$6)","v":0},{"$f":"SUMIFS(Sales!BA:BA,Sales!B:B,$E$3,Sales!D:D,$I$6)","v":0},{"$f":"SUMIFS(Sales!BB:BB,Sales!B:B,$E$3,Sales!D:D,$I$6)","v":0},{"$f":"SUMIFS(Sales!BA:BA,Sales!B:B,$E$3,Sales!D:D,$K$6)","v":0},{"$f":"SUMIFS(Sales!BB:BB,Sales!B:B,$E$3,Sales!D:D,$K$6)","v":0},{"$f":"SUMIFS(Sales!BA:BA,Sales!B:B,$E$3,Sales!D:D,$M$6)","v":0},{"$f":"SUMIFS(Sales!BB:BB,Sales!B:B,$E$3,Sales!D:D,$M$6)","v":0},{"$f":"SUMIFS(Sales!BA:BA,Sales!B:B,$E$3,Sales!D:D,$O$6)","v":0},{"$f":"SUMIFS(Sales!BB:BB,Sales!B:B,$E$3,Sales!D:D,$O$6)","v":0},{"$f":"SUMIFS(Sales!BA:BA,Sales!B:B,$E$3,Sales!D:D,$Q$6)","v":0},{"$f":"SUMIFS(Sales!BB:BB,Sales!B:B,$E$3,Sales!D:D,$Q$6)","v":0},null,"1900-01-16"]
[null,{"$f":"Sales!E4","v":0},{"$f":"SUMIF(Sales!B:B,$E$3,Sales!BD:BD)","v":0},{"$f":"SUMIF(Sales!B:B,$E$3,Sales!BE:BE)","v":0},{"$f":"SUMIF(Sales!B:B,$E$3,Sales!BF:BF)","v":0},null,{"$f":"SUMIFS(Sales!BD:BD,Sales!B:B,$E$3,Sales!D:D,$G$6)","v":0},{"$f":"SUMIFS(Sales!BE:BE,Sales!B:B,$E$3,Sales!D:D,$G$6)","v":0},{"$f":"SUMIFS(Sales!BD:BD,Sales!B:B,$E$3,Sales!D:D,$I$6)","v":0},{"$f":"SUMIFS(Sales!BE:BE,Sales!B:B,$E$3,Sales!D:D,$I$6)","v":0},{"$f":"SUMIFS(Sales!BD:BD,Sales!B:B,$E$3,Sales!D:D,$K$6)","v":0},{"$f":"SUMIFS(Sales!BE:BE,Sales!B:B,$E$3,Sales!D:D,$K$6)","v":0},{"$f":"SUMIFS(Sales!BD:BD,Sales!B:B,$E$3,Sales!D:D,$M$6)","v":0},{"$f":"SUMIFS(Sales!BE:BE,Sales!B:B,$E$3,Sales!D:D,$M$6)","v":0},{"$f":"SUMIFS(Sales!BD:BD,Sales!B:B,$E$3,Sales!D:D,$O$6)","v":0},{"$f":"SUMIFS(Sales!BE:BE,Sales!B:B,$E$3,Sales!D:D,$O$6)","v":0},{"$f":"SUMIFS(Sales!BD:BD,Sales!B:B,$E$3,Sales!D:D,$Q$6)","v":0},{"$f":"SUMIFS(Sales!BE:BE,Sales!B:B,$E$3,Sales!D:D,$Q$6)","v":0},null,"1900-01-17"]
[null,{"$f":"Sales!F1","v":0},{"$f":"SUMIF(Sales!B:B,$E$3,Sales!BG:BG)","v":0},{"$f":"SUMIF(Sales!B:B,$E$3,Sales!BH:BH)","v":0},{"$f":"SUMIF(Sales!B:B,$E$3,Sales!BI:BI)","v":0},null,{"$f":"SUMIFS(Sales!BG:BG,Sales!B:B,$E$3,Sales!D:D,$G$6)","v":0},{"$f":"SUMIFS(Sales!BH:BH,Sales!B:B,$E$3,Sales!D:D,$G$6)","v":0},{"$f":"SUMIFS(Sales!BG:BG,Sales!B:B,$E$3,Sales!D:D,$I$6)","v":0},{"$f":"SUMIFS(Sales!BH:BH,Sales!B:B,$E$3,Sales!D:D,$I$6)","v":0},{"$f":"SUMIFS(Sales!BG:BG,Sales!B:B,$E$3,Sales!D:D,$K$6)","v":0},{"$f":"SUMIFS(Sales!BH:BH,Sales!B:B,$E$3,Sales!D:D,$K$6)","v":0},{"$f":"SUMIFS(Sales!BG:BG,Sales!B:B,$E$3,Sales!D:D,$M$6)","v":0},{"$f":"SUMIFS(Sales!BH:BH,Sales!B:B,$E$3,Sales!D:D,$M$6)","v":0},{"$f":"SUMIFS(Sales!BG:BG,Sales!B:B,$E$3,Sales!D:D,$O$6)","v":0},{"$f":"SUMIFS(Sales!BH:BH,Sales!B:B,$E$3,Sales!D:D,$O$6)","v":0},{"$f":"SUMIFS(Sales!BG:BG,Sales!B:B,$E$3,Sales!D:D,$Q$6)","v":0},{"$f":"SUMIFS(Sales!BH:BH,Sales!B:B,$E$3,Sales!D:D,$Q$6)","v":0},null,"1900-01-18"]
[null,{"$f":"Sales!F2","v":0},{"$f":"SUMIF(Sales!B:B,$E$3,Sales!BJ:BJ)","v":0},{"$f":"SUMIF(Sales!B:B,$E$3,Sales!BK:BK)","v":0},{"$f":"SUMIF(Sales!B:B,$E$3,Sales!BL:BL)","v":0},null,{"$f":"SUMIFS(Sales!BJ:BJ,Sales!B:B,$E$3,Sales!D:D,$G$6)","v":0},{"$f":"SUMIFS(Sales!BK:BK,Sales!B:B,$E$3,Sales!D:D,$G$6)","v":0},{"$f":"SUMIFS(Sales!BK:BK,Sales!B:B,$E$3,Sales!D:D,$I$6)","v":0},{"$f":"SUMIFS(Sales!BK:BK,Sales!B:B,$E$3,Sales!D:D,$I$6)","v":0},{"$f":"SUMIFS(Sales!BK:BK,Sales!B:B,$E$3,Sales!D:D,$K$6)","v":0},{"$f":"SUMIFS(Sales!BK:BK,Sales!B:B,$E$3,Sales!D:D,$K$6)","v":0},{"$f":"SUMIFS(Sales!BK:BK,Sales!B:B,$E$3,Sales!D:D,$M$6)","v":0},{"$f":"SUMIFS(Sales!BK:BK,Sales!B:B,$E$3,Sales!D:D,$M$6)","v":0},{"$f":"SUMIFS(Sales!BK:BK,Sales!B:B,$E$3,Sales!D:D,$O$6)","v":0},{"$f":"SUMIFS(Sales!BK:BK,Sales!B:B,$E$3,Sales!D:D,$O$6)","v":0},{"$f":"SUMIFS(Sales!BK:BK,Sales!B:B,$E$3,Sales!D:D,$Q$6)","v":0},{"$f":"SUMIFS(Sales!BK:BK,Sales!B:B,$E$3,Sales!D:D,$Q$6)","v":0},null,"1900-01-19"]
[null,{"$f":"Sales!F3","v":0},{"$f":"SUMIF(Sales!B:B,$E$3,Sales!BM:BM)","v":0},{"$f":"SUMIF(Sales!B:B,$E$3,Sales!BN:BN)","v":0},{"$f":"SUMIF(Sales!B:B,$E$3,Sales!BO:BO)","v":0},null,{"$f":"SUMIFS(Sales!BM:BM,Sales!B:B,$E$3,Sales!D:D,$G$6)","v":0},{"$f":"SUMIFS(Sales!BN:BN,Sales!B:B,$E$3,Sales!D:D,$G$6)","v":0},{"$f":"SUMIFS(Sales!BM:BM,Sales!B:B,$E$3,Sales!D:D,$I$6)","v":0},{"$f":"SUMIFS(Sales!BN:BN,Sales!B:B,$E$3,Sales!D:D,$I$6)","v":0},{"$f":"SUMIFS(Sales!BM:BM,Sales!B:B,$E$3,Sales!D:D,$K$6)","v":0},{"$f":"SUMIFS(Sales!BN:BN,Sales!B:B,$E$3,Sales!D:D,$K$6)","v":0},{"$f":"SUMIFS(Sales!BM:BM,Sales!B:B,$E$3,Sales!D:D,$M$6)","v":0},{"$f":"SUMIFS(Sales!BN:BN,Sales!B:B,$E$3,Sales!D:D,$M$6)","v":0},{"$f":"SUMIFS(Sales!BM:BM,Sales!B:B,$E$3,Sales!D:D,$O$6)","v":0},{"$f":"SUMIFS(Sales!BN:BN,Sales!B:B,$E$3,Sales!D:D,$O$6)","v":0},{"$f":"SUMIFS(Sales!BM:BM,Sales!B:B,$E$3,Sales!D:D,$Q$6)","v":0},{"$f":"SUMIFS(Sales!BN:BN,Sales!B:B,$E$3,Sales!D:D,$Q$6)","v":0},null,"1900-01-20"]
[null,{"$f":"Sales!F4","v":0},{"$f":"SUMIF(Sales!B:B,$E$3,Sales!BP:BP)","v":0},{"$f":"SUMIF(Sales!B:B,$E$3,Sales!BQ:BQ)","v":0},{"$f":"SUMIF(Sales!B:B,$E$3,Sales!BR:BR)","v":0},null,{"$f":"SUMIFS(Sales!BP:BP,Sales!B:B,$E$3,Sales!D:D,$G$6)","v":0},{"$f":"SUMIFS(Sales!BQ:BQ,Sales!B:B,$E$3,Sales!D:D,$G$6)","v":0},{"$f":"SUMIFS(Sales!BP:BP,Sales!B:B,$E$3,Sales!D:D,$I$6)","v":0},{"$f":"SUMIFS(Sales!BQ:BQ,Sales!B:B,$E$3,Sales!D:D,$I$6)","v":0},{"$f":"SUMIFS(Sales!BP:BP,Sales!B:B,$E$3,Sales!D:D,$K$6)","v":0},{"$f":"SUMIFS(Sales!BQ:BQ,Sales!B:B,$E$3,Sales!D:D,$K$6)","v":0},{"$f":"SUMIFS(Sales!BP:BP,Sales!B:B,$E$3,Sales!D:D,$M$6)","v":0},{"$f":"SUMIFS(Sales!BQ:BQ,Sales!B:B,$E$3,Sales!D:D,$M$6)","v":0},{"$f":"SUMIFS(Sales!BP:BP,Sales!B:B,$E$3,Sales!D:D,$O$6)","v":0},{"$f":"SUMIFS(Sales!BQ:BQ,Sales!B:B,$E$3,Sales!D:D,$O$6)","v":0},{"$f":"SUMIFS(Sales!BP:BP,Sales!B:B,$E$3,Sales!D:D,$Q$6)","v":0},{"$f":"SUMIFS(Sales!BQ:BQ,Sales!B:B,$E$3,Sales!D:D,$Q$6)","v":0},null,"1900-01-21"]
[null,"إجماليات",{"$f":"SUM(C8:C27)","v":0},{"$f":"SUM(D8:D27)","v":0},0,null,{"$f":"SUM(G8:G27)","v":0},{"$f":"SUM(H8:H27)","v":0},0,0,0,0,0,0,0,0,0,0,null,"1900-01-22"]
[null,null,null,null,null,null,null,null,null,null,null,null,null,null,null,null,null,null,null,"1900-01-23"]
[null,"ثالثا :- تحليل قيمة مبيعات ..........  \" للــمــنــدوبــيــن \"",null,null,null,null,null,"رابعا :- تحليل جملة المبيعات من بداية الشهر حتي تاريخه     Month To Date Report ",null,null,null,null,null,null,null,null,null,null,null,"1900-01-24"]
[null,"بيان","ج المبيعات","الخصم","صافي المبيعات",null,null,"بيان","ج.المبيعات","الخصم","صافي",null,"الصنف","MTD","الصنف","MTD","الصنف","MTD",null,"1900-01-25"]
[null,{"$f":"Sales!XEZ6","v":"اسماعيل الجن"},{"$f":"SUMIFS(Sales!H:H,Sales!D:D,B32,Sales!B:B,E3)","v":0},{"$f":"SUMIFS(Sales!I:I,Sales!B:B,$E$3,Sales!D:D,B32)","v":0},{"$f":"C32-D32","v":0},null,null,{"$f":"B32","v":"اسماعيل الجن"},{"$f":"SUMIF(Sales!D:D,H32,Sales!H:H)","v":0},{"$f":"SUMIF(Sales!D:D,H32,Sales!I:I)","v":0},{"$f":"I32-J32","v":0},null,{"$f":"B8","v":0},{"$f":"Sales!EQ6","v":0},{"$f":"B15","v":0},{"$f":"Sales!EQ13","v":0},{"$f":"B21","v":0},{"$f":"Sales!EQ20","v":0},null,"1900-01-26"]
[null,{"$f":"Sales!XEZ7","v":0},{"$f":"SUMIFS(Sales!H:H,Sales!B:B,$E$3,Sales!D:D,B33)","v":0},{"$f":"SUMIFS(Sales!I:I,Sales!B:B,$E$3,Sales!D:D,B33)","v":0},{"$f":"C33-D33","v":0},null,null,{"$f":"B33","v":0},{"$f":"SUMIF(Sales!D:D,H33,Sales!H:H)","v":0},{"$f":"SUMIF(Sales!D:D,H33,Sales!I:I)","v":0},{"$f":"I33-J33","v":0},null,0,{"$f":"Sales!EQ7","v":0},0,{"$f":"Sales!EQ14","v":0},0,{"$f":"Sales!EQ21","v":0},null,"1900-01-27"]
[null,{"$f":"Sales!XEZ8","v":0},{"$f":"SUMIFS(Sales!H:H,Sales!B:B,$E$3,Sales!D:D,B34)","v":0},{"$f":"SUMIFS(Sales!I:I,Sales!B:B,$E$3,Sales!D:D,B34)","v":0},0,null,null,{"$f":"B34","v":0},{"$f":"SUMIF(Sales!D:D,H34,Sales!H:H)","v":0},{"$f":"SUMIF(Sales!D:D,H34,Sales!I:I)","v":0},0,null,0,{"$f":"Sales!EQ8","v":0},0,{"$f":"Sales!EQ15","v":0},0,{"$f":"Sales!EQ22","v":0},null,"1900-01-28"]
[null,{"$f":"Sales!XEZ9","v":0},{"$f":"SUMIFS(Sales!H:H,Sales!B:B,$E$3,Sales!D:D,B35)","v":0},{"$f":"SUMIFS(Sales!I:I,Sales!B:B,$E$3,Sales!D:D,B35)","v":0},0,null,null,0,{"$f":"SUMIF(Sales!D:D,H35,Sales!H:H)","v":0},{"$f":"SUMIF(Sales!D:D,H35,Sales!I:I)","v":0},0,null,0,{"$f":"Sales!EQ9","v":0},0,{"$f":"Sales!EQ16","v":0},0,{"$f":"Sales!EQ23","v":0},null,"1900-01-29"]
[null,{"$f":"Sales!XEZ10","v":0},{"$f":"SUMIFS(Sales!H:H,Sales!B:B,$E$3,Sales!D:D,B36)","v":0},{"$f":"SUMIFS(Sales!I:I,Sales!B:B,$E$3,Sales!D:D,B36)","v":0},0,null,null,0,{"$f":"SUMIF(Sales!D:D,H36,Sales!H:H)","v":0},{"$f":"SUMIF(Sales!D:D,H36,Sales!I:I)","v":0},0,null,0,{"$f":"Sales!EQ10","v":0},0,{"$f":"Sales!EQ17","v":0},0,{"$f":"Sales!EQ24","v":0},null,"1900-01-30"]
[null,{"$f":"Sales!XEZ11","v":0},{"$f":"SUMIFS(Sales!H:H,Sales!B:B,$E$3,Sales!D:D,B37)","v":0},{"$f":"SUMIFS(Sales!I:I,Sales!B:B,$E$3,Sales!D:D,B37)","v":0},0,null,null,0,{"$f":"SUMIF(Sales!D:D,H37,Sales!H:H)","v":0},{"$f":"SUMIF(Sales!D:D,H37,Sales!I:I)","v":0},0,null,0,{"$f":"Sales!EQ11","v":0},0,{"$f":"Sales!EQ18","v":0},0,{"$f":"Sales!EQ25","v":0}]
[null,"ج مبيعات المناديب",{"$f":"SUM(C32:C37)","v":0},{"$f":"SUM(D32:D37)","v":0},0,null,null,"إجمالي",{"$f":"SUM(I32:I37)","v":0},{"$f":"SUM(J32:J37)","v":0},0,null,0,{"$f":"Sales!EQ12","v":0},0,{"$f":"Sales!EQ19","v":0},0,{"$f":"Sales!EQ26","v":0}]

{"sheet":"Deposit","index":2,"n_rows":128,"n_cols":8,"rows_kept":128,"cut":false,"hidden":false,"merged":[[2,0,2,2],[2,5,2,6]]}
[]
[]
["تسجيل عملية سداد :- مستحق / مقدم",null,null,null,null,"بيان أرصدة أول المده للعملاء"]
["التاريخ","اسم العميل","المبلغ",null,null,"بيان","رصيد أول"]
[null,null,null,null,null,{"$f":"Coding!C202","v":0},{"$f":"Coding!D202","v":0},{"$f":"Coding!D4","v":"00:00:00"}]
[null,null,null,38659,null,{"$f":"Coding!C203","v":0},{"$f":"Coding!D110","v":0},{"$f":"H5+1","v":"1900-01-01"}]
[null,null,null,null,null,{"$f":"Coding!C204","v":0},{"$f":"Coding!D111","v":0},{"$f":"H6+1","v":"1900-01-02"}]
[null,null,null,null,null,{"$f":"Coding!C205","v":0},{"$f":"Coding!D112","v":0},"1900-01-03"]
[null,null,null,null,null,{"$f":"Coding!C206","v":0},{"$f":"Coding!D113","v":0},"1900-01-04"]
[null,null,null,null,null,{"$f":"Coding!C207","v":0},{"$f":"Coding!D114","v":0},"1900-01-05"]
[null,null,null,null,null,{"$f":"Coding!C208","v":0},{"$f":"Coding!D115","v":0},"1900-01-06"]
[null,null,null,null,null,{"$f":"Coding!C209","v":0},{"$f":"Coding!D116","v":0},"1900-01-07"]
[null,null,null,null,null,{"$f":"Coding!C210","v":0},{"$f":"Coding!D117","v":0},"1900-01-08"]
[null,null,null,null,null,{"$f":"Coding!C211","v":0},{"$f":"Coding!D118","v":0},"1900-01-09"]
[null,null,null,null,null,null,null,"1900-01-10"]
[null,null,null,null,null,null,null,"1900-01-11"]
[null,null,null,null,null,null,null,"1900-01-12"]
[null,null,null,null,null,null,null,"1900-01-13"]
[null,null,null,null,null,null,null,"1900-01-14"]
[null,null,null,null,null,null,null,"1900-01-15"]
[null,null,null,null,null,null,null,"1900-01-16"]
[null,null,null,null,null,null,null,"1900-01-17"]
[null,null,null,null,null,null,null,"1900-01-18"]
[null,null,null,null,null,null,null,"1900-01-19"]
[null,null,null,null,null,null,null,"1900-01-20"]
[null,null,null,null,null,null,null,"1900-01-21"]
[null,null,null,null,null,null,null,"1900-01-22"]
[null,null,null,null,null,null,null,"1900-01-23"]
[null,null,null,null,null,null,null,"1900-01-24"]
[null,null,null,null,null,null,null,"1900-01-25"]
[null,null,null,null,null,null,null,"1900-01-26"]
[null,null,null,null,null,null,null,"1900-01-27"]
[null,null,null,null,null,null,null,"1900-01-28"]
[null,null,null,null,null,null,null,"1900-01-29"]
[null,null,null,null,null,null,null,"1900-01-30"]
[]
[null,null,null,38659,null,{"$f":"Coding!C141","v":0},{"$f":"Coding!D141","v":0},{"$f":"#REF!+1","v":{"$error":"#REF!"}}]
[null,null,null,null,null,{"$f":"Coding!C142","v":0},{"$f":"Coding!D142","v":0},{"$f":"H37+1","v":{"$error":"#REF!"}}]
[null,null,null,null,null,{"$f":"Coding!C143","v":0},{"$f":"Coding!D143","v":0},{"$error":"#REF!"}]
[null,null,null,null,null,{"$f":"Coding!C144","v":0},{"$f":"Coding!D144","v":0},{"$error":"#REF!"}]
[null,null,null,null,null,{"$f":"Coding!C145","v":0},{"$f":"Coding!D145","v":0},{"$error":"#REF!"}]
[null,null,null,null,null,{"$f":"Coding!C146","v":0},{"$f":"Coding!D146","v":0},{"$error":"#REF!"}]
[null,null,null,null,null,{"$f":"Coding!C147","v":0},{"$f":"Coding!D147","v":0},{"$error":"#REF!"}]
[null,null,null,null,null,{"$f":"Coding!C148","v":0},{"$f":"Coding!D148","v":0},{"$error":"#REF!"}]
[null,null,null,null,null,{"$f":"Coding!C149","v":0},{"$f":"Coding!D149","v":0},{"$error":"#REF!"}]
[null,null,null,null,null,null,null,{"$error":"#REF!"}]
[null,null,null,null,null,null,null,{"$error":"#REF!"}]
[null,null,null,null,null,null,null,{"$error":"#REF!"}]
[null,null,null,null,null,null,null,{"$error":"#REF!"}]
[null,null,null,null,null,null,null,{"$error":"#REF!"}]
[null,null,null,null,null,null,null,{"$error":"#REF!"}]
[null,null,null,null,null,null,null,{"$error":"#REF!"}]
[null,null,null,null,null,null,null,{"$error":"#REF!"}]
[null,null,null,null,null,null,null,{"$error":"#REF!"}]
[null,null,null,null,null,null,null,{"$error":"#REF!"}]
[null,null,null,null,null,null,null,{"$error":"#REF!"}]
[null,null,null,null,null,null,null,{"$error":"#REF!"}]
[null,null,null,null,null,null,null,{"$error":"#REF!"}]
[null,null,null,null,null,null,null,{"$error":"#REF!"}]
[null,null,null,null,null,null,null,{"$error":"#REF!"}]
[null,null,null,null,null,null,null,{"$error":"#REF!"}]
[null,null,null,null,null,null,null,{"$error":"#REF!"}]
[null,null,null,null,null,null,null,{"$error":"#REF!"}]
[null,null,null,null,null,null,null,{"$error":"#REF!"}]
[null,null,null,null,null,null,null,{"$error":"#REF!"}]
[null,null,null,null,null,null,null,{"$error":"#REF!"}]
[]
[null,null,null,38659,null,{"$f":"Coding!C172","v":0},{"$f":"Coding!D172","v":0},{"$f":"#REF!+1","v":{"$error":"#REF!"}}]
[null,null,null,null,null,{"$f":"Coding!C173","v":0},{"$f":"Coding!D173","v":0},{"$f":"H68+1","v":{"$error":"#REF!"}}]
[null,null,null,null,null,{"$f":"Coding!C174","v":0},{"$f":"Coding!D174","v":0},{"$error":"#REF!"}]
[null,null,null,null,null,{"$f":"Coding!C175","v":0},{"$f":"Coding!D175","v":0},{"$error":"#REF!"}]
[null,null,null,null,null,{"$f":"Coding!C176","v":0},{"$f":"Coding!D176","v":0},{"$error":"#REF!"}]
[null,null,null,null,null,{"$f":"Coding!C177","v":0},{"$f":"Coding!D177","v":0},{"$error":"#REF!"}]
[null,null,null,null,null,{"$f":"Coding!C178","v":0},{"$f":"Coding!D178","v":0},{"$error":"#REF!"}]
[null,null,null,null,null,{"$f":"Coding!C179","v":0},{"$f":"Coding!D179","v":0},{"$error":"#REF!"}]
[null,null,null,null,null,{"$f":"Coding!C180","v":0},{"$f":"Coding!D180","v":0},{"$error":"#REF!"}]
[null,null,null,null,null,null,null,{"$error":"#REF!"}]
[null,null,null,null,null,null,null,{"$error":"#REF!"}]
[null,null,null,null,null,null,null,{"$error":"#REF!"}]
[null,null,null,null,null,null,null,{"$error":"#REF!"}]
[null,null,null,null,null,null,null,{"$error":"#REF!"}]
[null,null,null,null,null,null,null,{"$error":"#REF!"}]
[null,null,null,null,null,null,null,{"$error":"#REF!"}]
[null,null,null,null,null,null,null,{"$error":"#REF!"}]
[null,null,null,null,null,null,null,{"$error":"#REF!"}]
[null,null,null,null,null,null,null,{"$error":"#REF!"}]
[null,null,null,null,null,null,null,{"$error":"#REF!"}]
[null,null,null,null,null,null,null,{"$error":"#REF!"}]
[null,null,null,null,null,null,null,{"$error":"#REF!"}]
[null,null,null,null,null,null,null,{"$error":"#REF!"}]
[null,null,null,null,null,null,null,{"$error":"#REF!"}]
[null,null,null,null,null,null,null,{"$error":"#REF!"}]
[null,null,null,null,null,null,null,{"$error":"#REF!"}]
[null,null,null,null,null,null,null,{"$error":"#REF!"}]
[null,null,null,null,null,null,null,{"$error":"#REF!"}]
[null,null,null,null,null,null,null,{"$error":"#REF!"}]
[null,null,null,null,null,null,null,{"$error":"#REF!"}]
[]
[null,null,null,38659,null,{"$f":"Coding!C203","v":0},{"$f":"Coding!D203","v":0},{"$f":"H5+1","v":"1900-01-01"}]
[null,null,null,null,null,{"$f":"Coding!C204","v":0},{"$f":"Coding!D204","v":0},{"$f":"H99+1","v":"1900-01-02"}]
[null,null,null,null,null,{"$f":"Coding!C205","v":0},{"$f":"Coding!D205","v":0},"1900-01-03"]
[null,null,null,null,null,{"$f":"Coding!C206","v":0},{"$f":"Coding!D206","v":0},"1900-01-04"]
[null,null,null,null,null,{"$f":"Coding!C207","v":0},{"$f":"Coding!D207","v":0},"1900-01-05"]
[null,null,null,null,null,{"$f":"Coding!C208","v":0},{"$f":"Coding!D208","v":0},"1900-01-06"]
[null,null,null,null,null,{"$f":"Coding!C209","v":0},{"$f":"Coding!D209","v":0},"1900-01-07"]
[null,null,null,null,null,{"$f":"Coding!C210","v":0},{"$f":"Coding!D210","v":0},"1900-01-08"]
[null,null,null,null,null,{"$f":"Coding!C211","v":0},{"$f":"Coding!D211","v":0},"1900-01-09"]
[null,null,null,null,null,null,null,"1900-01-10"]
[null,null,null,null,null,null,null,"1900-01-11"]
[null,null,null,null,null,null,null,"1900-01-12"]
[null,null,null,null,null,null,null,"1900-01-13"]
[null,null,null,null,null,null,null,"1900-01-14"]
[null,null,null,null,null,null,null,"1900-01-15"]
[null,null,null,null,null,null,null,"1900-01-16"]
[null,null,null,null,null,null,null,"1900-01-17"]
[null,null,null,null,null,null,null,"1900-01-18"]
[null,null,null,null,null,null,null,"1900-01-19"]
[null,null,null,null,null,null,null,"1900-01-20"]
[null,null,null,null,null,null,null,"1900-01-21"]
[null,null,null,null,null,null,null,"1900-01-22"]
[null,null,null,null,null,null,null,"1900-01-23"]
[null,null,null,null,null,null,null,"1900-01-24"]
[null,null,null,null,null,null,null,"1900-01-25"]
[null,null,null,null,null,null,null,"1900-01-26"]
[null,null,null,null,null,null,null,"1900-01-27"]
[null,null,null,null,null,null,null,"1900-01-28"]
[null,null,null,null,null,null,null,"1900-01-29"]
[null,null,null,null,null,null,null,"1900-01-30"]

{"sheet":"Statment","index":3,"n_rows":589,"n_cols":20,"rows_kept":589,"cut":false,"hidden":false,"merged":[[556,2,557,2],[556,3,556,5],[556,6,556,8],[399,4,400,6],[406,2,407,2],[406,3,406,5],[406,6,406,8],[449,4,450,6],[456,2,457,2],[456,3,456,5],[456,6,456,8],[499,4,500,6],[506,2,507,2],[506,3,506,5],[506,6,506,8],[549,4,550,6],[356,2,357,2],[356,3,356,5],[356,6,356,8],[199,4,200,6],[206,2,207,2],[206,3,206,5],[206,6,206,8],[249,4,250,6],[256,2,257,2],[256,3,256,5],[256,6,256,8],[299,4,300,6],[306,2,307,2],[306,3,306,5],[306,6,306,8],[349,4,350,6],[1,4,2,6],[156,2,157,2],[156,3,156,5],[156,6,156,8],[6,3,6,5],[6,2,7,2],[6,6,6,7],[6,8,7,8],[98,4,99,6],[105,3,105,5],[105,6,105,8],[105,2,106,2],[149,4,150,6]]}
[null,"المصرية للاستشارت وخدمات التطوير"]
[null,null,null,null,"تــقــريـر حـركــة الــعـــمـــلاء"]
[]
[null,null,"يــــــــــوم","2012-01-01"]
[]
[null,null,"أولا : حركة العملاء خلال اليوم"]
[null,null,"بـيـان","مسحوبات العميل خلال اليوم",null,null,"حركة سدادات العميل",null,"رصيد الـــيــوم"]
[null,null,null,"إجمالي","الخصم","الصافي","سداد مبيعات","سداد مستحقات"]
[null,null,{"$f":"Sales!XFC6","v":0},{"$f":"SUMIFS(Sales!H:H,Sales!E:E,C9,Sales!B:B,$D$4)","v":0},{"$f":"SUMIFS(Sales!I:I,Sales!E:E,C9,Sales!B:B,$D$4)","v":0},{"$f":"SUMIFS(Sales!J:J,Sales!E:E,C9,Sales!B:B,$D$4)","v":0},{"$f":"SUMIFS(Sales!G:G,Sales!E:E,C9,Sales!B:B,$D$4)","v":0},{"$f":"SUMIFS(Deposit!C:C,Deposit!B:B,C9,Deposit!A:A,$D$4)","v":0},{"$f":"VLOOKUP($D$4,C108:I138,7,0)","v":{"$error":"#N/A"}}]
[null,null,{"$f":"Sales!XFC7","v":0},{"$f":"SUMIFS(Sales!H:H,Sales!E:E,C10,Sales!B:B,$D$4)","v":0},{"$f":"SUMIFS(Sales!I:I,Sales!E:E,C10,Sales!B:B,$D$4)","v":0},{"$f":"SUMIFS(Sales!J:J,Sales!E:E,C10,Sales!B:B,$D$4)","v":0},{"$f":"SUMIFS(Sales!G:G,Sales!E:E,C10,Sales!B:B,$D$4)","v":0},{"$f":"SUMIFS(Deposit!C:C,Deposit!B:B,C10,Deposit!A:A,$D$4)","v":0},{"$f":"VLOOKUP($D$4,C159:I189,7,0)","v":{"$error":"#N/A"}}]
[null,null,{"$f":"Sales!XFC8","v":0},{"$f":"SUMIFS(Sales!H:H,Sales!E:E,C11,Sales!B:B,$D$4)","v":0},{"$f":"SUMIFS(Sales!I:I,Sales!E:E,C11,Sales!B:B,$D$4)","v":0},{"$f":"SUMIFS(Sales!J:J,Sales!E:E,C11,Sales!B:B,$D$4)","v":0},{"$f":"SUMIFS(Sales!G:G,Sales!E:E,C11,Sales!B:B,$D$4)","v":0},{"$f":"SUMIFS(Deposit!C:C,Deposit!B:B,C11,Deposit!A:A,$D$4)","v":0},{"$f":"VLOOKUP($D$4,C209:I239,7,0)","v":{"$error":"#N/A"}}]
[null,null,{"$f":"Sales!XFC9","v":0},{"$f":"SUMIFS(Sales!H:H,Sales!E:E,C12,Sales!B:B,$D$4)","v":0},{"$f":"SUMIFS(Sales!I:I,Sales!E:E,C12,Sales!B:B,$D$4)","v":0},{"$f":"SUMIFS(Sales!J:J,Sales!E:E,C12,Sales!B:B,$D$4)","v":0},{"$f":"SUMIFS(Sales!G:G,Sales!E:E,C12,Sales!B:B,$D$4)","v":0},{"$f":"SUMIFS(Deposit!C:C,Deposit!B:B,C12,Deposit!A:A,$D$4)","v":0},{"$f":"VLOOKUP($D$4,C259:I289,7,0)","v":{"$error":"#N/A"}}]
[null,null,{"$f":"Sales!XFC10","v":0},{"$f":"SUMIFS(Sales!H:H,Sales!E:E,C13,Sales!B:B,$D$4)","v":0},{"$f":"SUMIFS(Sales!I:I,Sales!E:E,C13,Sales!B:B,$D$4)","v":0},{"$f":"SUMIFS(Sales!J:J,Sales!E:E,C13,Sales!B:B,$D$4)","v":0},{"$f":"SUMIFS(Sales!G:G,Sales!E:E,C13,Sales!B:B,$D$4)","v":0},{"$f":"SUMIFS(Deposit!C:C,Deposit!B:B,C13,Deposit!A:A,$D$4)","v":0},{"$f":"VLOOKUP($D$4,C309:I339,7,0)","v":{"$error":"#N/A"}}]
[null,null,{"$f":"Sales!XFC11","v":0},{"$f":"SUMIFS(Sales!H:H,Sales!E:E,C14,Sales!B:B,$D$4)","v":0},{"$f":"SUMIFS(Sales!I:I,Sales!E:E,C14,Sales!B:B,$D$4)","v":0},{"$f":"SUMIFS(Sales!J:J,Sales!E:E,C14,Sales!B:B,$D$4)","v":0},{"$f":"SUMIFS(Sales!G:G,Sales!E:E,C14,Sales!B:B,$D$4)","v":0},{"$f":"SUMIFS(Deposit!C:C,Deposit!B:B,C14,Deposit!A:A,$D$4)","v":0},{"$f":"VLOOKUP($D$4,C359:I389,7,0)","v":{"$error":"#N/A"}}]
[null,null,{"$f":"Sales!XFC12","v":0},{"$f":"SUMIFS(Sales!H:H,Sales!E:E,C15,Sales!B:B,$D$4)","v":0},{"$f":"SUMIFS(Sales!I:I,Sales!E:E,C15,Sales!B:B,$D$4)","v":0},{"$f":"SUMIFS(Sales!J:J,Sales!E:E,C15,Sales!B:B,$D$4)","v":0},{"$f":"SUMIFS(Sales!G:G,Sales!E:E,C15,Sales!B:B,$D$4)","v":0},{"$f":"SUMIFS(Deposit!C:C,Deposit!B:B,C15,Deposit!A:A,$D$4)","v":0},{"$f":"VLOOKUP($D$4,C409:I439,7,0)","v":{"$error":"#N/A"}}]
[null,null,{"$f":"Sales!XFC13","v":0},{"$f":"SUMIFS(Sales!H:H,Sales!E:E,C16,Sales!B:B,$D$4)","v":0},{"$f":"SUMIFS(Sales!I:I,Sales!E:E,C16,Sales!B:B,$D$4)","v":0},{"$f":"SUMIFS(Sales!J:J,Sales!E:E,C16,Sales!B:B,$D$4)","v":0},{"$f":"SUMIFS(Sales!G:G,Sales!E:E,C16,Sales!B:B,$D$4)","v":0},{"$f":"SUMIFS(Deposit!C:C,Deposit!B:B,C16,Deposit!A:A,$D$4)","v":0},{"$f":"VLOOKUP($D$4,C459:I489,7,0)","v":{"$error":"#N/A"}}]
[null,null,{"$f":"Sales!XFC14","v":0},{"$f":"SUMIFS(Sales!H:H,Sales!E:E,C17,Sales!B:B,$D$4)","v":0},{"$f":"SUMIFS(Sales!I:I,Sales!E:E,C17,Sales!B:B,$D$4)","v":0},{"$f":"SUMIFS(Sales!J:J,Sales!E:E,C17,Sales!B:B,$D$4)","v":0},{"$f":"SUMIFS(Sales!G:G,Sales!E:E,C17,Sales!B:B,$D$4)","v":0},{"$f":"SUMIFS(Deposit!C:C,Deposit!B:B,C17,Deposit!A:A,$D$4)","v":0},{"$f":"VLOOKUP($D$4,C509:I539,7,0)","v":{"$error":"#N/A"}}]
[null,null,{"$f":"Sales!XFC15","v":0},{"$f":"SUMIFS(Sales!H:H,Sales!E:E,C18,Sales!B:B,$D$4)","v":0},{"$f":"SUMIFS(Sales!I:I,Sales!E:E,C18,Sales!B:B,$D$4)","v":0},{"$f":"SUMIFS(Sales!J:J,Sales!E:E,C18,Sales!B:B,$D$4)","v":0},{"$f":"SUMIFS(Sales!G:G,Sales!E:E,C18,Sales!B:B,$D$4)","v":0},{"$f":"SUMIFS(Deposit!C:C,Deposit!B:B,C18,Deposit!A:A,$D$4)","v":0},{"$f":"VLOOKUP($D$4,C559:I589,7,0)","v":{"$error":"#N/A"}}]
[null,null,"إجمالي",{"$f":"SUM(D9:D18)","v":0},{"$f":"SUM(E9:E18)","v":0},0,0,0]
[]
[null,null,"ثانيا :- حركة العملاء حتي تاريخة ….  Month To Date Report "]
[null,null,"بيان","رصيد أول","المسحوبات","الخصم","الصافي","السداد","رصيد آخر"]
[null,null,{"$f":"C9","v":0},{"$f":"Deposit!G5","v":0},{"$f":"SUMIF(Sales!E:E,C23,Sales!H:H)","v":0},{"$f":"SUMIF(Sales!E:E,C23,Sales!I:I)","v":0},{"$f":"SUMIF(Sales!E:E,C23,Sales!J:J)","v":0},{"$f":"SUMIF(Sales!E:E,C23,Sales!G:G)+SUMIF(Deposit!B:B,C23,Deposit!C:C)","v":0},{"$f":"D23+E23-F23-H23","v":0}]
[null,null,0,{"$f":"Deposit!G99","v":0},{"$f":"SUMIF(Sales!E:E,C24,Sales!H:H)","v":0},{"$f":"SUMIF(Sales!E:E,C24,Sales!I:I)","v":0},{"$f":"SUMIF(Sales!E:E,C24,Sales!J:J)","v":0},{"$f":"SUMIF(Sales!E:E,C24,Sales!G:G)+SUMIF(Deposit!B:B,C24,Deposit!C:C)","v":0},{"$f":"D24+E24-F24-H24","v":0}]
[null,null,0,{"$f":"Deposit!G100","v":0},{"$f":"SUMIF(Sales!E:E,C25,Sales!H:H)","v":0},{"$f":"SUMIF(Sales!E:E,C25,Sales!I:I)","v":0},{"$f":"SUMIF(Sales!E:E,C25,Sales!J:J)","v":0},{"$f":"SUMIF(Sales!E:E,C25,Sales!G:G)+SUMIF(Deposit!B:B,C25,Deposit!C:C)","v":0},0]
[null,null,0,{"$f":"Deposit!G101","v":0},{"$f":"SUMIF(Sales!E:E,C26,Sales!H:H)","v":0},{"$f":"SUMIF(Sales!E:E,C26,Sales!I:I)","v":0},{"$f":"SUMIF(Sales!E:E,C26,Sales!J:J)","v":0},{"$f":"SUMIF(Sales!E:E,C26,Sales!G:G)+SUMIF(Deposit!B:B,C26,Deposit!C:C)","v":0},0]
[null,null,0,{"$f":"Deposit!G102","v":0},{"$f":"SUMIF(Sales!E:E,C27,Sales!H:H)","v":0},{"$f":"SUMIF(Sales!E:E,C27,Sales!I:I)","v":0},{"$f":"SUMIF(Sales!E:E,C27,Sales!J:J)","v":0},{"$f":"SUMIF(Sales!E:E,C27,Sales!G:G)+SUMIF(Deposit!B:B,C27,Deposit!C:C)","v":0},0]
[null,null,0,{"$f":"Deposit!G103","v":0},{"$f":"SUMIF(Sales!E:E,C28,Sales!H:H)","v":0},{"$f":"SUMIF(Sales!E:E,C28,Sales!I:I)","v":0},{"$f":"SUMIF(Sales!E:E,C28,Sales!J:J)","v":0},{"$f":"SUMIF(Sales!E:E,C28,Sales!G:G)+SUMIF(Deposit!B:B,C28,Deposit!C:C)","v":0},0]
[null,null,0,{"$f":"Deposit!G104","v":0},{"$f":"SUMIF(Sales!E:E,C29,Sales!H:H)","v":0},{"$f":"SUMIF(Sales!E:E,C29,Sales!I:I)","v":0},{"$f":"SUMIF(Sales!E:E,C29,Sales!J:J)","v":0},{"$f":"SUMIF(Sales!E:E,C29,Sales!G:G)+SUMIF(Deposit!B:B,C29,Deposit!C:C)","v":0},0]
[null,null,0,{"$f":"Deposit!G105","v":0},{"$f":"SUMIF(Sales!E:E,C30,Sales!H:H)","v":0},{"$f":"SUMIF(Sales!E:E,C30,Sales!I:I)","v":0},{"$f":"SUMIF(Sales!E:E,C30,Sales!J:J)","v":0},{"$f":"SUMIF(Sales!E:E,C30,Sales!G:G)+SUMIF(Deposit!B:B,C30,Deposit!C:C)","v":0},0]
[null,null,0,{"$f":"Deposit!G106","v":0},{"$f":"SUMIF(Sales!E:E,C31,Sales!H:H)","v":0},{"$f":"SUMIF(Sales!E:E,C31,Sales!I:I)","v":0},{"$f":"SUMIF(Sales!E:E,C31,Sales!J:J)","v":0},{"$f":"SUMIF(Sales!E:E,C31,Sales!G:G)+SUMIF(Deposit!B:B,C31,Deposit!C:C)","v":0},0]
[null,null,0,{"$f":"Deposit!G107","v":0},{"$f":"SUMIF(Sales!E:E,C32,Sales!H:H)","v":0},{"$f":"SUMIF(Sales!E:E,C32,Sales!I:I)","v":0},{"$f":"SUMIF(Sales!E:E,C32,Sales!J:J)","v":0},{"$f":"SUMIF(Sales!E:E,C32,Sales!G:G)+SUMIF(Deposit!B:B,C32,Deposit!C:C)","v":0},0]
[]
[]
[]
[]
[]
[]
[]
[]
[]
[]
[]
[]
[]
[]
[]
[]
[]
[]
[]
[]
[]
[]
[]
[]
[]
[]
[]
[]
[]
[]
[]
[]
[]
[]
[]
[]
[]
[]
[]
[]
[]
[]
[]
[]
[]
[]
[]
[]
[]
[]
[]
[]
[]
[]
[]
[]
[]
[]
[]
[]
[]
[]
[]
[]
[]
[]
[null,null,null,null,"كـــــــشــــــــف حــــســـــاب"]
[]
[null,null,null,null,")",{"$f":"C9","v":0},"("]
[]
[null,null,"بيان","رصيد أول","المسحوبات","الخصم","الصافي","السدادات","رصيد آخر"]
[null,null,"قيمة",{"$f":"D23","v":0},{"$f":"SUM(D108:D138)","v":0},{"$f":"SUM(E108:E138)","v":0},{"$f":"SUM(F108:F138)","v":0},{"$f":"SUM(G108:H138)","v":0},{"$f":"D104+E104-F104-H104","v":0}]
[]
[null,null,"التاريخ","حركة المبيعات",null,null,"حركة التسديدات"]
[null,null,null,"المسحوبات","الخصم","الصافي","سداد بيع","سداد مستحقات","رصيد اليوم",null,null,null,null,null,null,null,null,null,null,"رصيد مرحل"]
[null,null,{"$f":"Coding!D4","v":"00:00:00"},{"$f":"SUMIFS(Sales!H:H,Sales!B:B,C108,Sales!E:E,$F$101)","v":0},{"$f":"SUMIFS(Sales!I:I,Sales!B:B,C108,Sales!E:E,$F$101)","v":0},{"$f":"D108-E108","v":0},{"$f":"SUMIFS(Sales!G:G,Sales!B:B,C108,Sales!E:E,$F$101)","v":0},{"$f":"SUMIFS(Deposit!C:C,Deposit!A:A,C108,Deposit!B:B,$F$101)","v":0},{"$f":"D104+D108-E108-G108-H108","v":0},null,null,null,null,null,null,null,null,null,null,{"$f":"I108","v":0}]
[null,null,{"$f":"C108+1","v":"1900-01-01"},{"$f":"SUMIFS(Sales!H:H,Sales!B:B,C109,Sales!E:E,$F$101)","v":0},{"$f":"SUMIFS(Sales!I:I,Sales!B:B,C109,Sales!E:E,$F$101)","v":0},{"$f":"D109-E109","v":0},{"$f":"SUMIFS(Sales!G:G,Sales!B:B,C109,Sales!E:E,$F$101)","v":0},{"$f":"SUMIFS(Deposit!C:C,Deposit!A:A,C109,Deposit!B:B,$F$101)","v":0},{"$f":"I108+D109-E109-G109-H109","v":0},null,null,null,null,null,null,null,null,null,null,{"$f":"I108","v":0}]
[null,null,{"$f":"C109+1","v":"1900-01-02"},{"$f":"SUMIFS(Sales!H:H,Sales!B:B,C110,Sales!E:E,$F$101)","v":0},{"$f":"SUMIFS(Sales!I:I,Sales!B:B,C110,Sales!E:E,$F$101)","v":0},{"$f":"D110-E110","v":0},{"$f":"SUMIFS(Sales!G:G,Sales!B:B,C110,Sales!E:E,$F$101)","v":0},{"$f":"SUMIFS(Deposit!C:C,Deposit!A:A,C110,Deposit!B:B,$F$101)","v":0},{"$f":"I109+D110-E110-G110-H110","v":0}]
[null,null,"1900-01-03",{"$f":"SUMIFS(Sales!H:H,Sales!B:B,C111,Sales!E:E,$F$101)","v":0},{"$f":"SUMIFS(Sales!I:I,Sales!B:B,C111,Sales!E:E,$F$101)","v":0},0,{"$f":"SUMIFS(Sales!G:G,Sales!B:B,C111,Sales!E:E,$F$101)","v":0},{"$f":"SUMIFS(Deposit!C:C,Deposit!A:A,C111,Deposit!B:B,$F$101)","v":0},0]
[null,null,"1900-01-04",{"$f":"SUMIFS(Sales!H:H,Sales!B:B,C112,Sales!E:E,$F$101)","v":0},{"$f":"SUMIFS(Sales!I:I,Sales!B:B,C112,Sales!E:E,$F$101)","v":0},0,{"$f":"SUMIFS(Sales!G:G,Sales!B:B,C112,Sales!E:E,$F$101)","v":0},{"$f":"SUMIFS(Deposit!C:C,Deposit!A:A,C112,Deposit!B:B,$F$101)","v":0},0]
[null,null,"1900-01-05",{"$f":"SUMIFS(Sales!H:H,Sales!B:B,C113,Sales!E:E,$F$101)","v":0},{"$f":"SUMIFS(Sales!I:I,Sales!B:B,C113,Sales!E:E,$F$101)","v":0},0,{"$f":"SUMIFS(Sales!G:G,Sales!B:B,C113,Sales!E:E,$F$101)","v":0},{"$f":"SUMIFS(Deposit!C:C,Deposit!A:A,C113,Deposit!B:B,$F$101)","v":0},0]
[null,null,"1900-01-06",{"$f":"SUMIFS(Sales!H:H,Sales!B:B,C114,Sales!E:E,$F$101)","v":0},{"$f":"SUMIFS(Sales!I:I,Sales!B:B,C114,Sales!E:E,$F$101)","v":0},0,{"$f":"SUMIFS(Sales!G:G,Sales!B:B,C114,Sales!E:E,$F$101)","v":0},{"$f":"SUMIFS(Deposit!C:C,Deposit!A:A,C114,Deposit!B:B,$F$101)","v":0},0]
[null,null,"1900-01-07",{"$f":"SUMIFS(Sales!H:H,Sales!B:B,C115,Sales!E:E,$F$101)","v":0},{"$f":"SUMIFS(Sales!I:I,Sales!B:B,C115,Sales!E:E,$F$101)","v":0},0,{"$f":"SUMIFS(Sales!G:G,Sales!B:B,C115,Sales!E:E,$F$101)","v":0},{"$f":"SUMIFS(Deposit!C:C,Deposit!A:A,C115,Deposit!B:B,$F$101)","v":0},0]
[null,null,"1900-01-08",{"$f":"SUMIFS(Sales!H:H,Sales!B:B,C116,Sales!E:E,$F$101)","v":0},{"$f":"SUMIFS(Sales!I:I,Sales!B:B,C116,Sales!E:E,$F$101)","v":0},0,{"$f":"SUMIFS(Sales!G:G,Sales!B:B,C116,Sales!E:E,$F$101)","v":0},{"$f":"SUMIFS(Deposit!C:C,Deposit!A:A,C116,Deposit!B:B,$F$101)","v":0},0]
[null,null,"1900-01-09",{"$f":"SUMIFS(Sales!H:H,Sales!B:B,C117,Sales!E:E,$F$101)","v":0},{"$f":"SUMIFS(Sales!I:I,Sales!B:B,C117,Sales!E:E,$F$101)","v":0},0,{"$f":"SUMIFS(Sales!G:G,Sales!B:B,C117,Sales!E:E,$F$101)","v":0},{"$f":"SUMIFS(Deposit!C:C,Deposit!A:A,C117,Deposit!B:B,$F$101)","v":0},0]
[null,null,"1900-01-10",{"$f":"SUMIFS(Sales!H:H,Sales!B:B,C118,Sales!E:E,$F$101)","v":0},{"$f":"SUMIFS(Sales!I:I,Sales!B:B,C118,Sales!E:E,$F$101)","v":0},0,{"$f":"SUMIFS(Sales!G:G,Sales!B:B,C118,Sales!E:E,$F$101)","v":0},{"$f":"SUMIFS(Deposit!C:C,Deposit!A:A,C118,Deposit!B:B,$F$101)","v":0},0]
[null,null,"1900-01-11",{"$f":"SUMIFS(Sales!H:H,Sales!B:B,C119,Sales!E:E,$F$101)","v":0},{"$f":"SUMIFS(Sales!I:I,Sales!B:B,C119,Sales!E:E,$F$101)","v":0},0,{"$f":"SUMIFS(Sales!G:G,Sales!B:B,C119,Sales!E:E,$F$101)","v":0},{"$f":"SUMIFS(Deposit!C:C,Deposit!A:A,C119,Deposit!B:B,$F$101)","v":0},0]
[null,null,"1900-01-12",{"$f":"SUMIFS(Sales!H:H,Sales!B:B,C120,Sales!E:E,$F$101)","v":0},{"$f":"SUMIFS(Sales!I:I,Sales!B:B,C120,Sales!E:E,$F$101)","v":0},0,{"$f":"SUMIFS(Sales!G:G,Sales!B:B,C120,Sales!E:E,$F$101)","v":0},{"$f":"SUMIFS(Deposit!C:C,Deposit!A:A,C120,Deposit!B:B,$F$101)","v":0},0]
[null,null,"1900-01-13",{"$f":"SUMIFS(Sales!H:H,Sales!B:B,C121,Sales!E:E,$F$101)","v":0},{"$f":"SUMIFS(Sales!I:I,Sales!B:B,C121,Sales!E:E,$F$101)","v":0},0,{"$f":"SUMIFS(Sales!G:G,Sales!B:B,C121,Sales!E:E,$F$101)","v":0},{"$f":"SUMIFS(Deposit!C:C,Deposit!A:A,C121,Deposit!B:B,$F$101)","v":0},0]
[null,null,"1900-01-14",{"$f":"SUMIFS(Sales!H:H,Sales!B:B,C122,Sales!E:E,$F$101)","v":0},{"$f":"SUMIFS(Sales!I:I,Sales!B:B,C122,Sales!E:E,$F$101)","v":0},0,{"$f":"SUMIFS(Sales!G:G,Sales!B:B,C122,Sales!E:E,$F$101)","v":0},{"$f":"SUMIFS(Deposit!C:C,Deposit!A:A,C122,Deposit!B:B,$F$101)","v":0},0]
[null,null,"1900-01-15",{"$f":"SUMIFS(Sales!H:H,Sales!B:B,C123,Sales!E:E,$F$101)","v":0},{"$f":"SUMIFS(Sales!I:I,Sales!B:B,C123,Sales!E:E,$F$101)","v":0},0,{"$f":"SUMIFS(Sales!G:G,Sales!B:B,C123,Sales!E:E,$F$101)","v":0},{"$f":"SUMIFS(Deposit!C:C,Deposit!A:A,C123,Deposit!B:B,$F$101)","v":0},0]
[null,null,"1900-01-16",{"$f":"SUMIFS(Sales!H:H,Sales!B:B,C124,Sales!E:E,$F$101)","v":0},{"$f":"SUMIFS(Sales!I:I,Sales!B:B,C124,Sales!E:E,$F$101)","v":0},0,{"$f":"SUMIFS(Sales!G:G,Sales!B:B,C124,Sales!E:E,$F$101)","v":0},{"$f":"SUMIFS(Deposit!C:C,Deposit!A:A,C124,Deposit!B:B,$F$101)","v":0},0]
[null,null,"1900-01-17",{"$f":"SUMIFS(Sales!H:H,Sales!B:B,C125,Sales!E:E,$F$101)","v":0},{"$f":"SUMIFS(Sales!I:I,Sales!B:B,C125,Sales!E:E,$F$101)","v":0},0,{"$f":"SUMIFS(Sales!G:G,Sales!B:B,C125,Sales!E:E,$F$101)","v":0},{"$f":"SUMIFS(Deposit!C:C,Deposit!A:A,C125,Deposit!B:B,$F$101)","v":0},0]
[null,null,"1900-01-18",{"$f":"SUMIFS(Sales!H:H,Sales!B:B,C126,Sales!E:E,$F$101)","v":0},{"$f":"SUMIFS(Sales!I:I,Sales!B:B,C126,Sales!E:E,$F$101)","v":0},0,{"$f":"SUMIFS(Sales!G:G,Sales!B:B,C126,Sales!E:E,$F$101)","v":0},{"$f":"SUMIFS(Deposit!C:C,Deposit!A:A,C126,Deposit!B:B,$F$101)","v":0},0]
[null,null,"1900-01-19",{"$f":"SUMIFS(Sales!H:H,Sales!B:B,C127,Sales!E:E,$F$101)","v":0},{"$f":"SUMIFS(Sales!I:I,Sales!B:B,C127,Sales!E:E,$F$101)","v":0},0,{"$f":"SUMIFS(Sales!G:G,Sales!B:B,C127,Sales!E:E,$F$101)","v":0},{"$f":"SUMIFS(Deposit!C:C,Deposit!A:A,C127,Deposit!B:B,$F$101)","v":0},0]
[null,null,"1900-01-20",{"$f":"SUMIFS(Sales!H:H,Sales!B:B,C128,Sales!E:E,$F$101)","v":0},{"$f":"SUMIFS(Sales!I:I,Sales!B:B,C128,Sales!E:E,$F$101)","v":0},0,{"$f":"SUMIFS(Sales!G:G,Sales!B:B,C128,Sales!E:E,$F$101)","v":0},{"$f":"SUMIFS(Deposit!C:C,Deposit!A:A,C128,Deposit!B:B,$F$101)","v":0},0]
[null,null,"1900-01-21",{"$f":"SUMIFS(Sales!H:H,Sales!B:B,C129,Sales!E:E,$F$101)","v":0},{"$f":"SUMIFS(Sales!I:I,Sales!B:B,C129,Sales!E:E,$F$101)","v":0},0,{"$f":"SUMIFS(Sales!G:G,Sales!B:B,C129,Sales!E:E,$F$101)","v":0},{"$f":"SUMIFS(Deposit!C:C,Deposit!A:A,C129,Deposit!B:B,$F$101)","v":0},0]
[null,null,"1900-01-22",{"$f":"SUMIFS(Sales!H:H,Sales!B:B,C130,Sales!E:E,$F$101)","v":0},{"$f":"SUMIFS(Sales!I:I,Sales!B:B,C130,Sales!E:E,$F$101)","v":0},0,{"$f":"SUMIFS(Sales!G:G,Sales!B:B,C130,Sales!E:E,$F$101)","v":0},{"$f":"SUMIFS(Deposit!C:C,Deposit!A:A,C130,Deposit!B:B,$F$101)","v":0},0]
[null,null,"1900-01-23",{"$f":"SUMIFS(Sales!H:H,Sales!B:B,C131,Sales!E:E,$F$101)","v":0},{"$f":"SUMIFS(Sales!I:I,Sales!B:B,C131,Sales!E:E,$F$101)","v":0},0,{"$f":"SUMIFS(Sales!G:G,Sales!B:B,C131,Sales!E:E,$F$101)","v":0},{"$f":"SUMIFS(Deposit!C:C,Deposit!A:A,C131,Deposit!B:B,$F$101)","v":0},0]
[null,null,"1900-01-24",{"$f":"SUMIFS(Sales!H:H,Sales!B:B,C132,Sales!E:E,$F$101)","v":0},{"$f":"SUMIFS(Sales!I:I,Sales!B:B,C132,Sales!E:E,$F$101)","v":0},0,{"$f":"SUMIFS(Sales!G:G,Sales!B:B,C132,Sales!E:E,$F$101)","v":0},{"$f":"SUMIFS(Deposit!C:C,Deposit!A:A,C132,Deposit!B:B,$F$101)","v":0},0]
[null,null,"1900-01-25",{"$f":"SUMIFS(Sales!H:H,Sales!B:B,C133,Sales!E:E,$F$101)","v":0},{"$f":"SUMIFS(Sales!I:I,Sales!B:B,C133,Sales!E:E,$F$101)","v":0},0,{"$f":"SUMIFS(Sales!G:G,Sales!B:B,C133,Sales!E:E,$F$101)","v":0},{"$f":"SUMIFS(Deposit!C:C,Deposit!A:A,C133,Deposit!B:B,$F$101)","v":0},0]
[null,null,"1900-01-26",{"$f":"SUMIFS(Sales!H:H,Sales!B:B,C134,Sales!E:E,$F$101)","v":0},{"$f":"SUMIFS(Sales!I:I,Sales!B:B,C134,Sales!E:E,$F$101)","v":0},0,{"$f":"SUMIFS(Sales!G:G,Sales!B:B,C134,Sales!E:E,$F$101)","v":0},{"$f":"SUMIFS(Deposit!C:C,Deposit!A:A,C134,Deposit!B:B,$F$101)","v":0},0]
[null,null,"1900-01-27",{"$f":"SUMIFS(Sales!H:H,Sales!B:B,C135,Sales!E:E,$F$101)","v":0},{"$f":"SUMIFS(Sales!I:I,Sales!B:B,C135,Sales!E:E,$F$101)","v":0},0,{"$f":"SUMIFS(Sales!G:G,Sales!B:B,C135,Sales!E:E,$F$101)","v":0},{"$f":"SUMIFS(Deposit!C:C,Deposit!A:A,C135,Deposit!B:B,$F$101)","v":0},0]
[null,null,"1900-01-28",{"$f":"SUMIFS(Sales!H:H,Sales!B:B,C136,Sales!E:E,$F$101)","v":0},{"$f":"SUMIFS(Sales!I:I,Sales!B:B,C136,Sales!E:E,$F$101)","v":0},0,{"$f":"SUMIFS(Sales!G:G,Sales!B:B,C136,Sales!E:E,$F$101)","v":0},{"$f":"SUMIFS(Deposit!C:C,Deposit!A:A,C136,Deposit!B:B,$F$101)","v":0},0]
[null,null,"1900-01-29",{"$f":"SUMIFS(Sales!H:H,Sales!B:B,C137,Sales!E:E,$F$101)","v":0},{"$f":"SUMIFS(Sales!I:I,Sales!B:B,C137,Sales!E:E,$F$101)","v":0},0,{"$f":"SUMIFS(Sales!G:G,Sales!B:B,C137,Sales!E:E,$F$101)","v":0},{"$f":"SUMIFS(Deposit!C:C,Deposit!A:A,C137,Deposit!B:B,$F$101)","v":0},0]
[null,null,"1900-01-30",{"$f":"SUMIFS(Sales!H:H,Sales!B:B,C138,Sales!E:E,$F$101)","v":0},{"$f":"SUMIFS(Sales!I:I,Sales!B:B,C138,Sales!E:E,$F$101)","v":0},0,{"$f":"SUMIFS(Sales!G:G,Sales!B:B,C138,Sales!E:E,$F$101)","v":0},{"$f":"SUMIFS(Deposit!C:C,Deposit!A:A,C138,Deposit!B:B,$F$101)","v":0},0]
[]
[]
[]
[]
[]
[]
[]
[]
[]
[]
[]
[null,null,null,null,"كـــــــشــــــــف حــــســـــاب"]
[]
[null,null,null,null,")",{"$f":"C10","v":0},"("]
[]
[null,null,"بيان","رصيد أول","المسحوبات","الخصم","الصافي","السدادات","رصيد آخر"]
[null,null,"قيمة",{"$f":"D24","v":0},{"$f":"SUM(D159:D189)","v":0},{"$f":"SUM(E159:E189)","v":0},{"$f":"SUM(F159:F189)","v":0},{"$f":"SUM(G159:H189)","v":0},{"$f":"D155+E155-F155-H155","v":0}]
[]
[null,null,"التاريخ","حركة المبيعات",null,null,"حركة التسديدات"]
[null,null,null,"المسحوبات","الخصم","الصافي","سداد بيع","سداد مستحقات","رصيد اليوم"]
[null,null,{"$f":"Coding!D4","v":"00:00:00"},{"$f":"SUMIFS(Sales!H:H,Sales!B:B,C159,Sales!E:E,$F$152)","v":0},{"$f":"SUMIFS(Sales!I:I,Sales!B:B,C159,Sales!E:E,$F$152)","v":0},{"$f":"D159-E159","v":0},{"$f":"SUMIFS(Sales!G:G,Sales!B:B,C159,Sales!E:E,$F$152)","v":0},{"$f":"SUMIFS(Deposit!C:C,Deposit!A:A,C159,Deposit!B:B,$F$152)","v":0},{"$f":"D155+D159-E159-G159-H159","v":0}]
[null,null,{"$f":"C159+1","v":"1900-01-01"},{"$f":"SUMIFS(Sales!H:H,Sales!B:B,C160,Sales!E:E,$F$152)","v":0},{"$f":"SUMIFS(Sales!I:I,Sales!B:B,C160,Sales!E:E,$F$152)","v":0},{"$f":"D160-E160","v":0},{"$f":"SUMIFS(Sales!G:G,Sales!B:B,C160,Sales!E:E,$F$152)","v":0},{"$f":"SUMIFS(Deposit!C:C,Deposit!A:A,C160,Deposit!B:B,$F$152)","v":0},{"$f":"I159+D160-E160-G160-H160","v":0}]
[null,null,{"$f":"C160+1","v":"1900-01-02"},{"$f":"SUMIFS(Sales!H:H,Sales!B:B,C161,Sales!E:E,$F$152)","v":0},{"$f":"SUMIFS(Sales!I:I,Sales!B:B,C161,Sales!E:E,$F$152)","v":0},0,{"$f":"SUMIFS(Sales!G:G,Sales!B:B,C161,Sales!E:E,$F$152)","v":0},{"$f":"SUMIFS(Deposit!C:C,Deposit!A:A,C161,Deposit!B:B,$F$152)","v":0},{"$f":"I160+D161-E161-G161-H161","v":0}]
[null,null,"1900-01-03",{"$f":"SUMIFS(Sales!H:H,Sales!B:B,C162,Sales!E:E,$F$152)","v":0},{"$f":"SUMIFS(Sales!I:I,Sales!B:B,C162,Sales!E:E,$F$152)","v":0},0,{"$f":"SUMIFS(Sales!G:G,Sales!B:B,C162,Sales!E:E,$F$152)","v":0},{"$f":"SUMIFS(Deposit!C:C,Deposit!A:A,C162,Deposit!B:B,$F$152)","v":0},0]
[null,null,"1900-01-04",{"$f":"SUMIFS(Sales!H:H,Sales!B:B,C163,Sales!E:E,$F$152)","v":0},{"$f":"SUMIFS(Sales!I:I,Sales!B:B,C163,Sales!E:E,$F$152)","v":0},0,{"$f":"SUMIFS(Sales!G:G,Sales!B:B,C163,Sales!E:E,$F$152)","v":0},{"$f":"SUMIFS(Deposit!C:C,Deposit!A:A,C163,Deposit!B:B,$F$152)","v":0},0]
[null,null,"1900-01-05",{"$f":"SUMIFS(Sales!H:H,Sales!B:B,C164,Sales!E:E,$F$152)","v":0},{"$f":"SUMIFS(Sales!I:I,Sales!B:B,C164,Sales!E:E,$F$152)","v":0},0,{"$f":"SUMIFS(Sales!G:G,Sales!B:B,C164,Sales!E:E,$F$152)","v":0},{"$f":"SUMIFS(Deposit!C:C,Deposit!A:A,C164,Deposit!B:B,$F$152)","v":0},0]
[null,null,"1900-01-06",{"$f":"SUMIFS(Sales!H:H,Sales!B:B,C165,Sales!E:E,$F$152)","v":0},{"$f":"SUMIFS(Sales!I:I,Sales!B:B,C165,Sales!E:E,$F$152)","v":0},0,{"$f":"SUMIFS(Sales!G:G,Sales!B:B,C165,Sales!E:E,$F$152)","v":0},{"$f":"SUMIFS(Deposit!C:C,Deposit!A:A,C165,Deposit!B:B,$F$152)","v":0},0]
[null,null,"1900-01-07",{"$f":"SUMIFS(Sales!H:H,Sales!B:B,C166,Sales!E:E,$F$152)","v":0},{"$f":"SUMIFS(Sales!I:I,Sales!B:B,C166,Sales!E:E,$F$152)","v":0},0,{"$f":"SUMIFS(Sales!G:G,Sales!B:B,C166,Sales!E:E,$F$152)","v":0},{"$f":"SUMIFS(Deposit!C:C,Deposit!A:A,C166,Deposit!B:B,$F$152)","v":0},0]
[null,null,"1900-01-08",{"$f":"SUMIFS(Sales!H:H,Sales!B:B,C167,Sales!E:E,$F$152)","v":0},{"$f":"SUMIFS(Sales!I:I,Sales!B:B,C167,Sales!E:E,$F$152)","v":0},0,{"$f":"SUMIFS(Sales!G:G,Sales!B:B,C167,Sales!E:E,$F$152)","v":0},{"$f":"SUMIFS(Deposit!C:C,Deposit!A:A,C167,Deposit!B:B,$F$152)","v":0},0]
[null,null,"1900-01-09",{"$f":"SUMIFS(Sales!H:H,Sales!B:B,C168,Sales!E:E,$F$152)","v":0},{"$f":"SUMIFS(Sales!I:I,Sales!B:B,C168,Sales!E:E,$F$152)","v":0},0,{"$f":"SUMIFS(Sales!G:G,Sales!B:B,C168,Sales!E:E,$F$152)","v":0},{"$f":"SUMIFS(Deposit!C:C,Deposit!A:A,C168,Deposit!B:B,$F$152)","v":0},0]
[null,null,"1900-01-10",{"$f":"SUMIFS(Sales!H:H,Sales!B:B,C169,Sales!E:E,$F$152)","v":0},{"$f":"SUMIFS(Sales!I:I,Sales!B:B,C169,Sales!E:E,$F$152)","v":0},0,{"$f":"SUMIFS(Sales!G:G,Sales!B:B,C169,Sales!E:E,$F$152)","v":0},{"$f":"SUMIFS(Deposit!C:C,Deposit!A:A,C169,Deposit!B:B,$F$152)","v":0},0]
[null,null,"1900-01-11",{"$f":"SUMIFS(Sales!H:H,Sales!B:B,C170,Sales!E:E,$F$152)","v":0},{"$f":"SUMIFS(Sales!I:I,Sales!B:B,C170,Sales!E:E,$F$152)","v":0},0,{"$f":"SUMIFS(Sales!G:G,Sales!B:B,C170,Sales!E:E,$F$152)","v":0},{"$f":"SUMIFS(Deposit!C:C,Deposit!A:A,C170,Deposit!B:B,$F$152)","v":0},0]
[null,null,"1900-01-12",{"$f":"SUMIFS(Sales!H:H,Sales!B:B,C171,Sales!E:E,$F$152)","v":0},{"$f":"SUMIFS(Sales!I:I,Sales!B:B,C171,Sales!E:E,$F$152)","v":0},0,{"$f":"SUMIFS(Sales!G:G,Sales!B:B,C171,Sales!E:E,$F$152)","v":0},{"$f":"SUMIFS(Deposit!C:C,Deposit!A:A,C171,Deposit!B:B,$F$152)","v":0},0]
[null,null,"1900-01-13",{"$f":"SUMIFS(Sales!H:H,Sales!B:B,C172,Sales!E:E,$F$152)","v":0},{"$f":"SUMIFS(Sales!I:I,Sales!B:B,C172,Sales!E:E,$F$152)","v":0},0,{"$f":"SUMIFS(Sales!G:G,Sales!B:B,C172,Sales!E:E,$F$152)","v":0},{"$f":"SUMIFS(Deposit!C:C,Deposit!A:A,C172,Deposit!B:B,$F$152)","v":0},0]
[null,null,"1900-01-14",{"$f":"SUMIFS(Sales!H:H,Sales!B:B,C173,Sales!E:E,$F$152)","v":0},{"$f":"SUMIFS(Sales!I:I,Sales!B:B,C173,Sales!E:E,$F$152)","v":0},0,{"$f":"SUMIFS(Sales!G:G,Sales!B:B,C173,Sales!E:E,$F$152)","v":0},{"$f":"SUMIFS(Deposit!C:C,Deposit!A:A,C173,Deposit!B:B,$F$152)","v":0},0]
[null,null,"1900-01-15",{"$f":"SUMIFS(Sales!H:H,Sales!B:B,C174,Sales!E:E,$F$152)","v":0},{"$f":"SUMIFS(Sales!I:I,Sales!B:B,C174,Sales!E:E,$F$152)","v":0},0,{"$f":"SUMIFS(Sales!G:G,Sales!B:B,C174,Sales!E:E,$F$152)","v":0},{"$f":"SUMIFS(Deposit!C:C,Deposit!A:A,C174,Deposit!B:B,$F$152)","v":0},0]
[null,null,"1900-01-16",{"$f":"SUMIFS(Sales!H:H,Sales!B:B,C175,Sales!E:E,$F$152)","v":0},{"$f":"SUMIFS(Sales!I:I,Sales!B:B,C175,Sales!E:E,$F$152)","v":0},0,{"$f":"SUMIFS(Sales!G:G,Sales!B:B,C175,Sales!E:E,$F$152)","v":0},{"$f":"SUMIFS(Deposit!C:C,Deposit!A:A,C175,Deposit!B:B,$F$152)","v":0},0]
[null,null,"1900-01-17",{"$f":"SUMIFS(Sales!H:H,Sales!B:B,C176,Sales!E:E,$F$152)","v":0},{"$f":"SUMIFS(Sales!I:I,Sales!B:B,C176,Sales!E:E,$F$152)","v":0},0,{"$f":"SUMIFS(Sales!G:G,Sales!B:B,C176,Sales!E:E,$F$152)","v":0},{"$f":"SUMIFS(Deposit!C:C,Deposit!A:A,C176,Deposit!B:B,$F$152)","v":0},0]
[null,null,"1900-01-18",{"$f":"SUMIFS(Sales!H:H,Sales!B:B,C177,Sales!E:E,$F$152)","v":0},{"$f":"SUMIFS(Sales!I:I,Sales!B:B,C177,Sales!E:E,$F$152)","v":0},0,{"$f":"SUMIFS(Sales!G:G,Sales!B:B,C177,Sales!E:E,$F$152)","v":0},{"$f":"SUMIFS(Deposit!C:C,Deposit!A:A,C177,Deposit!B:B,$F$152)","v":0},0]
[null,null,"1900-01-19",{"$f":"SUMIFS(Sales!H:H,Sales!B:B,C178,Sales!E:E,$F$152)","v":0},{"$f":"SUMIFS(Sales!I:I,Sales!B:B,C178,Sales!E:E,$F$152)","v":0},0,{"$f":"SUMIFS(Sales!G:G,Sales!B:B,C178,Sales!E:E,$F$152)","v":0},{"$f":"SUMIFS(Deposit!C:C,Deposit!A:A,C178,Deposit!B:B,$F$152)","v":0},0]
[null,null,"1900-01-20",{"$f":"SUMIFS(Sales!H:H,Sales!B:B,C179,Sales!E:E,$F$152)","v":0},{"$f":"SUMIFS(Sales!I:I,Sales!B:B,C179,Sales!E:E,$F$152)","v":0},0,{"$f":"SUMIFS(Sales!G:G,Sales!B:B,C179,Sales!E:E,$F$152)","v":0},{"$f":"SUMIFS(Deposit!C:C,Deposit!A:A,C179,Deposit!B:B,$F$152)","v":0},0]
[null,null,"1900-01-21",{"$f":"SUMIFS(Sales!H:H,Sales!B:B,C180,Sales!E:E,$F$152)","v":0},{"$f":"SUMIFS(Sales!I:I,Sales!B:B,C180,Sales!E:E,$F$152)","v":0},0,{"$f":"SUMIFS(Sales!G:G,Sales!B:B,C180,Sales!E:E,$F$152)","v":0},{"$f":"SUMIFS(Deposit!C:C,Deposit!A:A,C180,Deposit!B:B,$F$152)","v":0},0]
[null,null,"1900-01-22",{"$f":"SUMIFS(Sales!H:H,Sales!B:B,C181,Sales!E:E,$F$152)","v":0},{"$f":"SUMIFS(Sales!I:I,Sales!B:B,C181,Sales!E:E,$F$152)","v":0},0,{"$f":"SUMIFS(Sales!G:G,Sales!B:B,C181,Sales!E:E,$F$152)","v":0},{"$f":"SUMIFS(Deposit!C:C,Deposit!A:A,C181,Deposit!B:B,$F$152)","v":0},0]
[null,null,"1900-01-23",{"$f":"SUMIFS(Sales!H:H,Sales!B:B,C182,Sales!E:E,$F$152)","v":0},{"$f":"SUMIFS(Sales!I:I,Sales!B:B,C182,Sales!E:E,$F$152)","v":0},0,{"$f":"SUMIFS(Sales!G:G,Sales!B:B,C182,Sales!E:E,$F$152)","v":0},{"$f":"SUMIFS(Deposit!C:C,Deposit!A:A,C182,Deposit!B:B,$F$152)","v":0},0]
[null,null,"1900-01-24",{"$f":"SUMIFS(Sales!H:H,Sales!B:B,C183,Sales!E:E,$F$152)","v":0},{"$f":"SUMIFS(Sales!I:I,Sales!B:B,C183,Sales!E:E,$F$152)","v":0},0,{"$f":"SUMIFS(Sales!G:G,Sales!B:B,C183,Sales!E:E,$F$152)","v":0},{"$f":"SUMIFS(Deposit!C:C,Deposit!A:A,C183,Deposit!B:B,$F$152)","v":0},0]
[null,null,"1900-01-25",{"$f":"SUMIFS(Sales!H:H,Sales!B:B,C184,Sales!E:E,$F$152)","v":0},{"$f":"SUMIFS(Sales!I:I,Sales!B:B,C184,Sales!E:E,$F$152)","v":0},0,{"$f":"SUMIFS(Sales!G:G,Sales!B:B,C184,Sales!E:E,$F$152)","v":0},{"$f":"SUMIFS(Deposit!C:C,Deposit!A:A,C184,Deposit!B:B,$F$152)","v":0},0]
[null,null,"1900-01-26",{"$f":"SUMIFS(Sales!H:H,Sales!B:B,C185,Sales!E:E,$F$152)","v":0},{"$f":"SUMIFS(Sales!I:I,Sales!B:B,C185,Sales!E:E,$F$152)","v":0},0,{"$f":"SUMIFS(Sales!G:G,Sales!B:B,C185,Sales!E:E,$F$152)","v":0},{"$f":"SUMIFS(Deposit!C:C,Deposit!A:A,C185,Deposit!B:B,$F$152)","v":0},0]
[null,null,"1900-01-27",{"$f":"SUMIFS(Sales!H:H,Sales!B:B,C186,Sales!E:E,$F$152)","v":0},{"$f":"SUMIFS(Sales!I:I,Sales!B:B,C186,Sales!E:E,$F$152)","v":0},0,{"$f":"SUMIFS(Sales!G:G,Sales!B:B,C186,Sales!E:E,$F$152)","v":0},{"$f":"SUMIFS(Deposit!C:C,Deposit!A:A,C186,Deposit!B:B,$F$152)","v":0},0]
[null,null,"1900-01-28",{"$f":"SUMIFS(Sales!H:H,Sales!B:B,C187,Sales!E:E,$F$152)","v":0},{"$f":"SUMIFS(Sales!I:I,Sales!B:B,C187,Sales!E:E,$F$152)","v":0},0,{"$f":"SUMIFS(Sales!G:G,Sales!B:B,C187,Sales!E:E,$F$152)","v":0},{"$f":"SUMIFS(Deposit!C:C,Deposit!A:A,C187,Deposit!B:B,$F$152)","v":0},0]
[null,null,"1900-01-29",{"$f":"SUMIFS(Sales!H:H,Sales!B:B,C188,Sales!E:E,$F$152)","v":0},{"$f":"SUMIFS(Sales!I:I,Sales!B:B,C188,Sales!E:E,$F$152)","v":0},0,{"$f":"SUMIFS(Sales!G:G,Sales!B:B,C188,Sales!E:E,$F$152)","v":0},{"$f":"SUMIFS(Deposit!C:C,Deposit!A:A,C188,Deposit!B:B,$F$152)","v":0},0]
[null,null,"1900-01-30",{"$f":"SUMIFS(Sales!H:H,Sales!B:B,C189,Sales!E:E,$F$152)","v":0},{"$f":"SUMIFS(Sales!I:I,Sales!B:B,C189,Sales!E:E,$F$152)","v":0},0,{"$f":"SUMIFS(Sales!G:G,Sales!B:B,C189,Sales!E:E,$F$152)","v":0},{"$f":"SUMIFS(Deposit!C:C,Deposit!A:A,C189,Deposit!B:B,$F$152)","v":0},0]
[]
[]
[]
[]
[]
[]
[]
[]
[]
[]
[null,null,null,null,"كـــــــشــــــــف حــــســـــاب"]
[]
[null,null,null,null,")",{"$f":"C11","v":0},"("]
[]
[null,null,"بيان","رصيد أول","المسحوبات","الخصم","الصافي","السدادات","رصيد آخر"]
[null,null,"قيمة",{"$f":"D25","v":0},{"$f":"SUM(D209:D239)","v":0},{"$f":"SUM(E209:E239)","v":0},{"$f":"SUM(F209:F239)","v":0},{"$f":"SUM(G209:H239)","v":0},{"$f":"D205+E205-F205-H205","v":0}]
[]
[null,null,"التاريخ","حركة المبيعات",null,null,"حركة التسديدات"]
[null,null,null,"المسحوبات","الخصم","الصافي","سداد بيع","سداد مستحقات","رصيد اليوم"]
[null,null,{"$f":"Coding!D4","v":"00:00:00"},{"$f":"SUMIFS(Sales!H:H,Sales!B:B,C209,Sales!E:E,$F$202)","v":0},{"$f":"SUMIFS(Sales!I:I,Sales!B:B,C209,Sales!E:E,$F$202)","v":0},{"$f":"D209-E209","v":0},{"$f":"SUMIFS(Sales!G:G,Sales!B:B,C209,Sales!E:E,$F$202)","v":0},{"$f":"SUMIFS(Deposit!C:C,Deposit!A:A,C209,Deposit!B:B,$F$202)","v":0},{"$f":"D205+D209-E209-G209-H209","v":0}]
[null,null,{"$f":"C209+1","v":"1900-01-01"},{"$f":"SUMIFS(Sales!H:H,Sales!B:B,C210,Sales!E:E,$F$202)","v":0},{"$f":"SUMIFS(Sales!I:I,Sales!B:B,C210,Sales!E:E,$F$202)","v":0},{"$f":"D210-E210","v":0},{"$f":"SUMIFS(Sales!G:G,Sales!B:B,C210,Sales!E:E,$F$202)","v":0},{"$f":"SUMIFS(Deposit!C:C,Deposit!A:A,C210,Deposit!B:B,$F$202)","v":0},{"$f":"I209+D210-E210-G210-H210","v":0}]
[null,null,{"$f":"C210+1","v":"1900-01-02"},{"$f":"SUMIFS(Sales!H:H,Sales!B:B,C211,Sales!E:E,$F$202)","v":0},{"$f":"SUMIFS(Sales!I:I,Sales!B:B,C211,Sales!E:E,$F$202)","v":0},0,{"$f":"SUMIFS(Sales!G:G,Sales!B:B,C211,Sales!E:E,$F$202)","v":0},{"$f":"SUMIFS(Deposit!C:C,Deposit!A:A,C211,Deposit!B:B,$F$202)","v":0},{"$f":"I210+D211-E211-G211-H211","v":0}]
[null,null,"1900-01-03",{"$f":"SUMIFS(Sales!H:H,Sales!B:B,C212,Sales!E:E,$F$202)","v":0},{"$f":"SUMIFS(Sales!I:I,Sales!B:B,C212,Sales!E:E,$F$202)","v":0},0,{"$f":"SUMIFS(Sales!G:G,Sales!B:B,C212,Sales!E:E,$F$202)","v":0},{"$f":"SUMIFS(Deposit!C:C,Deposit!A:A,C212,Deposit!B:B,$F$202)","v":0},0]
[null,null,"1900-01-04",{"$f":"SUMIFS(Sales!H:H,Sales!B:B,C213,Sales!E:E,$F$202)","v":0},{"$f":"SUMIFS(Sales!I:I,Sales!B:B,C213,Sales!E:E,$F$202)","v":0},0,{"$f":"SUMIFS(Sales!G:G,Sales!B:B,C213,Sales!E:E,$F$202)","v":0},{"$f":"SUMIFS(Deposit!C:C,Deposit!A:A,C213,Deposit!B:B,$F$202)","v":0},0]
[null,null,"1900-01-05",{"$f":"SUMIFS(Sales!H:H,Sales!B:B,C214,Sales!E:E,$F$202)","v":0},{"$f":"SUMIFS(Sales!I:I,Sales!B:B,C214,Sales!E:E,$F$202)","v":0},0,{"$f":"SUMIFS(Sales!G:G,Sales!B:B,C214,Sales!E:E,$F$202)","v":0},{"$f":"SUMIFS(Deposit!C:C,Deposit!A:A,C214,Deposit!B:B,$F$202)","v":0},0]
[null,null,"1900-01-06",{"$f":"SUMIFS(Sales!H:H,Sales!B:B,C215,Sales!E:E,$F$202)","v":0},{"$f":"SUMIFS(Sales!I:I,Sales!B:B,C215,Sales!E:E,$F$202)","v":0},0,{"$f":"SUMIFS(Sales!G:G,Sales!B:B,C215,Sales!E:E,$F$202)","v":0},{"$f":"SUMIFS(Deposit!C:C,Deposit!A:A,C215,Deposit!B:B,$F$202)","v":0},0]
[null,null,"1900-01-07",{"$f":"SUMIFS(Sales!H:H,Sales!B:B,C216,Sales!E:E,$F$202)","v":0},{"$f":"SUMIFS(Sales!I:I,Sales!B:B,C216,Sales!E:E,$F$202)","v":0},0,{"$f":"SUMIFS(Sales!G:G,Sales!B:B,C216,Sales!E:E,$F$202)","v":0},{"$f":"SUMIFS(Deposit!C:C,Deposit!A:A,C216,Deposit!B:B,$F$202)","v":0},0]
[null,null,"1900-01-08",{"$f":"SUMIFS(Sales!H:H,Sales!B:B,C217,Sales!E:E,$F$202)","v":0},{"$f":"SUMIFS(Sales!I:I,Sales!B:B,C217,Sales!E:E,$F$202)","v":0},0,{"$f":"SUMIFS(Sales!G:G,Sales!B:B,C217,Sales!E:E,$F$202)","v":0},{"$f":"SUMIFS(Deposit!C:C,Deposit!A:A,C217,Deposit!B:B,$F$202)","v":0},0]
[null,null,"1900-01-09",{"$f":"SUMIFS(Sales!H:H,Sales!B:B,C218,Sales!E:E,$F$202)","v":0},{"$f":"SUMIFS(Sales!I:I,Sales!B:B,C218,Sales!E:E,$F$202)","v":0},0,{"$f":"SUMIFS(Sales!G:G,Sales!B:B,C218,Sales!E:E,$F$202)","v":0},{"$f":"SUMIFS(Deposit!C:C,Deposit!A:A,C218,Deposit!B:B,$F$202)","v":0},0]
[null,null,"1900-01-10",{"$f":"SUMIFS(Sales!H:H,Sales!B:B,C219,Sales!E:E,$F$202)","v":0},{"$f":"SUMIFS(Sales!I:I,Sales!B:B,C219,Sales!E:E,$F$202)","v":0},0,{"$f":"SUMIFS(Sales!G:G,Sales!B:B,C219,Sales!E:E,$F$202)","v":0},{"$f":"SUMIFS(Deposit!C:C,Deposit!A:A,C219,Deposit!B:B,$F$202)","v":0},0]
[null,null,"1900-01-11",{"$f":"SUMIFS(Sales!H:H,Sales!B:B,C220,Sales!E:E,$F$202)","v":0},{"$f":"SUMIFS(Sales!I:I,Sales!B:B,C220,Sales!E:E,$F$202)","v":0},0,{"$f":"SUMIFS(Sales!G:G,Sales!B:B,C220,Sales!E:E,$F$202)","v":0},{"$f":"SUMIFS(Deposit!C:C,Deposit!A:A,C220,Deposit!B:B,$F$202)","v":0},0]
[null,null,"1900-01-12",{"$f":"SUMIFS(Sales!H:H,Sales!B:B,C221,Sales!E:E,$F$202)","v":0},{"$f":"SUMIFS(Sales!I:I,Sales!B:B,C221,Sales!E:E,$F$202)","v":0},0,{"$f":"SUMIFS(Sales!G:G,Sales!B:B,C221,Sales!E:E,$F$202)","v":0},{"$f":"SUMIFS(Deposit!C:C,Deposit!A:A,C221,Deposit!B:B,$F$202)","v":0},0]
[null,null,"1900-01-13",{"$f":"SUMIFS(Sales!H:H,Sales!B:B,C222,Sales!E:E,$F$202)","v":0},{"$f":"SUMIFS(Sales!I:I,Sales!B:B,C222,Sales!E:E,$F$202)","v":0},0,{"$f":"SUMIFS(Sales!G:G,Sales!B:B,C222,Sales!E:E,$F$202)","v":0},{"$f":"SUMIFS(Deposit!C:C,Deposit!A:A,C222,Deposit!B:B,$F$202)","v":0},0]
[null,null,"1900-01-14",{"$f":"SUMIFS(Sales!H:H,Sales!B:B,C223,Sales!E:E,$F$202)","v":0},{"$f":"SUMIFS(Sales!I:I,Sales!B:B,C223,Sales!E:E,$F$202)","v":0},0,{"$f":"SUMIFS(Sales!G:G,Sales!B:B,C223,Sales!E:E,$F$202)","v":0},{"$f":"SUMIFS(Deposit!C:C,Deposit!A:A,C223,Deposit!B:B,$F$202)","v":0},0]
[null,null,"1900-01-15",{"$f":"SUMIFS(Sales!H:H,Sales!B:B,C224,Sales!E:E,$F$202)","v":0},{"$f":"SUMIFS(Sales!I:I,Sales!B:B,C224,Sales!E:E,$F$202)","v":0},0,{"$f":"SUMIFS(Sales!G:G,Sales!B:B,C224,Sales!E:E,$F$202)","v":0},{"$f":"SUMIFS(Deposit!C:C,Deposit!A:A,C224,Deposit!B:B,$F$202)","v":0},0]
[null,null,"1900-01-16",{"$f":"SUMIFS(Sales!H:H,Sales!B:B,C225,Sales!E:E,$F$202)","v":0},{"$f":"SUMIFS(Sales!I:I,Sales!B:B,C225,Sales!E:E,$F$202)","v":0},0,{"$f":"SUMIFS(Sales!G:G,Sales!B:B,C225,Sales!E:E,$F$202)","v":0},{"$f":"SUMIFS(Deposit!C:C,Deposit!A:A,C225,Deposit!B:B,$F$202)","v":0},0]
[null,null,"1900-01-17",{"$f":"SUMIFS(Sales!H:H,Sales!B:B,C226,Sales!E:E,$F$202)","v":0},{"$f":"SUMIFS(Sales!I:I,Sales!B:B,C226,Sales!E:E,$F$202)","v":0},0,{"$f":"SUMIFS(Sales!G:G,Sales!B:B,C226,Sales!E:E,$F$202)","v":0},{"$f":"SUMIFS(Deposit!C:C,Deposit!A:A,C226,Deposit!B:B,$F$202)","v":0},0]
[null,null,"1900-01-18",{"$f":"SUMIFS(Sales!H:H,Sales!B:B,C227,Sales!E:E,$F$202)","v":0},{"$f":"SUMIFS(Sales!I:I,Sales!B:B,C227,Sales!E:E,$F$202)","v":0},0,{"$f":"SUMIFS(Sales!G:G,Sales!B:B,C227,Sales!E:E,$F$202)","v":0},{"$f":"SUMIFS(Deposit!C:C,Deposit!A:A,C227,Deposit!B:B,$F$202)","v":0},0]
[null,null,"1900-01-19",{"$f":"SUMIFS(Sales!H:H,Sales!B:B,C228,Sales!E:E,$F$202)","v":0},{"$f":"SUMIFS(Sales!I:I,Sales!B:B,C228,Sales!E:E,$F$202)","v":0},0,{"$f":"SUMIFS(Sales!G:G,Sales!B:B,C228,Sales!E:E,$F$202)","v":0},{"$f":"SUMIFS(Deposit!C:C,Deposit!A:A,C228,Deposit!B:B,$F$202)","v":0},0]
[null,null,"1900-01-20",{"$f":"SUMIFS(Sales!H:H,Sales!B:B,C229,Sales!E:E,$F$202)","v":0},{"$f":"SUMIFS(Sales!I:I,Sales!B:B,C229,Sales!E:E,$F$202)","v":0},0,{"$f":"SUMIFS(Sales!G:G,Sales!B:B,C229,Sales!E:E,$F$202)","v":0},{"$f":"SUMIFS(Deposit!C:C,Deposit!A:A,C229,Deposit!B:B,$F$202)","v":0},0]
[null,null,"1900-01-21",{"$f":"SUMIFS(Sales!H:H,Sales!B:B,C230,Sales!E:E,$F$202)","v":0},{"$f":"SUMIFS(Sales!I:I,Sales!B:B,C230,Sales!E:E,$F$202)","v":0},0,{"$f":"SUMIFS(Sales!G:G,Sales!B:B,C230,Sales!E:E,$F$202)","v":0},{"$f":"SUMIFS(Deposit!C:C,Deposit!A:A,C230,Deposit!B:B,$F$202)","v":0},0]
[null,null,"1900-01-22",{"$f":"SUMIFS(Sales!H:H,Sales!B:B,C231,Sales!E:E,$F$202)","v":0},{"$f":"SUMIFS(Sales!I:I,Sales!B:B,C231,Sales!E:E,$F$202)","v":0},0,{"$f":"SUMIFS(Sales!G:G,Sales!B:B,C231,Sales!E:E,$F$202)","v":0},{"$f":"SUMIFS(Deposit!C:C,Deposit!A:A,C231,Deposit!B:B,$F$202)","v":0},0]
[null,null,"1900-01-23",{"$f":"SUMIFS(Sales!H:H,Sales!B:B,C232,Sales!E:E,$F$202)","v":0},{"$f":"SUMIFS(Sales!I:I,Sales!B:B,C232,Sales!E:E,$F$202)","v":0},0,{"$f":"SUMIFS(Sales!G:G,Sales!B:B,C232,Sales!E:E,$F$202)","v":0},{"$f":"SUMIFS(Deposit!C:C,Deposit!A:A,C232,Deposit!B:B,$F$202)","v":0},0]
[null,null,"1900-01-24",{"$f":"SUMIFS(Sales!H:H,Sales!B:B,C233,Sales!E:E,$F$202)","v":0},{"$f":"SUMIFS(Sales!I:I,Sales!B:B,C233,Sales!E:E,$F$202)","v":0},0,{"$f":"SUMIFS(Sales!G:G,Sales!B:B,C233,Sales!E:E,$F$202)","v":0},{"$f":"SUMIFS(Deposit!C:C,Deposit!A:A,C233,Deposit!B:B,$F$202)","v":0},0]
[null,null,"1900-01-25",{"$f":"SUMIFS(Sales!H:H,Sales!B:B,C234,Sales!E:E,$F$202)","v":0},{"$f":"SUMIFS(Sales!I:I,Sales!B:B,C234,Sales!E:E,$F$202)","v":0},0,{"$f":"SUMIFS(Sales!G:G,Sales!B:B,C234,Sales!E:E,$F$202)","v":0},{"$f":"SUMIFS(Deposit!C:C,Deposit!A:A,C234,Deposit!B:B,$F$202)","v":0},0]
[null,null,"1900-01-26",{"$f":"SUMIFS(Sales!H:H,Sales!B:B,C235,Sales!E:E,$F$202)","v":0},{"$f":"SUMIFS(Sales!I:I,Sales!B:B,C235,Sales!E:E,$F$202)","v":0},0,{"$f":"SUMIFS(Sales!G:G,Sales!B:B,C235,Sales!E:E,$F$202)","v":0},{"$f":"SUMIFS(Deposit!C:C,Deposit!A:A,C235,Deposit!B:B,$F$202)","v":0},0]
[null,null,"1900-01-27",{"$f":"SUMIFS(Sales!H:H,Sales!B:B,C236,Sales!E:E,$F$202)","v":0},{"$f":"SUMIFS(Sales!I:I,Sales!B:B,C236,Sales!E:E,$F$202)","v":0},0,{"$f":"SUMIFS(Sales!G:G,Sales!B:B,C236,Sales!E:E,$F$202)","v":0},{"$f":"SUMIFS(Deposit!C:C,Deposit!A:A,C236,Deposit!B:B,$F$202)","v":0},0]
[null,null,"1900-01-28",{"$f":"SUMIFS(Sales!H:H,Sales!B:B,C237,Sales!E:E,$F$202)","v":0},{"$f":"SUMIFS(Sales!I:I,Sales!B:B,C237,Sales!E:E,$F$202)","v":0},0,{"$f":"SUMIFS(Sales!G:G,Sales!B:B,C237,Sales!E:E,$F$202)","v":0},{"$f":"SUMIFS(Deposit!C:C,Deposit!A:A,C237,Deposit!B:B,$F$202)","v":0},0]
[null,null,"1900-01-29",{"$f":"SUMIFS(Sales!H:H,Sales!B:B,C238,Sales!E:E,$F$202)","v":0},{"$f":"SUMIFS(Sales!I:I,Sales!B:B,C238,Sales!E:E,$F$202)","v":0},0,{"$f":"SUMIFS(Sales!G:G,Sales!B:B,C238,Sales!E:E,$F$202)","v":0},{"$f":"SUMIFS(Deposit!C:C,Deposit!A:A,C238,Deposit!B:B,$F$202)","v":0},0]
[null,null,"1900-01-30",{"$f":"SUMIFS(Sales!H:H,Sales!B:B,C239,Sales!E:E,$F$202)","v":0},{"$f":"SUMIFS(Sales!I:I,Sales!B:B,C239,Sales!E:E,$F$202)","v":0},0,{"$f":"SUMIFS(Sales!G:G,Sales!B:B,C239,Sales!E:E,$F$202)","v":0},{"$f":"SUMIFS(Deposit!C:C,Deposit!A:A,C239,Deposit!B:B,$F$202)","v":0},0]
[]
[]
[]
[]
[]
[]
[]
[]
[]
[]
[null,null,null,null,"كـــــــشــــــــف حــــســـــاب"]
[]
[null,null,null,null,")",{"$f":"C12","v":0},"("]
[]
[null,null,"بيان","رصيد أول","المسحوبات","الخصم","الصافي","السدادات","رصيد آخر"]
[null,null,"قيمة",{"$f":"D26","v":0},{"$f":"SUM(D259:D289)","v":0},{"$f":"SUM(E259:E289)","v":0},{"$f":"SUM(F259:F289)","v":0},{"$f":"SUM(G259:H289)","v":0},{"$f":"D255+E255-F255-H255","v":0}]
[]
[null,null,"التاريخ","حركة المبيعات",null,null,"حركة التسديدات"]
[null,null,null,"المسحوبات","الخصم","الصافي","سداد بيع","سداد مستحقات","رصيد اليوم"]
[null,null,{"$f":"Coding!D4","v":"00:00:00"},{"$f":"SUMIFS(Sales!H:H,Sales!B:B,C259,Sales!E:E,$F$252)","v":0},{"$f":"SUMIFS(Sales!I:I,Sales!B:B,C259,Sales!E:E,$F$252)","v":0},{"$f":"D259-E259","v":0},{"$f":"SUMIFS(Sales!G:G,Sales!B:B,C259,Sales!E:E,$F$252)","v":0},{"$f":"SUMIFS(Deposit!C:C,Deposit!A:A,C259,Deposit!B:B,$F$252)","v":0},{"$f":"D255+D259-E259-G259-H259","v":0}]
[null,null,{"$f":"C259+1","v":"1900-01-01"},{"$f":"SUMIFS(Sales!H:H,Sales!B:B,C260,Sales!E:E,$F$252)","v":0},{"$f":"SUMIFS(Sales!I:I,Sales!B:B,C260,Sales!E:E,$F$252)","v":0},{"$f":"D260-E260","v":0},{"$f":"SUMIFS(Sales!G:G,Sales!B:B,C260,Sales!E:E,$F$252)","v":0},{"$f":"SUMIFS(Deposit!C:C,Deposit!A:A,C260,Deposit!B:B,$F$252)","v":0},{"$f":"I259+D260-E260-G260-H260","v":0}]
[null,null,{"$f":"C260+1","v":"1900-01-02"},{"$f":"SUMIFS(Sales!H:H,Sales!B:B,C261,Sales!E:E,$F$252)","v":0},{"$f":"SUMIFS(Sales!I:I,Sales!B:B,C261,Sales!E:E,$F$252)","v":0},0,{"$f":"SUMIFS(Sales!G:G,Sales!B:B,C261,Sales!E:E,$F$252)","v":0},{"$f":"SUMIFS(Deposit!C:C,Deposit!A:A,C261,Deposit!B:B,$F$252)","v":0},{"$f":"I260+D261-E261-G261-H261","v":0}]
[null,null,"1900-01-03",{"$f":"SUMIFS(Sales!H:H,Sales!B:B,C262,Sales!E:E,$F$252)","v":0},{"$f":"SUMIFS(Sales!I:I,Sales!B:B,C262,Sales!E:E,$F$252)","v":0},0,{"$f":"SUMIFS(Sales!G:G,Sales!B:B,C262,Sales!E:E,$F$252)","v":0},{"$f":"SUMIFS(Deposit!C:C,Deposit!A:A,C262,Deposit!B:B,$F$252)","v":0},0]
[null,null,"1900-01-04",{"$f":"SUMIFS(Sales!H:H,Sales!B:B,C263,Sales!E:E,$F$252)","v":0},{"$f":"SUMIFS(Sales!I:I,Sales!B:B,C263,Sales!E:E,$F$252)","v":0},0,{"$f":"SUMIFS(Sales!G:G,Sales!B:B,C263,Sales!E:E,$F$252)","v":0},{"$f":"SUMIFS(Deposit!C:C,Deposit!A:A,C263,Deposit!B:B,$F$252)","v":0},0]
[null,null,"1900-01-05",{"$f":"SUMIFS(Sales!H:H,Sales!B:B,C264,Sales!E:E,$F$252)","v":0},{"$f":"SUMIFS(Sales!I:I,Sales!B:B,C264,Sales!E:E,$F$252)","v":0},0,{"$f":"SUMIFS(Sales!G:G,Sales!B:B,C264,Sales!E:E,$F$252)","v":0},{"$f":"SUMIFS(Deposit!C:C,Deposit!A:A,C264,Deposit!B:B,$F$252)","v":0},0]
[null,null,"1900-01-06",{"$f":"SUMIFS(Sales!H:H,Sales!B:B,C265,Sales!E:E,$F$252)","v":0},{"$f":"SUMIFS(Sales!I:I,Sales!B:B,C265,Sales!E:E,$F$252)","v":0},0,{"$f":"SUMIFS(Sales!G:G,Sales!B:B,C265,Sales!E:E,$F$252)","v":0},{"$f":"SUMIFS(Deposit!C:C,Deposit!A:A,C265,Deposit!B:B,$F$252)","v":0},0]
[null,null,"1900-01-07",{"$f":"SUMIFS(Sales!H:H,Sales!B:B,C266,Sales!E:E,$F$252)","v":0},{"$f":"SUMIFS(Sales!I:I,Sales!B:B,C266,Sales!E:E,$F$252)","v":0},0,{"$f":"SUMIFS(Sales!G:G,Sales!B:B,C266,Sales!E:E,$F$252)","v":0},{"$f":"SUMIFS(Deposit!C:C,Deposit!A:A,C266,Deposit!B:B,$F$252)","v":0},0]
[null,null,"1900-01-08",{"$f":"SUMIFS(Sales!H:H,Sales!B:B,C267,Sales!E:E,$F$252)","v":0},{"$f":"SUMIFS(Sales!I:I,Sales!B:B,C267,Sales!E:E,$F$252)","v":0},0,{"$f":"SUMIFS(Sales!G:G,Sales!B:B,C267,Sales!E:E,$F$252)","v":0},{"$f":"SUMIFS(Deposit!C:C,Deposit!A:A,C267,Deposit!B:B,$F$252)","v":0},0]
[null,null,"1900-01-09",{"$f":"SUMIFS(Sales!H:H,Sales!B:B,C268,Sales!E:E,$F$252)","v":0},{"$f":"SUMIFS(Sales!I:I,Sales!B:B,C268,Sales!E:E,$F$252)","v":0},0,{"$f":"SUMIFS(Sales!G:G,Sales!B:B,C268,Sales!E:E,$F$252)","v":0},{"$f":"SUMIFS(Deposit!C:C,Deposit!A:A,C268,Deposit!B:B,$F$252)","v":0},0]
[null,null,"1900-01-10",{"$f":"SUMIFS(Sales!H:H,Sales!B:B,C269,Sales!E:E,$F$252)","v":0},{"$f":"SUMIFS(Sales!I:I,Sales!B:B,C269,Sales!E:E,$F$252)","v":0},0,{"$f":"SUMIFS(Sales!G:G,Sales!B:B,C269,Sales!E:E,$F$252)","v":0},{"$f":"SUMIFS(Deposit!C:C,Deposit!A:A,C269,Deposit!B:B,$F$252)","v":0},0]
[null,null,"1900-01-11",{"$f":"SUMIFS(Sales!H:H,Sales!B:B,C270,Sales!E:E,$F$252)","v":0},{"$f":"SUMIFS(Sales!I:I,Sales!B:B,C270,Sales!E:E,$F$252)","v":0},0,{"$f":"SUMIFS(Sales!G:G,Sales!B:B,C270,Sales!E:E,$F$252)","v":0},{"$f":"SUMIFS(Deposit!C:C,Deposit!A:A,C270,Deposit!B:B,$F$252)","v":0},0]
[null,null,"1900-01-12",{"$f":"SUMIFS(Sales!H:H,Sales!B:B,C271,Sales!E:E,$F$252)","v":0},{"$f":"SUMIFS(Sales!I:I,Sales!B:B,C271,Sales!E:E,$F$252)","v":0},0,{"$f":"SUMIFS(Sales!G:G,Sales!B:B,C271,Sales!E:E,$F$252)","v":0},{"$f":"SUMIFS(Deposit!C:C,Deposit!A:A,C271,Deposit!B:B,$F$252)","v":0},0]
[null,null,"1900-01-13",{"$f":"SUMIFS(Sales!H:H,Sales!B:B,C272,Sales!E:E,$F$252)","v":0},{"$f":"SUMIFS(Sales!I:I,Sales!B:B,C272,Sales!E:E,$F$252)","v":0},0,{"$f":"SUMIFS(Sales!G:G,Sales!B:B,C272,Sales!E:E,$F$252)","v":0},{"$f":"SUMIFS(Deposit!C:C,Deposit!A:A,C272,Deposit!B:B,$F$252)","v":0},0]
[null,null,"1900-01-14",{"$f":"SUMIFS(Sales!H:H,Sales!B:B,C273,Sales!E:E,$F$252)","v":0},{"$f":"SUMIFS(Sales!I:I,Sales!B:B,C273,Sales!E:E,$F$252)","v":0},0,{"$f":"SUMIFS(Sales!G:G,Sales!B:B,C273,Sales!E:E,$F$252)","v":0},{"$f":"SUMIFS(Deposit!C:C,Deposit!A:A,C273,Deposit!B:B,$F$252)","v":0},0]
[null,null,"1900-01-15",{"$f":"SUMIFS(Sales!H:H,Sales!B:B,C274,Sales!E:E,$F$252)","v":0},{"$f":"SUMIFS(Sales!I:I,Sales!B:B,C274,Sales!E:E,$F$252)","v":0},0,{"$f":"SUMIFS(Sales!G:G,Sales!B:B,C274,Sales!E:E,$F$252)","v":0},{"$f":"SUMIFS(Deposit!C:C,Deposit!A:A,C274,Deposit!B:B,$F$252)","v":0},0]
[null,null,"1900-01-16",{"$f":"SUMIFS(Sales!H:H,Sales!B:B,C275,Sales!E:E,$F$252)","v":0},{"$f":"SUMIFS(Sales!I:I,Sales!B:B,C275,Sales!E:E,$F$252)","v":0},0,{"$f":"SUMIFS(Sales!G:G,Sales!B:B,C275,Sales!E:E,$F$252)","v":0},{"$f":"SUMIFS(Deposit!C:C,Deposit!A:A,C275,Deposit!B:B,$F$252)","v":0},0]
[null,null,"1900-01-17",{"$f":"SUMIFS(Sales!H:H,Sales!B:B,C276,Sales!E:E,$F$252)","v":0},{"$f":"SUMIFS(Sales!I:I,Sales!B:B,C276,Sales!E:E,$F$252)","v":0},0,{"$f":"SUMIFS(Sales!G:G,Sales!B:B,C276,Sales!E:E,$F$252)","v":0},{"$f":"SUMIFS(Deposit!C:C,Deposit!A:A,C276,Deposit!B:B,$F$252)","v":0},0]
[null,null,"1900-01-18",{"$f":"SUMIFS(Sales!H:H,Sales!B:B,C277,Sales!E:E,$F$252)","v":0},{"$f":"SUMIFS(Sales!I:I,Sales!B:B,C277,Sales!E:E,$F$252)","v":0},0,{"$f":"SUMIFS(Sales!G:G,Sales!B:B,C277,Sales!E:E,$F$252)","v":0},{"$f":"SUMIFS(Deposit!C:C,Deposit!A:A,C277,Deposit!B:B,$F$252)","v":0},0]
[null,null,"1900-01-19",{"$f":"SUMIFS(Sales!H:H,Sales!B:B,C278,Sales!E:E,$F$252)","v":0},{"$f":"SUMIFS(Sales!I:I,Sales!B:B,C278,Sales!E:E,$F$252)","v":0},0,{"$f":"SUMIFS(Sales!G:G,Sales!B:B,C278,Sales!E:E,$F$252)","v":0},{"$f":"SUMIFS(Deposit!C:C,Deposit!A:A,C278,Deposit!B:B,$F$252)","v":0},0]
[null,null,"1900-01-20",{"$f":"SUMIFS(Sales!H:H,Sales!B:B,C279,Sales!E:E,$F$252)","v":0},{"$f":"SUMIFS(Sales!I:I,Sales!B:B,C279,Sales!E:E,$F$252)","v":0},0,{"$f":"SUMIFS(Sales!G:G,Sales!B:B,C279,Sales!E:E,$F$252)","v":0},{"$f":"SUMIFS(Deposit!C:C,Deposit!A:A,C279,Deposit!B:B,$F$252)","v":0},0]
[null,null,"1900-01-21",{"$f":"SUMIFS(Sales!H:H,Sales!B:B,C280,Sales!E:E,$F$252)","v":0},{"$f":"SUMIFS(Sales!I:I,Sales!B:B,C280,Sales!E:E,$F$252)","v":0},0,{"$f":"SUMIFS(Sales!G:G,Sales!B:B,C280,Sales!E:E,$F$252)","v":0},{"$f":"SUMIFS(Deposit!C:C,Deposit!A:A,C280,Deposit!B:B,$F$252)","v":0},0]
[null,null,"1900-01-22",{"$f":"SUMIFS(Sales!H:H,Sales!B:B,C281,Sales!E:E,$F$252)","v":0},{"$f":"SUMIFS(Sales!I:I,Sales!B:B,C281,Sales!E:E,$F$252)","v":0},0,{"$f":"SUMIFS(Sales!G:G,Sales!B:B,C281,Sales!E:E,$F$252)","v":0},{"$f":"SUMIFS(Deposit!C:C,Deposit!A:A,C281,Deposit!B:B,$F$252)","v":0},0]
[null,null,"1900-01-23",{"$f":"SUMIFS(Sales!H:H,Sales!B:B,C282,Sales!E:E,$F$252)","v":0},{"$f":"SUMIFS(Sales!I:I,Sales!B:B,C282,Sales!E:E,$F$252)","v":0},0,{"$f":"SUMIFS(Sales!G:G,Sales!B:B,C282,Sales!E:E,$F$252)","v":0},{"$f":"SUMIFS(Deposit!C:C,Deposit!A:A,C282,Deposit!B:B,$F$252)","v":0},0]
[null,null,"1900-01-24",{"$f":"SUMIFS(Sales!H:H,Sales!B:B,C283,Sales!E:E,$F$252)","v":0},{"$f":"SUMIFS(Sales!I:I,Sales!B:B,C283,Sales!E:E,$F$252)","v":0},0,{"$f":"SUMIFS(Sales!G:G,Sales!B:B,C283,Sales!E:E,$F$252)","v":0},{"$f":"SUMIFS(Deposit!C:C,Deposit!A:A,C283,Deposit!B:B,$F$252)","v":0},0]
[null,null,"1900-01-25",{"$f":"SUMIFS(Sales!H:H,Sales!B:B,C284,Sales!E:E,$F$252)","v":0},{"$f":"SUMIFS(Sales!I:I,Sales!B:B,C284,Sales!E:E,$F$252)","v":0},0,{"$f":"SUMIFS(Sales!G:G,Sales!B:B,C284,Sales!E:E,$F$252)","v":0},{"$f":"SUMIFS(Deposit!C:C,Deposit!A:A,C284,Deposit!B:B,$F$252)","v":0},0]
[null,null,"1900-01-26",{"$f":"SUMIFS(Sales!H:H,Sales!B:B,C285,Sales!E:E,$F$252)","v":0},{"$f":"SUMIFS(Sales!I:I,Sales!B:B,C285,Sales!E:E,$F$252)","v":0},0,{"$f":"SUMIFS(Sales!G:G,Sales!B:B,C285,Sales!E:E,$F$252)","v":0},{"$f":"SUMIFS(Deposit!C:C,Deposit!A:A,C285,Deposit!B:B,$F$252)","v":0},0]
[null,null,"1900-01-27",{"$f":"SUMIFS(Sales!H:H,Sales!B:B,C286,Sales!E:E,$F$252)","v":0},{"$f":"SUMIFS(Sales!I:I,Sales!B:B,C286,Sales!E:E,$F$252)","v":0},0,{"$f":"SUMIFS(Sales!G:G,Sales!B:B,C286,Sales!E:E,$F$252)","v":0},{"$f":"SUMIFS(Deposit!C:C,Deposit!A:A,C286,Deposit!B:B,$F$252)","v":0},0]
[null,null,"1900-01-28",{"$f":"SUMIFS(Sales!H:H,Sales!B:B,C287,Sales!E:E,$F$252)","v":0},{"$f":"SUMIFS(Sales!I:I,Sales!B:B,C287,Sales!E:E,$F$252)","v":0},0,{"$f":"SUMIFS(Sales!G:G,Sales!B:B,C287,Sales!E:E,$F$252)","v":0},{"$f":"SUMIFS(Deposit!C:C,Deposit!A:A,C287,Deposit!B:B,$F$252)","v":0},0]
[null,null,"1900-01-29",{"$f":"SUMIFS(Sales!H:H,Sales!B:B,C288,Sales!E:E,$F$252)","v":0},{"$f":"SUMIFS(Sales!I:I,Sales!B:B,C288,Sales!E:E,$F$252)","v":0},0,{"$f":"SUMIFS(Sales!G:G,Sales!B:B,C288,Sales!E:E,$F$252)","v":0},{"$f":"SUMIFS(Deposit!C:C,Deposit!A:A,C288,Deposit!B:B,$F$252)","v":0},0]
[null,null,"1900-01-30",{"$f":"SUMIFS(Sales!H:H,Sales!B:B,C289,Sales!E:E,$F$252)","v":0},{"$f":"SUMIFS(Sales!I:I,Sales!B:B,C289,Sales!E:E,$F$252)","v":0},0,{"$f":"SUMIFS(Sales!G:G,Sales!B:B,C289,Sales!E:E,$F$252)","v":0},{"$f":"SUMIFS(Deposit!C:C,Deposit!A:A,C289,Deposit!B:B,$F$252)","v":0},0]
[]
[]
[]
[]
[]
[]
[]
[]
[]
[]
[null,null,null,null,"كـــــــشــــــــف حــــســـــاب"]
[]
[null,null,null,null,")",{"$f":"C13","v":0},"("]
[]
[null,null,"بيان","رصيد أول","المسحوبات","الخصم","الصافي","السدادات","رصيد آخر"]
[null,null,"قيمة",{"$f":"D27","v":0},{"$f":"SUM(D309:D339)","v":0},{"$f":"SUM(E309:E339)","v":0},{"$f":"SUM(F309:F339)","v":0},{"$f":"SUM(G309:H339)","v":0},{"$f":"D305+E305-F305-H305","v":0}]
[]
[null,null,"التاريخ","حركة المبيعات",null,null,"حركة التسديدات"]
[null,null,null,"المسحوبات","الخصم","الصافي","سداد بيع","سداد مستحقات","رصيد اليوم"]
[null,null,{"$f":"Coding!D4","v":"00:00:00"},{"$f":"SUMIFS(Sales!H:H,Sales!B:B,C309,Sales!E:E,$F$302)","v":0},{"$f":"SUMIFS(Sales!I:I,Sales!B:B,C309,Sales!E:E,$F$302)","v":0},{"$f":"D309-E309","v":0},{"$f":"SUMIFS(Sales!G:G,Sales!B:B,C309,Sales!E:E,$F$302)","v":0},{"$f":"SUMIFS(Deposit!C:C,Deposit!A:A,C309,Deposit!B:B,$F$302)","v":0},{"$f":"D305+D309-E309-G309-H309","v":0}]
[null,null,{"$f":"C309+1","v":"1900-01-01"},{"$f":"SUMIFS(Sales!H:H,Sales!B:B,C310,Sales!E:E,$F$302)","v":0},{"$f":"SUMIFS(Sales!I:I,Sales!B:B,C310,Sales!E:E,$F$302)","v":0},{"$f":"D310-E310","v":0},{"$f":"SUMIFS(Sales!G:G,Sales!B:B,C310,Sales!E:E,$F$302)","v":0},{"$f":"SUMIFS(Deposit!C:C,Deposit!A:A,C310,Deposit!B:B,$F$302)","v":0},{"$f":"I309+D310-E310-G310-H310","v":0}]
[null,null,{"$f":"C310+1","v":"1900-01-02"},{"$f":"SUMIFS(Sales!H:H,Sales!B:B,C311,Sales!E:E,$F$302)","v":0},{"$f":"SUMIFS(Sales!I:I,Sales!B:B,C311,Sales!E:E,$F$302)","v":0},0,{"$f":"SUMIFS(Sales!G:G,Sales!B:B,C311,Sales!E:E,$F$302)","v":0},{"$f":"SUMIFS(Deposit!C:C,Deposit!A:A,C311,Deposit!B:B,$F$302)","v":0},{"$f":"I310+D311-E311-G311-H311","v":0}]
[null,null,"1900-01-03",{"$f":"SUMIFS(Sales!H:H,Sales!B:B,C312,Sales!E:E,$F$302)","v":0},{"$f":"SUMIFS(Sales!I:I,Sales!B:B,C312,Sales!E:E,$F$302)","v":0},0,{"$f":"SUMIFS(Sales!G:G,Sales!B:B,C312,Sales!E:E,$F$302)","v":0},{"$f":"SUMIFS(Deposit!C:C,Deposit!A:A,C312,Deposit!B:B,$F$302)","v":0},0]
[null,null,"1900-01-04",{"$f":"SUMIFS(Sales!H:H,Sales!B:B,C313,Sales!E:E,$F$302)","v":0},{"$f":"SUMIFS(Sales!I:I,Sales!B:B,C313,Sales!E:E,$F$302)","v":0},0,{"$f":"SUMIFS(Sales!G:G,Sales!B:B,C313,Sales!E:E,$F$302)","v":0},{"$f":"SUMIFS(Deposit!C:C,Deposit!A:A,C313,Deposit!B:B,$F$302)","v":0},0]
[null,null,"1900-01-05",{"$f":"SUMIFS(Sales!H:H,Sales!B:B,C314,Sales!E:E,$F$302)","v":0},{"$f":"SUMIFS(Sales!I:I,Sales!B:B,C314,Sales!E:E,$F$302)","v":0},0,{"$f":"SUMIFS(Sales!G:G,Sales!B:B,C314,Sales!E:E,$F$302)","v":0},{"$f":"SUMIFS(Deposit!C:C,Deposit!A:A,C314,Deposit!B:B,$F$302)","v":0},0]
[null,null,"1900-01-06",{"$f":"SUMIFS(Sales!H:H,Sales!B:B,C315,Sales!E:E,$F$302)","v":0},{"$f":"SUMIFS(Sales!I:I,Sales!B:B,C315,Sales!E:E,$F$302)","v":0},0,{"$f":"SUMIFS(Sales!G:G,Sales!B:B,C315,Sales!E:E,$F$302)","v":0},{"$f":"SUMIFS(Deposit!C:C,Deposit!A:A,C315,Deposit!B:B,$F$302)","v":0},0]
[null,null,"1900-01-07",{"$f":"SUMIFS(Sales!H:H,Sales!B:B,C316,Sales!E:E,$F$302)","v":0},{"$f":"SUMIFS(Sales!I:I,Sales!B:B,C316,Sales!E:E,$F$302)","v":0},0,{"$f":"SUMIFS(Sales!G:G,Sales!B:B,C316,Sales!E:E,$F$302)","v":0},{"$f":"SUMIFS(Deposit!C:C,Deposit!A:A,C316,Deposit!B:B,$F$302)","v":0},0]
[null,null,"1900-01-08",{"$f":"SUMIFS(Sales!H:H,Sales!B:B,C317,Sales!E:E,$F$302)","v":0},{"$f":"SUMIFS(Sales!I:I,Sales!B:B,C317,Sales!E:E,$F$302)","v":0},0,{"$f":"SUMIFS(Sales!G:G,Sales!B:B,C317,Sales!E:E,$F$302)","v":0},{"$f":"SUMIFS(Deposit!C:C,Deposit!A:A,C317,Deposit!B:B,$F$302)","v":0},0]
[null,null,"1900-01-09",{"$f":"SUMIFS(Sales!H:H,Sales!B:B,C318,Sales!E:E,$F$302)","v":0},{"$f":"SUMIFS(Sales!I:I,Sales!B:B,C318,Sales!E:E,$F$302)","v":0},0,{"$f":"SUMIFS(Sales!G:G,Sales!B:B,C318,Sales!E:E,$F$302)","v":0},{"$f":"SUMIFS(Deposit!C:C,Deposit!A:A,C318,Deposit!B:B,$F$302)","v":0},0]
[null,null,"1900-01-10",{"$f":"SUMIFS(Sales!H:H,Sales!B:B,C319,Sales!E:E,$F$302)","v":0},{"$f":"SUMIFS(Sales!I:I,Sales!B:B,C319,Sales!E:E,$F$302)","v":0},0,{"$f":"SUMIFS(Sales!G:G,Sales!B:B,C319,Sales!E:E,$F$302)","v":0},{"$f":"SUMIFS(Deposit!C:C,Deposit!A:A,C319,Deposit!B:B,$F$302)","v":0},0]
[null,null,"1900-01-11",{"$f":"SUMIFS(Sales!H:H,Sales!B:B,C320,Sales!E:E,$F$302)","v":0},{"$f":"SUMIFS(Sales!I:I,Sales!B:B,C320,Sales!E:E,$F$302)","v":0},0,{"$f":"SUMIFS(Sales!G:G,Sales!B:B,C320,Sales!E:E,$F$302)","v":0},{"$f":"SUMIFS(Deposit!C:C,Deposit!A:A,C320,Deposit!B:B,$F$302)","v":0},0]
[null,null,"1900-01-12",{"$f":"SUMIFS(Sales!H:H,Sales!B:B,C321,Sales!E:E,$F$302)","v":0},{"$f":"SUMIFS(Sales!I:I,Sales!B:B,C321,Sales!E:E,$F$302)","v":0},0,{"$f":"SUMIFS(Sales!G:G,Sales!B:B,C321,Sales!E:E,$F$302)","v":0},{"$f":"SUMIFS(Deposit!C:C,Deposit!A:A,C321,Deposit!B:B,$F$302)","v":0},0]
[null,null,"1900-01-13",{"$f":"SUMIFS(Sales!H:H,Sales!B:B,C322,Sales!E:E,$F$302)","v":0},{"$f":"SUMIFS(Sales!I:I,Sales!B:B,C322,Sales!E:E,$F$302)","v":0},0,{"$f":"SUMIFS(Sales!G:G,Sales!B:B,C322,Sales!E:E,$F$302)","v":0},{"$f":"SUMIFS(Deposit!C:C,Deposit!A:A,C322,Deposit!B:B,$F$302)","v":0},0]
[null,null,"1900-01-14",{"$f":"SUMIFS(Sales!H:H,Sales!B:B,C323,Sales!E:E,$F$302)","v":0},{"$f":"SUMIFS(Sales!I:I,Sales!B:B,C323,Sales!E:E,$F$302)","v":0},0,{"$f":"SUMIFS(Sales!G:G,Sales!B:B,C323,Sales!E:E,$F$302)","v":0},{"$f":"SUMIFS(Deposit!C:C,Deposit!A:A,C323,Deposit!B:B,$F$302)","v":0},0]
[null,null,"1900-01-15",{"$f":"SUMIFS(Sales!H:H,Sales!B:B,C324,Sales!E:E,$F$302)","v":0},{"$f":"SUMIFS(Sales!I:I,Sales!B:B,C324,Sales!E:E,$F$302)","v":0},0,{"$f":"SUMIFS(Sales!G:G,Sales!B:B,C324,Sales!E:E,$F$302)","v":0},{"$f":"SUMIFS(Deposit!C:C,Deposit!A:A,C324,Deposit!B:B,$F$302)","v":0},0]
[null,null,"1900-01-16",{"$f":"SUMIFS(Sales!H:H,Sales!B:B,C325,Sales!E:E,$F$302)","v":0},{"$f":"SUMIFS(Sales!I:I,Sales!B:B,C325,Sales!E:E,$F$302)","v":0},0,{"$f":"SUMIFS(Sales!G:G,Sales!B:B,C325,Sales!E:E,$F$302)","v":0},{"$f":"SUMIFS(Deposit!C:C,Deposit!A:A,C325,Deposit!B:B,$F$302)","v":0},0]
[null,null,"1900-01-17",{"$f":"SUMIFS(Sales!H:H,Sales!B:B,C326,Sales!E:E,$F$302)","v":0},{"$f":"SUMIFS(Sales!I:I,Sales!B:B,C326,Sales!E:E,$F$302)","v":0},0,{"$f":"SUMIFS(Sales!G:G,Sales!B:B,C326,Sales!E:E,$F$302)","v":0},{"$f":"SUMIFS(Deposit!C:C,Deposit!A:A,C326,Deposit!B:B,$F$302)","v":0},0]
[null,null,"1900-01-18",{"$f":"SUMIFS(Sales!H:H,Sales!B:B,C327,Sales!E:E,$F$302)","v":0},{"$f":"SUMIFS(Sales!I:I,Sales!B:B,C327,Sales!E:E,$F$302)","v":0},0,{"$f":"SUMIFS(Sales!G:G,Sales!B:B,C327,Sales!E:E,$F$302)","v":0},{"$f":"SUMIFS(Deposit!C:C,Deposit!A:A,C327,Deposit!B:B,$F$302)","v":0},0]
[null,null,"1900-01-19",{"$f":"SUMIFS(Sales!H:H,Sales!B:B,C328,Sales!E:E,$F$302)","v":0},{"$f":"SUMIFS(Sales!I:I,Sales!B:B,C328,Sales!E:E,$F$302)","v":0},0,{"$f":"SUMIFS(Sales!G:G,Sales!B:B,C328,Sales!E:E,$F$302)","v":0},{"$f":"SUMIFS(Deposit!C:C,Deposit!A:A,C328,Deposit!B:B,$F$302)","v":0},0]
[null,null,"1900-01-20",{"$f":"SUMIFS(Sales!H:H,Sales!B:B,C329,Sales!E:E,$F$302)","v":0},{"$f":"SUMIFS(Sales!I:I,Sales!B:B,C329,Sales!E:E,$F$302)","v":0},0,{"$f":"SUMIFS(Sales!G:G,Sales!B:B,C329,Sales!E:E,$F$302)","v":0},{"$f":"SUMIFS(Deposit!C:C,Deposit!A:A,C329,Deposit!B:B,$F$302)","v":0},0]
[null,null,"1900-01-21",{"$f":"SUMIFS(Sales!H:H,Sales!B:B,C330,Sales!E:E,$F$302)","v":0},{"$f":"SUMIFS(Sales!I:I,Sales!B:B,C330,Sales!E:E,$F$302)","v":0},0,{"$f":"SUMIFS(Sales!G:G,Sales!B:B,C330,Sales!E:E,$F$302)","v":0},{"$f":"SUMIFS(Deposit!C:C,Deposit!A:A,C330,Deposit!B:B,$F$302)","v":0},0]
[null,null,"1900-01-22",{"$f":"SUMIFS(Sales!H:H,Sales!B:B,C331,Sales!E:E,$F$302)","v":0},{"$f":"SUMIFS(Sales!I:I,Sales!B:B,C331,Sales!E:E,$F$302)","v":0},0,{"$f":"SUMIFS(Sales!G:G,Sales!B:B,C331,Sales!E:E,$F$302)","v":0},{"$f":"SUMIFS(Deposit!C:C,Deposit!A:A,C331,Deposit!B:B,$F$302)","v":0},0]
[null,null,"1900-01-23",{"$f":"SUMIFS(Sales!H:H,Sales!B:B,C332,Sales!E:E,$F$302)","v":0},{"$f":"SUMIFS(Sales!I:I,Sales!B:B,C332,Sales!E:E,$F$302)","v":0},0,{"$f":"SUMIFS(Sales!G:G,Sales!B:B,C332,Sales!E:E,$F$302)","v":0},{"$f":"SUMIFS(Deposit!C:C,Deposit!A:A,C332,Deposit!B:B,$F$302)","v":0},0]
[null,null,"1900-01-24",{"$f":"SUMIFS(Sales!H:H,Sales!B:B,C333,Sales!E:E,$F$302)","v":0},{"$f":"SUMIFS(Sales!I:I,Sales!B:B,C333,Sales!E:E,$F$302)","v":0},0,{"$f":"SUMIFS(Sales!G:G,Sales!B:B,C333,Sales!E:E,$F$302)","v":0},{"$f":"SUMIFS(Deposit!C:C,Deposit!A:A,C333,Deposit!B:B,$F$302)","v":0},0]
[null,null,"1900-01-25",{"$f":"SUMIFS(Sales!H:H,Sales!B:B,C334,Sales!E:E,$F$302)","v":0},{"$f":"SUMIFS(Sales!I:I,Sales!B:B,C334,Sales!E:E,$F$302)","v":0},0,{"$f":"SUMIFS(Sales!G:G,Sales!B:B,C334,Sales!E:E,$F$302)","v":0},{"$f":"SUMIFS(Deposit!C:C,Deposit!A:A,C334,Deposit!B:B,$F$302)","v":0},0]
[null,null,"1900-01-26",{"$f":"SUMIFS(Sales!H:H,Sales!B:B,C335,Sales!E:E,$F$302)","v":0},{"$f":"SUMIFS(Sales!I:I,Sales!B:B,C335,Sales!E:E,$F$302)","v":0},0,{"$f":"SUMIFS(Sales!G:G,Sales!B:B,C335,Sales!E:E,$F$302)","v":0},{"$f":"SUMIFS(Deposit!C:C,Deposit!A:A,C335,Deposit!B:B,$F$302)","v":0},0]
[null,null,"1900-01-27",{"$f":"SUMIFS(Sales!H:H,Sales!B:B,C336,Sales!E:E,$F$302)","v":0},{"$f":"SUMIFS(Sales!I:I,Sales!B:B,C336,Sales!E:E,$F$302)","v":0},0,{"$f":"SUMIFS(Sales!G:G,Sales!B:B,C336,Sales!E:E,$F$302)","v":0},{"$f":"SUMIFS(Deposit!C:C,Deposit!A:A,C336,Deposit!B:B,$F$302)","v":0},0]
[null,null,"1900-01-28",{"$f":"SUMIFS(Sales!H:H,Sales!B:B,C337,Sales!E:E,$F$302)","v":0},{"$f":"SUMIFS(Sales!I:I,Sales!B:B,C337,Sales!E:E,$F$302)","v":0},0,{"$f":"SUMIFS(Sales!G:G,Sales!B:B,C337,Sales!E:E,$F$302)","v":0},{"$f":"SUMIFS(Deposit!C:C,Deposit!A:A,C337,Deposit!B:B,$F$302)","v":0},0]
[null,null,"1900-01-29",{"$f":"SUMIFS(Sales!H:H,Sales!B:B,C338,Sales!E:E,$F$302)","v":0},{"$f":"SUMIFS(Sales!I:I,Sales!B:B,C338,Sales!E:E,$F$302)","v":0},0,{"$f":"SUMIFS(Sales!G:G,Sales!B:B,C338,Sales!E:E,$F$302)","v":0},{"$f":"SUMIFS(Deposit!C:C,Deposit!A:A,C338,Deposit!B:B,$F$302)","v":0},0]
[null,null,"1900-01-30",{"$f":"SUMIFS(Sales!H:H,Sales!B:B,C339,Sales!E:E,$F$302)","v":0},{"$f":"SUMIFS(Sales!I:I,Sales!B:B,C339,Sales!E:E,$F$302)","v":0},0,{"$f":"SUMIFS(Sales!G:G,Sales!B:B,C339,Sales!E:E,$F$302)","v":0},{"$f":"SUMIFS(Deposit!C:C,Deposit!A:A,C339,Deposit!B:B,$F$302)","v":0},0]
[]
[]
[]
[]
[]
[]
[]
[]
[]
[]
[null,null,null,null,"كـــــــشــــــــف حــــســـــاب"]
[]
[null,null,null,null,")",{"$f":"C14","v":0},"("]
[]
[null,null,"بيان","رصيد أول","المسحوبات","الخصم","الصافي","السدادات","رصيد آخر"]
[null,null,"قيمة",{"$f":"D28","v":0},{"$f":"SUM(D359:D389)","v":0},{"$f":"SUM(E359:E389)","v":0},{"$f":"SUM(F359:F389)","v":0},{"$f":"SUM(G359:H389)","v":0},{"$f":"D355+E355-F355-H355","v":0}]
[]
[null,null,"التاريخ","حركة المبيعات",null,null,"حركة التسديدات"]
[null,null,null,"المسحوبات","الخصم","الصافي","سداد بيع","سداد مستحقات","رصيد اليوم"]
[null,null,{"$f":"Coding!D4","v":"00:00:00"},{"$f":"SUMIFS(Sales!H:H,Sales!B:B,C359,Sales!E:E,$F$352)","v":0},{"$f":"SUMIFS(Sales!I:I,Sales!B:B,C359,Sales!E:E,$F$352)","v":0},{"$f":"D359-E359","v":0},{"$f":"SUMIFS(Sales!G:G,Sales!B:B,C359,Sales!E:E,$F$352)","v":0},{"$f":"SUMIFS(Deposit!C:C,Deposit!A:A,C359,Deposit!B:B,$F$352)","v":0},{"$f":"D355+D359-E359-G359-H359","v":0}]
[null,null,{"$f":"C359+1","v":"1900-01-01"},{"$f":"SUMIFS(Sales!H:H,Sales!B:B,C360,Sales!E:E,$F$352)","v":0},{"$f":"SUMIFS(Sales!I:I,Sales!B:B,C360,Sales!E:E,$F$352)","v":0},{"$f":"D360-E360","v":0},{"$f":"SUMIFS(Sales!G:G,Sales!B:B,C360,Sales!E:E,$F$352)","v":0},{"$f":"SUMIFS(Deposit!C:C,Deposit!A:A,C360,Deposit!B:B,$F$352)","v":0},{"$f":"I359+D360-E360-G360-H360","v":0}]
[null,null,{"$f":"C360+1","v":"1900-01-02"},{"$f":"SUMIFS(Sales!H:H,Sales!B:B,C361,Sales!E:E,$F$352)","v":0},{"$f":"SUMIFS(Sales!I:I,Sales!B:B,C361,Sales!E:E,$F$352)","v":0},0,{"$f":"SUMIFS(Sales!G:G,Sales!B:B,C361,Sales!E:E,$F$352)","v":0},{"$f":"SUMIFS(Deposit!C:C,Deposit!A:A,C361,Deposit!B:B,$F$352)","v":0},{"$f":"I360+D361-E361-G361-H361","v":0}]
[null,null,"1900-01-03",{"$f":"SUMIFS(Sales!H:H,Sales!B:B,C362,Sales!E:E,$F$352)","v":0},{"$f":"SUMIFS(Sales!I:I,Sales!B:B,C362,Sales!E:E,$F$352)","v":0},0,{"$f":"SUMIFS(Sales!G:G,Sales!B:B,C362,Sales!E:E,$F$352)","v":0},{"$f":"SUMIFS(Deposit!C:C,Deposit!A:A,C362,Deposit!B:B,$F$352)","v":0},0]
[null,null,"1900-01-04",{"$f":"SUMIFS(Sales!H:H,Sales!B:B,C363,Sales!E:E,$F$352)","v":0},{"$f":"SUMIFS(Sales!I:I,Sales!B:B,C363,Sales!E:E,$F$352)","v":0},0,{"$f":"SUMIFS(Sales!G:G,Sales!B:B,C363,Sales!E:E,$F$352)","v":0},{"$f":"SUMIFS(Deposit!C:C,Deposit!A:A,C363,Deposit!B:B,$F$352)","v":0},0]
[null,null,"1900-01-05",{"$f":"SUMIFS(Sales!H:H,Sales!B:B,C364,Sales!E:E,$F$352)","v":0},{"$f":"SUMIFS(Sales!I:I,Sales!B:B,C364,Sales!E:E,$F$352)","v":0},0,{"$f":"SUMIFS(Sales!G:G,Sales!B:B,C364,Sales!E:E,$F$352)","v":0},{"$f":"SUMIFS(Deposit!C:C,Deposit!A:A,C364,Deposit!B:B,$F$352)","v":0},0]
[null,null,"1900-01-06",{"$f":"SUMIFS(Sales!H:H,Sales!B:B,C365,Sales!E:E,$F$352)","v":0},{"$f":"SUMIFS(Sales!I:I,Sales!B:B,C365,Sales!E:E,$F$352)","v":0},0,{"$f":"SUMIFS(Sales!G:G,Sales!B:B,C365,Sales!E:E,$F$352)","v":0},{"$f":"SUMIFS(Deposit!C:C,Deposit!A:A,C365,Deposit!B:B,$F$352)","v":0},0]
[null,null,"1900-01-07",{"$f":"SUMIFS(Sales!H:H,Sales!B:B,C366,Sales!E:E,$F$352)","v":0},{"$f":"SUMIFS(Sales!I:I,Sales!B:B,C366,Sales!E:E,$F$352)","v":0},0,{"$f":"SUMIFS(Sales!G:G,Sales!B:B,C366,Sales!E:E,$F$352)","v":0},{"$f":"SUMIFS(Deposit!C:C,Deposit!A:A,C366,Deposit!B:B,$F$352)","v":0},0]
[null,null,"1900-01-08",{"$f":"SUMIFS(Sales!H:H,Sales!B:B,C367,Sales!E:E,$F$352)","v":0},{"$f":"SUMIFS(Sales!I:I,Sales!B:B,C367,Sales!E:E,$F$352)","v":0},0,{"$f":"SUMIFS(Sales!G:G,Sales!B:B,C367,Sales!E:E,$F$352)","v":0},{"$f":"SUMIFS(Deposit!C:C,Deposit!A:A,C367,Deposit!B:B,$F$352)","v":0},0]
[null,null,"1900-01-09",{"$f":"SUMIFS(Sales!H:H,Sales!B:B,C368,Sales!E:E,$F$352)","v":0},{"$f":"SUMIFS(Sales!I:I,Sales!B:B,C368,Sales!E:E,$F$352)","v":0},0,{"$f":"SUMIFS(Sales!G:G,Sales!B:B,C368,Sales!E:E,$F$352)","v":0},{"$f":"SUMIFS(Deposit!C:C,Deposit!A:A,C368,Deposit!B:B,$F$352)","v":0},0]
[null,null,"1900-01-10",{"$f":"SUMIFS(Sales!H:H,Sales!B:B,C369,Sales!E:E,$F$352)","v":0},{"$f":"SUMIFS(Sales!I:I,Sales!B:B,C369,Sales!E:E,$F$352)","v":0},0,{"$f":"SUMIFS(Sales!G:G,Sales!B:B,C369,Sales!E:E,$F$352)","v":0},{"$f":"SUMIFS(Deposit!C:C,Deposit!A:A,C369,Deposit!B:B,$F$352)","v":0},0]
[null,null,"1900-01-11",{"$f":"SUMIFS(Sales!H:H,Sales!B:B,C370,Sales!E:E,$F$352)","v":0},{"$f":"SUMIFS(Sales!I:I,Sales!B:B,C370,Sales!E:E,$F$352)","v":0},0,{"$f":"SUMIFS(Sales!G:G,Sales!B:B,C370,Sales!E:E,$F$352)","v":0},{"$f":"SUMIFS(Deposit!C:C,Deposit!A:A,C370,Deposit!B:B,$F$352)","v":0},0]
[null,null,"1900-01-12",{"$f":"SUMIFS(Sales!H:H,Sales!B:B,C371,Sales!E:E,$F$352)","v":0},{"$f":"SUMIFS(Sales!I:I,Sales!B:B,C371,Sales!E:E,$F$352)","v":0},0,{"$f":"SUMIFS(Sales!G:G,Sales!B:B,C371,Sales!E:E,$F$352)","v":0},{"$f":"SUMIFS(Deposit!C:C,Deposit!A:A,C371,Deposit!B:B,$F$352)","v":0},0]
[null,null,"1900-01-13",{"$f":"SUMIFS(Sales!H:H,Sales!B:B,C372,Sales!E:E,$F$352)","v":0},{"$f":"SUMIFS(Sales!I:I,Sales!B:B,C372,Sales!E:E,$F$352)","v":0},0,{"$f":"SUMIFS(Sales!G:G,Sales!B:B,C372,Sales!E:E,$F$352)","v":0},{"$f":"SUMIFS(Deposit!C:C,Deposit!A:A,C372,Deposit!B:B,$F$352)","v":0},0]
[null,null,"1900-01-14",{"$f":"SUMIFS(Sales!H:H,Sales!B:B,C373,Sales!E:E,$F$352)","v":0},{"$f":"SUMIFS(Sales!I:I,Sales!B:B,C373,Sales!E:E,$F$352)","v":0},0,{"$f":"SUMIFS(Sales!G:G,Sales!B:B,C373,Sales!E:E,$F$352)","v":0},{"$f":"SUMIFS(Deposit!C:C,Deposit!A:A,C373,Deposit!B:B,$F$352)","v":0},0]
[null,null,"1900-01-15",{"$f":"SUMIFS(Sales!H:H,Sales!B:B,C374,Sales!E:E,$F$352)","v":0},{"$f":"SUMIFS(Sales!I:I,Sales!B:B,C374,Sales!E:E,$F$352)","v":0},0,{"$f":"SUMIFS(Sales!G:G,Sales!B:B,C374,Sales!E:E,$F$352)","v":0},{"$f":"SUMIFS(Deposit!C:C,Deposit!A:A,C374,Deposit!B:B,$F$352)","v":0},0]
[null,null,"1900-01-16",{"$f":"SUMIFS(Sales!H:H,Sales!B:B,C375,Sales!E:E,$F$352)","v":0},{"$f":"SUMIFS(Sales!I:I,Sales!B:B,C375,Sales!E:E,$F$352)","v":0},0,{"$f":"SUMIFS(Sales!G:G,Sales!B:B,C375,Sales!E:E,$F$352)","v":0},{"$f":"SUMIFS(Deposit!C:C,Deposit!A:A,C375,Deposit!B:B,$F$352)","v":0},0]
[null,null,"1900-01-17",{"$f":"SUMIFS(Sales!H:H,Sales!B:B,C376,Sales!E:E,$F$352)","v":0},{"$f":"SUMIFS(Sales!I:I,Sales!B:B,C376,Sales!E:E,$F$352)","v":0},0,{"$f":"SUMIFS(Sales!G:G,Sales!B:B,C376,Sales!E:E,$F$352)","v":0},{"$f":"SUMIFS(Deposit!C:C,Deposit!A:A,C376,Deposit!B:B,$F$352)","v":0},0]
[null,null,"1900-01-18",{"$f":"SUMIFS(Sales!H:H,Sales!B:B,C377,Sales!E:E,$F$352)","v":0},{"$f":"SUMIFS(Sales!I:I,Sales!B:B,C377,Sales!E:E,$F$352)","v":0},0,{"$f":"SUMIFS(Sales!G:G,Sales!B:B,C377,Sales!E:E,$F$352)","v":0},{"$f":"SUMIFS(Deposit!C:C,Deposit!A:A,C377,Deposit!B:B,$F$352)","v":0},0]
[null,null,"1900-01-19",{"$f":"SUMIFS(Sales!H:H,Sales!B:B,C378,Sales!E:E,$F$352)","v":0},{"$f":"SUMIFS(Sales!I:I,Sales!B:B,C378,Sales!E:E,$F$352)","v":0},0,{"$f":"SUMIFS(Sales!G:G,Sales!B:B,C378,Sales!E:E,$F$352)","v":0},{"$f":"SUMIFS(Deposit!C:C,Deposit!A:A,C378,Deposit!B:B,$F$352)","v":0},0]
[null,null,"1900-01-20",{"$f":"SUMIFS(Sales!H:H,Sales!B:B,C379,Sales!E:E,$F$352)","v":0},{"$f":"SUMIFS(Sales!I:I,Sales!B:B,C379,Sales!E:E,$F$352)","v":0},0,{"$f":"SUMIFS(Sales!G:G,Sales!B:B,C379,Sales!E:E,$F$352)","v":0},{"$f":"SUMIFS(Deposit!C:C,Deposit!A:A,C379,Deposit!B:B,$F$352)","v":0},0]
[null,null,"1900-01-21",{"$f":"SUMIFS(Sales!H:H,Sales!B:B,C380,Sales!E:E,$F$352)","v":0},{"$f":"SUMIFS(Sales!I:I,Sales!B:B,C380,Sales!E:E,$F$352)","v":0},0,{"$f":"SUMIFS(Sales!G:G,Sales!B:B,C380,Sales!E:E,$F$352)","v":0},{"$f":"SUMIFS(Deposit!C:C,Deposit!A:A,C380,Deposit!B:B,$F$352)","v":0},0]
[null,null,"1900-01-22",{"$f":"SUMIFS(Sales!H:H,Sales!B:B,C381,Sales!E:E,$F$352)","v":0},{"$f":"SUMIFS(Sales!I:I,Sales!B:B,C381,Sales!E:E,$F$352)","v":0},0,{"$f":"SUMIFS(Sales!G:G,Sales!B:B,C381,Sales!E:E,$F$352)","v":0},{"$f":"SUMIFS(Deposit!C:C,Deposit!A:A,C381,Deposit!B:B,$F$352)","v":0},0]
[null,null,"1900-01-23",{"$f":"SUMIFS(Sales!H:H,Sales!B:B,C382,Sales!E:E,$F$352)","v":0},{"$f":"SUMIFS(Sales!I:I,Sales!B:B,C382,Sales!E:E,$F$352)","v":0},0,{"$f":"SUMIFS(Sales!G:G,Sales!B:B,C382,Sales!E:E,$F$352)","v":0},{"$f":"SUMIFS(Deposit!C:C,Deposit!A:A,C382,Deposit!B:B,$F$352)","v":0},0]
[null,null,"1900-01-24",{"$f":"SUMIFS(Sales!H:H,Sales!B:B,C383,Sales!E:E,$F$352)","v":0},{"$f":"SUMIFS(Sales!I:I,Sales!B:B,C383,Sales!E:E,$F$352)","v":0},0,{"$f":"SUMIFS(Sales!G:G,Sales!B:B,C383,Sales!E:E,$F$352)","v":0},{"$f":"SUMIFS(Deposit!C:C,Deposit!A:A,C383,Deposit!B:B,$F$352)","v":0},0]
[null,null,"1900-01-25",{"$f":"SUMIFS(Sales!H:H,Sales!B:B,C384,Sales!E:E,$F$352)","v":0},{"$f":"SUMIFS(Sales!I:I,Sales!B:B,C384,Sales!E:E,$F$352)","v":0},0,{"$f":"SUMIFS(Sales!G:G,Sales!B:B,C384,Sales!E:E,$F$352)","v":0},{"$f":"SUMIFS(Deposit!C:C,Deposit!A:A,C384,Deposit!B:B,$F$352)","v":0},0]
[null,null,"1900-01-26",{"$f":"SUMIFS(Sales!H:H,Sales!B:B,C385,Sales!E:E,$F$352)","v":0},{"$f":"SUMIFS(Sales!I:I,Sales!B:B,C385,Sales!E:E,$F$352)","v":0},0,{"$f":"SUMIFS(Sales!G:G,Sales!B:B,C385,Sales!E:E,$F$352)","v":0},{"$f":"SUMIFS(Deposit!C:C,Deposit!A:A,C385,Deposit!B:B,$F$352)","v":0},0]
[null,null,"1900-01-27",{"$f":"SUMIFS(Sales!H:H,Sales!B:B,C386,Sales!E:E,$F$352)","v":0},{"$f":"SUMIFS(Sales!I:I,Sales!B:B,C386,Sales!E:E,$F$352)","v":0},0,{"$f":"SUMIFS(Sales!G:G,Sales!B:B,C386,Sales!E:E,$F$352)","v":0},{"$f":"SUMIFS(Deposit!C:C,Deposit!A:A,C386,Deposit!B:B,$F$352)","v":0},0]
[null,null,"1900-01-28",{"$f":"SUMIFS(Sales!H:H,Sales!B:B,C387,Sales!E:E,$F$352)","v":0},{"$f":"SUMIFS(Sales!I:I,Sales!B:B,C387,Sales!E:E,$F$352)","v":0},0,{"$f":"SUMIFS(Sales!G:G,Sales!B:B,C387,Sales!E:E,$F$352)","v":0},{"$f":"SUMIFS(Deposit!C:C,Deposit!A:A,C387,Deposit!B:B,$F$352)","v":0},0]
[null,null,"1900-01-29",{"$f":"SUMIFS(Sales!H:H,Sales!B:B,C388,Sales!E:E,$F$352)","v":0},{"$f":"SUMIFS(Sales!I:I,Sales!B:B,C388,Sales!E:E,$F$352)","v":0},0,{"$f":"SUMIFS(Sales!G:G,Sales!B:B,C388,Sales!E:E,$F$352)","v":0},{"$f":"SUMIFS(Deposit!C:C,Deposit!A:A,C388,Deposit!B:B,$F$352)","v":0},0]
[null,null,"1900-01-30",{"$f":"SUMIFS(Sales!H:H,Sales!B:B,C389,Sales!E:E,$F$352)","v":0},{"$f":"SUMIFS(Sales!I:I,Sales!B:B,C389,Sales!E:E,$F$352)","v":0},0,{"$f":"SUMIFS(Sales!G:G,Sales!B:B,C389,Sales!E:E,$F$352)","v":0},{"$f":"SUMIFS(Deposit!C:C,Deposit!A:A,C389,Deposit!B:B,$F$352)","v":0},0]
[]
[]
[]
[]
[]
[]
[]
[]
[]
[]
[null,null,null,null,"كـــــــشــــــــف حــــســـــاب"]
[]
[null,null,null,null,")",{"$f":"C15","v":0},"("]
[]
[null,null,"بيان","رصيد أول","المسحوبات","الخصم","الصافي","السدادات","رصيد آخر"]
[null,null,"قيمة",{"$f":"D29","v":0},{"$f":"SUM(D409:D439)","v":0},{"$f":"SUM(E409:E439)","v":0},{"$f":"SUM(F409:F439)","v":0},{"$f":"SUM(G409:H439)","v":0},{"$f":"D405+E405-F405-H405","v":0}]
[]
[null,null,"التاريخ","حركة المبيعات",null,null,"حركة التسديدات"]
[null,null,null,"المسحوبات","الخصم","الصافي","سداد بيع","سداد مستحقات","رصيد اليوم"]
[null,null,{"$f":"Coding!D4","v":"00:00:00"},{"$f":"SUMIFS(Sales!H:H,Sales!B:B,C409,Sales!E:E,$F$402)","v":0},{"$f":"SUMIFS(Sales!I:I,Sales!B:B,C409,Sales!E:E,$F$402)","v":0},{"$f":"D409-E409","v":0},{"$f":"SUMIFS(Sales!G:G,Sales!B:B,C409,Sales!E:E,$F$402)","v":0},{"$f":"SUMIFS(Deposit!C:C,Deposit!A:A,C409,Deposit!B:B,$F$402)","v":0},{"$f":"D405+D409-E409-G409-H409","v":0}]
[null,null,{"$f":"C409+1","v":"1900-01-01"},{"$f":"SUMIFS(Sales!H:H,Sales!B:B,C410,Sales!E:E,$F$402)","v":0},{"$f":"SUMIFS(Sales!I:I,Sales!B:B,C410,Sales!E:E,$F$402)","v":0},{"$f":"D410-E410","v":0},{"$f":"SUMIFS(Sales!G:G,Sales!B:B,C410,Sales!E:E,$F$402)","v":0},{"$f":"SUMIFS(Deposit!C:C,Deposit!A:A,C410,Deposit!B:B,$F$402)","v":0},{"$f":"I409+D410-E410-G410-H410","v":0}]
[null,null,{"$f":"C410+1","v":"1900-01-02"},{"$f":"SUMIFS(Sales!H:H,Sales!B:B,C411,Sales!E:E,$F$402)","v":0},{"$f":"SUMIFS(Sales!I:I,Sales!B:B,C411,Sales!E:E,$F$402)","v":0},0,{"$f":"SUMIFS(Sales!G:G,Sales!B:B,C411,Sales!E:E,$F$402)","v":0},{"$f":"SUMIFS(Deposit!C:C,Deposit!A:A,C411,Deposit!B:B,$F$402)","v":0},{"$f":"I410+D411-E411-G411-H411","v":0}]
[null,null,"1900-01-03",{"$f":"SUMIFS(Sales!H:H,Sales!B:B,C412,Sales!E:E,$F$402)","v":0},{"$f":"SUMIFS(Sales!I:I,Sales!B:B,C412,Sales!E:E,$F$402)","v":0},0,{"$f":"SUMIFS(Sales!G:G,Sales!B:B,C412,Sales!E:E,$F$402)","v":0},{"$f":"SUMIFS(Deposit!C:C,Deposit!A:A,C412,Deposit!B:B,$F$402)","v":0},0]
[null,null,"1900-01-04",{"$f":"SUMIFS(Sales!H:H,Sales!B:B,C413,Sales!E:E,$F$402)","v":0},{"$f":"SUMIFS(Sales!I:I,Sales!B:B,C413,Sales!E:E,$F$402)","v":0},0,{"$f":"SUMIFS(Sales!G:G,Sales!B:B,C413,Sales!E:E,$F$402)","v":0},{"$f":"SUMIFS(Deposit!C:C,Deposit!A:A,C413,Deposit!B:B,$F$402)","v":0},0]
[null,null,"1900-01-05",{"$f":"SUMIFS(Sales!H:H,Sales!B:B,C414,Sales!E:E,$F$402)","v":0},{"$f":"SUMIFS(Sales!I:I,Sales!B:B,C414,Sales!E:E,$F$402)","v":0},0,{"$f":"SUMIFS(Sales!G:G,Sales!B:B,C414,Sales!E:E,$F$402)","v":0},{"$f":"SUMIFS(Deposit!C:C,Deposit!A:A,C414,Deposit!B:B,$F$402)","v":0},0]
[null,null,"1900-01-06",{"$f":"SUMIFS(Sales!H:H,Sales!B:B,C415,Sales!E:E,$F$402)","v":0},{"$f":"SUMIFS(Sales!I:I,Sales!B:B,C415,Sales!E:E,$F$402)","v":0},0,{"$f":"SUMIFS(Sales!G:G,Sales!B:B,C415,Sales!E:E,$F$402)","v":0},{"$f":"SUMIFS(Deposit!C:C,Deposit!A:A,C415,Deposit!B:B,$F$402)","v":0},0]
[null,null,"1900-01-07",{"$f":"SUMIFS(Sales!H:H,Sales!B:B,C416,Sales!E:E,$F$402)","v":0},{"$f":"SUMIFS(Sales!I:I,Sales!B:B,C416,Sales!E:E,$F$402)","v":0},0,{"$f":"SUMIFS(Sales!G:G,Sales!B:B,C416,Sales!E:E,$F$402)","v":0},{"$f":"SUMIFS(Deposit!C:C,Deposit!A:A,C416,Deposit!B:B,$F$402)","v":0},0]
[null,null,"1900-01-08",{"$f":"SUMIFS(Sales!H:H,Sales!B:B,C417,Sales!E:E,$F$402)","v":0},{"$f":"SUMIFS(Sales!I:I,Sales!B:B,C417,Sales!E:E,$F$402)","v":0},0,{"$f":"SUMIFS(Sales!G:G,Sales!B:B,C417,Sales!E:E,$F$402)","v":0},{"$f":"SUMIFS(Deposit!C:C,Deposit!A:A,C417,Deposit!B:B,$F$402)","v":0},0]
[null,null,"1900-01-09",{"$f":"SUMIFS(Sales!H:H,Sales!B:B,C418,Sales!E:E,$F$402)","v":0},{"$f":"SUMIFS(Sales!I:I,Sales!B:B,C418,Sales!E:E,$F$402)","v":0},0,{"$f":"SUMIFS(Sales!G:G,Sales!B:B,C418,Sales!E:E,$F$402)","v":0},{"$f":"SUMIFS(Deposit!C:C,Deposit!A:A,C418,Deposit!B:B,$F$402)","v":0},0]
[null,null,"1900-01-10",{"$f":"SUMIFS(Sales!H:H,Sales!B:B,C419,Sales!E:E,$F$402)","v":0},{"$f":"SUMIFS(Sales!I:I,Sales!B:B,C419,Sales!E:E,$F$402)","v":0},0,{"$f":"SUMIFS(Sales!G:G,Sales!B:B,C419,Sales!E:E,$F$402)","v":0},{"$f":"SUMIFS(Deposit!C:C,Deposit!A:A,C419,Deposit!B:B,$F$402)","v":0},0]
[null,null,"1900-01-11",{"$f":"SUMIFS(Sales!H:H,Sales!B:B,C420,Sales!E:E,$F$402)","v":0},{"$f":"SUMIFS(Sales!I:I,Sales!B:B,C420,Sales!E:E,$F$402)","v":0},0,{"$f":"SUMIFS(Sales!G:G,Sales!B:B,C420,Sales!E:E,$F$402)","v":0},{"$f":"SUMIFS(Deposit!C:C,Deposit!A:A,C420,Deposit!B:B,$F$402)","v":0},0]
[null,null,"1900-01-12",{"$f":"SUMIFS(Sales!H:H,Sales!B:B,C421,Sales!E:E,$F$402)","v":0},{"$f":"SUMIFS(Sales!I:I,Sales!B:B,C421,Sales!E:E,$F$402)","v":0},0,{"$f":"SUMIFS(Sales!G:G,Sales!B:B,C421,Sales!E:E,$F$402)","v":0},{"$f":"SUMIFS(Deposit!C:C,Deposit!A:A,C421,Deposit!B:B,$F$402)","v":0},0]
[null,null,"1900-01-13",{"$f":"SUMIFS(Sales!H:H,Sales!B:B,C422,Sales!E:E,$F$402)","v":0},{"$f":"SUMIFS(Sales!I:I,Sales!B:B,C422,Sales!E:E,$F$402)","v":0},0,{"$f":"SUMIFS(Sales!G:G,Sales!B:B,C422,Sales!E:E,$F$402)","v":0},{"$f":"SUMIFS(Deposit!C:C,Deposit!A:A,C422,Deposit!B:B,$F$402)","v":0},0]
[null,null,"1900-01-14",{"$f":"SUMIFS(Sales!H:H,Sales!B:B,C423,Sales!E:E,$F$402)","v":0},{"$f":"SUMIFS(Sales!I:I,Sales!B:B,C423,Sales!E:E,$F$402)","v":0},0,{"$f":"SUMIFS(Sales!G:G,Sales!B:B,C423,Sales!E:E,$F$402)","v":0},{"$f":"SUMIFS(Deposit!C:C,Deposit!A:A,C423,Deposit!B:B,$F$402)","v":0},0]
[null,null,"1900-01-15",{"$f":"SUMIFS(Sales!H:H,Sales!B:B,C424,Sales!E:E,$F$402)","v":0},{"$f":"SUMIFS(Sales!I:I,Sales!B:B,C424,Sales!E:E,$F$402)","v":0},0,{"$f":"SUMIFS(Sales!G:G,Sales!B:B,C424,Sales!E:E,$F$402)","v":0},{"$f":"SUMIFS(Deposit!C:C,Deposit!A:A,C424,Deposit!B:B,$F$402)","v":0},0]
[null,null,"1900-01-16",{"$f":"SUMIFS(Sales!H:H,Sales!B:B,C425,Sales!E:E,$F$402)","v":0},{"$f":"SUMIFS(Sales!I:I,Sales!B:B,C425,Sales!E:E,$F$402)","v":0},0,{"$f":"SUMIFS(Sales!G:G,Sales!B:B,C425,Sales!E:E,$F$402)","v":0},{"$f":"SUMIFS(Deposit!C:C,Deposit!A:A,C425,Deposit!B:B,$F$402)","v":0},0]
[null,null,"1900-01-17",{"$f":"SUMIFS(Sales!H:H,Sales!B:B,C426,Sales!E:E,$F$402)","v":0},{"$f":"SUMIFS(Sales!I:I,Sales!B:B,C426,Sales!E:E,$F$402)","v":0},0,{"$f":"SUMIFS(Sales!G:G,Sales!B:B,C426,Sales!E:E,$F$402)","v":0},{"$f":"SUMIFS(Deposit!C:C,Deposit!A:A,C426,Deposit!B:B,$F$402)","v":0},0]
[null,null,"1900-01-18",{"$f":"SUMIFS(Sales!H:H,Sales!B:B,C427,Sales!E:E,$F$402)","v":0},{"$f":"SUMIFS(Sales!I:I,Sales!B:B,C427,Sales!E:E,$F$402)","v":0},0,{"$f":"SUMIFS(Sales!G:G,Sales!B:B,C427,Sales!E:E,$F$402)","v":0},{"$f":"SUMIFS(Deposit!C:C,Deposit!A:A,C427,Deposit!B:B,$F$402)","v":0},0]
[null,null,"1900-01-19",{"$f":"SUMIFS(Sales!H:H,Sales!B:B,C428,Sales!E:E,$F$402)","v":0},{"$f":"SUMIFS(Sales!I:I,Sales!B:B,C428,Sales!E:E,$F$402)","v":0},0,{"$f":"SUMIFS(Sales!G:G,Sales!B:B,C428,Sales!E:E,$F$402)","v":0},{"$f":"SUMIFS(Deposit!C:C,Deposit!A:A,C428,Deposit!B:B,$F$402)","v":0},0]
[null,null,"1900-01-20",{"$f":"SUMIFS(Sales!H:H,Sales!B:B,C429,Sales!E:E,$F$402)","v":0},{"$f":"SUMIFS(Sales!I:I,Sales!B:B,C429,Sales!E:E,$F$402)","v":0},0,{"$f":"SUMIFS(Sales!G:G,Sales!B:B,C429,Sales!E:E,$F$402)","v":0},{"$f":"SUMIFS(Deposit!C:C,Deposit!A:A,C429,Deposit!B:B,$F$402)","v":0},0]
[null,null,"1900-01-21",{"$f":"SUMIFS(Sales!H:H,Sales!B:B,C430,Sales!E:E,$F$402)","v":0},{"$f":"SUMIFS(Sales!I:I,Sales!B:B,C430,Sales!E:E,$F$402)","v":0},0,{"$f":"SUMIFS(Sales!G:G,Sales!B:B,C430,Sales!E:E,$F$402)","v":0},{"$f":"SUMIFS(Deposit!C:C,Deposit!A:A,C430,Deposit!B:B,$F$402)","v":0},0]
[null,null,"1900-01-22",{"$f":"SUMIFS(Sales!H:H,Sales!B:B,C431,Sales!E:E,$F$402)","v":0},{"$f":"SUMIFS(Sales!I:I,Sales!B:B,C431,Sales!E:E,$F$402)","v":0},0,{"$f":"SUMIFS(Sales!G:G,Sales!B:B,C431,Sales!E:E,$F$402)","v":0},{"$f":"SUMIFS(Deposit!C:C,Deposit!A:A,C431,Deposit!B:B,$F$402)","v":0},0]
[null,null,"1900-01-23",{"$f":"SUMIFS(Sales!H:H,Sales!B:B,C432,Sales!E:E,$F$402)","v":0},{"$f":"SUMIFS(Sales!I:I,Sales!B:B,C432,Sales!E:E,$F$402)","v":0},0,{"$f":"SUMIFS(Sales!G:G,Sales!B:B,C432,Sales!E:E,$F$402)","v":0},{"$f":"SUMIFS(Deposit!C:C,Deposit!A:A,C432,Deposit!B:B,$F$402)","v":0},0]
[null,null,"1900-01-24",{"$f":"SUMIFS(Sales!H:H,Sales!B:B,C433,Sales!E:E,$F$402)","v":0},{"$f":"SUMIFS(Sales!I:I,Sales!B:B,C433,Sales!E:E,$F$402)","v":0},0,{"$f":"SUMIFS(Sales!G:G,Sales!B:B,C433,Sales!E:E,$F$402)","v":0},{"$f":"SUMIFS(Deposit!C:C,Deposit!A:A,C433,Deposit!B:B,$F$402)","v":0},0]
[null,null,"1900-01-25",{"$f":"SUMIFS(Sales!H:H,Sales!B:B,C434,Sales!E:E,$F$402)","v":0},{"$f":"SUMIFS(Sales!I:I,Sales!B:B,C434,Sales!E:E,$F$402)","v":0},0,{"$f":"SUMIFS(Sales!G:G,Sales!B:B,C434,Sales!E:E,$F$402)","v":0},{"$f":"SUMIFS(Deposit!C:C,Deposit!A:A,C434,Deposit!B:B,$F$402)","v":0},0]
[null,null,"1900-01-26",{"$f":"SUMIFS(Sales!H:H,Sales!B:B,C435,Sales!E:E,$F$402)","v":0},{"$f":"SUMIFS(Sales!I:I,Sales!B:B,C435,Sales!E:E,$F$402)","v":0},0,{"$f":"SUMIFS(Sales!G:G,Sales!B:B,C435,Sales!E:E,$F$402)","v":0},{"$f":"SUMIFS(Deposit!C:C,Deposit!A:A,C435,Deposit!B:B,$F$402)","v":0},0]
[null,null,"1900-01-27",{"$f":"SUMIFS(Sales!H:H,Sales!B:B,C436,Sales!E:E,$F$402)","v":0},{"$f":"SUMIFS(Sales!I:I,Sales!B:B,C436,Sales!E:E,$F$402)","v":0},0,{"$f":"SUMIFS(Sales!G:G,Sales!B:B,C436,Sales!E:E,$F$402)","v":0},{"$f":"SUMIFS(Deposit!C:C,Deposit!A:A,C436,Deposit!B:B,$F$402)","v":0},0]
[null,null,"1900-01-28",{"$f":"SUMIFS(Sales!H:H,Sales!B:B,C437,Sales!E:E,$F$402)","v":0},{"$f":"SUMIFS(Sales!I:I,Sales!B:B,C437,Sales!E:E,$F$402)","v":0},0,{"$f":"SUMIFS(Sales!G:G,Sales!B:B,C437,Sales!E:E,$F$402)","v":0},{"$f":"SUMIFS(Deposit!C:C,Deposit!A:A,C437,Deposit!B:B,$F$402)","v":0},0]
[null,null,"1900-01-29",{"$f":"SUMIFS(Sales!H:H,Sales!B:B,C438,Sales!E:E,$F$402)","v":0},{"$f":"SUMIFS(Sales!I:I,Sales!B:B,C438,Sales!E:E,$F$402)","v":0},0,{"$f":"SUMIFS(Sales!G:G,Sales!B:B,C438,Sales!E:E,$F$402)","v":0},{"$f":"SUMIFS(Deposit!C:C,Deposit!A:A,C438,Deposit!B:B,$F$402)","v":0},0]
[null,null,"1900-01-30",{"$f":"SUMIFS(Sales!H:H,Sales!B:B,C439,Sales!E:E,$F$402)","v":0},{"$f":"SUMIFS(Sales!I:I,Sales!B:B,C439,Sales!E:E,$F$402)","v":0},0,{"$f":"SUMIFS(Sales!G:G,Sales!B:B,C439,Sales!E:E,$F$402)","v":0},{"$f":"SUMIFS(Deposit!C:C,Deposit!A:A,C439,Deposit!B:B,$F$402)","v":0},0]
[]
[]
[]
[]
[]
[]
[]
[]
[]
[]
[null,null,null,null,"كـــــــشــــــــف حــــســـــاب"]
[]
[null,null,null,null,")",{"$f":"C16","v":0},"("]
[]
[null,null,"بيان","رصيد أول","المسحوبات","الخصم","الصافي","السدادات","رصيد آخر"]
[null,null,"قيمة",{"$f":"D30","v":0},{"$f":"SUM(D459:D489)","v":0},{"$f":"SUM(E459:E489)","v":0},{"$f":"SUM(F459:F489)","v":0},{"$f":"SUM(G459:H489)","v":0},{"$f":"D455+E455-F455-H455","v":0}]
[]
[null,null,"التاريخ","حركة المبيعات",null,null,"حركة التسديدات"]
[null,null,null,"المسحوبات","الخصم","الصافي","سداد بيع","سداد مستحقات","رصيد اليوم"]
[null,null,{"$f":"Coding!D4","v":"00:00:00"},{"$f":"SUMIFS(Sales!H:H,Sales!B:B,C459,Sales!E:E,$F$452)","v":0},{"$f":"SUMIFS(Sales!I:I,Sales!B:B,C459,Sales!E:E,$F$452)","v":0},{"$f":"D459-E459","v":0},{"$f":"SUMIFS(Sales!G:G,Sales!B:B,C459,Sales!E:E,$F$452)","v":0},{"$f":"SUMIFS(Deposit!C:C,Deposit!A:A,C459,Deposit!B:B,$F$452)","v":0},{"$f":"D455+D459-E459-G459-H459","v":0}]
[null,null,{"$f":"C459+1","v":"1900-01-01"},{"$f":"SUMIFS(Sales!H:H,Sales!B:B,C460,Sales!E:E,$F$452)","v":0},{"$f":"SUMIFS(Sales!I:I,Sales!B:B,C460,Sales!E:E,$F$452)","v":0},{"$f":"D460-E460","v":0},{"$f":"SUMIFS(Sales!G:G,Sales!B:B,C460,Sales!E:E,$F$452)","v":0},{"$f":"SUMIFS(Deposit!C:C,Deposit!A:A,C460,Deposit!B:B,$F$452)","v":0},{"$f":"I459+D460-E460-G460-H460","v":0}]
[null,null,{"$f":"C460+1","v":"1900-01-02"},{"$f":"SUMIFS(Sales!H:H,Sales!B:B,C461,Sales!E:E,$F$452)","v":0},{"$f":"SUMIFS(Sales!I:I,Sales!B:B,C461,Sales!E:E,$F$452)","v":0},0,{"$f":"SUMIFS(Sales!G:G,Sales!B:B,C461,Sales!E:E,$F$452)","v":0},{"$f":"SUMIFS(Deposit!C:C,Deposit!A:A,C461,Deposit!B:B,$F$452)","v":0},{"$f":"I460+D461-E461-G461-H461","v":0}]
[null,null,"1900-01-03",{"$f":"SUMIFS(Sales!H:H,Sales!B:B,C462,Sales!E:E,$F$452)","v":0},{"$f":"SUMIFS(Sales!I:I,Sales!B:B,C462,Sales!E:E,$F$452)","v":0},0,{"$f":"SUMIFS(Sales!G:G,Sales!B:B,C462,Sales!E:E,$F$452)","v":0},{"$f":"SUMIFS(Deposit!C:C,Deposit!A:A,C462,Deposit!B:B,$F$452)","v":0},0]
[null,null,"1900-01-04",{"$f":"SUMIFS(Sales!H:H,Sales!B:B,C463,Sales!E:E,$F$452)","v":0},{"$f":"SUMIFS(Sales!I:I,Sales!B:B,C463,Sales!E:E,$F$452)","v":0},0,{"$f":"SUMIFS(Sales!G:G,Sales!B:B,C463,Sales!E:E,$F$452)","v":0},{"$f":"SUMIFS(Deposit!C:C,Deposit!A:A,C463,Deposit!B:B,$F$452)","v":0},0]
[null,null,"1900-01-05",{"$f":"SUMIFS(Sales!H:H,Sales!B:B,C464,Sales!E:E,$F$452)","v":0},{"$f":"SUMIFS(Sales!I:I,Sales!B:B,C464,Sales!E:E,$F$452)","v":0},0,{"$f":"SUMIFS(Sales!G:G,Sales!B:B,C464,Sales!E:E,$F$452)","v":0},{"$f":"SUMIFS(Deposit!C:C,Deposit!A:A,C464,Deposit!B:B,$F$452)","v":0},0]
[null,null,"1900-01-06",{"$f":"SUMIFS(Sales!H:H,Sales!B:B,C465,Sales!E:E,$F$452)","v":0},{"$f":"SUMIFS(Sales!I:I,Sales!B:B,C465,Sales!E:E,$F$452)","v":0},0,{"$f":"SUMIFS(Sales!G:G,Sales!B:B,C465,Sales!E:E,$F$452)","v":0},{"$f":"SUMIFS(Deposit!C:C,Deposit!A:A,C465,Deposit!B:B,$F$452)","v":0},0]
[null,null,"1900-01-07",{"$f":"SUMIFS(Sales!H:H,Sales!B:B,C466,Sales!E:E,$F$452)","v":0},{"$f":"SUMIFS(Sales!I:I,Sales!B:B,C466,Sales!E:E,$F$452)","v":0},0,{"$f":"SUMIFS(Sales!G:G,Sales!B:B,C466,Sales!E:E,$F$452)","v":0},{"$f":"SUMIFS(Deposit!C:C,Deposit!A:A,C466,Deposit!B:B,$F$452)","v":0},0]
[null,null,"1900-01-08",{"$f":"SUMIFS(Sales!H:H,Sales!B:B,C467,Sales!E:E,$F$452)","v":0},{"$f":"SUMIFS(Sales!I:I,Sales!B:B,C467,Sales!E:E,$F$452)","v":0},0,{"$f":"SUMIFS(Sales!G:G,Sales!B:B,C467,Sales!E:E,$F$452)","v":0},{"$f":"SUMIFS(Deposit!C:C,Deposit!A:A,C467,Deposit!B:B,$F$452)","v":0},0]
[null,null,"1900-01-09",{"$f":"SUMIFS(Sales!H:H,Sales!B:B,C468,Sales!E:E,$F$452)","v":0},{"$f":"SUMIFS(Sales!I:I,Sales!B:B,C468,Sales!E:E,$F$452)","v":0},0,{"$f":"SUMIFS(Sales!G:G,Sales!B:B,C468,Sales!E:E,$F$452)","v":0},{"$f":"SUMIFS(Deposit!C:C,Deposit!A:A,C468,Deposit!B:B,$F$452)","v":0},0]
[null,null,"1900-01-10",{"$f":"SUMIFS(Sales!H:H,Sales!B:B,C469,Sales!E:E,$F$452)","v":0},{"$f":"SUMIFS(Sales!I:I,Sales!B:B,C469,Sales!E:E,$F$452)","v":0},0,{"$f":"SUMIFS(Sales!G:G,Sales!B:B,C469,Sales!E:E,$F$452)","v":0},{"$f":"SUMIFS(Deposit!C:C,Deposit!A:A,C469,Deposit!B:B,$F$452)","v":0},0]
[null,null,"1900-01-11",{"$f":"SUMIFS(Sales!H:H,Sales!B:B,C470,Sales!E:E,$F$452)","v":0},{"$f":"SUMIFS(Sales!I:I,Sales!B:B,C470,Sales!E:E,$F$452)","v":0},0,{"$f":"SUMIFS(Sales!G:G,Sales!B:B,C470,Sales!E:E,$F$452)","v":0},{"$f":"SUMIFS(Deposit!C:C,Deposit!A:A,C470,Deposit!B:B,$F$452)","v":0},0]
[null,null,"1900-01-12",{"$f":"SUMIFS(Sales!H:H,Sales!B:B,C471,Sales!E:E,$F$452)","v":0},{"$f":"SUMIFS(Sales!I:I,Sales!B:B,C471,Sales!E:E,$F$452)","v":0},0,{"$f":"SUMIFS(Sales!G:G,Sales!B:B,C471,Sales!E:E,$F$452)","v":0},{"$f":"SUMIFS(Deposit!C:C,Deposit!A:A,C471,Deposit!B:B,$F$452)","v":0},0]
[null,null,"1900-01-13",{"$f":"SUMIFS(Sales!H:H,Sales!B:B,C472,Sales!E:E,$F$452)","v":0},{"$f":"SUMIFS(Sales!I:I,Sales!B:B,C472,Sales!E:E,$F$452)","v":0},0,{"$f":"SUMIFS(Sales!G:G,Sales!B:B,C472,Sales!E:E,$F$452)","v":0},{"$f":"SUMIFS(Deposit!C:C,Deposit!A:A,C472,Deposit!B:B,$F$452)","v":0},0]
[null,null,"1900-01-14",{"$f":"SUMIFS(Sales!H:H,Sales!B:B,C473,Sales!E:E,$F$452)","v":0},{"$f":"SUMIFS(Sales!I:I,Sales!B:B,C473,Sales!E:E,$F$452)","v":0},0,{"$f":"SUMIFS(Sales!G:G,Sales!B:B,C473,Sales!E:E,$F$452)","v":0},{"$f":"SUMIFS(Deposit!C:C,Deposit!A:A,C473,Deposit!B:B,$F$452)","v":0},0]
[null,null,"1900-01-15",{"$f":"SUMIFS(Sales!H:H,Sales!B:B,C474,Sales!E:E,$F$452)","v":0},{"$f":"SUMIFS(Sales!I:I,Sales!B:B,C474,Sales!E:E,$F$452)","v":0},0,{"$f":"SUMIFS(Sales!G:G,Sales!B:B,C474,Sales!E:E,$F$452)","v":0},{"$f":"SUMIFS(Deposit!C:C,Deposit!A:A,C474,Deposit!B:B,$F$452)","v":0},0]
[null,null,"1900-01-16",{"$f":"SUMIFS(Sales!H:H,Sales!B:B,C475,Sales!E:E,$F$452)","v":0},{"$f":"SUMIFS(Sales!I:I,Sales!B:B,C475,Sales!E:E,$F$452)","v":0},0,{"$f":"SUMIFS(Sales!G:G,Sales!B:B,C475,Sales!E:E,$F$452)","v":0},{"$f":"SUMIFS(Deposit!C:C,Deposit!A:A,C475,Deposit!B:B,$F$452)","v":0},0]
[null,null,"1900-01-17",{"$f":"SUMIFS(Sales!H:H,Sales!B:B,C476,Sales!E:E,$F$452)","v":0},{"$f":"SUMIFS(Sales!I:I,Sales!B:B,C476,Sales!E:E,$F$452)","v":0},0,{"$f":"SUMIFS(Sales!G:G,Sales!B:B,C476,Sales!E:E,$F$452)","v":0},{"$f":"SUMIFS(Deposit!C:C,Deposit!A:A,C476,Deposit!B:B,$F$452)","v":0},0]
[null,null,"1900-01-18",{"$f":"SUMIFS(Sales!H:H,Sales!B:B,C477,Sales!E:E,$F$452)","v":0},{"$f":"SUMIFS(Sales!I:I,Sales!B:B,C477,Sales!E:E,$F$452)","v":0},0,{"$f":"SUMIFS(Sales!G:G,Sales!B:B,C477,Sales!E:E,$F$452)","v":0},{"$f":"SUMIFS(Deposit!C:C,Deposit!A:A,C477,Deposit!B:B,$F$452)","v":0},0]
[null,null,"1900-01-19",{"$f":"SUMIFS(Sales!H:H,Sales!B:B,C478,Sales!E:E,$F$452)","v":0},{"$f":"SUMIFS(Sales!I:I,Sales!B:B,C478,Sales!E:E,$F$452)","v":0},0,{"$f":"SUMIFS(Sales!G:G,Sales!B:B,C478,Sales!E:E,$F$452)","v":0},{"$f":"SUMIFS(Deposit!C:C,Deposit!A:A,C478,Deposit!B:B,$F$452)","v":0},0]
[null,null,"1900-01-20",{"$f":"SUMIFS(Sales!H:H,Sales!B:B,C479,Sales!E:E,$F$452)","v":0},{"$f":"SUMIFS(Sales!I:I,Sales!B:B,C479,Sales!E:E,$F$452)","v":0},0,{"$f":"SUMIFS(Sales!G:G,Sales!B:B,C479,Sales!E:E,$F$452)","v":0},{"$f":"SUMIFS(Deposit!C:C,Deposit!A:A,C479,Deposit!B:B,$F$452)","v":0},0]
[null,null,"1900-01-21",{"$f":"SUMIFS(Sales!H:H,Sales!B:B,C480,Sales!E:E,$F$452)","v":0},{"$f":"SUMIFS(Sales!I:I,Sales!B:B,C480,Sales!E:E,$F$452)","v":0},0,{"$f":"SUMIFS(Sales!G:G,Sales!B:B,C480,Sales!E:E,$F$452)","v":0},{"$f":"SUMIFS(Deposit!C:C,Deposit!A:A,C480,Deposit!B:B,$F$452)","v":0},0]
[null,null,"1900-01-22",{"$f":"SUMIFS(Sales!H:H,Sales!B:B,C481,Sales!E:E,$F$452)","v":0},{"$f":"SUMIFS(Sales!I:I,Sales!B:B,C481,Sales!E:E,$F$452)","v":0},0,{"$f":"SUMIFS(Sales!G:G,Sales!B:B,C481,Sales!E:E,$F$452)","v":0},{"$f":"SUMIFS(Deposit!C:C,Deposit!A:A,C481,Deposit!B:B,$F$452)","v":0},0]
[null,null,"1900-01-23",{"$f":"SUMIFS(Sales!H:H,Sales!B:B,C482,Sales!E:E,$F$452)","v":0},{"$f":"SUMIFS(Sales!I:I,Sales!B:B,C482,Sales!E:E,$F$452)","v":0},0,{"$f":"SUMIFS(Sales!G:G,Sales!B:B,C482,Sales!E:E,$F$452)","v":0},{"$f":"SUMIFS(Deposit!C:C,Deposit!A:A,C482,Deposit!B:B,$F$452)","v":0},0]
[null,null,"1900-01-24",{"$f":"SUMIFS(Sales!H:H,Sales!B:B,C483,Sales!E:E,$F$452)","v":0},{"$f":"SUMIFS(Sales!I:I,Sales!B:B,C483,Sales!E:E,$F$452)","v":0},0,{"$f":"SUMIFS(Sales!G:G,Sales!B:B,C483,Sales!E:E,$F$452)","v":0},{"$f":"SUMIFS(Deposit!C:C,Deposit!A:A,C483,Deposit!B:B,$F$452)","v":0},0]
[null,null,"1900-01-25",{"$f":"SUMIFS(Sales!H:H,Sales!B:B,C484,Sales!E:E,$F$452)","v":0},{"$f":"SUMIFS(Sales!I:I,Sales!B:B,C484,Sales!E:E,$F$452)","v":0},0,{"$f":"SUMIFS(Sales!G:G,Sales!B:B,C484,Sales!E:E,$F$452)","v":0},{"$f":"SUMIFS(Deposit!C:C,Deposit!A:A,C484,Deposit!B:B,$F$452)","v":0},0]
[null,null,"1900-01-26",{"$f":"SUMIFS(Sales!H:H,Sales!B:B,C485,Sales!E:E,$F$452)","v":0},{"$f":"SUMIFS(Sales!I:I,Sales!B:B,C485,Sales!E:E,$F$452)","v":0},0,{"$f":"SUMIFS(Sales!G:G,Sales!B:B,C485,Sales!E:E,$F$452)","v":0},{"$f":"SUMIFS(Deposit!C:C,Deposit!A:A,C485,Deposit!B:B,$F$452)","v":0},0]
[null,null,"1900-01-27",{"$f":"SUMIFS(Sales!H:H,Sales!B:B,C486,Sales!E:E,$F$452)","v":0},{"$f":"SUMIFS(Sales!I:I,Sales!B:B,C486,Sales!E:E,$F$452)","v":0},0,{"$f":"SUMIFS(Sales!G:G,Sales!B:B,C486,Sales!E:E,$F$452)","v":0},{"$f":"SUMIFS(Deposit!C:C,Deposit!A:A,C486,Deposit!B:B,$F$452)","v":0},0]
[null,null,"1900-01-28",{"$f":"SUMIFS(Sales!H:H,Sales!B:B,C487,Sales!E:E,$F$452)","v":0},{"$f":"SUMIFS(Sales!I:I,Sales!B:B,C487,Sales!E:E,$F$452)","v":0},0,{"$f":"SUMIFS(Sales!G:G,Sales!B:B,C487,Sales!E:E,$F$452)","v":0},{"$f":"SUMIFS(Deposit!C:C,Deposit!A:A,C487,Deposit!B:B,$F$452)","v":0},0]
[null,null,"1900-01-29",{"$f":"SUMIFS(Sales!H:H,Sales!B:B,C488,Sales!E:E,$F$452)","v":0},{"$f":"SUMIFS(Sales!I:I,Sales!B:B,C488,Sales!E:E,$F$452)","v":0},0,{"$f":"SUMIFS(Sales!G:G,Sales!B:B,C488,Sales!E:E,$F$452)","v":0},{"$f":"SUMIFS(Deposit!C:C,Deposit!A:A,C488,Deposit!B:B,$F$452)","v":0},0]
[null,null,"1900-01-30",{"$f":"SUMIFS(Sales!H:H,Sales!B:B,C489,Sales!E:E,$F$452)","v":0},{"$f":"SUMIFS(Sales!I:I,Sales!B:B,C489,Sales!E:E,$F$452)","v":0},0,{"$f":"SUMIFS(Sales!G:G,Sales!B:B,C489,Sales!E:E,$F$452)","v":0},{"$f":"SUMIFS(Deposit!C:C,Deposit!A:A,C489,Deposit!B:B,$F$452)","v":0},0]
[]
[]
[]
[]
[]
[]
[]
[]
[]
[]
[null,null,null,null,"كـــــــشــــــــف حــــســـــاب"]
[]
[null,null,null,null,")",{"$f":"C17","v":0},"("]
[]
[null,null,"بيان","رصيد أول","المسحوبات","الخصم","الصافي","السدادات","رصيد آخر"]
[null,null,"قيمة",{"$f":"D31","v":0},{"$f":"SUM(D509:D539)","v":0},{"$f":"SUM(E509:E539)","v":0},{"$f":"SUM(F509:F539)","v":0},{"$f":"SUM(G509:H539)","v":0},{"$f":"D505+E505-F505-H505","v":0}]
[]
[null,null,"التاريخ","حركة المبيعات",null,null,"حركة التسديدات"]
[null,null,null,"المسحوبات","الخصم","الصافي","سداد بيع","سداد مستحقات","رصيد اليوم"]
[null,null,{"$f":"Coding!D4","v":"00:00:00"},{"$f":"SUMIFS(Sales!H:H,Sales!B:B,C509,Sales!E:E,$F$502)","v":0},{"$f":"SUMIFS(Sales!I:I,Sales!B:B,C509,Sales!E:E,$F$502)","v":0},{"$f":"D509-E509","v":0},{"$f":"SUMIFS(Sales!G:G,Sales!B:B,C509,Sales!E:E,$F$502)","v":0},{"$f":"SUMIFS(Deposit!C:C,Deposit!A:A,C509,Deposit!B:B,$F$502)","v":0},{"$f":"D505+D509-E509-G509-H509","v":0}]
[null,null,{"$f":"C509+1","v":"1900-01-01"},{"$f":"SUMIFS(Sales!H:H,Sales!B:B,C510,Sales!E:E,$F$502)","v":0},{"$f":"SUMIFS(Sales!I:I,Sales!B:B,C510,Sales!E:E,$F$502)","v":0},{"$f":"D510-E510","v":0},{"$f":"SUMIFS(Sales!G:G,Sales!B:B,C510,Sales!E:E,$F$502)","v":0},{"$f":"SUMIFS(Deposit!C:C,Deposit!A:A,C510,Deposit!B:B,$F$502)","v":0},{"$f":"I509+D510-E510-G510-H510","v":0}]
[null,null,{"$f":"C510+1","v":"1900-01-02"},{"$f":"SUMIFS(Sales!H:H,Sales!B:B,C511,Sales!E:E,$F$502)","v":0},{"$f":"SUMIFS(Sales!I:I,Sales!B:B,C511,Sales!E:E,$F$502)","v":0},0,{"$f":"SUMIFS(Sales!G:G,Sales!B:B,C511,Sales!E:E,$F$502)","v":0},{"$f":"SUMIFS(Deposit!C:C,Deposit!A:A,C511,Deposit!B:B,$F$502)","v":0},{"$f":"I510+D511-E511-G511-H511","v":0}]
[null,null,"1900-01-03",{"$f":"SUMIFS(Sales!H:H,Sales!B:B,C512,Sales!E:E,$F$502)","v":0},{"$f":"SUMIFS(Sales!I:I,Sales!B:B,C512,Sales!E:E,$F$502)","v":0},0,{"$f":"SUMIFS(Sales!G:G,Sales!B:B,C512,Sales!E:E,$F$502)","v":0},{"$f":"SUMIFS(Deposit!C:C,Deposit!A:A,C512,Deposit!B:B,$F$502)","v":0},0]
[null,null,"1900-01-04",{"$f":"SUMIFS(Sales!H:H,Sales!B:B,C513,Sales!E:E,$F$502)","v":0},{"$f":"SUMIFS(Sales!I:I,Sales!B:B,C513,Sales!E:E,$F$502)","v":0},0,{"$f":"SUMIFS(Sales!G:G,Sales!B:B,C513,Sales!E:E,$F$502)","v":0},{"$f":"SUMIFS(Deposit!C:C,Deposit!A:A,C513,Deposit!B:B,$F$502)","v":0},0]
[null,null,"1900-01-05",{"$f":"SUMIFS(Sales!H:H,Sales!B:B,C514,Sales!E:E,$F$502)","v":0},{"$f":"SUMIFS(Sales!I:I,Sales!B:B,C514,Sales!E:E,$F$502)","v":0},0,{"$f":"SUMIFS(Sales!G:G,Sales!B:B,C514,Sales!E:E,$F$502)","v":0},{"$f":"SUMIFS(Deposit!C:C,Deposit!A:A,C514,Deposit!B:B,$F$502)","v":0},0]
[null,null,"1900-01-06",{"$f":"SUMIFS(Sales!H:H,Sales!B:B,C515,Sales!E:E,$F$502)","v":0},{"$f":"SUMIFS(Sales!I:I,Sales!B:B,C515,Sales!E:E,$F$502)","v":0},0,{"$f":"SUMIFS(Sales!G:G,Sales!B:B,C515,Sales!E:E,$F$502)","v":0},{"$f":"SUMIFS(Deposit!C:C,Deposit!A:A,C515,Deposit!B:B,$F$502)","v":0},0]
[null,null,"1900-01-07",{"$f":"SUMIFS(Sales!H:H,Sales!B:B,C516,Sales!E:E,$F$502)","v":0},{"$f":"SUMIFS(Sales!I:I,Sales!B:B,C516,Sales!E:E,$F$502)","v":0},0,{"$f":"SUMIFS(Sales!G:G,Sales!B:B,C516,Sales!E:E,$F$502)","v":0},{"$f":"SUMIFS(Deposit!C:C,Deposit!A:A,C516,Deposit!B:B,$F$502)","v":0},0]
[null,null,"1900-01-08",{"$f":"SUMIFS(Sales!H:H,Sales!B:B,C517,Sales!E:E,$F$502)","v":0},{"$f":"SUMIFS(Sales!I:I,Sales!B:B,C517,Sales!E:E,$F$502)","v":0},0,{"$f":"SUMIFS(Sales!G:G,Sales!B:B,C517,Sales!E:E,$F$502)","v":0},{"$f":"SUMIFS(Deposit!C:C,Deposit!A:A,C517,Deposit!B:B,$F$502)","v":0},0]
[null,null,"1900-01-09",{"$f":"SUMIFS(Sales!H:H,Sales!B:B,C518,Sales!E:E,$F$502)","v":0},{"$f":"SUMIFS(Sales!I:I,Sales!B:B,C518,Sales!E:E,$F$502)","v":0},0,{"$f":"SUMIFS(Sales!G:G,Sales!B:B,C518,Sales!E:E,$F$502)","v":0},{"$f":"SUMIFS(Deposit!C:C,Deposit!A:A,C518,Deposit!B:B,$F$502)","v":0},0]
[null,null,"1900-01-10",{"$f":"SUMIFS(Sales!H:H,Sales!B:B,C519,Sales!E:E,$F$502)","v":0},{"$f":"SUMIFS(Sales!I:I,Sales!B:B,C519,Sales!E:E,$F$502)","v":0},0,{"$f":"SUMIFS(Sales!G:G,Sales!B:B,C519,Sales!E:E,$F$502)","v":0},{"$f":"SUMIFS(Deposit!C:C,Deposit!A:A,C519,Deposit!B:B,$F$502)","v":0},0]
[null,null,"1900-01-11",{"$f":"SUMIFS(Sales!H:H,Sales!B:B,C520,Sales!E:E,$F$502)","v":0},{"$f":"SUMIFS(Sales!I:I,Sales!B:B,C520,Sales!E:E,$F$502)","v":0},0,{"$f":"SUMIFS(Sales!G:G,Sales!B:B,C520,Sales!E:E,$F$502)","v":0},{"$f":"SUMIFS(Deposit!C:C,Deposit!A:A,C520,Deposit!B:B,$F$502)","v":0},0]
[null,null,"1900-01-12",{"$f":"SUMIFS(Sales!H:H,Sales!B:B,C521,Sales!E:E,$F$502)","v":0},{"$f":"SUMIFS(Sales!I:I,Sales!B:B,C521,Sales!E:E,$F$502)","v":0},0,{"$f":"SUMIFS(Sales!G:G,Sales!B:B,C521,Sales!E:E,$F$502)","v":0},{"$f":"SUMIFS(Deposit!C:C,Deposit!A:A,C521,Deposit!B:B,$F$502)","v":0},0]
[null,null,"1900-01-13",{"$f":"SUMIFS(Sales!H:H,Sales!B:B,C522,Sales!E:E,$F$502)","v":0},{"$f":"SUMIFS(Sales!I:I,Sales!B:B,C522,Sales!E:E,$F$502)","v":0},0,{"$f":"SUMIFS(Sales!G:G,Sales!B:B,C522,Sales!E:E,$F$502)","v":0},{"$f":"SUMIFS(Deposit!C:C,Deposit!A:A,C522,Deposit!B:B,$F$502)","v":0},0]
[null,null,"1900-01-14",{"$f":"SUMIFS(Sales!H:H,Sales!B:B,C523,Sales!E:E,$F$502)","v":0},{"$f":"SUMIFS(Sales!I:I,Sales!B:B,C523,Sales!E:E,$F$502)","v":0},0,{"$f":"SUMIFS(Sales!G:G,Sales!B:B,C523,Sales!E:E,$F$502)","v":0},{"$f":"SUMIFS(Deposit!C:C,Deposit!A:A,C523,Deposit!B:B,$F$502)","v":0},0]
[null,null,"1900-01-15",{"$f":"SUMIFS(Sales!H:H,Sales!B:B,C524,Sales!E:E,$F$502)","v":0},{"$f":"SUMIFS(Sales!I:I,Sales!B:B,C524,Sales!E:E,$F$502)","v":0},0,{"$f":"SUMIFS(Sales!G:G,Sales!B:B,C524,Sales!E:E,$F$502)","v":0},{"$f":"SUMIFS(Deposit!C:C,Deposit!A:A,C524,Deposit!B:B,$F$502)","v":0},0]
[null,null,"1900-01-16",{"$f":"SUMIFS(Sales!H:H,Sales!B:B,C525,Sales!E:E,$F$502)","v":0},{"$f":"SUMIFS(Sales!I:I,Sales!B:B,C525,Sales!E:E,$F$502)","v":0},0,{"$f":"SUMIFS(Sales!G:G,Sales!B:B,C525,Sales!E:E,$F$502)","v":0},{"$f":"SUMIFS(Deposit!C:C,Deposit!A:A,C525,Deposit!B:B,$F$502)","v":0},0]
[null,null,"1900-01-17",{"$f":"SUMIFS(Sales!H:H,Sales!B:B,C526,Sales!E:E,$F$502)","v":0},{"$f":"SUMIFS(Sales!I:I,Sales!B:B,C526,Sales!E:E,$F$502)","v":0},0,{"$f":"SUMIFS(Sales!G:G,Sales!B:B,C526,Sales!E:E,$F$502)","v":0},{"$f":"SUMIFS(Deposit!C:C,Deposit!A:A,C526,Deposit!B:B,$F$502)","v":0},0]
[null,null,"1900-01-18",{"$f":"SUMIFS(Sales!H:H,Sales!B:B,C527,Sales!E:E,$F$502)","v":0},{"$f":"SUMIFS(Sales!I:I,Sales!B:B,C527,Sales!E:E,$F$502)","v":0},0,{"$f":"SUMIFS(Sales!G:G,Sales!B:B,C527,Sales!E:E,$F$502)","v":0},{"$f":"SUMIFS(Deposit!C:C,Deposit!A:A,C527,Deposit!B:B,$F$502)","v":0},0]
[null,null,"1900-01-19",{"$f":"SUMIFS(Sales!H:H,Sales!B:B,C528,Sales!E:E,$F$502)","v":0},{"$f":"SUMIFS(Sales!I:I,Sales!B:B,C528,Sales!E:E,$F$502)","v":0},0,{"$f":"SUMIFS(Sales!G:G,Sales!B:B,C528,Sales!E:E,$F$502)","v":0},{"$f":"SUMIFS(Deposit!C:C,Deposit!A:A,C528,Deposit!B:B,$F$502)","v":0},0]
[null,null,"1900-01-20",{"$f":"SUMIFS(Sales!H:H,Sales!B:B,C529,Sales!E:E,$F$502)","v":0},{"$f":"SUMIFS(Sales!I:I,Sales!B:B,C529,Sales!E:E,$F$502)","v":0},0,{"$f":"SUMIFS(Sales!G:G,Sales!B:B,C529,Sales!E:E,$F$502)","v":0},{"$f":"SUMIFS(Deposit!C:C,Deposit!A:A,C529,Deposit!B:B,$F$502)","v":0},0]
[null,null,"1900-01-21",{"$f":"SUMIFS(Sales!H:H,Sales!B:B,C530,Sales!E:E,$F$502)","v":0},{"$f":"SUMIFS(Sales!I:I,Sales!B:B,C530,Sales!E:E,$F$502)","v":0},0,{"$f":"SUMIFS(Sales!G:G,Sales!B:B,C530,Sales!E:E,$F$502)","v":0},{"$f":"SUMIFS(Deposit!C:C,Deposit!A:A,C530,Deposit!B:B,$F$502)","v":0},0]
[null,null,"1900-01-22",{"$f":"SUMIFS(Sales!H:H,Sales!B:B,C531,Sales!E:E,$F$502)","v":0},{"$f":"SUMIFS(Sales!I:I,Sales!B:B,C531,Sales!E:E,$F$502)","v":0},0,{"$f":"SUMIFS(Sales!G:G,Sales!B:B,C531,Sales!E:E,$F$502)","v":0},{"$f":"SUMIFS(Deposit!C:C,Deposit!A:A,C531,Deposit!B:B,$F$502)","v":0},0]
[null,null,"1900-01-23",{"$f":"SUMIFS(Sales!H:H,Sales!B:B,C532,Sales!E:E,$F$502)","v":0},{"$f":"SUMIFS(Sales!I:I,Sales!B:B,C532,Sales!E:E,$F$502)","v":0},0,{"$f":"SUMIFS(Sales!G:G,Sales!B:B,C532,Sales!E:E,$F$502)","v":0},{"$f":"SUMIFS(Deposit!C:C,Deposit!A:A,C532,Deposit!B:B,$F$502)","v":0},0]
[null,null,"1900-01-24",{"$f":"SUMIFS(Sales!H:H,Sales!B:B,C533,Sales!E:E,$F$502)","v":0},{"$f":"SUMIFS(Sales!I:I,Sales!B:B,C533,Sales!E:E,$F$502)","v":0},0,{"$f":"SUMIFS(Sales!G:G,Sales!B:B,C533,Sales!E:E,$F$502)","v":0},{"$f":"SUMIFS(Deposit!C:C,Deposit!A:A,C533,Deposit!B:B,$F$502)","v":0},0]
[null,null,"1900-01-25",{"$f":"SUMIFS(Sales!H:H,Sales!B:B,C534,Sales!E:E,$F$502)","v":0},{"$f":"SUMIFS(Sales!I:I,Sales!B:B,C534,Sales!E:E,$F$502)","v":0},0,{"$f":"SUMIFS(Sales!G:G,Sales!B:B,C534,Sales!E:E,$F$502)","v":0},{"$f":"SUMIFS(Deposit!C:C,Deposit!A:A,C534,Deposit!B:B,$F$502)","v":0},0]
[null,null,"1900-01-26",{"$f":"SUMIFS(Sales!H:H,Sales!B:B,C535,Sales!E:E,$F$502)","v":0},{"$f":"SUMIFS(Sales!I:I,Sales!B:B,C535,Sales!E:E,$F$502)","v":0},0,{"$f":"SUMIFS(Sales!G:G,Sales!B:B,C535,Sales!E:E,$F$502)","v":0},{"$f":"SUMIFS(Deposit!C:C,Deposit!A:A,C535,Deposit!B:B,$F$502)","v":0},0]
[null,null,"1900-01-27",{"$f":"SUMIFS(Sales!H:H,Sales!B:B,C536,Sales!E:E,$F$502)","v":0},{"$f":"SUMIFS(Sales!I:I,Sales!B:B,C536,Sales!E:E,$F$502)","v":0},0,{"$f":"SUMIFS(Sales!G:G,Sales!B:B,C536,Sales!E:E,$F$502)","v":0},{"$f":"SUMIFS(Deposit!C:C,Deposit!A:A,C536,Deposit!B:B,$F$502)","v":0},0]
[null,null,"1900-01-28",{"$f":"SUMIFS(Sales!H:H,Sales!B:B,C537,Sales!E:E,$F$502)","v":0},{"$f":"SUMIFS(Sales!I:I,Sales!B:B,C537,Sales!E:E,$F$502)","v":0},0,{"$f":"SUMIFS(Sales!G:G,Sales!B:B,C537,Sales!E:E,$F$502)","v":0},{"$f":"SUMIFS(Deposit!C:C,Deposit!A:A,C537,Deposit!B:B,$F$502)","v":0},0]
[null,null,"1900-01-29",{"$f":"SUMIFS(Sales!H:H,Sales!B:B,C538,Sales!E:E,$F$502)","v":0},{"$f":"SUMIFS(Sales!I:I,Sales!B:B,C538,Sales!E:E,$F$502)","v":0},0,{"$f":"SUMIFS(Sales!G:G,Sales!B:B,C538,Sales!E:E,$F$502)","v":0},{"$f":"SUMIFS(Deposit!C:C,Deposit!A:A,C538,Deposit!B:B,$F$502)","v":0},0]
[null,null,"1900-01-30",{"$f":"SUMIFS(Sales!H:H,Sales!B:B,C539,Sales!E:E,$F$502)","v":0},{"$f":"SUMIFS(Sales!I:I,Sales!B:B,C539,Sales!E:E,$F$502)","v":0},0,{"$f":"SUMIFS(Sales!G:G,Sales!B:B,C539,Sales!E:E,$F$502)","v":0},{"$f":"SUMIFS(Deposit!C:C,Deposit!A:A,C539,Deposit!B:B,$F$502)","v":0},0]
[]
[]
[]
[]
[]
[]
[]
[]
[]
[]
[null,null,null,null,"كـــــــشــــــــف حــــســـــاب"]
[]
[null,null,null,null,")",{"$f":"C18","v":0},"("]
[]
[null,null,"بيان","رصيد أول","المسحوبات","الخصم","الصافي","السدادات","رصيد آخر"]
[null,null,"قيمة",{"$f":"D32","v":0},{"$f":"SUM(D559:D589)","v":0},{"$f":"SUM(E559:E589)","v":0},{"$f":"SUM(F559:F589)","v":0},{"$f":"SUM(G559:H589)","v":0},{"$f":"D555+E555-F555-H555","v":0}]
[]
[null,null,"التاريخ","حركة المبيعات",null,null,"حركة التسديدات"]
[null,null,null,"المسحوبات","الخصم","الصافي","سداد بيع","سداد مستحقات","رصيد اليوم"]
[null,null,{"$f":"Coding!D4","v":"00:00:00"},{"$f":"SUMIFS(Sales!H:H,Sales!B:B,C559,Sales!E:E,$F$552)","v":0},{"$f":"SUMIFS(Sales!I:I,Sales!B:B,C559,Sales!E:E,$F$52)","v":0},{"$f":"D559-E559","v":0},{"$f":"SUMIFS(Sales!G:G,Sales!B:B,C559,Sales!E:E,$F$552)","v":0},{"$f":"SUMIFS(Deposit!C:C,Deposit!A:A,C559,Deposit!B:B,$F$552)","v":0},{"$f":"D555+D559-E559-G559-H559","v":0}]
[null,null,{"$f":"C559+1","v":"1900-01-01"},{"$f":"SUMIFS(Sales!H:H,Sales!B:B,C560,Sales!E:E,$F$552)","v":0},{"$f":"SUMIFS(Sales!I:I,Sales!B:B,C560,Sales!E:E,$F$52)","v":0},{"$f":"D560-E560","v":0},{"$f":"SUMIFS(Sales!G:G,Sales!B:B,C560,Sales!E:E,$F$552)","v":0},{"$f":"SUMIFS(Deposit!C:C,Deposit!A:A,C560,Deposit!B:B,$F$552)","v":0},{"$f":"I559+D560-E560-G560-H560","v":0}]
[null,null,{"$f":"C560+1","v":"1900-01-02"},{"$f":"SUMIFS(Sales!H:H,Sales!B:B,C561,Sales!E:E,$F$552)","v":0},{"$f":"SUMIFS(Sales!I:I,Sales!B:B,C561,Sales!E:E,$F$52)","v":0},0,{"$f":"SUMIFS(Sales!G:G,Sales!B:B,C561,Sales!E:E,$F$552)","v":0},{"$f":"SUMIFS(Deposit!C:C,Deposit!A:A,C561,Deposit!B:B,$F$552)","v":0},{"$f":"I560+D561-E561-G561-H561","v":0}]
[null,null,"1900-01-03",{"$f":"SUMIFS(Sales!H:H,Sales!B:B,C562,Sales!E:E,$F$552)","v":0},{"$f":"SUMIFS(Sales!I:I,Sales!B:B,C562,Sales!E:E,$F$52)","v":0},0,{"$f":"SUMIFS(Sales!G:G,Sales!B:B,C562,Sales!E:E,$F$552)","v":0},{"$f":"SUMIFS(Deposit!C:C,Deposit!A:A,C562,Deposit!B:B,$F$552)","v":0},0]
[null,null,"1900-01-04",{"$f":"SUMIFS(Sales!H:H,Sales!B:B,C563,Sales!E:E,$F$552)","v":0},{"$f":"SUMIFS(Sales!I:I,Sales!B:B,C563,Sales!E:E,$F$52)","v":0},0,{"$f":"SUMIFS(Sales!G:G,Sales!B:B,C563,Sales!E:E,$F$552)","v":0},{"$f":"SUMIFS(Deposit!C:C,Deposit!A:A,C563,Deposit!B:B,$F$552)","v":0},0]
[null,null,"1900-01-05",{"$f":"SUMIFS(Sales!H:H,Sales!B:B,C564,Sales!E:E,$F$552)","v":0},{"$f":"SUMIFS(Sales!I:I,Sales!B:B,C564,Sales!E:E,$F$52)","v":0},0,{"$f":"SUMIFS(Sales!G:G,Sales!B:B,C564,Sales!E:E,$F$552)","v":0},{"$f":"SUMIFS(Deposit!C:C,Deposit!A:A,C564,Deposit!B:B,$F$552)","v":0},0]
[null,null,"1900-01-06",{"$f":"SUMIFS(Sales!H:H,Sales!B:B,C565,Sales!E:E,$F$552)","v":0},{"$f":"SUMIFS(Sales!I:I,Sales!B:B,C565,Sales!E:E,$F$52)","v":0},0,{"$f":"SUMIFS(Sales!G:G,Sales!B:B,C565,Sales!E:E,$F$552)","v":0},{"$f":"SUMIFS(Deposit!C:C,Deposit!A:A,C565,Deposit!B:B,$F$552)","v":0},0]
[null,null,"1900-01-07",{"$f":"SUMIFS(Sales!H:H,Sales!B:B,C566,Sales!E:E,$F$552)","v":0},{"$f":"SUMIFS(Sales!I:I,Sales!B:B,C566,Sales!E:E,$F$52)","v":0},0,{"$f":"SUMIFS(Sales!G:G,Sales!B:B,C566,Sales!E:E,$F$552)","v":0},{"$f":"SUMIFS(Deposit!C:C,Deposit!A:A,C566,Deposit!B:B,$F$552)","v":0},0]
[null,null,"1900-01-08",{"$f":"SUMIFS(Sales!H:H,Sales!B:B,C567,Sales!E:E,$F$552)","v":0},{"$f":"SUMIFS(Sales!I:I,Sales!B:B,C567,Sales!E:E,$F$52)","v":0},0,{"$f":"SUMIFS(Sales!G:G,Sales!B:B,C567,Sales!E:E,$F$552)","v":0},{"$f":"SUMIFS(Deposit!C:C,Deposit!A:A,C567,Deposit!B:B,$F$552)","v":0},0]
[null,null,"1900-01-09",{"$f":"SUMIFS(Sales!H:H,Sales!B:B,C568,Sales!E:E,$F$552)","v":0},{"$f":"SUMIFS(Sales!I:I,Sales!B:B,C568,Sales!E:E,$F$52)","v":0},0,{"$f":"SUMIFS(Sales!G:G,Sales!B:B,C568,Sales!E:E,$F$552)","v":0},{"$f":"SUMIFS(Deposit!C:C,Deposit!A:A,C568,Deposit!B:B,$F$552)","v":0},0]
[null,null,"1900-01-10",{"$f":"SUMIFS(Sales!H:H,Sales!B:B,C569,Sales!E:E,$F$552)","v":0},{"$f":"SUMIFS(Sales!I:I,Sales!B:B,C569,Sales!E:E,$F$52)","v":0},0,{"$f":"SUMIFS(Sales!G:G,Sales!B:B,C569,Sales!E:E,$F$552)","v":0},{"$f":"SUMIFS(Deposit!C:C,Deposit!A:A,C569,Deposit!B:B,$F$552)","v":0},0]
[null,null,"1900-01-11",{"$f":"SUMIFS(Sales!H:H,Sales!B:B,C570,Sales!E:E,$F$552)","v":0},{"$f":"SUMIFS(Sales!I:I,Sales!B:B,C570,Sales!E:E,$F$52)","v":0},0,{"$f":"SUMIFS(Sales!G:G,Sales!B:B,C570,Sales!E:E,$F$552)","v":0},{"$f":"SUMIFS(Deposit!C:C,Deposit!A:A,C570,Deposit!B:B,$F$552)","v":0},0]
[null,null,"1900-01-12",{"$f":"SUMIFS(Sales!H:H,Sales!B:B,C571,Sales!E:E,$F$552)","v":0},{"$f":"SUMIFS(Sales!I:I,Sales!B:B,C571,Sales!E:E,$F$52)","v":0},0,{"$f":"SUMIFS(Sales!G:G,Sales!B:B,C571,Sales!E:E,$F$552)","v":0},{"$f":"SUMIFS(Deposit!C:C,Deposit!A:A,C571,Deposit!B:B,$F$552)","v":0},0]
[null,null,"1900-01-13",{"$f":"SUMIFS(Sales!H:H,Sales!B:B,C572,Sales!E:E,$F$552)","v":0},{"$f":"SUMIFS(Sales!I:I,Sales!B:B,C572,Sales!E:E,$F$52)","v":0},0,{"$f":"SUMIFS(Sales!G:G,Sales!B:B,C572,Sales!E:E,$F$552)","v":0},{"$f":"SUMIFS(Deposit!C:C,Deposit!A:A,C572,Deposit!B:B,$F$552)","v":0},0]
[null,null,"1900-01-14",{"$f":"SUMIFS(Sales!H:H,Sales!B:B,C573,Sales!E:E,$F$552)","v":0},{"$f":"SUMIFS(Sales!I:I,Sales!B:B,C573,Sales!E:E,$F$52)","v":0},0,{"$f":"SUMIFS(Sales!G:G,Sales!B:B,C573,Sales!E:E,$F$552)","v":0},{"$f":"SUMIFS(Deposit!C:C,Deposit!A:A,C573,Deposit!B:B,$F$552)","v":0},0]
[null,null,"1900-01-15",{"$f":"SUMIFS(Sales!H:H,Sales!B:B,C574,Sales!E:E,$F$552)","v":0},{"$f":"SUMIFS(Sales!I:I,Sales!B:B,C574,Sales!E:E,$F$52)","v":0},0,{"$f":"SUMIFS(Sales!G:G,Sales!B:B,C574,Sales!E:E,$F$552)","v":0},{"$f":"SUMIFS(Deposit!C:C,Deposit!A:A,C574,Deposit!B:B,$F$552)","v":0},0]
[null,null,"1900-01-16",{"$f":"SUMIFS(Sales!H:H,Sales!B:B,C575,Sales!E:E,$F$552)","v":0},{"$f":"SUMIFS(Sales!I:I,Sales!B:B,C575,Sales!E:E,$F$52)","v":0},0,{"$f":"SUMIFS(Sales!G:G,Sales!B:B,C575,Sales!E:E,$F$552)","v":0},{"$f":"SUMIFS(Deposit!C:C,Deposit!A:A,C575,Deposit!B:B,$F$552)","v":0},0]
[null,null,"1900-01-17",{"$f":"SUMIFS(Sales!H:H,Sales!B:B,C576,Sales!E:E,$F$552)","v":0},{"$f":"SUMIFS(Sales!I:I,Sales!B:B,C576,Sales!E:E,$F$52)","v":0},0,{"$f":"SUMIFS(Sales!G:G,Sales!B:B,C576,Sales!E:E,$F$552)","v":0},{"$f":"SUMIFS(Deposit!C:C,Deposit!A:A,C576,Deposit!B:B,$F$552)","v":0},0]
[null,null,"1900-01-18",{"$f":"SUMIFS(Sales!H:H,Sales!B:B,C577,Sales!E:E,$F$552)","v":0},{"$f":"SUMIFS(Sales!I:I,Sales!B:B,C577,Sales!E:E,$F$52)","v":0},0,{"$f":"SUMIFS(Sales!G:G,Sales!B:B,C577,Sales!E:E,$F$552)","v":0},{"$f":"SUMIFS(Deposit!C:C,Deposit!A:A,C577,Deposit!B:B,$F$552)","v":0},0]
[null,null,"1900-01-19",{"$f":"SUMIFS(Sales!H:H,Sales!B:B,C578,Sales!E:E,$F$552)","v":0},{"$f":"SUMIFS(Sales!I:I,Sales!B:B,C578,Sales!E:E,$F$52)","v":0},0,{"$f":"SUMIFS(Sales!G:G,Sales!B:B,C578,Sales!E:E,$F$552)","v":0},{"$f":"SUMIFS(Deposit!C:C,Deposit!A:A,C578,Deposit!B:B,$F$552)","v":0},0]
[null,null,"1900-01-20",{"$f":"SUMIFS(Sales!H:H,Sales!B:B,C579,Sales!E:E,$F$552)","v":0},{"$f":"SUMIFS(Sales!I:I,Sales!B:B,C579,Sales!E:E,$F$52)","v":0},0,{"$f":"SUMIFS(Sales!G:G,Sales!B:B,C579,Sales!E:E,$F$552)","v":0},{"$f":"SUMIFS(Deposit!C:C,Deposit!A:A,C579,Deposit!B:B,$F$552)","v":0},0]
[null,null,"1900-01-21",{"$f":"SUMIFS(Sales!H:H,Sales!B:B,C580,Sales!E:E,$F$552)","v":0},{"$f":"SUMIFS(Sales!I:I,Sales!B:B,C580,Sales!E:E,$F$52)","v":0},0,{"$f":"SUMIFS(Sales!G:G,Sales!B:B,C580,Sales!E:E,$F$552)","v":0},{"$f":"SUMIFS(Deposit!C:C,Deposit!A:A,C580,Deposit!B:B,$F$552)","v":0},0]
[null,null,"1900-01-22",{"$f":"SUMIFS(Sales!H:H,Sales!B:B,C581,Sales!E:E,$F$552)","v":0},{"$f":"SUMIFS(Sales!I:I,Sales!B:B,C581,Sales!E:E,$F$52)","v":0},0,{"$f":"SUMIFS(Sales!G:G,Sales!B:B,C581,Sales!E:E,$F$552)","v":0},{"$f":"SUMIFS(Deposit!C:C,Deposit!A:A,C581,Deposit!B:B,$F$552)","v":0},0]
[null,null,"1900-01-23",{"$f":"SUMIFS(Sales!H:H,Sales!B:B,C582,Sales!E:E,$F$552)","v":0},{"$f":"SUMIFS(Sales!I:I,Sales!B:B,C582,Sales!E:E,$F$52)","v":0},0,{"$f":"SUMIFS(Sales!G:G,Sales!B:B,C582,Sales!E:E,$F$552)","v":0},{"$f":"SUMIFS(Deposit!C:C,Deposit!A:A,C582,Deposit!B:B,$F$552)","v":0},0]
[null,null,"1900-01-24",{"$f":"SUMIFS(Sales!H:H,Sales!B:B,C583,Sales!E:E,$F$552)","v":0},{"$f":"SUMIFS(Sales!I:I,Sales!B:B,C583,Sales!E:E,$F$52)","v":0},0,{"$f":"SUMIFS(Sales!G:G,Sales!B:B,C583,Sales!E:E,$F$552)","v":0},{"$f":"SUMIFS(Deposit!C:C,Deposit!A:A,C583,Deposit!B:B,$F$552)","v":0},0]
[null,null,"1900-01-25",{"$f":"SUMIFS(Sales!H:H,Sales!B:B,C584,Sales!E:E,$F$552)","v":0},{"$f":"SUMIFS(Sales!I:I,Sales!B:B,C584,Sales!E:E,$F$52)","v":0},0,{"$f":"SUMIFS(Sales!G:G,Sales!B:B,C584,Sales!E:E,$F$552)","v":0},{"$f":"SUMIFS(Deposit!C:C,Deposit!A:A,C584,Deposit!B:B,$F$552)","v":0},0]
[null,null,"1900-01-26",{"$f":"SUMIFS(Sales!H:H,Sales!B:B,C585,Sales!E:E,$F$552)","v":0},{"$f":"SUMIFS(Sales!I:I,Sales!B:B,C585,Sales!E:E,$F$52)","v":0},0,{"$f":"SUMIFS(Sales!G:G,Sales!B:B,C585,Sales!E:E,$F$552)","v":0},{"$f":"SUMIFS(Deposit!C:C,Deposit!A:A,C585,Deposit!B:B,$F$552)","v":0},0]
[null,null,"1900-01-27",{"$f":"SUMIFS(Sales!H:H,Sales!B:B,C586,Sales!E:E,$F$552)","v":0},{"$f":"SUMIFS(Sales!I:I,Sales!B:B,C586,Sales!E:E,$F$52)","v":0},0,{"$f":"SUMIFS(Sales!G:G,Sales!B:B,C586,Sales!E:E,$F$552)","v":0},{"$f":"SUMIFS(Deposit!C:C,Deposit!A:A,C586,Deposit!B:B,$F$552)","v":0},0]
[null,null,"1900-01-28",{"$f":"SUMIFS(Sales!H:H,Sales!B:B,C587,Sales!E:E,$F$552)","v":0},{"$f":"SUMIFS(Sales!I:I,Sales!B:B,C587,Sales!E:E,$F$52)","v":0},0,{"$f":"SUMIFS(Sales!G:G,Sales!B:B,C587,Sales!E:E,$F$552)","v":0},{"$f":"SUMIFS(Deposit!C:C,Deposit!A:A,C587,Deposit!B:B,$F$552)","v":0},0]
[null,null,"1900-01-29",{"$f":"SUMIFS(Sales!H:H,Sales!B:B,C588,Sales!E:E,$F$552)","v":0},{"$f":"SUMIFS(Sales!I:I,Sales!B:B,C588,Sales!E:E,$F$52)","v":0},0,{"$f":"SUMIFS(Sales!G:G,Sales!B:B,C588,Sales!E:E,$F$552)","v":0},{"$f":"SUMIFS(Deposit!C:C,Deposit!A:A,C588,Deposit!B:B,$F$552)","v":0},0]
[null,null,"1900-01-30",{"$f":"SUMIFS(Sales!H:H,Sales!B:B,C589,Sales!E:E,$F$552)","v":0},{"$f":"SUMIFS(Sales!I:I,Sales!B:B,C589,Sales!E:E,$F$52)","v":0},0,{"$f":"SUMIFS(Sales!G:G,Sales!B:B,C589,Sales!E:E,$F$552)","v":0},{"$f":"SUMIFS(Deposit!C:C,Deposit!A:A,C589,Deposit!B:B,$F$552)","v":0},0]

{"sheet":"Coding","index":4,"n_rows":397,"n_cols":9,"rows_kept":397,"cut":false,"hidden":false,"merged":[[375,1,376,1],[3,1,3,2],[4,3,5,7],[374,3,374,5],[375,2,376,2],[99,1,99,4],[3,3,3,5]]}
[1]
[1,0]
[1]
[1,"تـــاريــخ الــبــدء"]
[1,null,null,"يقصد به تاريخ أول فاتورة أو أول تسجيل لحركة مالية علي التطبيق ولابد من إدخال تاريخ البدء لضبط كشوف حساب العملاء "]
[1]
[1]
[1]
[1]
[1]
[1]
[1]
[1]
[1]
[1]
[1]
[1]
[1]
[1]
[1]
[1]
[1]
[1]
[1]
[1]
[1]
[1]
[1]
[1]
[1]
[1]
[1]
[1]
[1]
[1]
[1]
[1]
[1]
[1]
[1]
[1]
[1]
[1]
[1]
[1]
[1]
[1]
[1]
[1]
[1]
[1]
[1]
[1]
[1]
[1]
[1]
[1]
[1]
[1]
[1]
[1]
[1]
[1]
[1]
[1]
[1]
[1]
[1]
[1]
[1]
[1]
[1]
[1]
[1]
[1]
[1]
[1]
[1]
[1]
[1]
[1]
[1]
[1]
[1]
[1]
[1]
[1]
[1]
[1]
[1]
[1]
[1]
[1]
[1]
[1]
[1]
[1]
[1]
[1]
[{"$f":"MAX(A102:A121)+1","v":2},"جدول تعريف الأصناف",null,null,null,{"$f":"MAX(F102:F121)+1","v":1}]
["م","بــــيــــــان الــــصـــنــف","الوحدة الرئيسية","الوحدة الفرعية","معدل التحويل"]
[1,null,null,null,null,{"$f":"IF(AND(D102=\"\",E102=\"\"),\"\",1)","v":""}]
[null,null,null,null,null,{"$f":"IF(AND(D103=\"\",E103=\"\"),\"\",F102+1)","v":""}]
[null,null,null,null,null,{"$f":"IF(AND(D104=\"\",E104=\"\"),\"\",F103+1)","v":""}]
[null,null,null,null,null,""]
[null,null,null,null,null,""]
[null,null,null,null,null,""]
[null,null,null,null,null,""]
[null,null,null,null,null,""]
[null,null,null,null,null,""]
[null,null,null,null,null,""]
[null,null,null,null,null,""]
[null,null,null,null,null,""]
[null,null,null,null,null,""]
[null,null,null,null,null,""]
[null,null,null,null,null,""]
[null,null,null,null,null,""]
[null,null,null,null,null,""]
[null,null,null,null,null,""]
[null,null,null,null,null,""]
[null,null,null,null,null,""]
[]
[]
[]
[]
[]
[]
[]
[]
[]
[]
[]
[]
[]
[]
[]
[]
[]
[]
[]
[]
[]
[]
[]
[]
[]
[]
[]
[]
[]
[]
[]
[]
[]
[]
[]
[]
[]
[]
[]
[]
[]
[]
[]
[]
[]
[]
[]
[]
[]
[]
[]
[]
[]
[]
[]
[]
[]
[]
[]
[]
[]
[]
[]
[]
[]
[]
[]
[]
[]
[]
[]
[]
[]
[]
[]
[]
[]
[]
[]
[null,"م","الـعـمـلاء","رصيد أول"]
[null,1]
[null,2]
[null,3]
[null,4]
[null,5]
[null,6]
[null,7]
[null,8]
[null,9]
[null,10]
[]
[]
[]
[]
[]
[]
[]
[]
[]
[]
[]
[]
[]
[]
[]
[]
[]
[]
[]
[]
[]
[]
[]
[]
[]
[]
[]
[]
[]
[]
[]
[]
[]
[]
[]
[]
[]
[]
[]
[]
[]
[]
[]
[]
[]
[]
[]
[]
[]
[]
[]
[]
[]
[]
[]
[]
[]
[]
[]
[]
[]
[]
[]
[]
[]
[]
[]
[]
[]
[]
[]
[]
[]
[]
[]
[]
[]
[]
[]
[]
[null,"م","المناديب"]
[null,1,"اسماعيل الجن"]
[null,2]
[null,3]
[null,4]
[null,5]
[null,6]
[null,7]
[null,8]
[null,9]
[null,10]
[]
[]
[]
[]
[]
[]
[]
[]
[]
[]
[]
[]
[]
[]
[]
[]
[]
[]
[]
[]
[]
[]
[]
[]
[]
[]
[]
[]
[]
[]
[]
[]
[]
[]
[]
[]
[]
[]
[]
[]
[]
[]
[]
[]
[]
[]
[]
[]
[]
[]
[]
[]
[]
[]
[]
[]
[]
[]
[]
[]
[]
[]
[]
[]
[]
[]
[]
[]
[]
[]
[]
[]
[null,null,null,"جدول السياسات التسعرية للأصناف"]
[null,"م","الصنف",1,2,3,4]
[null,null,null,"تجزئة","جملة","موزعين","سياسة4",null,{"$f":"D377","v":"تجزئة"}]
[null,1,{"$f":"B102","v":0},50,49,49.5,null,null,{"$f":"E377","v":"جملة"}]
[null,2,{"$f":"B103","v":0},null,null,null,null,null,{"$f":"F377","v":"موزعين"}]
[null,3,0,null,null,null,null,null,{"$f":"G377","v":"سياسة4"}]
[null,4,0]
[null,5,0]
[null,6,0]
[null,7,0]
[null,8,0]
[null,9,0]
[null,10,0]
[null,11,0]
[null,12,0]
[null,13,0]
[null,14,0]
[null,15,0]
[null,16,0]
[null,17,0]
[null,18,0]
[null,19,0]
[null,20,0]